Workbook

Sheet Revision history
B2: REVISION HISTORY
B4: Version / Revision | C4: Sheet | D4: Change | E4: Date | F4: Name
B6: 1.0_ENG | D6: Created reporting tool | E6: May 2015 | F6: Michael Doust
B7: 1.8_ENG | C7: Various | D7: Integrated AD*EF calculation functionality | E7: June 2015 | F7: Michael Doust
B8: 1.9_ENG | C8: City information | D8: Updated to expand reporting of renewable energy production or investments | E8: 2015-09-21 | F8: Michael Doust
C9: Data sources and Emission factors | D9: Increased list from 10 to 20 entries. Option to add row maintained | E9: 2015-09-21 | F9: Michael Doust
C10: Emission factors | D10: Added emission factor for calculating fugitive losses from gas distribution using default IPCC values | E10: 2015-09-21 | F10: Michael Doust
C11: Table B. Summary | D11: Added "BASIC+ S3" and "Net GHGs" columns to summary table | E11: 2015-09-21 | F11: Michael Doust
C12: Wastewater | D12: New sheet added to calculate emissions from wastewater using default IPCC values | E12: In progress | F12: Michael Doust
C13: Notation keys | D13: Entered default 'NE' notation keys for all BASIC+ activities and 'NO' for I.5, I.6, I.7, II.4.2 and II.5.3 | E13: 2015-09-21 | F13: Michael Doust
C14: Various | D14: Minor spelling corrections and updated dropdown lists | E14: 2015-09-21 | F14: Michael Doust

Sheet Reference Tables
B2: REFERENCE TABLES
B4: A. GPC OVERVIEW
B6: Sectors and sub-sectors | I6: Scope 1 | J6: Scope 2 | K6: Scope 3
B7: STATIONARY ENERGY
B8: Residential buildings | I8: a | J8: a | K8: a
B9: Commercial buildings | I9: a | J9: a | K9: a
B10: Institutional buildings | I10: a | J10: a | K10: a
B11: Manufacturing industries and construction | I11: a | J11: a | K11: a
B12: Energy industries | I12: a | J12: a | K12: a
B13: Energy generation supplied to the grid | I13: a
B14: Agriculture, forestry, and fishing activities | I14: a | J14: a | K14: a
B15: Non-specified sources | I15: a | J15: a | K15: a
B16: Fugitive emissions from mining, processing, storage, and transportation of coal | I16: a
B17: Fugitive emissions from oil and natural gas systems | I17: a
B18: TRANSPORTATION
B19: On-road | I19: a | J19: a | K19: a
B20: Railways | I20: a | J20: a | K20: a
B21: Waterborne navigation | I21: a | J21: a | K21: a
B22: Aviation | I22: a | J22: a | K22: a
B23: Off-road | I23: a | J23: a
B24: WASTE
B25: Solid waste generated in the city | I25: a | K25: a
B26: Solid waste generated outside the city | I26: a
B27: Biological waste generated in the city | I27: a | K27: a
B28: Biological waste generated outside the city | I28: a
B29: Incinerated and burned waste generated in the city | I29: a | K29: a
B30: Incinerated and burned waste generated outside city | I30: a
B31: Wastewater generated in the city | I31: a | K31: a
B32: Wastewater generated outside the city | I32: a
B33: INDUSTRIAL PROCESSES AND PRODUCT USE (IPPU)
B34: Industrial processes | I34: a
B35: Product use | I35: a
B36: AGRICULTURE, FORESTRY, AND LAND USE (AFOLU)
B37: Livestock | I37: a
B38: Land | I38: a
B39: Other agriculture | I39: a
B40: OTHER SCOPE 3
B42: a | C42: ="= sources required for reporting" -> = sources required for reporting
B43: a | C43: ="= sources required for BASIC reporting" -> = sources required for BASIC reporting
B44: a | C44: =" +" -> + | D44: a | E44: ="= sources required for BASIC+ reporting" -> = sources required for BASIC+ reporting
B45: a | C45: ="= additional scope 1 sources required for territorial reporting" -> = additional scope 1 sources required for territorial reporting
C46: ="= other scope 3 sources" -> = other scope 3 sources
C47: ="= non-applicable emission sources" -> = non-applicable emission sources
B49: B. NOTATION KEYS
B51: B1. When to use notation keys? | L51: B2. Definitions
L53: Notation key | O53: Description and examples
L56: Not occurring | N56: NO | O56: An activity or process does not occur or exist within the city.
N58: Example | O58: I.7.1 does not occur. No coal-related activities within the city boundary.
O60: II.2.2 does not occur. Number of electric vehicles is negligible compared to total vehicle fleet (0.01% of vehicle sales in 2014 were electric).
L62: Included elsewhere | N62: IE | O62: GHG emissions for this activity are estimated and presented in another category of the inventory. That category shall be noted in the explanation.
N64: Example | O64: II.5.1 is reported in II.1.1. Fuel sales approach does not allow for disaggregation.
O66: III.1.2 is reported in I Stationary. Landfill gas is captured and burned as an energy source.
L68: Not estimated | N68: NE | O68: Emissions occur but have not been estimated or reported; justification for exclusion shall be noted in the explanation
N70: Example | O70: III.4.3 has not been estimated. Activity not required for BASIC inventory.
O72: V.1 has not been estimated. No livetstock data available.
L74: Confidential | N74: C | O74: GHG emissions which could lead to the disclosure of confidential information and can therefore not be reported.
N76: Example | O76: Activity data for IV.1 is confidential. Data cannot be aggregated to provide confidentiality.
O78: II.5.1 is confidential. Military base within city boundary.
B82: C. GLOBAL WARMING POTENTIAL
B84: Greenhouse gas | F84: IPCC Assessment Report
B85: Formula | D85: Name | F85: 5AR | G85: 4AR | H85: 3AR | I85: 2AR
B87: CO2 | D87: Carbon Dioxide | F87: 1 | G87: 1 | H87: 1 | I87: 1
B88: CH4 | D88: Methane | F88: 28 | G88: 25 | H88: 23 | I88: 21
B89: N2O | D89: Nitrous Oxide | F89: 265 | G89: 298 | H89: 296 | I89: 310
B90: SF6 | D90: Sulphur hexafluoride | F90: 23500 | G90: 22800 | H90: 22200 | I90: 23900
B91: CF4 | D91: Carbon tetrafluoride | F91: 6630 | G91: 7390 | H91: 5700 | I91: 6500
B92: C2F6 | D92: Hexafluoroethane | F92: 11100 | G92: 12200 | H92: 11900 | I92: 9200
B93: CHF3 | D93: HFC-23 | F93: 12400 | G93: 14800 | H93: 12000 | I93: 11700
B94: CH2F2 | D94: HFC-32 | F94: 677 | G94: 675 | H94: 550 | I94: 650
B95: CH3F | D95: HFC-41 | F95: 116 | G95: 92 | H95: 97 | I95: 150
B96: C2HF5 | D96: HFC-125 | F96: 3170 | G96: 3500 | H96: 3400 | I96: 2800
B97: C2H2F4 | D97: HFC-134 | F97: 1120 | G97: 1100 | H97: 1100 | I97: 1000
B98: CH2FCF3 | D98: HFC-134a | F98: 1300 | G98: 1430 | H98: 1300 | I98: 1300
B99: C2H3F3 | D99: HFC-143 | F99: 328 | G99: 353 | H99: 330 | I99: 300
B100: C2H4F3 | D100: HFC-143a | F100: 4800 | G100: 4470 | H100: 4300 | I100: 3800
B101: C2H4F2 | D101: HFC-152a | F101: 138 | G101: 124 | H101: 120 | I101: 140
B102: C3HF7 | D102: HFC-227ea | F102: 3350 | G102: 3220 | H102: 3500 | I102: 2900
B103: C3H2F6 | D103: HFC-236fa | F103: 8060 | G103: 9810 | H103: 9400 | I103: 6300
B104: C3H3F5 | D104: HFC-245ca | F104: 716 | G104: 1030 | H104: 950 | I104: 560
B105: NF3 | D105: Nitrogen trifluoride | F105: 16100 | G105: 17200
B107: Full references to the IPCC Assessment Reports are provided in the GPC
B109: D. CONVERSION FACTORS
B111: Conversion factors for SI prefixes
B113: From | D113: To | E113: T | F113: G | G113: M | H113: k
B115: Multiply by:
B116: Tera (T) - 1000000000000, 1012 | E116: 1 | F116: 1000 | G116: 1000000 | H116: 1000000000
B117: Giga (G) - 1000000000, 109 | E117: 0.001 | F117: 1 | G117: 1000 | H117: 1000000
B118: Mega (M) - 1000000, 106 | E118: 1e-06 | F118: 0.001 | G118: 1 | H118: 1000
B119: Kilo (k) - 1000, 103 | E119: 1e-09 | F119: 1e-06 | G119: 0.001 | H119: 1
B121: General conversion factors for energy
B123: From | D123: To | E123: TJ | F123: Gcal | G123: Mtoe | H123: Mbtu | I123: GWh
B125: Multiply by:
B126: Terajoules(TJ) | E126: 1 | F126: 238.8 | G126: 2.388e-05 | H126: 947.8 | I126: 0.2778
B127: Giga calories (Gcal) | E127: 0.0041868 | F127: 1 | G127: 1e-07 | H127: 3.968 | I127: 0.001163
B128: Mtoe | E128: 41868 | F128: 10000000 | G128: 1 | H128: 39680000 | I128: 11630
B129: Mbtu | E129: 0.0010551 | F129: 0.252 | G129: 2.52e-08 | H129: 1 | I129: 0.0002931
B130: Gigawatt hours (GWh) | E130: 3.6 | F130: 860 | G130: 8.6e-05 | H130: 3412 | I130: 1
B132: General conversion factors for mass
B134: From | D134: To | E134: g | F134: kg | G134: t | H134: lt | I134: st | J134: lb
B136: Multiply by:
B137: gramme (g) | D137: g | E137: =F137*1000 -> 1 | F137: =F138/1000 -> 0.001 | G137: =G138/1000 -> 1e-06 | H137: =H138/1000 -> 9.84e-07 | I137: =I138/1000 -> 1.102e-06 | J137: =J138/1000 -> 0.00220462262
B138: Kilogramme (kg) | D138: kg | E138: 1000 | F138: 1 | G138: 0.001 | H138: 0.000984 | I138: 0.001102 | J138: 2.20462262
B139: Metric tonne (t) | D139: t | E139: 1000000 | F139: 1000 | G139: 1 | H139: 0.984 | I139: 1.1023 | J139: =J138*F139 -> 2204.62262
B140: Long ton (lt) | D140: lt | E140: 1016000 | F140: 1016 | G140: 1.016 | H140: 1 | I140: 1.12 | J140: 2240
B141: Short ton (st) | D141: st | E141: 907200 | F141: 907.2 | G141: 0.9072 | H141: 0.893 | I141: 1 | J141: 2000
B142: Pound (lb) | D142: lb | E142: 453.5923704 | F142: =1/J138 -> 0.4535923704 | G142: =1/J139 -> 0.0004535923704 | H142: =1/J140 -> 0.0004464285714 | I142: =1/J141 -> 0.0005 | J142: 1
B144: General conversion factors for volume
B146: From | D146: To | E146: l | F146: m3 | G146: ft3 | H146: bbl | I146: UK gal | J146: US gal
B148: Multiply by:
B149: Litre (l) | E149: 1 | F149: 0.001 | G149: 0.0353 | H149: 0.0063 | I149: 0.22 | J149: =1/E154 -> 0.2642007926
B150: Cubic metre (m3) | E150: =E149*1000 -> 1000 | F150: 1 | G150: =G149*1000 -> 35.3 | H150: =H149*1000 -> 6.3 | I150: =I149*1000 -> 220 | J150: =J149*1000 -> 264.2007926
B151: Cubic foot (ft3) | E151: 28.3 | F151: 0.0283 | G151: 1 | H151: 0.1781 | I151: 6.229 | J151: 7.48
B152: Barrel (bbl) | E152: 159 | F152: 0.159 | G152: 5.615 | H152: 1 | I152: 34.97 | J152: 42
B153: UK gallon (gal) | E153: 4.546 | F153: 0.0045 | G153: 0.1605 | H153: 0.02859 | I153: 1 | J153: 1.201
B154: US gallon (gal) | E154: 3.785 | F154: 0.0038 | G154: 0.1337 | H154: 0.02381 | I154: 0.8327 | J154: 1
B156: Source: International Energy Agency: www.iea.org/newsroomandevents/resources/conversiontables
B158: A more complete list of conversions is available at www.onlineconversion.com

Sheet City information
B2: CITY INFORMATION
B4: A. INVENTORY BOUNDARY (GPC table 4.1 page 40)
B6: Boundary | C6: Information | E6: Reference(s)
B9: Name of city | C9: Chicago
B10: Country | C10: USA
B11: Inventory year (if not calendar year, please specify the full 12-month period, e.g. 01 April 2014 - 31 March 2015) | C11: 2010
B12: Geographic boundary (select from list of values) | C12: Administrative boundary of a local government | E12: Please provide a description of the boundary or reference to an official source
B13: Land area (km2) within city boundary
B14: Resident population within city boundary | C14: 2695598 | E14: U.S Census Bureau
B15: GDP (US$) of economic activity within city boundary
B16: Predominant type of economy (select from list of values)
B17: Climate (select from list of values) | E17: http://people.eng.unimelb.edu.au/mpeel/koppen.html
B18: Other information
B20: B. INVENTORY INFORMATION
B22: Inventory | C22: Information
B25: GPC reporting level (select from list) | C25: BASIC
B26: Greenhouse gases included in inventory (select from list) | C26: CO2, CH4, N2O
B27: Global Warming Potential (select relevant IPCC AR from list) | C27: IPCC Second Assessment Report (1995)
B28: Description of overall methodology and tools used
B29: Relevant local, regional and national regulations
B30: Comments on change in total emissions since last reported inventory
B31: Has the inventory been audited or verified by a third party? | C31: Please select
B32: =IF(C31="Yes - audited","Name of auditor",IF(C31="Yes - verified","Name of verifier","")) -> 
B33: =IF(C31="Yes - audited","Year of audit",IF(C31="Yes - verified","Year of verification","")) -> 
B34: Planned improvements
B36: C. INVENTORY COMPILER
C38: Information
B41: Compiler name
B42: Department
B43: Date
B44: Version
B45: Contact information
B46: Links
B48: D. OPTIONAL INFORMATION ITEMS (GPC section 4.3 page 40)
B50: D1. Scope 2 emissions based on market-based method
B52: Contractual instrument or program type | C52: Quantity of energy (kWh, BTU , etc.) | E52: Emission factor conveyed by the instrument | G52: Total GHG emissions (tCO2e)
C53: Amount | D53: Units | E53: Amount | F53: Units
B59: TOTAL market-based scope 2 emissions (in tCO2e) | G59: =IF(SUM(G55:G58)=0,0,SUM(G55:G58)) -> 0
B61: D2. Offset credit transactions
B63: Offset credits generated within the geographic boundary and sold | C63: Total GHG emissions (tCO2e)
B70: TOTAL inboundary offset credit transactions (in tCO2e) | C70: =IF(SUM(C66:C69)=0,0,SUM(C66:C69)) -> 0
B72: Offset credits purchased from outside the geographic boundary (e.g. to meet a city reduction goal) | C72: Total GHG emissions (tCO2e)
B79: TOTAL out of boundary offset credit transactions (in tCO2e) | C79: =IF(SUM(C75:C78)=0,0,SUM(C75:C78)) -> 0
B81: D3. Renewable energy production or investments
B83: Technology type | C83: Total annual production of grid-delivered energy | E83: Located in geographic boundary? | F83: If outside boundary, percentage of ownership by city? | G83: Benchmark energy source | H83: Emission factor | J83: Correction (tCO2e) | K83: Total GHG emissions (tCO2e)
C84: Amount | D84: Units | H84: Amount | I84: Units
K86: =IF(ISNUMBER(F86),F86*C86*H86-J86,C86*H86-J86) -> 0
K87: =IF(ISNUMBER(F87),F87*C87*H87-J87,C87*H87-J87) -> 0
K88: =IF(ISNUMBER(F88),F88*C88*H88-J88,C88*H88-J88) -> 0
K89: =IF(ISNUMBER(F89),F89*C89*H89-J89,C89*H89-J89) -> 0
B90: TOTAL renewable energy production or investments (in tCO2e) | K90: =IF(SUM(K86:K89)=0,0,SUM(K86:K89)) -> 0

Sheet Data sources
B2: DATA SOURCES
B4: Use this table to record all the data sources used to compile the inventory. References provided in column C may be used to select the relevant data sources in the emission factors and sector tabs.
B6: Data | C6: Name of source | D6: Provider | E6: Reporting period | F6: Frequency | G6: Release date | H6: Scale | I6: Available from | J6: Latest year | K6: Link
B8: Emission factors | C8: National emissions factor database | D8: Ministry of the Environment | E8: Calendar year | F8: Annual | G8: April | H8: National | I8: 2000 | J8: 2014 | K8: www.ipcc-nggip.iges.or.jp/EFDB/main.php
B30: VIII. MACRO

Sheet Emission factors
B2: EMISSION FACTORS | BN2: 
B4: Use this table to record the emission factors used to calculate GHG emissions from all the activities included in the inventory. | BN4: F gases
B5: References provided in column D shall be used to identify the relevant emission factors in the sector tabs.
B7: Fuel type or activity | C7: Reference | D7: Type | E7: GWP | F7: Units | I7: Convert to tonnes | J7: Emission factor | BR7: Year | BS7: Scale | BT7: Description | BU7: Source
J8: CO2 | K8: tCO2e | L8: CH4 | M8: CH4_CO2e | N8: CH4_tCO2e | O8: N2O | P8: N2O_CO2e | Q8: N2O_tCO2e | R8: CF4 | S8: CF4_CO2e | T8: CF4_tCO2e | U8: C2F6 | V8: C2F6_CO2e | W8: C2F6_tCO2e | X8: HFC-23 | Y8: HFC-23_CO2e | Z8: HFC-23_tCO2e | AA8: HFC-32 | AB8: HFC-32_CO2e | AC8: HFC-32_tCO2e | AD8: HFC-41 | AE8: HFC-41_CO2e | AF8: HFC-41_tCO2e | AG8: HFC-125 | AH8: HFC-125_CO2e | AI8: HFC-125_tCO2e | AJ8: HFC-134 | AK8: HFC-134_CO2e | AL8: HFC-134_tCO2e | AM8: HFC-134a | AN8: HFC-134a_CO2e | AO8: HFC-134a_tCO2e | AP8: HFC-143 | AQ8: HFC-143_CO2e | AR8: HFC-143_tCO2e | AS8: HFC-143a | AT8: HFC-143a_CO2e | AU8: HFC-143a_tCO2e | AV8: HFC-152a | AW8: HFC-152a_CO2e | AX8: HFC-152a_tCO2e | AY8: HFC-227ea | AZ8: HFC-227ea_CO2e | BA8: HFC-227ea_tCO2e | BB8: HFC-236fa | BC8: HFC-236fa_CO2e | BD8: HFC-236fa_tCO2e | BE8: HFC-245ca | BF8: HFC-245ca_CO2e | BG8: HFC-245ca_tCO2e | BH8: SF6 | BI8: SF6_CO2e | BJ8: SF6_tCO2e | BK8: NF3 | BL8: NF3_CO2e | BM8: NF3_tCO2e | BN8: Total CO2e | BO8: tCO2e | BP8: CO2(b) | BQ8: tCO2(b)
B9: Fuel A | C9: EF_Fuel A | D9: CO2e | E9: 5AR | F9: kg | G9: / | H9: kWh | I9: 0.001 | J9: 0.4822 | K9: =J9*$I9 -> 0.0004822 | L9: 0.003 | M9: =IF(L9="","",IF($D9="",L9,IF($D9="CO2e",L9,L9*HLOOKUP($E9,'Reference Tables'!$F$85:$I$105,4,FALSE)))) -> 0.003 | N9: =M9*$I9 -> 3e-06 | O9: 0.0029 | P9: =IF(O9="","",IF($D9="",O9,IF($D9="CO2e",O9,O9*HLOOKUP($E9,'Reference Tables'!$F$85:$I$105,5,FALSE)))) -> 0.0029 | Q9: =P9*$I9 -> 2.9e-06 | BP9: 0 | BR9: 2014 | BS9: National | BT9: Average emission factor for national electricity grid | BU9: National emissions factor database
B11: Fugitive emissions from gas distribution | C11: EF_Fugitive | D11: GHG | E11: 4AR | F11: kg | G11: =IF(F11="","","/") -> / | H11: m3 | I11: =IFERROR(IF(F11="","",VLOOKUP(F11,'Reference Tables'!$D$137:$G$142,4,FALSE)),"") -> 0.001 | J11: 5.1e-05 | K11: =IFERROR(IF(J11="","",J11*$I11),"") -> 5.1e-08 | L11: 0.0011 | M11: =IF(L11="","",IF($D11="",L11,IF($D11="CO2e",L11,L11*HLOOKUP($E11,'Reference Tables'!$F$85:$I$105,4,FALSE)))) -> 0.0275 | N11: =IFERROR(IF(M11="","",M11*$I11),"") -> 2.75e-05 | P11: =IF(O11="","",IF($D11="",O11,IF($D11="CO2e",O11,O11*HLOOKUP($E11,'Reference Tables'!$F$85:$I$105,5,FALSE)))) ->  | Q11: =IFERROR(IF(P11="","",P11*$I11),"") ->  | S11: =IF(R11="","",IF($D11="",R11,IF($D11="CO2e",R11,R11*HLOOKUP($E11,'Reference Tables'!$F$85:$I$105,7,FALSE)))) ->  | T11: =IFERROR(IF(S11="","",S11*$I11),"") ->  | V11: =IF(U11="","",IF($D11="",U11,IF($D11="CO2e",U11,U11*HLOOKUP($E11,'Reference Tables'!$F$85:$I$105,8,FALSE)))) ->  | W11: =IFERROR(IF(V11="","",V11*$I11),"") ->  | Y11: =IF(X11="","",IF($D11="",X11,IF($D11="CO2e",X11,X11*HLOOKUP($E11,'Reference Tables'!$F$85:$I$105,9,FALSE)))) ->  | Z11: =IFERROR(IF(Y11="","",Y11*$I11),"") ->  | AB11: =IF(AA11="","",IF($D11="",AA11,IF($D11="CO2e",AA11,AA11*HLOOKUP($E11,'Reference Tables'!$F$85:$I$105,10,FALSE)))) ->  | AC11: =IFERROR(IF(AB11="","",AB11*$I11),"") ->  | AE11: =IF(AD11="","",IF($D11="",AD11,IF($D11="CO2e",AD11,AD11*HLOOKUP($E11,'Reference Tables'!$F$85:$I$105,11,FALSE)))) ->  | AF11: =IFERROR(IF(AE11="","",AE11*$I11),"") ->  | AH11: =IF(AG11="","",IF($D11="",AG11,IF($D11="CO2e",AG11,AG11*HLOOKUP($E11,'Reference Tables'!$F$85:$I$105,12,FALSE)))) ->  | AI11: =IFERROR(IF(AH11="","",AH11*$I11),"") ->  | AK11: =IF(AJ11="","",IF($D11="",AJ11,IF($D11="CO2e",AJ11,AJ11*HLOOKUP($E11,'Reference Tables'!$F$85:$I$105,13,FALSE)))) ->  | AL11: =IFERROR(IF(AK11="","",AK11*$I11),"") ->  | AN11: =IF(AM11="","",IF($D11="",AM11,IF($D11="CO2e",AM11,AM11*HLOOKUP($E11,'Reference Tables'!$F$85:$I$105,14,FALSE)))) ->  | AO11: =IFERROR(IF(AN11="","",AN11*$I11),"") ->  | AQ11: =IF(AP11="","",IF($D11="",AP11,IF($D11="CO2e",AP11,AP11*HLOOKUP($E11,'Reference Tables'!$F$85:$I$105,15,FALSE)))) ->  | AR11: =IFERROR(IF(AQ11="","",AQ11*$I11),"") ->  | AT11: =IF(AS11="","",IF($D11="",AS11,IF($D11="CO2e",AS11,AS11*HLOOKUP($E11,'Reference Tables'!$F$85:$I$105,16,FALSE)))) ->  | AU11: =IFERROR(IF(AT11="","",AT11*$I11),"") ->  | AW11: =IF(AV11="","",IF($D11="",AV11,IF($D11="CO2e",AV11,AV11*HLOOKUP($E11,'Reference Tables'!$F$85:$I$105,17,FALSE)))) ->  | AX11: =IFERROR(IF(AW11="","",AW11*$I11),"") ->  | AZ11: =IF(AY11="","",IF($D11="",AY11,IF($D11="CO2e",AY11,AY11*HLOOKUP($E11,'Reference Tables'!$F$85:$I$105,18,FALSE)))) ->  | BA11: =IFERROR(IF(AZ11="","",AZ11*$I11),"") ->  | BC11: =IF(BB11="","",IF($D11="",BB11,IF($D11="CO2e",BB11,BB11*HLOOKUP($E11,'Reference Tables'!$F$85:$I$105,19,FALSE)))) ->  | BD11: =IFERROR(IF(BC11="","",BC11*$I11),"") ->  | BF11: =IF(BE11="","",IF($D11="",BE11,IF($D11="CO2e",BE11,BE11*HLOOKUP($E11,'Reference Tables'!$F$85:$I$105,20,FALSE)))) ->  | BG11: =IFERROR(IF(BF11="","",BF11*$I11),"") ->  | BI11: =IF(BH11="","",IF($D11="",BH11,IF($D11="CO2e",BH11,BH11*HLOOKUP($E11,'Reference Tables'!$F$85:$I$105,6,FALSE)))) ->  | BJ11: =IFERROR(IF(BI11="","",BI11*$I11),"") ->  | BL11: =IF(BK11="","",IF($D11="",BK11,IF($D11="CO2e",BK11,BK11*HLOOKUP($E11,'Reference Tables'!$F$85:$I$105,6,FALSE)))) ->  | BM11: =IFERROR(IF(BL11="","",BL11*$I11),"") ->  | BO11: =IFERROR(IF(BN11="","",BN11*$I11),"") ->  | BQ11: =IFERROR(IF(BP11="","",BP11*$I11),"") ->  | BR11: 2006 | BS11: International | BT11: Default IPCC emission factors for gas distribution losses | BU11: 2006 IPCC Guidelines for National Greenhouse Gas Inventories (Chapter 4; Table 4.2.4 and 4.2.5)
B12: Natural gas emission factor | C12: EF_natural gas Peoples | D12: GHG | E12: 2AR | F12: kg | G12: / | H12: therm | I12: =IFERROR(IF(F12="","",VLOOKUP(F12,'Reference Tables'!$D$137:$G$142,4,FALSE)),"") -> 0.001 | J12: =[2]!kgCO2_therm_Peoples -> 5.492033787 | K12: 0.005492033787 | L12: =[2]!kgCH4_therm_Peoples -> 0.009401909664 | M12: =IF(L12="","",IF($D12="",L12,IF($D12="CO2e",L12,L12*HLOOKUP($E12,'Reference Tables'!$F$85:$I$105,4,FALSE)))) -> 0.197440103 | N12: 0.000197440103 | O12: =[2]!kgN2O_therm_nationalaverage -> 9.997612449e-06 | P12: =IF(O12="","",IF($D12="",O12,IF($D12="CO2e",O12,O12*HLOOKUP($E12,'Reference Tables'!$F$85:$I$105,5,FALSE)))) -> 0.003099259859 | Q12: 3.099259859e-06 | S12: =IF(R12="","",IF($D12="",R12,IF($D12="CO2e",R12,R12*HLOOKUP($E12,'Reference Tables'!$F$85:$I$105,7,FALSE)))) ->  | T12: =IFERROR(IF(S12="","",S12*$I12),"") ->  | V12: =IF(U12="","",IF($D12="",U12,IF($D12="CO2e",U12,U12*HLOOKUP($E12,'Reference Tables'!$F$85:$I$105,8,FALSE)))) ->  | W12: =IFERROR(IF(V12="","",V12*$I12),"") ->  | Y12: =IF(X12="","",IF($D12="",X12,IF($D12="CO2e",X12,X12*HLOOKUP($E12,'Reference Tables'!$F$85:$I$105,9,FALSE)))) ->  | Z12: =IFERROR(IF(Y12="","",Y12*$I12),"") ->  | AB12: =IF(AA12="","",IF($D12="",AA12,IF($D12="CO2e",AA12,AA12*HLOOKUP($E12,'Reference Tables'!$F$85:$I$105,10,FALSE)))) ->  | AC12: =IFERROR(IF(AB12="","",AB12*$I12),"") ->  | AE12: =IF(AD12="","",IF($D12="",AD12,IF($D12="CO2e",AD12,AD12*HLOOKUP($E12,'Reference Tables'!$F$85:$I$105,11,FALSE)))) ->  | AF12: =IFERROR(IF(AE12="","",AE12*$I12),"") ->  | AH12: =IF(AG12="","",IF($D12="",AG12,IF($D12="CO2e",AG12,AG12*HLOOKUP($E12,'Reference Tables'!$F$85:$I$105,12,FALSE)))) ->  | AI12: =IFERROR(IF(AH12="","",AH12*$I12),"") ->  | AK12: =IF(AJ12="","",IF($D12="",AJ12,IF($D12="CO2e",AJ12,AJ12*HLOOKUP($E12,'Reference Tables'!$F$85:$I$105,13,FALSE)))) ->  | AL12: =IFERROR(IF(AK12="","",AK12*$I12),"") ->  | AN12: =IF(AM12="","",IF($D12="",AM12,IF($D12="CO2e",AM12,AM12*HLOOKUP($E12,'Reference Tables'!$F$85:$I$105,14,FALSE)))) ->  | AO12: =IFERROR(IF(AN12="","",AN12*$I12),"") ->  | AQ12: =IF(AP12="","",IF($D12="",AP12,IF($D12="CO2e",AP12,AP12*HLOOKUP($E12,'Reference Tables'!$F$85:$I$105,15,FALSE)))) ->  | AR12: =IFERROR(IF(AQ12="","",AQ12*$I12),"") ->  | AT12: =IF(AS12="","",IF($D12="",AS12,IF($D12="CO2e",AS12,AS12*HLOOKUP($E12,'Reference Tables'!$F$85:$I$105,16,FALSE)))) ->  | AU12: =IFERROR(IF(AT12="","",AT12*$I12),"") ->  | AW12: =IF(AV12="","",IF($D12="",AV12,IF($D12="CO2e",AV12,AV12*HLOOKUP($E12,'Reference Tables'!$F$85:$I$105,17,FALSE)))) ->  | AX12: =IFERROR(IF(AW12="","",AW12*$I12),"") ->  | AZ12: =IF(AY12="","",IF($D12="",AY12,IF($D12="CO2e",AY12,AY12*HLOOKUP($E12,'Reference Tables'!$F$85:$I$105,18,FALSE)))) ->  | BA12: =IFERROR(IF(AZ12="","",AZ12*$I12),"") ->  | BC12: =IF(BB12="","",IF($D12="",BB12,IF($D12="CO2e",BB12,BB12*HLOOKUP($E12,'Reference Tables'!$F$85:$I$105,19,FALSE)))) ->  | BD12: =IFERROR(IF(BC12="","",BC12*$I12),"") ->  | BF12: =IF(BE12="","",IF($D12="",BE12,IF($D12="CO2e",BE12,BE12*HLOOKUP($E12,'Reference Tables'!$F$85:$I$105,20,FALSE)))) ->  | BG12: =IFERROR(IF(BF12="","",BF12*$I12),"") ->  | BI12: =IF(BH12="","",IF($D12="",BH12,IF($D12="CO2e",BH12,BH12*HLOOKUP($E12,'Reference Tables'!$F$85:$I$105,6,FALSE)))) ->  | BJ12: =IFERROR(IF(BI12="","",BI12*$I12),"") ->  | BL12: =IF(BK12="","",IF($D12="",BK12,IF($D12="CO2e",BK12,BK12*HLOOKUP($E12,'Reference Tables'!$F$85:$I$105,6,FALSE)))) ->  | BR12: 2010 | BS12: Local | BT12: Emission factor developed by ICF using Peoples Gas use data
B13: Electricity emission factor | C13: EF_electricity | D13: GHG | E13: 2AR | F13: lb | G13: / | H13: MWh | I13: =IFERROR(IF(F13="","",VLOOKUP(F13,'Reference Tables'!$D$137:$G$142,4,FALSE)),"") -> 0.0004535923704 | J13: =[2]!ICF_2010_lbsCO2_MWh -> 1352.188021 | K13: 0.6133421697 | L13: =[2]!ICF_2010_lbsCH4_MWh -> 0.02096192534 | M13: =IF(L13="","",IF($D13="",L13,IF($D13="CO2e",L13,L13*HLOOKUP($E13,'Reference Tables'!$F$85:$I$105,4,FALSE)))) -> 0.4402004322 | N13: 0.0001996715575 | O13: =[2]!ICF_2010_lbsN2O_MWh -> 0.02243729061 | P13: =IF(O13="","",IF($D13="",O13,IF($D13="CO2e",O13,O13*HLOOKUP($E13,'Reference Tables'!$F$85:$I$105,5,FALSE)))) -> 6.955560089 | Q13: 0.003154988988 | S13: =IF(R13="","",IF($D13="",R13,IF($D13="CO2e",R13,R13*HLOOKUP($E13,'Reference Tables'!$F$85:$I$105,7,FALSE)))) ->  | V13: =IF(U13="","",IF($D13="",U13,IF($D13="CO2e",U13,U13*HLOOKUP($E13,'Reference Tables'!$F$85:$I$105,8,FALSE)))) ->  | Y13: =IF(X13="","",IF($D13="",X13,IF($D13="CO2e",X13,X13*HLOOKUP($E13,'Reference Tables'!$F$85:$I$105,9,FALSE)))) ->  | AB13: =IF(AA13="","",IF($D13="",AA13,IF($D13="CO2e",AA13,AA13*HLOOKUP($E13,'Reference Tables'!$F$85:$I$105,10,FALSE)))) ->  | AE13: =IF(AD13="","",IF($D13="",AD13,IF($D13="CO2e",AD13,AD13*HLOOKUP($E13,'Reference Tables'!$F$85:$I$105,11,FALSE)))) ->  | AH13: =IF(AG13="","",IF($D13="",AG13,IF($D13="CO2e",AG13,AG13*HLOOKUP($E13,'Reference Tables'!$F$85:$I$105,12,FALSE)))) ->  | AK13: =IF(AJ13="","",IF($D13="",AJ13,IF($D13="CO2e",AJ13,AJ13*HLOOKUP($E13,'Reference Tables'!$F$85:$I$105,13,FALSE)))) ->  | AN13: =IF(AM13="","",IF($D13="",AM13,IF($D13="CO2e",AM13,AM13*HLOOKUP($E13,'Reference Tables'!$F$85:$I$105,14,FALSE)))) ->  | AQ13: =IF(AP13="","",IF($D13="",AP13,IF($D13="CO2e",AP13,AP13*HLOOKUP($E13,'Reference Tables'!$F$85:$I$105,15,FALSE)))) ->  | AT13: =IF(AS13="","",IF($D13="",AS13,IF($D13="CO2e",AS13,AS13*HLOOKUP($E13,'Reference Tables'!$F$85:$I$105,16,FALSE)))) ->  | AW13: =IF(AV13="","",IF($D13="",AV13,IF($D13="CO2e",AV13,AV13*HLOOKUP($E13,'Reference Tables'!$F$85:$I$105,17,FALSE)))) ->  | AZ13: =IF(AY13="","",IF($D13="",AY13,IF($D13="CO2e",AY13,AY13*HLOOKUP($E13,'Reference Tables'!$F$85:$I$105,18,FALSE)))) ->  | BC13: =IF(BB13="","",IF($D13="",BB13,IF($D13="CO2e",BB13,BB13*HLOOKUP($E13,'Reference Tables'!$F$85:$I$105,19,FALSE)))) ->  | BF13: =IF(BE13="","",IF($D13="",BE13,IF($D13="CO2e",BE13,BE13*HLOOKUP($E13,'Reference Tables'!$F$85:$I$105,20,FALSE)))) ->  | BI13: =IF(BH13="","",IF($D13="",BH13,IF($D13="CO2e",BH13,BH13*HLOOKUP($E13,'Reference Tables'!$F$85:$I$105,6,FALSE)))) ->  | BL13: =IF(BK13="","",IF($D13="",BK13,IF($D13="CO2e",BK13,BK13*HLOOKUP($E13,'Reference Tables'!$F$85:$I$105,6,FALSE)))) ->  | BR13: 2010 | BS13: Regional | BT13: eGRID 2010 Update RFC region
B14: Motorcycle emission factor | C14: EF_motorcycle | D14: CO2e | E14: 2AR | F14: g | G14: / | H14: mile | I14: =IFERROR(IF(F14="","",VLOOKUP(F14,'Reference Tables'!$D$137:$G$142,4,FALSE)),"") -> 1e-06 | M14: =IF(L14="","",IF($D14="",L14,IF($D14="CO2e",L14,L14*HLOOKUP($E14,'Reference Tables'!$F$85:$I$105,4,FALSE)))) ->  | P14: =IF(O14="","",IF($D14="",O14,IF($D14="CO2e",O14,O14*HLOOKUP($E14,'Reference Tables'!$F$85:$I$105,5,FALSE)))) ->  | S14: =IF(R14="","",IF($D14="",R14,IF($D14="CO2e",R14,R14*HLOOKUP($E14,'Reference Tables'!$F$85:$I$105,7,FALSE)))) ->  | V14: =IF(U14="","",IF($D14="",U14,IF($D14="CO2e",U14,U14*HLOOKUP($E14,'Reference Tables'!$F$85:$I$105,8,FALSE)))) ->  | Y14: =IF(X14="","",IF($D14="",X14,IF($D14="CO2e",X14,X14*HLOOKUP($E14,'Reference Tables'!$F$85:$I$105,9,FALSE)))) ->  | AB14: =IF(AA14="","",IF($D14="",AA14,IF($D14="CO2e",AA14,AA14*HLOOKUP($E14,'Reference Tables'!$F$85:$I$105,10,FALSE)))) ->  | AE14: =IF(AD14="","",IF($D14="",AD14,IF($D14="CO2e",AD14,AD14*HLOOKUP($E14,'Reference Tables'!$F$85:$I$105,11,FALSE)))) ->  | AH14: =IF(AG14="","",IF($D14="",AG14,IF($D14="CO2e",AG14,AG14*HLOOKUP($E14,'Reference Tables'!$F$85:$I$105,12,FALSE)))) ->  | AK14: =IF(AJ14="","",IF($D14="",AJ14,IF($D14="CO2e",AJ14,AJ14*HLOOKUP($E14,'Reference Tables'!$F$85:$I$105,13,FALSE)))) ->  | AN14: =IF(AM14="","",IF($D14="",AM14,IF($D14="CO2e",AM14,AM14*HLOOKUP($E14,'Reference Tables'!$F$85:$I$105,14,FALSE)))) ->  | AQ14: =IF(AP14="","",IF($D14="",AP14,IF($D14="CO2e",AP14,AP14*HLOOKUP($E14,'Reference Tables'!$F$85:$I$105,15,FALSE)))) ->  | AT14: =IF(AS14="","",IF($D14="",AS14,IF($D14="CO2e",AS14,AS14*HLOOKUP($E14,'Reference Tables'!$F$85:$I$105,16,FALSE)))) ->  | AW14: =IF(AV14="","",IF($D14="",AV14,IF($D14="CO2e",AV14,AV14*HLOOKUP($E14,'Reference Tables'!$F$85:$I$105,17,FALSE)))) ->  | AZ14: =IF(AY14="","",IF($D14="",AY14,IF($D14="CO2e",AY14,AY14*HLOOKUP($E14,'Reference Tables'!$F$85:$I$105,18,FALSE)))) ->  | BC14: =IF(BB14="","",IF($D14="",BB14,IF($D14="CO2e",BB14,BB14*HLOOKUP($E14,'Reference Tables'!$F$85:$I$105,19,FALSE)))) ->  | BF14: =IF(BE14="","",IF($D14="",BE14,IF($D14="CO2e",BE14,BE14*HLOOKUP($E14,'Reference Tables'!$F$85:$I$105,20,FALSE)))) ->  | BI14: =IF(BH14="","",IF($D14="",BH14,IF($D14="CO2e",BH14,BH14*HLOOKUP($E14,'Reference Tables'!$F$85:$I$105,6,FALSE)))) ->  | BL14: =IF(BK14="","",IF($D14="",BK14,IF($D14="CO2e",BK14,BK14*HLOOKUP($E14,'Reference Tables'!$F$85:$I$105,6,FALSE)))) ->  | BN14: ='[3]EF calculations'!$J$10 -> 376.4698852 | BO14: 0.0003764698852
B15: Passenger car emission factor - gasoline | C15: EF_passenger car - gasoline | D15: CO2e | E15: 2AR | F15: g | G15: =IF(F15="","","/") -> / | H15: mile | I15: =IFERROR(IF(F15="","",VLOOKUP(F15,'Reference Tables'!$D$137:$G$142,4,FALSE)),"") -> 1e-06 | M15: =IF(L15="","",IF($D15="",L15,IF($D15="CO2e",L15,L15*HLOOKUP($E15,'Reference Tables'!$F$85:$I$105,4,FALSE)))) ->  | P15: =IF(O15="","",IF($D15="",O15,IF($D15="CO2e",O15,O15*HLOOKUP($E15,'Reference Tables'!$F$85:$I$105,5,FALSE)))) ->  | S15: =IF(R15="","",IF($D15="",R15,IF($D15="CO2e",R15,R15*HLOOKUP($E15,'Reference Tables'!$F$85:$I$105,7,FALSE)))) ->  | V15: =IF(U15="","",IF($D15="",U15,IF($D15="CO2e",U15,U15*HLOOKUP($E15,'Reference Tables'!$F$85:$I$105,8,FALSE)))) ->  | Y15: =IF(X15="","",IF($D15="",X15,IF($D15="CO2e",X15,X15*HLOOKUP($E15,'Reference Tables'!$F$85:$I$105,9,FALSE)))) ->  | AB15: =IF(AA15="","",IF($D15="",AA15,IF($D15="CO2e",AA15,AA15*HLOOKUP($E15,'Reference Tables'!$F$85:$I$105,10,FALSE)))) ->  | AE15: =IF(AD15="","",IF($D15="",AD15,IF($D15="CO2e",AD15,AD15*HLOOKUP($E15,'Reference Tables'!$F$85:$I$105,11,FALSE)))) ->  | AH15: =IF(AG15="","",IF($D15="",AG15,IF($D15="CO2e",AG15,AG15*HLOOKUP($E15,'Reference Tables'!$F$85:$I$105,12,FALSE)))) ->  | AK15: =IF(AJ15="","",IF($D15="",AJ15,IF($D15="CO2e",AJ15,AJ15*HLOOKUP($E15,'Reference Tables'!$F$85:$I$105,13,FALSE)))) ->  | AN15: =IF(AM15="","",IF($D15="",AM15,IF($D15="CO2e",AM15,AM15*HLOOKUP($E15,'Reference Tables'!$F$85:$I$105,14,FALSE)))) ->  | AQ15: =IF(AP15="","",IF($D15="",AP15,IF($D15="CO2e",AP15,AP15*HLOOKUP($E15,'Reference Tables'!$F$85:$I$105,15,FALSE)))) ->  | AT15: =IF(AS15="","",IF($D15="",AS15,IF($D15="CO2e",AS15,AS15*HLOOKUP($E15,'Reference Tables'!$F$85:$I$105,16,FALSE)))) ->  | AW15: =IF(AV15="","",IF($D15="",AV15,IF($D15="CO2e",AV15,AV15*HLOOKUP($E15,'Reference Tables'!$F$85:$I$105,17,FALSE)))) ->  | AZ15: =IF(AY15="","",IF($D15="",AY15,IF($D15="CO2e",AY15,AY15*HLOOKUP($E15,'Reference Tables'!$F$85:$I$105,18,FALSE)))) ->  | BC15: =IF(BB15="","",IF($D15="",BB15,IF($D15="CO2e",BB15,BB15*HLOOKUP($E15,'Reference Tables'!$F$85:$I$105,19,FALSE)))) ->  | BF15: =IF(BE15="","",IF($D15="",BE15,IF($D15="CO2e",BE15,BE15*HLOOKUP($E15,'Reference Tables'!$F$85:$I$105,20,FALSE)))) ->  | BI15: =IF(BH15="","",IF($D15="",BH15,IF($D15="CO2e",BH15,BH15*HLOOKUP($E15,'Reference Tables'!$F$85:$I$105,6,FALSE)))) ->  | BL15: =IF(BK15="","",IF($D15="",BK15,IF($D15="CO2e",BK15,BK15*HLOOKUP($E15,'Reference Tables'!$F$85:$I$105,6,FALSE)))) ->  | BN15: ='[3]EF calculations'!$J$11 -> 380.2668712 | BO15: 0.0003802668712
B16: Passenger car emission factor - diesel | C16: EF_passenger car - diesel | D16: CO2e | E16: 2AR | F16: g | G16: / | H16: mile | I16: =IFERROR(IF(F16="","",VLOOKUP(F16,'Reference Tables'!$D$137:$G$142,4,FALSE)),"") -> 1e-06 | M16: =IF(L16="","",IF($D16="",L16,IF($D16="CO2e",L16,L16*HLOOKUP($E16,'Reference Tables'!$F$85:$I$105,4,FALSE)))) ->  | P16: =IF(O16="","",IF($D16="",O16,IF($D16="CO2e",O16,O16*HLOOKUP($E16,'Reference Tables'!$F$85:$I$105,5,FALSE)))) ->  | S16: =IF(R16="","",IF($D18="",R16,IF($D18="CO2e",R16,R16*HLOOKUP($E16,'Reference Tables'!$F$85:$I$105,7,FALSE)))) ->  | V16: =IF(U16="","",IF($D18="",U16,IF($D18="CO2e",U16,U16*HLOOKUP($E16,'Reference Tables'!$F$85:$I$105,8,FALSE)))) ->  | Y16: =IF(X16="","",IF($D18="",X16,IF($D18="CO2e",X16,X16*HLOOKUP($E16,'Reference Tables'!$F$85:$I$105,9,FALSE)))) ->  | AB16: =IF(AA16="","",IF($D18="",AA16,IF($D18="CO2e",AA16,AA16*HLOOKUP($E16,'Reference Tables'!$F$85:$I$105,10,FALSE)))) ->  | AE16: =IF(AD16="","",IF($D18="",AD16,IF($D18="CO2e",AD16,AD16*HLOOKUP($E16,'Reference Tables'!$F$85:$I$105,11,FALSE)))) ->  | AH16: =IF(AG16="","",IF($D18="",AG16,IF($D18="CO2e",AG16,AG16*HLOOKUP($E16,'Reference Tables'!$F$85:$I$105,12,FALSE)))) ->  | AK16: =IF(AJ16="","",IF($D18="",AJ16,IF($D18="CO2e",AJ16,AJ16*HLOOKUP($E16,'Reference Tables'!$F$85:$I$105,13,FALSE)))) ->  | AN16: =IF(AM16="","",IF($D18="",AM16,IF($D18="CO2e",AM16,AM16*HLOOKUP($E16,'Reference Tables'!$F$85:$I$105,14,FALSE)))) ->  | AQ16: =IF(AP16="","",IF($D18="",AP16,IF($D18="CO2e",AP16,AP16*HLOOKUP($E16,'Reference Tables'!$F$85:$I$105,15,FALSE)))) ->  | AT16: =IF(AS16="","",IF($D18="",AS16,IF($D18="CO2e",AS16,AS16*HLOOKUP($E16,'Reference Tables'!$F$85:$I$105,16,FALSE)))) ->  | AW16: =IF(AV16="","",IF($D18="",AV16,IF($D18="CO2e",AV16,AV16*HLOOKUP($E16,'Reference Tables'!$F$85:$I$105,17,FALSE)))) ->  | AZ16: =IF(AY16="","",IF($D18="",AY16,IF($D18="CO2e",AY16,AY16*HLOOKUP($E16,'Reference Tables'!$F$85:$I$105,18,FALSE)))) ->  | BC16: =IF(BB16="","",IF($D18="",BB16,IF($D18="CO2e",BB16,BB16*HLOOKUP($E16,'Reference Tables'!$F$85:$I$105,19,FALSE)))) ->  | BF16: =IF(BE16="","",IF($D18="",BE16,IF($D18="CO2e",BE16,BE16*HLOOKUP($E16,'Reference Tables'!$F$85:$I$105,20,FALSE)))) ->  | BI16: =IF(BH16="","",IF($D18="",BH16,IF($D18="CO2e",BH16,BH16*HLOOKUP($E16,'Reference Tables'!$F$85:$I$105,6,FALSE)))) ->  | BL16: =IF(BK16="","",IF($D18="",BK16,IF($D18="CO2e",BK16,BK16*HLOOKUP($E16,'Reference Tables'!$F$85:$I$105,6,FALSE)))) ->  | BN16: ='[3]EF calculations'!$N$11 -> 422.9212679 | BO16: 0.0004229212679
B17: Passenger truck emission factor - gasoline | C17: EF_passenger truck - gasoline | D17: CO2e | E17: 2AR | F17: g | G17: / | H17: mile | I17: =IFERROR(IF(F17="","",VLOOKUP(F17,'Reference Tables'!$D$137:$G$142,4,FALSE)),"") -> 1e-06 | M17: =IF(L17="","",IF($D17="",L17,IF($D17="CO2e",L17,L17*HLOOKUP($E17,'Reference Tables'!$F$85:$I$105,4,FALSE)))) ->  | P17: =IF(O17="","",IF($D17="",O17,IF($D17="CO2e",O17,O17*HLOOKUP($E17,'Reference Tables'!$F$85:$I$105,5,FALSE)))) ->  | S17: =IF(R17="","",IF($D21="",R17,IF($D21="CO2e",R17,R17*HLOOKUP($E17,'Reference Tables'!$F$85:$I$105,7,FALSE)))) ->  | V17: =IF(U17="","",IF($D21="",U17,IF($D21="CO2e",U17,U17*HLOOKUP($E17,'Reference Tables'!$F$85:$I$105,8,FALSE)))) ->  | Y17: =IF(X17="","",IF($D21="",X17,IF($D21="CO2e",X17,X17*HLOOKUP($E17,'Reference Tables'!$F$85:$I$105,9,FALSE)))) ->  | AB17: =IF(AA17="","",IF($D21="",AA17,IF($D21="CO2e",AA17,AA17*HLOOKUP($E17,'Reference Tables'!$F$85:$I$105,10,FALSE)))) ->  | AE17: =IF(AD17="","",IF($D21="",AD17,IF($D21="CO2e",AD17,AD17*HLOOKUP($E17,'Reference Tables'!$F$85:$I$105,11,FALSE)))) ->  | AH17: =IF(AG17="","",IF($D21="",AG17,IF($D21="CO2e",AG17,AG17*HLOOKUP($E17,'Reference Tables'!$F$85:$I$105,12,FALSE)))) ->  | AK17: =IF(AJ17="","",IF($D21="",AJ17,IF($D21="CO2e",AJ17,AJ17*HLOOKUP($E17,'Reference Tables'!$F$85:$I$105,13,FALSE)))) ->  | AN17: =IF(AM17="","",IF($D21="",AM17,IF($D21="CO2e",AM17,AM17*HLOOKUP($E17,'Reference Tables'!$F$85:$I$105,14,FALSE)))) ->  | AQ17: =IF(AP17="","",IF($D21="",AP17,IF($D21="CO2e",AP17,AP17*HLOOKUP($E17,'Reference Tables'!$F$85:$I$105,15,FALSE)))) ->  | AT17: =IF(AS17="","",IF($D21="",AS17,IF($D21="CO2e",AS17,AS17*HLOOKUP($E17,'Reference Tables'!$F$85:$I$105,16,FALSE)))) ->  | AW17: =IF(AV17="","",IF($D21="",AV17,IF($D21="CO2e",AV17,AV17*HLOOKUP($E17,'Reference Tables'!$F$85:$I$105,17,FALSE)))) ->  | AZ17: =IF(AY17="","",IF($D21="",AY17,IF($D21="CO2e",AY17,AY17*HLOOKUP($E17,'Reference Tables'!$F$85:$I$105,18,FALSE)))) ->  | BC17: =IF(BB17="","",IF($D21="",BB17,IF($D21="CO2e",BB17,BB17*HLOOKUP($E17,'Reference Tables'!$F$85:$I$105,19,FALSE)))) ->  | BF17: =IF(BE17="","",IF($D21="",BE17,IF($D21="CO2e",BE17,BE17*HLOOKUP($E17,'Reference Tables'!$F$85:$I$105,20,FALSE)))) ->  | BI17: =IF(BH17="","",IF($D21="",BH17,IF($D21="CO2e",BH17,BH17*HLOOKUP($E17,'Reference Tables'!$F$85:$I$105,6,FALSE)))) ->  | BL17: =IF(BK17="","",IF($D21="",BK17,IF($D21="CO2e",BK17,BK17*HLOOKUP($E17,'Reference Tables'!$F$85:$I$105,6,FALSE)))) ->  | BN17: ='[3]EF calculations'!$J$12 -> 527.8450067 | BO17: 0.0005278450067
B18: Passenger truck emission factor - diesel | C18: EF_passenger truck - diesel | D18: CO2e | E18: 2AR | F18: g | G18: / | H18: mile | I18: =IFERROR(IF(F18="","",VLOOKUP(F18,'Reference Tables'!$D$137:$G$142,4,FALSE)),"") -> 1e-06 | M18: =IF(L18="","",IF($D18="",L18,IF($D18="CO2e",L18,L18*HLOOKUP($E18,'Reference Tables'!$F$85:$I$105,4,FALSE)))) ->  | P18: =IF(O18="","",IF($D18="",O18,IF($D18="CO2e",O18,O18*HLOOKUP($E18,'Reference Tables'!$F$85:$I$105,5,FALSE)))) ->  | S18: =IF(R18="","",IF(#REF!="",R18,IF(#REF!="CO2e",R18,R18*HLOOKUP($E18,'Reference Tables'!$F$85:$I$105,7,FALSE)))) ->  | T18: =IFERROR(IF(S18="","",S18*$I18),"") ->  | V18: =IF(U18="","",IF(#REF!="",U18,IF(#REF!="CO2e",U18,U18*HLOOKUP($E18,'Reference Tables'!$F$85:$I$105,8,FALSE)))) ->  | W18: =IFERROR(IF(V18="","",V18*$I18),"") ->  | Y18: =IF(X18="","",IF(#REF!="",X18,IF(#REF!="CO2e",X18,X18*HLOOKUP($E18,'Reference Tables'!$F$85:$I$105,9,FALSE)))) ->  | Z18: =IFERROR(IF(Y18="","",Y18*$I18),"") ->  | AB18: =IF(AA18="","",IF(#REF!="",AA18,IF(#REF!="CO2e",AA18,AA18*HLOOKUP($E18,'Reference Tables'!$F$85:$I$105,10,FALSE)))) ->  | AC18: =IFERROR(IF(AB18="","",AB18*$I18),"") ->  | AE18: =IF(AD18="","",IF(#REF!="",AD18,IF(#REF!="CO2e",AD18,AD18*HLOOKUP($E18,'Reference Tables'!$F$85:$I$105,11,FALSE)))) ->  | AF18: =IFERROR(IF(AE18="","",AE18*$I18),"") ->  | AH18: =IF(AG18="","",IF(#REF!="",AG18,IF(#REF!="CO2e",AG18,AG18*HLOOKUP($E18,'Reference Tables'!$F$85:$I$105,12,FALSE)))) ->  | AI18: =IFERROR(IF(AH18="","",AH18*$I18),"") ->  | AK18: =IF(AJ18="","",IF(#REF!="",AJ18,IF(#REF!="CO2e",AJ18,AJ18*HLOOKUP($E18,'Reference Tables'!$F$85:$I$105,13,FALSE)))) ->  | AL18: =IFERROR(IF(AK18="","",AK18*$I18),"") ->  | AN18: =IF(AM18="","",IF(#REF!="",AM18,IF(#REF!="CO2e",AM18,AM18*HLOOKUP($E18,'Reference Tables'!$F$85:$I$105,14,FALSE)))) ->  | AO18: =IFERROR(IF(AN18="","",AN18*$I18),"") ->  | AQ18: =IF(AP18="","",IF(#REF!="",AP18,IF(#REF!="CO2e",AP18,AP18*HLOOKUP($E18,'Reference Tables'!$F$85:$I$105,15,FALSE)))) ->  | AR18: =IFERROR(IF(AQ18="","",AQ18*$I18),"") ->  | AT18: =IF(AS18="","",IF(#REF!="",AS18,IF(#REF!="CO2e",AS18,AS18*HLOOKUP($E18,'Reference Tables'!$F$85:$I$105,16,FALSE)))) ->  | AU18: =IFERROR(IF(AT18="","",AT18*$I18),"") ->  | AW18: =IF(AV18="","",IF(#REF!="",AV18,IF(#REF!="CO2e",AV18,AV18*HLOOKUP($E18,'Reference Tables'!$F$85:$I$105,17,FALSE)))) ->  | AX18: =IFERROR(IF(AW18="","",AW18*$I18),"") ->  | AZ18: =IF(AY18="","",IF(#REF!="",AY18,IF(#REF!="CO2e",AY18,AY18*HLOOKUP($E18,'Reference Tables'!$F$85:$I$105,18,FALSE)))) ->  | BA18: =IFERROR(IF(AZ18="","",AZ18*$I18),"") ->  | BC18: =IF(BB18="","",IF(#REF!="",BB18,IF(#REF!="CO2e",BB18,BB18*HLOOKUP($E18,'Reference Tables'!$F$85:$I$105,19,FALSE)))) ->  | BD18: =IFERROR(IF(BC18="","",BC18*$I18),"") ->  | BF18: =IF(BE18="","",IF(#REF!="",BE18,IF(#REF!="CO2e",BE18,BE18*HLOOKUP($E18,'Reference Tables'!$F$85:$I$105,20,FALSE)))) ->  | BG18: =IFERROR(IF(BF18="","",BF18*$I18),"") ->  | BI18: =IF(BH18="","",IF(#REF!="",BH18,IF(#REF!="CO2e",BH18,BH18*HLOOKUP($E18,'Reference Tables'!$F$85:$I$105,6,FALSE)))) ->  | BJ18: =IFERROR(IF(BI18="","",BI18*$I18),"") ->  | BL18: =IF(BK18="","",IF(#REF!="",BK18,IF(#REF!="CO2e",BK18,BK18*HLOOKUP($E18,'Reference Tables'!$F$85:$I$105,6,FALSE)))) ->  | BM18: =IFERROR(IF(BL18="","",BL18*$I18),"") ->  | BN18: ='[3]EF calculations'!$N$12 -> 721.987186 | BO18: 0.000721987186
B19: Light commercial truck emission factor - gasoline | C19: EF_light commercial truck - gasoline | D19: CO2e | E19: 2AR | F19: g | G19: / | H19: mile | I19: =IFERROR(IF(F19="","",VLOOKUP(F19,'Reference Tables'!$D$137:$G$142,4,FALSE)),"") -> 1e-06 | M19: =IF(L19="","",IF($D19="",L19,IF($D19="CO2e",L19,L19*HLOOKUP($E19,'Reference Tables'!$F$85:$I$105,4,FALSE)))) ->  | P19: =IF(O19="","",IF($D19="",O19,IF($D19="CO2e",O19,O19*HLOOKUP($E19,'Reference Tables'!$F$85:$I$105,5,FALSE)))) ->  | S19: =IF(R19="","",IF(#REF!="",R19,IF(#REF!="CO2e",R19,R19*HLOOKUP($E19,'Reference Tables'!$F$85:$I$105,7,FALSE)))) ->  | V19: =IF(U19="","",IF(#REF!="",U19,IF(#REF!="CO2e",U19,U19*HLOOKUP($E19,'Reference Tables'!$F$85:$I$105,8,FALSE)))) ->  | Y19: =IF(X19="","",IF(#REF!="",X19,IF(#REF!="CO2e",X19,X19*HLOOKUP($E19,'Reference Tables'!$F$85:$I$105,9,FALSE)))) ->  | AB19: =IF(AA19="","",IF(#REF!="",AA19,IF(#REF!="CO2e",AA19,AA19*HLOOKUP($E19,'Reference Tables'!$F$85:$I$105,10,FALSE)))) ->  | AE19: =IF(AD19="","",IF(#REF!="",AD19,IF(#REF!="CO2e",AD19,AD19*HLOOKUP($E19,'Reference Tables'!$F$85:$I$105,11,FALSE)))) ->  | AH19: =IF(AG19="","",IF(#REF!="",AG19,IF(#REF!="CO2e",AG19,AG19*HLOOKUP($E19,'Reference Tables'!$F$85:$I$105,12,FALSE)))) ->  | AK19: =IF(AJ19="","",IF(#REF!="",AJ19,IF(#REF!="CO2e",AJ19,AJ19*HLOOKUP($E19,'Reference Tables'!$F$85:$I$105,13,FALSE)))) ->  | AN19: =IF(AM19="","",IF(#REF!="",AM19,IF(#REF!="CO2e",AM19,AM19*HLOOKUP($E19,'Reference Tables'!$F$85:$I$105,14,FALSE)))) ->  | AQ19: =IF(AP19="","",IF(#REF!="",AP19,IF(#REF!="CO2e",AP19,AP19*HLOOKUP($E19,'Reference Tables'!$F$85:$I$105,15,FALSE)))) ->  | AT19: =IF(AS19="","",IF(#REF!="",AS19,IF(#REF!="CO2e",AS19,AS19*HLOOKUP($E19,'Reference Tables'!$F$85:$I$105,16,FALSE)))) ->  | AW19: =IF(AV19="","",IF(#REF!="",AV19,IF(#REF!="CO2e",AV19,AV19*HLOOKUP($E19,'Reference Tables'!$F$85:$I$105,17,FALSE)))) ->  | AZ19: =IF(AY19="","",IF(#REF!="",AY19,IF(#REF!="CO2e",AY19,AY19*HLOOKUP($E19,'Reference Tables'!$F$85:$I$105,18,FALSE)))) ->  | BC19: =IF(BB19="","",IF(#REF!="",BB19,IF(#REF!="CO2e",BB19,BB19*HLOOKUP($E19,'Reference Tables'!$F$85:$I$105,19,FALSE)))) ->  | BF19: =IF(BE19="","",IF(#REF!="",BE19,IF(#REF!="CO2e",BE19,BE19*HLOOKUP($E19,'Reference Tables'!$F$85:$I$105,20,FALSE)))) ->  | BI19: =IF(BH19="","",IF(#REF!="",BH19,IF(#REF!="CO2e",BH19,BH19*HLOOKUP($E19,'Reference Tables'!$F$85:$I$105,6,FALSE)))) ->  | BL19: =IF(BK19="","",IF(#REF!="",BK19,IF(#REF!="CO2e",BK19,BK19*HLOOKUP($E19,'Reference Tables'!$F$85:$I$105,6,FALSE)))) ->  | BN19: ='[3]EF calculations'!$J$13 -> 521.0180499 | BO19: 0.0005210180499
B20: Light commercial truck emission factor - diesel | C20: EF_light commercial truck - diesel | D20: CO2e | E20: 2AR | F20: g | G20: / | H20: mile | I20: =IFERROR(IF(F20="","",VLOOKUP(F20,'Reference Tables'!$D$137:$G$142,4,FALSE)),"") -> 1e-06 | M20: =IF(L20="","",IF($D20="",L20,IF($D20="CO2e",L20,L20*HLOOKUP($E20,'Reference Tables'!$F$85:$I$105,4,FALSE)))) ->  | P20: =IF(O20="","",IF($D20="",O20,IF($D20="CO2e",O20,O20*HLOOKUP($E20,'Reference Tables'!$F$85:$I$105,5,FALSE)))) ->  | S20: =IF(R20="","",IF($D26="",R20,IF($D26="CO2e",R20,R20*HLOOKUP($E20,'Reference Tables'!$F$85:$I$105,7,FALSE)))) ->  | V20: =IF(U20="","",IF($D26="",U20,IF($D26="CO2e",U20,U20*HLOOKUP($E20,'Reference Tables'!$F$85:$I$105,8,FALSE)))) ->  | Y20: =IF(X20="","",IF($D26="",X20,IF($D26="CO2e",X20,X20*HLOOKUP($E20,'Reference Tables'!$F$85:$I$105,9,FALSE)))) ->  | AB20: =IF(AA20="","",IF($D26="",AA20,IF($D26="CO2e",AA20,AA20*HLOOKUP($E20,'Reference Tables'!$F$85:$I$105,10,FALSE)))) ->  | AE20: =IF(AD20="","",IF($D26="",AD20,IF($D26="CO2e",AD20,AD20*HLOOKUP($E20,'Reference Tables'!$F$85:$I$105,11,FALSE)))) ->  | AH20: =IF(AG20="","",IF($D26="",AG20,IF($D26="CO2e",AG20,AG20*HLOOKUP($E20,'Reference Tables'!$F$85:$I$105,12,FALSE)))) ->  | AK20: =IF(AJ20="","",IF($D26="",AJ20,IF($D26="CO2e",AJ20,AJ20*HLOOKUP($E20,'Reference Tables'!$F$85:$I$105,13,FALSE)))) ->  | AN20: =IF(AM20="","",IF($D26="",AM20,IF($D26="CO2e",AM20,AM20*HLOOKUP($E20,'Reference Tables'!$F$85:$I$105,14,FALSE)))) ->  | AQ20: =IF(AP20="","",IF($D26="",AP20,IF($D26="CO2e",AP20,AP20*HLOOKUP($E20,'Reference Tables'!$F$85:$I$105,15,FALSE)))) ->  | AT20: =IF(AS20="","",IF($D26="",AS20,IF($D26="CO2e",AS20,AS20*HLOOKUP($E20,'Reference Tables'!$F$85:$I$105,16,FALSE)))) ->  | AW20: =IF(AV20="","",IF($D26="",AV20,IF($D26="CO2e",AV20,AV20*HLOOKUP($E20,'Reference Tables'!$F$85:$I$105,17,FALSE)))) ->  | AZ20: =IF(AY20="","",IF($D26="",AY20,IF($D26="CO2e",AY20,AY20*HLOOKUP($E20,'Reference Tables'!$F$85:$I$105,18,FALSE)))) ->  | BC20: =IF(BB20="","",IF($D26="",BB20,IF($D26="CO2e",BB20,BB20*HLOOKUP($E20,'Reference Tables'!$F$85:$I$105,19,FALSE)))) ->  | BF20: =IF(BE20="","",IF($D26="",BE20,IF($D26="CO2e",BE20,BE20*HLOOKUP($E20,'Reference Tables'!$F$85:$I$105,20,FALSE)))) ->  | BI20: =IF(BH20="","",IF($D26="",BH20,IF($D26="CO2e",BH20,BH20*HLOOKUP($E20,'Reference Tables'!$F$85:$I$105,6,FALSE)))) ->  | BL20: =IF(BK20="","",IF($D26="",BK20,IF($D26="CO2e",BK20,BK20*HLOOKUP($E20,'Reference Tables'!$F$85:$I$105,6,FALSE)))) ->  | BN20: ='[3]EF calculations'!$N$13 -> 715.3652812 | BO20: 0.0007153652812
B21: Intercity bus emission factor - diesel | C21: EF_intercity bus - diesel | D21: CO2e | E21: 2AR | F21: g | G21: / | H21: mile | I21: =IFERROR(IF(F21="","",VLOOKUP(F21,'Reference Tables'!$D$137:$G$142,4,FALSE)),"") -> 1e-06 | M21: =IF(L21="","",IF($D21="",L21,IF($D21="CO2e",L21,L21*HLOOKUP($E21,'Reference Tables'!$F$85:$I$105,4,FALSE)))) ->  | P21: =IF(O21="","",IF($D21="",O21,IF($D21="CO2e",O21,O21*HLOOKUP($E21,'Reference Tables'!$F$85:$I$105,5,FALSE)))) ->  | S21: =IF(R21="","",IF($D28="",R21,IF($D28="CO2e",R21,R21*HLOOKUP($E21,'Reference Tables'!$F$85:$I$105,7,FALSE)))) ->  | V21: =IF(U21="","",IF($D28="",U21,IF($D28="CO2e",U21,U21*HLOOKUP($E21,'Reference Tables'!$F$85:$I$105,8,FALSE)))) ->  | Y21: =IF(X21="","",IF($D28="",X21,IF($D28="CO2e",X21,X21*HLOOKUP($E21,'Reference Tables'!$F$85:$I$105,9,FALSE)))) ->  | AB21: =IF(AA21="","",IF($D28="",AA21,IF($D28="CO2e",AA21,AA21*HLOOKUP($E21,'Reference Tables'!$F$85:$I$105,10,FALSE)))) ->  | AE21: =IF(AD21="","",IF($D28="",AD21,IF($D28="CO2e",AD21,AD21*HLOOKUP($E21,'Reference Tables'!$F$85:$I$105,11,FALSE)))) ->  | AH21: =IF(AG21="","",IF($D28="",AG21,IF($D28="CO2e",AG21,AG21*HLOOKUP($E21,'Reference Tables'!$F$85:$I$105,12,FALSE)))) ->  | AK21: =IF(AJ21="","",IF($D28="",AJ21,IF($D28="CO2e",AJ21,AJ21*HLOOKUP($E21,'Reference Tables'!$F$85:$I$105,13,FALSE)))) ->  | AN21: =IF(AM21="","",IF($D28="",AM21,IF($D28="CO2e",AM21,AM21*HLOOKUP($E21,'Reference Tables'!$F$85:$I$105,14,FALSE)))) ->  | AQ21: =IF(AP21="","",IF($D28="",AP21,IF($D28="CO2e",AP21,AP21*HLOOKUP($E21,'Reference Tables'!$F$85:$I$105,15,FALSE)))) ->  | AT21: =IF(AS21="","",IF($D28="",AS21,IF($D28="CO2e",AS21,AS21*HLOOKUP($E21,'Reference Tables'!$F$85:$I$105,16,FALSE)))) ->  | AW21: =IF(AV21="","",IF($D28="",AV21,IF($D28="CO2e",AV21,AV21*HLOOKUP($E21,'Reference Tables'!$F$85:$I$105,17,FALSE)))) ->  | AZ21: =IF(AY21="","",IF($D28="",AY21,IF($D28="CO2e",AY21,AY21*HLOOKUP($E21,'Reference Tables'!$F$85:$I$105,18,FALSE)))) ->  | BC21: =IF(BB21="","",IF($D28="",BB21,IF($D28="CO2e",BB21,BB21*HLOOKUP($E21,'Reference Tables'!$F$85:$I$105,19,FALSE)))) ->  | BF21: =IF(BE21="","",IF($D28="",BE21,IF($D28="CO2e",BE21,BE21*HLOOKUP($E21,'Reference Tables'!$F$85:$I$105,20,FALSE)))) ->  | BI21: =IF(BH21="","",IF($D28="",BH21,IF($D28="CO2e",BH21,BH21*HLOOKUP($E21,'Reference Tables'!$F$85:$I$105,6,FALSE)))) ->  | BL21: =IF(BK21="","",IF($D28="",BK21,IF($D28="CO2e",BK21,BK21*HLOOKUP($E21,'Reference Tables'!$F$85:$I$105,6,FALSE)))) ->  | BN21: ='[3]EF calculations'!$N$14 -> 1897.555092 | BO21: 0.001897555092
B22: Transit bus emission factor - diesel | C22: EF_transit bus - diesel | D22: CO2e | E22: 2AR | F22: g | G22: / | H22: mile | I22: =IFERROR(IF(F22="","",VLOOKUP(F22,'Reference Tables'!$D$137:$G$142,4,FALSE)),"") -> 1e-06 | M22: =IF(L22="","",IF($D22="",L22,IF($D22="CO2e",L22,L22*HLOOKUP($E22,'Reference Tables'!$F$85:$I$105,4,FALSE)))) ->  | P22: =IF(O22="","",IF($D22="",O22,IF($D22="CO2e",O22,O22*HLOOKUP($E22,'Reference Tables'!$F$85:$I$105,5,FALSE)))) ->  | S22: =IF(R22="","",IF($D30="",R22,IF($D30="CO2e",R22,R22*HLOOKUP($E22,'Reference Tables'!$F$85:$I$105,7,FALSE)))) ->  | V22: =IF(U22="","",IF($D30="",U22,IF($D30="CO2e",U22,U22*HLOOKUP($E22,'Reference Tables'!$F$85:$I$105,8,FALSE)))) ->  | Y22: =IF(X22="","",IF($D30="",X22,IF($D30="CO2e",X22,X22*HLOOKUP($E22,'Reference Tables'!$F$85:$I$105,9,FALSE)))) ->  | AB22: =IF(AA22="","",IF($D30="",AA22,IF($D30="CO2e",AA22,AA22*HLOOKUP($E22,'Reference Tables'!$F$85:$I$105,10,FALSE)))) ->  | AE22: =IF(AD22="","",IF($D30="",AD22,IF($D30="CO2e",AD22,AD22*HLOOKUP($E22,'Reference Tables'!$F$85:$I$105,11,FALSE)))) ->  | AH22: =IF(AG22="","",IF($D30="",AG22,IF($D30="CO2e",AG22,AG22*HLOOKUP($E22,'Reference Tables'!$F$85:$I$105,12,FALSE)))) ->  | AK22: =IF(AJ22="","",IF($D30="",AJ22,IF($D30="CO2e",AJ22,AJ22*HLOOKUP($E22,'Reference Tables'!$F$85:$I$105,13,FALSE)))) ->  | AN22: =IF(AM22="","",IF($D30="",AM22,IF($D30="CO2e",AM22,AM22*HLOOKUP($E22,'Reference Tables'!$F$85:$I$105,14,FALSE)))) ->  | AQ22: =IF(AP22="","",IF($D30="",AP22,IF($D30="CO2e",AP22,AP22*HLOOKUP($E22,'Reference Tables'!$F$85:$I$105,15,FALSE)))) ->  | AT22: =IF(AS22="","",IF($D30="",AS22,IF($D30="CO2e",AS22,AS22*HLOOKUP($E22,'Reference Tables'!$F$85:$I$105,16,FALSE)))) ->  | AW22: =IF(AV22="","",IF($D30="",AV22,IF($D30="CO2e",AV22,AV22*HLOOKUP($E22,'Reference Tables'!$F$85:$I$105,17,FALSE)))) ->  | AZ22: =IF(AY22="","",IF($D30="",AY22,IF($D30="CO2e",AY22,AY22*HLOOKUP($E22,'Reference Tables'!$F$85:$I$105,18,FALSE)))) ->  | BC22: =IF(BB22="","",IF($D30="",BB22,IF($D30="CO2e",BB22,BB22*HLOOKUP($E22,'Reference Tables'!$F$85:$I$105,19,FALSE)))) ->  | BF22: =IF(BE22="","",IF($D30="",BE22,IF($D30="CO2e",BE22,BE22*HLOOKUP($E22,'Reference Tables'!$F$85:$I$105,20,FALSE)))) ->  | BI22: =IF(BH22="","",IF($D30="",BH22,IF($D30="CO2e",BH22,BH22*HLOOKUP($E22,'Reference Tables'!$F$85:$I$105,6,FALSE)))) ->  | BL22: =IF(BK22="","",IF($D30="",BK22,IF($D30="CO2e",BK22,BK22*HLOOKUP($E22,'Reference Tables'!$F$85:$I$105,6,FALSE)))) ->  | BN22: ='[3]EF calculations'!$N$15 -> 1266.250434 | BO22: 0.001266250434
B23: School bus emission factor - gasoline | C23: EF_school bus - gasoline | D23: CO2e | E23: 2AR | F23: g | G23: =IF(F23="","","/") -> / | H23: mile | I23: =IFERROR(IF(F23="","",VLOOKUP(F23,'Reference Tables'!$D$137:$G$142,4,FALSE)),"") -> 1e-06 | M23: =IF(L23="","",IF($D23="",L23,IF($D23="CO2e",L23,L23*HLOOKUP($E23,'Reference Tables'!$F$85:$I$105,4,FALSE)))) ->  | P23: =IF(O23="","",IF($D23="",O23,IF($D23="CO2e",O23,O23*HLOOKUP($E23,'Reference Tables'!$F$85:$I$105,5,FALSE)))) ->  | BN23: ='[3]EF calculations'!$J$16 -> 881.9313713 | BO23: 0.0008819313713
B24: School bus emission factor - diesel | C24: EF_school bus - diesel | D24: CO2e | E24: 2AR | F24: g | G24: =IF(F24="","","/") -> / | H24: mile | I24: =IFERROR(IF(F24="","",VLOOKUP(F24,'Reference Tables'!$D$137:$G$142,4,FALSE)),"") -> 1e-06 | M24: =IF(L24="","",IF($D24="",L24,IF($D24="CO2e",L24,L24*HLOOKUP($E24,'Reference Tables'!$F$85:$I$105,4,FALSE)))) ->  | P24: =IF(O24="","",IF($D24="",O24,IF($D24="CO2e",O24,O24*HLOOKUP($E24,'Reference Tables'!$F$85:$I$105,5,FALSE)))) ->  | S24: =IF(R24="","",IF(#REF!="",R24,IF(#REF!="CO2e",R24,R24*HLOOKUP($E24,'Reference Tables'!$F$85:$I$105,7,FALSE)))) ->  | V24: =IF(U24="","",IF(#REF!="",U24,IF(#REF!="CO2e",U24,U24*HLOOKUP($E24,'Reference Tables'!$F$85:$I$105,8,FALSE)))) ->  | Y24: =IF(X24="","",IF(#REF!="",X24,IF(#REF!="CO2e",X24,X24*HLOOKUP($E24,'Reference Tables'!$F$85:$I$105,9,FALSE)))) ->  | AB24: =IF(AA24="","",IF(#REF!="",AA24,IF(#REF!="CO2e",AA24,AA24*HLOOKUP($E24,'Reference Tables'!$F$85:$I$105,10,FALSE)))) ->  | AE24: =IF(AD24="","",IF(#REF!="",AD24,IF(#REF!="CO2e",AD24,AD24*HLOOKUP($E24,'Reference Tables'!$F$85:$I$105,11,FALSE)))) ->  | AH24: =IF(AG24="","",IF(#REF!="",AG24,IF(#REF!="CO2e",AG24,AG24*HLOOKUP($E24,'Reference Tables'!$F$85:$I$105,12,FALSE)))) ->  | AK24: =IF(AJ24="","",IF(#REF!="",AJ24,IF(#REF!="CO2e",AJ24,AJ24*HLOOKUP($E24,'Reference Tables'!$F$85:$I$105,13,FALSE)))) ->  | AN24: =IF(AM24="","",IF(#REF!="",AM24,IF(#REF!="CO2e",AM24,AM24*HLOOKUP($E24,'Reference Tables'!$F$85:$I$105,14,FALSE)))) ->  | AQ24: =IF(AP24="","",IF(#REF!="",AP24,IF(#REF!="CO2e",AP24,AP24*HLOOKUP($E24,'Reference Tables'!$F$85:$I$105,15,FALSE)))) ->  | AT24: =IF(AS24="","",IF(#REF!="",AS24,IF(#REF!="CO2e",AS24,AS24*HLOOKUP($E24,'Reference Tables'!$F$85:$I$105,16,FALSE)))) ->  | AW24: =IF(AV24="","",IF(#REF!="",AV24,IF(#REF!="CO2e",AV24,AV24*HLOOKUP($E24,'Reference Tables'!$F$85:$I$105,17,FALSE)))) ->  | AZ24: =IF(AY24="","",IF(#REF!="",AY24,IF(#REF!="CO2e",AY24,AY24*HLOOKUP($E24,'Reference Tables'!$F$85:$I$105,18,FALSE)))) ->  | BC24: =IF(BB24="","",IF(#REF!="",BB24,IF(#REF!="CO2e",BB24,BB24*HLOOKUP($E24,'Reference Tables'!$F$85:$I$105,19,FALSE)))) ->  | BF24: =IF(BE24="","",IF(#REF!="",BE24,IF(#REF!="CO2e",BE24,BE24*HLOOKUP($E24,'Reference Tables'!$F$85:$I$105,20,FALSE)))) ->  | BI24: =IF(BH24="","",IF(#REF!="",BH24,IF(#REF!="CO2e",BH24,BH24*HLOOKUP($E24,'Reference Tables'!$F$85:$I$105,6,FALSE)))) ->  | BL24: =IF(BK24="","",IF(#REF!="",BK24,IF(#REF!="CO2e",BK24,BK24*HLOOKUP($E24,'Reference Tables'!$F$85:$I$105,6,FALSE)))) ->  | BN24: ='[3]EF calculations'!$N$16 -> 938.321901 | BO24: 0.000938321901
B25: Refuse truck emission factor | C25: EF_refuse truck - diesel | D25: CO2e | E25: 2AR | F25: g | G25: / | H25: mile | I25: =IFERROR(IF(F25="","",VLOOKUP(F25,'Reference Tables'!$D$137:$G$142,4,FALSE)),"") -> 1e-06 | M25: =IF(L25="","",IF($D25="",L25,IF($D25="CO2e",L25,L25*HLOOKUP($E25,'Reference Tables'!$F$85:$I$105,4,FALSE)))) ->  | P25: =IF(O25="","",IF($D25="",O25,IF($D25="CO2e",O25,O25*HLOOKUP($E25,'Reference Tables'!$F$85:$I$105,5,FALSE)))) ->  | S25: =IF(R25="","",IF(#REF!="",R25,IF(#REF!="CO2e",R25,R25*HLOOKUP($E25,'Reference Tables'!$F$85:$I$105,7,FALSE)))) ->  | V25: =IF(U25="","",IF(#REF!="",U25,IF(#REF!="CO2e",U25,U25*HLOOKUP($E25,'Reference Tables'!$F$85:$I$105,8,FALSE)))) ->  | Y25: =IF(X25="","",IF(#REF!="",X25,IF(#REF!="CO2e",X25,X25*HLOOKUP($E25,'Reference Tables'!$F$85:$I$105,9,FALSE)))) ->  | AB25: =IF(AA25="","",IF(#REF!="",AA25,IF(#REF!="CO2e",AA25,AA25*HLOOKUP($E25,'Reference Tables'!$F$85:$I$105,10,FALSE)))) ->  | AE25: =IF(AD25="","",IF(#REF!="",AD25,IF(#REF!="CO2e",AD25,AD25*HLOOKUP($E25,'Reference Tables'!$F$85:$I$105,11,FALSE)))) ->  | AH25: =IF(AG25="","",IF(#REF!="",AG25,IF(#REF!="CO2e",AG25,AG25*HLOOKUP($E25,'Reference Tables'!$F$85:$I$105,12,FALSE)))) ->  | AK25: =IF(AJ25="","",IF(#REF!="",AJ25,IF(#REF!="CO2e",AJ25,AJ25*HLOOKUP($E25,'Reference Tables'!$F$85:$I$105,13,FALSE)))) ->  | AN25: =IF(AM25="","",IF(#REF!="",AM25,IF(#REF!="CO2e",AM25,AM25*HLOOKUP($E25,'Reference Tables'!$F$85:$I$105,14,FALSE)))) ->  | AQ25: =IF(AP25="","",IF(#REF!="",AP25,IF(#REF!="CO2e",AP25,AP25*HLOOKUP($E25,'Reference Tables'!$F$85:$I$105,15,FALSE)))) ->  | AT25: =IF(AS25="","",IF(#REF!="",AS25,IF(#REF!="CO2e",AS25,AS25*HLOOKUP($E25,'Reference Tables'!$F$85:$I$105,16,FALSE)))) ->  | AW25: =IF(AV25="","",IF(#REF!="",AV25,IF(#REF!="CO2e",AV25,AV25*HLOOKUP($E25,'Reference Tables'!$F$85:$I$105,17,FALSE)))) ->  | AZ25: =IF(AY25="","",IF(#REF!="",AY25,IF(#REF!="CO2e",AY25,AY25*HLOOKUP($E25,'Reference Tables'!$F$85:$I$105,18,FALSE)))) ->  | BC25: =IF(BB25="","",IF(#REF!="",BB25,IF(#REF!="CO2e",BB25,BB25*HLOOKUP($E25,'Reference Tables'!$F$85:$I$105,19,FALSE)))) ->  | BF25: =IF(BE25="","",IF(#REF!="",BE25,IF(#REF!="CO2e",BE25,BE25*HLOOKUP($E25,'Reference Tables'!$F$85:$I$105,20,FALSE)))) ->  | BI25: =IF(BH25="","",IF(#REF!="",BH25,IF(#REF!="CO2e",BH25,BH25*HLOOKUP($E25,'Reference Tables'!$F$85:$I$105,6,FALSE)))) ->  | BL25: =IF(BK25="","",IF(#REF!="",BK25,IF(#REF!="CO2e",BK25,BK25*HLOOKUP($E25,'Reference Tables'!$F$85:$I$105,6,FALSE)))) ->  | BN25: ='[3]EF calculations'!$N$17 -> 1776.89889 | BO25: 0.00177689889
B26: Single unit short-haul truck emission factor - gasoline | C26: EF_single unit short haul truck - gasoline | D26: CO2e | E26: 2AR | F26: g | G26: / | H26: mile | I26: =IFERROR(IF(F26="","",VLOOKUP(F26,'Reference Tables'!$D$137:$G$142,4,FALSE)),"") -> 1e-06 | M26: =IF(L26="","",IF($D26="",L26,IF($D26="CO2e",L26,L26*HLOOKUP($E26,'Reference Tables'!$F$85:$I$105,4,FALSE)))) ->  | P26: =IF(O26="","",IF($D26="",O26,IF($D26="CO2e",O26,O26*HLOOKUP($E26,'Reference Tables'!$F$85:$I$105,5,FALSE)))) ->  | S26: =IF(R26="","",IF(#REF!="",R26,IF(#REF!="CO2e",R26,R26*HLOOKUP($E26,'Reference Tables'!$F$85:$I$105,7,FALSE)))) ->  | V26: =IF(U26="","",IF(#REF!="",U26,IF(#REF!="CO2e",U26,U26*HLOOKUP($E26,'Reference Tables'!$F$85:$I$105,8,FALSE)))) ->  | Y26: =IF(X26="","",IF(#REF!="",X26,IF(#REF!="CO2e",X26,X26*HLOOKUP($E26,'Reference Tables'!$F$85:$I$105,9,FALSE)))) ->  | AB26: =IF(AA26="","",IF(#REF!="",AA26,IF(#REF!="CO2e",AA26,AA26*HLOOKUP($E26,'Reference Tables'!$F$85:$I$105,10,FALSE)))) ->  | AE26: =IF(AD26="","",IF(#REF!="",AD26,IF(#REF!="CO2e",AD26,AD26*HLOOKUP($E26,'Reference Tables'!$F$85:$I$105,11,FALSE)))) ->  | AH26: =IF(AG26="","",IF(#REF!="",AG26,IF(#REF!="CO2e",AG26,AG26*HLOOKUP($E26,'Reference Tables'!$F$85:$I$105,12,FALSE)))) ->  | AK26: =IF(AJ26="","",IF(#REF!="",AJ26,IF(#REF!="CO2e",AJ26,AJ26*HLOOKUP($E26,'Reference Tables'!$F$85:$I$105,13,FALSE)))) ->  | AN26: =IF(AM26="","",IF(#REF!="",AM26,IF(#REF!="CO2e",AM26,AM26*HLOOKUP($E26,'Reference Tables'!$F$85:$I$105,14,FALSE)))) ->  | AQ26: =IF(AP26="","",IF(#REF!="",AP26,IF(#REF!="CO2e",AP26,AP26*HLOOKUP($E26,'Reference Tables'!$F$85:$I$105,15,FALSE)))) ->  | AT26: =IF(AS26="","",IF(#REF!="",AS26,IF(#REF!="CO2e",AS26,AS26*HLOOKUP($E26,'Reference Tables'!$F$85:$I$105,16,FALSE)))) ->  | AW26: =IF(AV26="","",IF(#REF!="",AV26,IF(#REF!="CO2e",AV26,AV26*HLOOKUP($E26,'Reference Tables'!$F$85:$I$105,17,FALSE)))) ->  | AZ26: =IF(AY26="","",IF(#REF!="",AY26,IF(#REF!="CO2e",AY26,AY26*HLOOKUP($E26,'Reference Tables'!$F$85:$I$105,18,FALSE)))) ->  | BC26: =IF(BB26="","",IF(#REF!="",BB26,IF(#REF!="CO2e",BB26,BB26*HLOOKUP($E26,'Reference Tables'!$F$85:$I$105,19,FALSE)))) ->  | BF26: =IF(BE26="","",IF(#REF!="",BE26,IF(#REF!="CO2e",BE26,BE26*HLOOKUP($E26,'Reference Tables'!$F$85:$I$105,20,FALSE)))) ->  | BI26: =IF(BH26="","",IF(#REF!="",BH26,IF(#REF!="CO2e",BH26,BH26*HLOOKUP($E26,'Reference Tables'!$F$85:$I$105,6,FALSE)))) ->  | BL26: =IF(BK26="","",IF(#REF!="",BK26,IF(#REF!="CO2e",BK26,BK26*HLOOKUP($E26,'Reference Tables'!$F$85:$I$105,6,FALSE)))) ->  | BN26: ='[3]EF calculations'!$J$18 -> 1051.824005 | BO26: 0.001051824005
B27: Single unit short-haul truck emission factor - diesel | C27: EF_single unit short haul truck - diesel | D27: CO2e | E27: 2AR | F27: g | G27: / | H27: mile | I27: =IFERROR(IF(F27="","",VLOOKUP(F27,'Reference Tables'!$D$137:$G$142,4,FALSE)),"") -> 1e-06 | M27: =IF(L27="","",IF($D27="",L27,IF($D27="CO2e",L27,L27*HLOOKUP($E27,'Reference Tables'!$F$85:$I$105,4,FALSE)))) ->  | P27: =IF(O27="","",IF($D27="",O27,IF($D27="CO2e",O27,O27*HLOOKUP($E27,'Reference Tables'!$F$85:$I$105,5,FALSE)))) ->  | S27: =IF(R27="","",IF(#REF!="",R27,IF(#REF!="CO2e",R27,R27*HLOOKUP($E27,'Reference Tables'!$F$85:$I$105,7,FALSE)))) ->  | V27: =IF(U27="","",IF(#REF!="",U27,IF(#REF!="CO2e",U27,U27*HLOOKUP($E27,'Reference Tables'!$F$85:$I$105,8,FALSE)))) ->  | Y27: =IF(X27="","",IF(#REF!="",X27,IF(#REF!="CO2e",X27,X27*HLOOKUP($E27,'Reference Tables'!$F$85:$I$105,9,FALSE)))) ->  | AB27: =IF(AA27="","",IF(#REF!="",AA27,IF(#REF!="CO2e",AA27,AA27*HLOOKUP($E27,'Reference Tables'!$F$85:$I$105,10,FALSE)))) ->  | AE27: =IF(AD27="","",IF(#REF!="",AD27,IF(#REF!="CO2e",AD27,AD27*HLOOKUP($E27,'Reference Tables'!$F$85:$I$105,11,FALSE)))) ->  | AH27: =IF(AG27="","",IF(#REF!="",AG27,IF(#REF!="CO2e",AG27,AG27*HLOOKUP($E27,'Reference Tables'!$F$85:$I$105,12,FALSE)))) ->  | AK27: =IF(AJ27="","",IF(#REF!="",AJ27,IF(#REF!="CO2e",AJ27,AJ27*HLOOKUP($E27,'Reference Tables'!$F$85:$I$105,13,FALSE)))) ->  | AN27: =IF(AM27="","",IF(#REF!="",AM27,IF(#REF!="CO2e",AM27,AM27*HLOOKUP($E27,'Reference Tables'!$F$85:$I$105,14,FALSE)))) ->  | AQ27: =IF(AP27="","",IF(#REF!="",AP27,IF(#REF!="CO2e",AP27,AP27*HLOOKUP($E27,'Reference Tables'!$F$85:$I$105,15,FALSE)))) ->  | AT27: =IF(AS27="","",IF(#REF!="",AS27,IF(#REF!="CO2e",AS27,AS27*HLOOKUP($E27,'Reference Tables'!$F$85:$I$105,16,FALSE)))) ->  | AW27: =IF(AV27="","",IF(#REF!="",AV27,IF(#REF!="CO2e",AV27,AV27*HLOOKUP($E27,'Reference Tables'!$F$85:$I$105,17,FALSE)))) ->  | AZ27: =IF(AY27="","",IF(#REF!="",AY27,IF(#REF!="CO2e",AY27,AY27*HLOOKUP($E27,'Reference Tables'!$F$85:$I$105,18,FALSE)))) ->  | BC27: =IF(BB27="","",IF(#REF!="",BB27,IF(#REF!="CO2e",BB27,BB27*HLOOKUP($E27,'Reference Tables'!$F$85:$I$105,19,FALSE)))) ->  | BF27: =IF(BE27="","",IF(#REF!="",BE27,IF(#REF!="CO2e",BE27,BE27*HLOOKUP($E27,'Reference Tables'!$F$85:$I$105,20,FALSE)))) ->  | BI27: =IF(BH27="","",IF(#REF!="",BH27,IF(#REF!="CO2e",BH27,BH27*HLOOKUP($E27,'Reference Tables'!$F$85:$I$105,6,FALSE)))) ->  | BL27: =IF(BK27="","",IF(#REF!="",BK27,IF(#REF!="CO2e",BK27,BK27*HLOOKUP($E27,'Reference Tables'!$F$85:$I$105,6,FALSE)))) ->  | BN27: ='[3]EF calculations'!$N$18 -> 1122.879894 | BO27: 0.001122879894
B28: Single unit long-haul truck emission factor - gasoline | C28: EF_single unit long-haul truck - gasoline | D28: CO2e | E28: 2AR | F28: g | G28: / | H28: mile | I28: =IFERROR(IF(F28="","",VLOOKUP(F28,'Reference Tables'!$D$137:$G$142,4,FALSE)),"") -> 1e-06 | M28: =IF(L28="","",IF($D28="",L28,IF($D28="CO2e",L28,L28*HLOOKUP($E28,'Reference Tables'!$F$85:$I$105,4,FALSE)))) ->  | P28: =IF(O28="","",IF($D28="",O28,IF($D28="CO2e",O28,O28*HLOOKUP($E28,'Reference Tables'!$F$85:$I$105,5,FALSE)))) ->  | S28: =IF(R28="","",IF(#REF!="",R28,IF(#REF!="CO2e",R28,R28*HLOOKUP($E28,'Reference Tables'!$F$85:$I$105,7,FALSE)))) ->  | V28: =IF(U28="","",IF(#REF!="",U28,IF(#REF!="CO2e",U28,U28*HLOOKUP($E28,'Reference Tables'!$F$85:$I$105,8,FALSE)))) ->  | Y28: =IF(X28="","",IF(#REF!="",X28,IF(#REF!="CO2e",X28,X28*HLOOKUP($E28,'Reference Tables'!$F$85:$I$105,9,FALSE)))) ->  | AB28: =IF(AA28="","",IF(#REF!="",AA28,IF(#REF!="CO2e",AA28,AA28*HLOOKUP($E28,'Reference Tables'!$F$85:$I$105,10,FALSE)))) ->  | AE28: =IF(AD28="","",IF(#REF!="",AD28,IF(#REF!="CO2e",AD28,AD28*HLOOKUP($E28,'Reference Tables'!$F$85:$I$105,11,FALSE)))) ->  | AH28: =IF(AG28="","",IF(#REF!="",AG28,IF(#REF!="CO2e",AG28,AG28*HLOOKUP($E28,'Reference Tables'!$F$85:$I$105,12,FALSE)))) ->  | AK28: =IF(AJ28="","",IF(#REF!="",AJ28,IF(#REF!="CO2e",AJ28,AJ28*HLOOKUP($E28,'Reference Tables'!$F$85:$I$105,13,FALSE)))) ->  | AN28: =IF(AM28="","",IF(#REF!="",AM28,IF(#REF!="CO2e",AM28,AM28*HLOOKUP($E28,'Reference Tables'!$F$85:$I$105,14,FALSE)))) ->  | AQ28: =IF(AP28="","",IF(#REF!="",AP28,IF(#REF!="CO2e",AP28,AP28*HLOOKUP($E28,'Reference Tables'!$F$85:$I$105,15,FALSE)))) ->  | AT28: =IF(AS28="","",IF(#REF!="",AS28,IF(#REF!="CO2e",AS28,AS28*HLOOKUP($E28,'Reference Tables'!$F$85:$I$105,16,FALSE)))) ->  | AW28: =IF(AV28="","",IF(#REF!="",AV28,IF(#REF!="CO2e",AV28,AV28*HLOOKUP($E28,'Reference Tables'!$F$85:$I$105,17,FALSE)))) ->  | AZ28: =IF(AY28="","",IF(#REF!="",AY28,IF(#REF!="CO2e",AY28,AY28*HLOOKUP($E28,'Reference Tables'!$F$85:$I$105,18,FALSE)))) ->  | BC28: =IF(BB28="","",IF(#REF!="",BB28,IF(#REF!="CO2e",BB28,BB28*HLOOKUP($E28,'Reference Tables'!$F$85:$I$105,19,FALSE)))) ->  | BF28: =IF(BE28="","",IF(#REF!="",BE28,IF(#REF!="CO2e",BE28,BE28*HLOOKUP($E28,'Reference Tables'!$F$85:$I$105,20,FALSE)))) ->  | BI28: =IF(BH28="","",IF(#REF!="",BH28,IF(#REF!="CO2e",BH28,BH28*HLOOKUP($E28,'Reference Tables'!$F$85:$I$105,6,FALSE)))) ->  | BL28: =IF(BK28="","",IF(#REF!="",BK28,IF(#REF!="CO2e",BK28,BK28*HLOOKUP($E28,'Reference Tables'!$F$85:$I$105,6,FALSE)))) ->  | BN28: ='[3]EF calculations'!$J$19 -> 989.0030567 | BO28: 0.0009890030567
B29: Single unit long-haul truck emission factor - diesel | C29: EF_single unit long-haul truck - diesel | D29: CO2e | E29: 2AR | F29: g | G29: / | H29: mile | I29: =IFERROR(IF(F29="","",VLOOKUP(F29,'Reference Tables'!$D$137:$G$142,4,FALSE)),"") -> 1e-06 | M29: =IF(L29="","",IF($D29="",L29,IF($D29="CO2e",L29,L29*HLOOKUP($E29,'Reference Tables'!$F$85:$I$105,4,FALSE)))) ->  | P29: =IF(O29="","",IF($D29="",O29,IF($D29="CO2e",O29,O29*HLOOKUP($E29,'Reference Tables'!$F$85:$I$105,5,FALSE)))) ->  | BN29: ='[3]EF calculations'!$N$19 -> 1067.783586 | BO29: 0.001067783586
B30: Motor home emission factor - gasoline | C30: EF_motor home - gasoline | D30: CO2e | E30: 2AR | F30: g | G30: / | H30: mile | I30: =IFERROR(IF(F30="","",VLOOKUP(F30,'Reference Tables'!$D$137:$G$142,4,FALSE)),"") -> 1e-06 | M30: =IF(L30="","",IF($D30="",L30,IF($D30="CO2e",L30,L30*HLOOKUP($E30,'Reference Tables'!$F$85:$I$105,4,FALSE)))) ->  | P30: =IF(O30="","",IF($D30="",O30,IF($D30="CO2e",O30,O30*HLOOKUP($E30,'Reference Tables'!$F$85:$I$105,5,FALSE)))) ->  | BN30: ='[3]EF calculations'!$J$20 -> 1055.736147 | BO30: 0.001055736147
B31: Motor home emission factor - diesel | C31: EF_motor home - diesel | D31: CO2e | E31: 2AR | F31: g | G31: / | H31: mile | I31: =IFERROR(IF(F31="","",VLOOKUP(F31,'Reference Tables'!$D$137:$G$142,4,FALSE)),"") -> 1e-06 | M31: =IF(L31="","",IF($D31="",L31,IF($D31="CO2e",L31,L31*HLOOKUP($E31,'Reference Tables'!$F$85:$I$105,4,FALSE)))) ->  | P31: =IF(O31="","",IF($D31="",O31,IF($D31="CO2e",O31,O31*HLOOKUP($E31,'Reference Tables'!$F$85:$I$105,5,FALSE)))) ->  | BN31: ='[3]EF calculations'!$N$20 -> 1142.542458 | BO31: 0.001142542458
B32: Combination short-haul truck emission factor - gasoline | C32: EF_combination short-haul truck - gasoline | D32: CO2e | E32: 2AR | F32: g | G32: / | H32: mile | I32: =IFERROR(IF(F32="","",VLOOKUP(F32,'Reference Tables'!$D$137:$G$142,4,FALSE)),"") -> 1e-06 | M32: =IF(L32="","",IF($D32="",L32,IF($D32="CO2e",L32,L32*HLOOKUP($E32,'Reference Tables'!$F$85:$I$105,4,FALSE)))) ->  | P32: =IF(O32="","",IF($D32="",O32,IF($D32="CO2e",O32,O32*HLOOKUP($E32,'Reference Tables'!$F$85:$I$105,5,FALSE)))) ->  | BN32: ='[3]EF calculations'!$J$21 -> 2063.499723 | BO32: 0.002063499723
B33: Combination short-haul truck emission factor - diesel | C33: EF_combination short-haul truck - diesel | D33: CO2e | E33: 2AR | F33: g | G33: / | H33: mile | I33: =IFERROR(IF(F33="","",VLOOKUP(F33,'Reference Tables'!$D$137:$G$142,4,FALSE)),"") -> 1e-06 | M33: =IF(L33="","",IF($D33="",L33,IF($D33="CO2e",L33,L33*HLOOKUP($E33,'Reference Tables'!$F$85:$I$105,4,FALSE)))) ->  | P33: =IF(O33="","",IF($D33="",O33,IF($D33="CO2e",O33,O33*HLOOKUP($E33,'Reference Tables'!$F$85:$I$105,5,FALSE)))) ->  | BN33: ='[3]EF calculations'!$N$21 -> 2143.702058 | BO33: 0.002143702058
B34: Combination long-haul truck - diesel | C34: EF_combination long-haul truck - diesel | D34: CO2e | E34: 2AR | F34: g | G34: =IF(F34="","","/") -> / | H34: mile | I34: =IFERROR(IF(F34="","",VLOOKUP(F34,'Reference Tables'!$D$137:$G$142,4,FALSE)),"") -> 1e-06 | M34: =IF(L34="","",IF($D34="",L34,IF($D34="CO2e",L34,L34*HLOOKUP($E34,'Reference Tables'!$F$85:$I$105,4,FALSE)))) ->  | P34: =IF(O34="","",IF($D34="",O34,IF($D34="CO2e",O34,O34*HLOOKUP($E34,'Reference Tables'!$F$85:$I$105,5,FALSE)))) ->  | BN34: ='[3]EF calculations'!$N$22 -> 2231.268609 | BO34: 0.002231268609
B35: Transit electricity emission factor | C35: EF_electricity - transit | D35: CO2e | E35: 2AR | F35: t | G35: / | H35: MWH | I35: =IFERROR(IF(F35="","",VLOOKUP(F35,'Reference Tables'!$D$137:$G$142,4,FALSE)),"") -> 1 | M35: =IF(L35="","",IF($D35="",L35,IF($D35="CO2e",L35,L35*HLOOKUP($E35,'Reference Tables'!$F$85:$I$105,4,FALSE)))) ->  | P35: =IF(O35="","",IF($D35="",O35,IF($D35="CO2e",O35,O35*HLOOKUP($E35,'Reference Tables'!$F$85:$I$105,5,FALSE)))) ->  | BN35: ='[4]Transit emissions-v5-03-01-12'!$N$10 -> 0.6166968302 | BO35: 0.6166968302
B36: Wastewater natural gas emission factor | C36: EF_natural gas_wastewater | D36: GHG | E36: 2AR | F36: kg | G36: / | H36: MMBtu | I36: =IFERROR(IF(F36="","",VLOOKUP(F36,'Reference Tables'!$D$137:$G$142,4,FALSE)),"") -> 0.001 | J36: =[5]!kgCO2_MMBTU -> 53.02 | K36: 0.05302 | L36: =[5]!kgCH4_MMBTU -> 0.001 | M36: =IF(L36="","",IF($D36="",L36,IF($D36="CO2e",L36,L36*HLOOKUP($E36,'Reference Tables'!$F$85:$I$105,4,FALSE)))) -> 0.021 | N36: 2.1e-05 | O36: =[5]!kgN2O_MMBTU -> 0.0001 | P36: =IF(O36="","",IF($D36="",O36,IF($D36="CO2e",O36,O36*HLOOKUP($E36,'Reference Tables'!$F$85:$I$105,5,FALSE)))) -> 0.031 | Q36: 3.1e-05
B37: Water natural gas emission factor | C37: EF_natural gas water | D37: GHG | E37: 2AR | F37: lb | G37: / | H37: 10 cubic feet | I37: =IFERROR(IF(F37="","",VLOOKUP(F37,'Reference Tables'!$D$137:$G$142,4,FALSE)),"") -> 0.0004535923704 | J37: =[6]!NaturalGas_lbsCO2_10cubicfeet -> 120000 | K37: 54.43108445 | L37: =[6]!NaturalGas_lbsCH4_10cubicfeet -> 2.3 | M37: =IF(L37="","",IF($D37="",L37,IF($D37="CO2e",L37,L37*HLOOKUP($E37,'Reference Tables'!$F$85:$I$105,4,FALSE)))) -> 48.3 | N37: =IFERROR(IF(M37="","",M37*$I37),"") -> 0.02190851149 | O37: =[6]!NaturalGas_lbsN2O_10cubicfeet -> 2.2 | P37: =IF(O37="","",IF($D37="",O37,IF($D37="CO2e",O37,O37*HLOOKUP($E37,'Reference Tables'!$F$85:$I$105,5,FALSE)))) -> 682 | Q37: =IFERROR(IF(P37="","",P37*$I37),"") -> 0.3093499966
B38: Water boilers fuel oil emission factor | C38: EF_fuel oil water boilers | D38: GHG | E38: 2AR | F38: lb | G38: / | H38: 1000 gallons | I38: =IFERROR(IF(F38="","",VLOOKUP(F38,'Reference Tables'!$D$137:$G$142,4,FALSE)),"") -> 0.0004535923704 | J38: =[6]!FuelOil2_Boiler_lbsCO2_1000gal -> 22300 | K38: 10.11510986 | L38: =[6]!FuelOil2_Boiler_lbsCH4_1000gal -> 0.052 | M38: =IF(L38="","",IF($D38="",L38,IF($D38="CO2e",L38,L38*HLOOKUP($E38,'Reference Tables'!$F$85:$I$105,4,FALSE)))) -> 1.092 | N38: =IFERROR(IF(M38="","",M38*$I38),"") -> 0.0004953228685 | O38: =[6]!FuelOil2_Boiler_lbsN2O_1000gal -> 0.11 | P38: =IF(O38="","",IF($D38="",O38,IF($D38="CO2e",O38,O38*HLOOKUP($E38,'Reference Tables'!$F$85:$I$105,5,FALSE)))) -> 34.1 | Q38: =IFERROR(IF(P38="","",P38*$I38),"") -> 0.01546749983
B39: Water generators emission factor | C39: EF_fuel oil water generators | D39: GHG | E39: 2AR | F39: lb | G39: =IF(F39="","","/") -> / | H39: MMBtu | I39: =IFERROR(IF(F39="","",VLOOKUP(F39,'Reference Tables'!$D$137:$G$142,4,FALSE)),"") -> 0.0004535923704 | J39: =[6]!FuelOil2_Generator_lbsCO2_MMBtu -> 165 | K39: 0.07484274111
AB40: =IF(AA40="","",IF($D40="",AA40,IF($D40="CO2e",AA40,AA40*HLOOKUP($E40,'Reference Tables'!$F$85:$I$105,10,FALSE)))) ->  | AE40: =IF(AD40="","",IF($D40="",AD40,IF($D40="CO2e",AD40,AD40*HLOOKUP($E40,'Reference Tables'!$F$85:$I$105,11,FALSE)))) ->  | AH40: =IF(AG40="","",IF($D40="",AG40,IF($D40="CO2e",AG40,AG40*HLOOKUP($E40,'Reference Tables'!$F$85:$I$105,12,FALSE)))) ->  | AK40: =IF(AJ40="","",IF($D40="",AJ40,IF($D40="CO2e",AJ40,AJ40*HLOOKUP($E40,'Reference Tables'!$F$85:$I$105,13,FALSE)))) ->  | AN40: =IF(AM40="","",IF($D40="",AM40,IF($D40="CO2e",AM40,AM40*HLOOKUP($E40,'Reference Tables'!$F$85:$I$105,14,FALSE)))) ->  | AQ40: =IF(AP40="","",IF($D40="",AP40,IF($D40="CO2e",AP40,AP40*HLOOKUP($E40,'Reference Tables'!$F$85:$I$105,15,FALSE)))) ->  | AT40: =IF(AS40="","",IF($D40="",AS40,IF($D40="CO2e",AS40,AS40*HLOOKUP($E40,'Reference Tables'!$F$85:$I$105,16,FALSE)))) ->  | AW40: =IF(AV40="","",IF($D40="",AV40,IF($D40="CO2e",AV40,AV40*HLOOKUP($E40,'Reference Tables'!$F$85:$I$105,17,FALSE)))) ->  | AZ40: =IF(AY40="","",IF($D40="",AY40,IF($D40="CO2e",AY40,AY40*HLOOKUP($E40,'Reference Tables'!$F$85:$I$105,18,FALSE)))) ->  | BC40: =IF(BB40="","",IF($D40="",BB40,IF($D40="CO2e",BB40,BB40*HLOOKUP($E40,'Reference Tables'!$F$85:$I$105,19,FALSE)))) ->  | BF40: =IF(BE40="","",IF($D40="",BE40,IF($D40="CO2e",BE40,BE40*HLOOKUP($E40,'Reference Tables'!$F$85:$I$105,20,FALSE)))) ->  | BI40: =IF(BH40="","",IF($D40="",BH40,IF($D40="CO2e",BH40,BH40*HLOOKUP($E40,'Reference Tables'!$F$85:$I$105,6,FALSE)))) ->  | BL40: =IF(BK40="","",IF($D40="",BK40,IF($D40="CO2e",BK40,BK40*HLOOKUP($E40,'Reference Tables'!$F$85:$I$105,6,FALSE)))) ->  | BO40: =IFERROR(IF(BN40="","",BN40*$I40),"") -> 
B42: VII. MACRO

Sheet I - Stationary
B2: I STATIONARY ENERGY | G2:  | M2:  | T2:  | AH2: 
B4: Use this tab to record activity and emissions data for Stationary energy sources. Emission factors should be recorded in the 'Emission factors' tab. | G4: Convert activity data units | M4: View emission factor(s) | T4: Enter emissions data | AH4: Data quality explanation (optional)
B6: I.1 RESIDENTIAL BUILDINGS
B8: GPC ref No. | C8: Scope | D8: GHG Emissions Source | F8: Notation keys | G8: Activity data | I8: Activity data multiplier | L8: Gas(es) | M8: Emission factor | N8: Emission factor | T8: Emissions data | U8: GHGs (metric tonnes CO2e) | Z8: GHGs (metric tonnes CO2e) | AE8: Data Quality | AG8: Description of method(s) used or explanation for using notation key(s) | AH8: Source | AI8: Data quality explanation (optional)
D9: Activity | E9: Description | G9: Amount | H9: Units | I9: From | J9: To | K9: Factor | N9: Units | O9: CO2 | P9: CH4 | Q9: N2O | R9: Total tCO2e | S9: CO2(b) | U9: CO2 | V9: CH4 | W9: N2O | X9: Total tCO2e | Y9: CO2(b) | Z9: CO2 | AA9: CH4 | AB9: N2O | AC9: Total tCO2e | AD9: CO2(b) | AE9: AD | AF9: EF
B10: I.1.1 | C10: 1 | D10: Emissions from fuel combustion within the city boundary
B11: I.1.1 | C11: 1 | D11: Gas (natural gas) | E11: Residential - Single Family - Peoples | G11: =[2]SUMMARY!$B$41 -> 348144141.7 | H11: therms | L11: CO2, CH4, N2O | M11: EF_natural gas Peoples | N11: =IFERROR(CONCATENATE("tCO2e/",VLOOKUP($M11,'Emission factors'!$C:$H,6,FALSE)),"") -> tCO2e/therm | O11: =IFERROR(VLOOKUP($M11,'Emission factors'!$C:$BQ,9,FALSE),"") -> 0.005492033787 | P11: =IFERROR(VLOOKUP($M11,'Emission factors'!$C:$BQ,12,FALSE),"") -> 0.000197440103 | Q11: =IFERROR(VLOOKUP($M11,'Emission factors'!$C:$BQ,15,FALSE),"") -> 3.099259859e-06 | R11: =IFERROR(VLOOKUP($M11,'Emission factors'!$C:$BQ,65,FALSE),"") ->  | S11: =IFERROR(VLOOKUP($M11,'Emission factors'!$C:$BQ,67,FALSE),"") ->  | Z11: =IFERROR(IF(AND($M11="",$T11=""),"",IF($M11="",IF(U11=0,"-",U11),IF(O11=0,"0",$G11*IF($K11="",1,$K11)*O11))),"-") -> 1912019.389 | AA11: 68737.61518 | AB11: 1078.989164 | AC11: =IFERROR(IF(AND($M11="",$T11=""),"",IF($M11="",IF(X11="",SUM(U11:W11),IF(X11=0,"0",X11)),IF($R11="",SUM($Z11:$AB11),IF($R11=0,"0",$G11*IF($K11="",1,$K11)*$R11)))),"-") -> 1981835.993 | AD11: =IFERROR(IF(AND($M11="",$T11=""),"",IF($M11="",IF(Y11=0,"-",Y11),IF(S11=0,"0",$G11*IF($K11="",1,$K11)*S11))),"-") -> -
B12: I.1.1 | C12: 1 | D12: Gas (natural gas) | E12: Residential - Multi Family - Peoples | G12: =[2]SUMMARY!$B$42 -> 649917471.3 | H12: therms | L12: CO2, CH4, N2O | M12: EF_natural gas Peoples | N12: =IFERROR(CONCATENATE("tCO2e/",VLOOKUP($M12,'Emission factors'!$C:$H,6,FALSE)),"") -> tCO2e/therm | O12: =IFERROR(VLOOKUP($M12,'Emission factors'!$C:$BQ,9,FALSE),"") -> 0.005492033787 | P12: =IFERROR(VLOOKUP($M12,'Emission factors'!$C:$BQ,12,FALSE),"") -> 0.000197440103 | Q12: =IFERROR(VLOOKUP($M12,'Emission factors'!$C:$BQ,15,FALSE),"") -> 3.099259859e-06 | R12: =IFERROR(VLOOKUP($M12,'Emission factors'!$C:$BQ,65,FALSE),"") ->  | S12: =IFERROR(VLOOKUP($M12,'Emission factors'!$C:$BQ,67,FALSE),"") ->  | Z12: 3569368.711 | AA12: 128319.7724 | AB12: 2014.263131 | AC12: =IFERROR(IF(AND($M12="",$T12=""),"",IF($M12="",IF(X12="",SUM(U12:W12),IF(X12=0,"0",X12)),IF($R12="",SUM($Z12:$AB12),IF($R12=0,"0",$G12*IF($K12="",1,$K12)*$R12)))),"-") -> 3699702.747 | AD12: =IFERROR(IF(AND($M12="",$T12=""),"",IF($M12="",IF(Y12=0,"-",Y12),IF(S12=0,"0",$G12*IF($K12="",1,$K12)*S12))),"-") -> -
B13: I.1.1 | C13: 1 | D13: Motor gasoline (petrol) | E13: Residential lawn and garden equipment | N13: =IFERROR(CONCATENATE("tCO2e/",VLOOKUP($M13,'Emission factors'!$C:$H,6,FALSE)),"") ->  | O13: =IFERROR(VLOOKUP($M13,'Emission factors'!$C:$BQ,9,FALSE),"") ->  | P13: =IFERROR(VLOOKUP($M13,'Emission factors'!$C:$BQ,12,FALSE),"") ->  | Q13: =IFERROR(VLOOKUP($M13,'Emission factors'!$C:$BQ,15,FALSE),"") ->  | R13: =IFERROR(VLOOKUP($M13,'Emission factors'!$C:$BQ,65,FALSE),"") ->  | S13: =IFERROR(VLOOKUP($M13,'Emission factors'!$C:$BQ,67,FALSE),"") ->  | T13: ✓ | X13: ='[4]NONROAD Summary totals'!$I$77 -> 33669.1686 | Z13: =IFERROR(IF(AND($M13="",$T13=""),"",IF($M13="",IF(U13=0,"-",U13),IF(O13=0,"0",$G13*IF($K13="",1,$K13)*O13))),"-") -> - | AA13: - | AB13: - | AC13: =IFERROR(IF(AND($M13="",$T13=""),"",IF($M13="",IF(X13="",SUM(U13:W13),IF(X13=0,"0",X13)),IF($R13="",SUM($Z13:$AB13),IF($R13=0,"0",$G13*IF($K13="",1,$K13)*$R13)))),"-") -> 33669.1686 | AD13: =IFERROR(IF(AND($M13="",$T13=""),"",IF($M13="",IF(Y13=0,"-",Y13),IF(S13=0,"0",$G13*IF($K13="",1,$K13)*S13))),"-") -> -
B14: I.1.1 | C14: 1 | N14: =IFERROR(CONCATENATE("tCO2e/",VLOOKUP($M14,'Emission factors'!$C:$H,6,FALSE)),"") ->  | O14: =IFERROR(VLOOKUP($M14,'Emission factors'!$C:$BQ,9,FALSE),"") ->  | P14: =IFERROR(VLOOKUP($M14,'Emission factors'!$C:$BQ,12,FALSE),"") ->  | Q14: =IFERROR(VLOOKUP($M14,'Emission factors'!$C:$BQ,15,FALSE),"") ->  | R14: =IFERROR(VLOOKUP($M14,'Emission factors'!$C:$BQ,65,FALSE),"") ->  | S14: =IFERROR(VLOOKUP($M14,'Emission factors'!$C:$BQ,67,FALSE),"") ->  | AC14: =IFERROR(IF(AND($M14="",$T14=""),"",IF($M14="",IF(X14="",SUM(U14:W14),IF(X14=0,"0",X14)),IF($R14="",SUM($Z14:$AB14),IF($R14=0,"0",$G14*IF($K14="",1,$K14)*$R14)))),"-") ->  | AD14: =IFERROR(IF(AND($M14="",$T14=""),"",IF($M14="",IF(Y14=0,"-",Y14),IF(S14=0,"0",$G14*IF($K14="",1,$K14)*S14))),"-") -> 
B15: I.1.2 | C15: 2 | D15: Emissions from grid-supplied energy consumed within the city boundary
B16: I.1.2 | C16: 2 | D16: Electricity | E16: Residential - Single Family | G16: =[2]SUMMARY!$B$10 -> 3485133888 | H16: kWh | I16: kWh | J16: MWh | K16: 0.001 | L16: CO2, CH4, N2O | M16: EF_electricity | N16: =IFERROR(CONCATENATE("tCO2e/",VLOOKUP($M16,'Emission factors'!$C:$H,6,FALSE)),"") -> tCO2e/MWh | O16: =IFERROR(VLOOKUP($M16,'Emission factors'!$C:$BQ,9,FALSE),"") -> 0.6133421697 | P16: =IFERROR(VLOOKUP($M16,'Emission factors'!$C:$BQ,12,FALSE),"") -> 0.0001996715575 | Q16: =IFERROR(VLOOKUP($M16,'Emission factors'!$C:$BQ,15,FALSE),"") -> 0.003154988988 | R16: =IFERROR(VLOOKUP($M16,'Emission factors'!$C:$BQ,65,FALSE),"") ->  | S16: =IFERROR(VLOOKUP($M16,'Emission factors'!$C:$BQ,67,FALSE),"") ->  | Z16: =IFERROR(IF(AND($M16="",$T16=""),"",IF($M16="",IF(U16=0,"-",U16),IF(O16=0,"0",$G16*IF($K16="",1,$K16)*O16))),"-") -> 2137579.58 | AA16: 695.8821114 | AB16: 10995.55904 | AC16: =IFERROR(IF(AND($M16="",$T16=""),"",IF($M16="",IF(X16="",SUM(U16:W16),IF(X16=0,"0",X16)),IF($R16="",SUM($Z16:$AB16),IF($R16=0,"0",$G16*IF($K16="",1,$K16)*$R16)))),"-") -> 2149271.021 | AD16: =IFERROR(IF(AND($M16="",$T16=""),"",IF($M16="",IF(Y16=0,"-",Y16),IF(S16=0,"0",$G16*IF($K16="",1,$K16)*S16))),"-") -> -
B17: I.1.2 | C17: 2 | D17: Electricity | E17: Residential - Multi Family | G17: =[2]SUMMARY!$B$11 -> 3102760690 | H17: kWh | I17: kWh | J17: MWh | K17: 0.001 | L17: CO2, CH4, N2O | M17: EF_electricity | N17: =IFERROR(CONCATENATE("tCO2e/",VLOOKUP($M17,'Emission factors'!$C:$H,6,FALSE)),"") -> tCO2e/MWh | O17: =IFERROR(VLOOKUP($M17,'Emission factors'!$C:$BQ,9,FALSE),"") -> 0.6133421697 | P17: =IFERROR(VLOOKUP($M17,'Emission factors'!$C:$BQ,12,FALSE),"") -> 0.0001996715575 | Q17: =IFERROR(VLOOKUP($M17,'Emission factors'!$C:$BQ,15,FALSE),"") -> 0.003154988988 | R17: =IFERROR(VLOOKUP($M17,'Emission factors'!$C:$BQ,65,FALSE),"") ->  | S17: =IFERROR(VLOOKUP($M17,'Emission factors'!$C:$BQ,67,FALSE),"") ->  | Z17: 1903053.974 | AA17: 619.5330595 | AB17: 9789.175811 | AC17: =IFERROR(IF(AND($M17="",$T17=""),"",IF($M17="",IF(X17="",SUM(U17:W17),IF(X17=0,"0",X17)),IF($R17="",SUM($Z17:$AB17),IF($R17=0,"0",$G17*IF($K17="",1,$K17)*$R17)))),"-") -> 1913462.683 | AD17: =IFERROR(IF(AND($M17="",$T17=""),"",IF($M17="",IF(Y17=0,"-",Y17),IF(S17=0,"0",$G17*IF($K17="",1,$K17)*S17))),"-") -> -
B18: I.1.3 | C18: 3 | D18: Transmission and distribution losses from grid-supplied energy | F18: NE
B19: I.1.3 | C19: 3 | N19: =IFERROR(CONCATENATE("tCO2e/",VLOOKUP($M19,'Emission factors'!$C:$H,6,FALSE)),"") ->  | O19: =IFERROR(VLOOKUP($M19,'Emission factors'!$C:$BQ,9,FALSE),"") ->  | P19: =IFERROR(VLOOKUP($M19,'Emission factors'!$C:$BQ,12,FALSE),"") ->  | Q19: =IFERROR(VLOOKUP($M19,'Emission factors'!$C:$BQ,15,FALSE),"") ->  | R19: =IFERROR(VLOOKUP($M19,'Emission factors'!$C:$BQ,65,FALSE),"") ->  | S19: =IFERROR(VLOOKUP($M19,'Emission factors'!$C:$BQ,67,FALSE),"") ->  | Z19: =IFERROR(IF(AND($M19="",$T19=""),"",IF($M19="",IF(U19=0,"-",U19),IF(O19=0,"0",$G19*IF($K19="",1,$K19)*O19))),"-") ->  | AC19: =IFERROR(IF(AND($M19="",$T19=""),"",IF($M19="",IF(X19="",SUM(U19:W19),IF(X19=0,"0",X19)),IF($R19="",SUM($Z19:$AB19),IF($R19=0,"0",$G19*IF($K19="",1,$K19)*$R19)))),"-") ->  | AD19: =IFERROR(IF(AND($M19="",$T19=""),"",IF($M19="",IF(Y19=0,"-",Y19),IF(S19=0,"0",$G19*IF($K19="",1,$K19)*S19))),"-") -> 
B20: I.1.3 | C20: 3 | N20: =IFERROR(CONCATENATE("tCO2e/",VLOOKUP($M20,'Emission factors'!$C:$H,6,FALSE)),"") ->  | O20: =IFERROR(VLOOKUP($M20,'Emission factors'!$C:$BQ,9,FALSE),"") ->  | P20: =IFERROR(VLOOKUP($M20,'Emission factors'!$C:$BQ,12,FALSE),"") ->  | Q20: =IFERROR(VLOOKUP($M20,'Emission factors'!$C:$BQ,15,FALSE),"") ->  | R20: =IFERROR(VLOOKUP($M20,'Emission factors'!$C:$BQ,65,FALSE),"") ->  | S20: =IFERROR(VLOOKUP($M20,'Emission factors'!$C:$BQ,67,FALSE),"") ->  | AC20: =IFERROR(IF(AND($M20="",$T20=""),"",IF($M20="",IF(X20="",SUM(U20:W20),IF(X20=0,"0",X20)),IF($R20="",SUM($Z20:$AB20),IF($R20=0,"0",$G20*IF($K20="",1,$K20)*$R20)))),"-") ->  | AD20: =IFERROR(IF(AND($M20="",$T20=""),"",IF($M20="",IF(Y20=0,"-",Y20),IF(S20=0,"0",$G20*IF($K20="",1,$K20)*S20))),"-") -> 
B22: I.2 COMMERCIAL AND INSTITUTIONAL BUILDINGS AND FACILITIES
B24: GPC ref No. | C24: Scope | D24: GHG Emissions Source | F24: Notation keys | G24: Activity data | I24: Activity data multiplier | L24: Gas(es) | M24: Emission factor | N24: Emission factor | T24: Emissions data | U24: GHGs (metric tonnes CO2e) | Z24: GHGs (metric tonnes CO2e) | AE24: Data Quality | AG24: Description of method(s) used or explanation for using notation key(s) | AH24: Source | AI24: Data quality explanation (optional)
D25: Activity | E25: Description | G25: Amount | H25: Units | I25: From | J25: To | K25: Factor | N25: Units | O25: CO2 | P25: CH4 | Q25: N2O | R25: Total tCO2e | S25: CO2(b) | U25: CO2 | V25: CH4 | W25: N2O | X25: Total tCO2e | Y25: CO2(b) | Z25: CO2 | AA25: CH4 | AB25: N2O | AC25: Total tCO2e | AD25: CO2(b) | AE25: AD | AF25: EF
B26: I.2.1 | C26: 1 | D26: Emissions from fuel combustion within the city boundary
B27: I.2.1 | C27: 1 | D27: Gas (natural gas) | E27: Commercial - Peoples | G27: =[2]SUMMARY!$B$43 -> 337942280.2 | H27: therms | L27: CO2, CH4, N2O | M27: EF_natural gas Peoples | N27: =IFERROR(CONCATENATE("tCO2e/",VLOOKUP($M27,'Emission factors'!$C:$H,6,FALSE)),"") -> tCO2e/therm | O27: =IFERROR(VLOOKUP($M27,'Emission factors'!$C:$BQ,9,FALSE),"") -> 0.005492033787 | P27: =IFERROR(VLOOKUP($M27,'Emission factors'!$C:$BQ,12,FALSE),"") -> 0.000197440103 | Q27: =IFERROR(VLOOKUP($M27,'Emission factors'!$C:$BQ,15,FALSE),"") -> 3.099259859e-06 | R27: =IFERROR(VLOOKUP($M27,'Emission factors'!$C:$BQ,65,FALSE),"") ->  | S27: =IFERROR(VLOOKUP($M27,'Emission factors'!$C:$BQ,67,FALSE),"") ->  | Z27: =IFERROR(IF(AND($M27="",$T27=""),"",IF($M27="",IF(U27=0,"-",U27),IF(O27=0,"0",$G27*IF($K27="",1,$K27)*O27))),"-") -> 1855990.421 | AA27: 66723.3586 | AB27: 1047.370944 | AC27: =IFERROR(IF(AND($M27="",$T27=""),"",IF($M27="",IF(X27="",SUM(U27:W27),IF(X27=0,"0",X27)),IF($R27="",SUM($Z27:$AB27),IF($R27=0,"0",$G27*IF($K27="",1,$K27)*$R27)))),"-") -> 1923761.151 | AD27: =IFERROR(IF(AND($M27="",$T27=""),"",IF($M27="",IF(Y27=0,"-",Y27),IF(S27=0,"0",$G27*IF($K27="",1,$K27)*S27))),"-") -> -
B28: I.2.1 | C28: 1 | D28: Gas (natural gas) | E28: Municipal - Peoples | G28: =[2]SUMMARY!$B$48 -> 146918791.4 | H28: therms | L28: CO2, CH4, N2O | M28: EF_natural gas Peoples | N28: =IFERROR(CONCATENATE("tCO2e/",VLOOKUP($M28,'Emission factors'!$C:$H,6,FALSE)),"") -> tCO2e/therm | O28: =IFERROR(VLOOKUP($M28,'Emission factors'!$C:$BQ,9,FALSE),"") -> 0.005492033787 | P28: =IFERROR(VLOOKUP($M28,'Emission factors'!$C:$BQ,12,FALSE),"") -> 0.000197440103 | Q28: =IFERROR(VLOOKUP($M28,'Emission factors'!$C:$BQ,15,FALSE),"") -> 3.099259859e-06 | R28: =IFERROR(VLOOKUP($M28,'Emission factors'!$C:$BQ,65,FALSE),"") ->  | S28: =IFERROR(VLOOKUP($M28,'Emission factors'!$C:$BQ,67,FALSE),"") ->  | Z28: 806882.9662 | AA28: =IFERROR(IF(AND($M28="",$T28=""),"",IF($M28="",IF(V28=0,"-",V28),IF(P28=0,"0",$G28*IF($K28="",1,$K28)*P28))),"-") -> 29007.66129 | AB28: =IFERROR(IF(AND($M28="",$T28=""),"",IF($M28="",IF(W28=0,"-",W28),IF(Q28=0,"0",$G28*IF($K28="",1,$K28)*Q28))),"-") -> 455.3395126 | AC28: 836345.967 | AD28: -
B29: I.2.1 | C29: 1 | D29: Gas (natural gas) | E29: Unspecifiied - Peoples | G29: =[2]SUMMARY!$B$49 -> 4530.73 | H29: therms | L29: CO2, CH4, N2O | M29: EF_natural gas Peoples | N29: =IFERROR(CONCATENATE("tCO2e/",VLOOKUP($M29,'Emission factors'!$C:$H,6,FALSE)),"") -> tCO2e/therm | O29: =IFERROR(VLOOKUP($M29,'Emission factors'!$C:$BQ,9,FALSE),"") -> 0.005492033787 | P29: =IFERROR(VLOOKUP($M29,'Emission factors'!$C:$BQ,12,FALSE),"") -> 0.000197440103 | Q29: =IFERROR(VLOOKUP($M29,'Emission factors'!$C:$BQ,15,FALSE),"") -> 3.099259859e-06 | R29: =IFERROR(VLOOKUP($M29,'Emission factors'!$C:$BQ,65,FALSE),"") ->  | S29: =IFERROR(VLOOKUP($M29,'Emission factors'!$C:$BQ,67,FALSE),"") ->  | Z29: =IFERROR(IF(AND($M29="",$T29=""),"",IF($M29="",IF(U29=0,"-",U29),IF(O29=0,"0",$G29*IF($K29="",1,$K29)*O29))),"-") -> 24.88292224 | AA29: 0.8945477976 | AB29: 0.01404190962 | AC29: 25.79151195 | AD29: -
B30: I.2.1 | C30: 1 | D30: Motor gasoline (petrol) | E30: Commercial equipment (offroad) | L30: CO2, CH4, N2O | N30: =IFERROR(CONCATENATE("tCO2e/",VLOOKUP($M30,'Emission factors'!$C:$H,6,FALSE)),"") ->  | O30: =IFERROR(VLOOKUP($M30,'Emission factors'!$C:$BQ,9,FALSE),"") ->  | P30: =IFERROR(VLOOKUP($M30,'Emission factors'!$C:$BQ,12,FALSE),"") ->  | Q30: =IFERROR(VLOOKUP($M30,'Emission factors'!$C:$BQ,15,FALSE),"") ->  | R30: =IFERROR(VLOOKUP($M30,'Emission factors'!$C:$BQ,65,FALSE),"") ->  | S30: =IFERROR(VLOOKUP($M30,'Emission factors'!$C:$BQ,67,FALSE),"") ->  | T30: ✓ | X30: ='[4]NONROAD Summary totals'!$I$21 -> 115215.9369 | Z30: - | AA30: - | AB30: - | AC30: 115215.9369 | AD30: -
B31: I.2.1 | C31: 1 | D31: Motor gasoline (petrol) | E31: Commercial lawn and garden equipment (offroad) | L31: CO2, CH4, N2O | N31: =IFERROR(CONCATENATE("tCO2e/",VLOOKUP($M31,'Emission factors'!$C:$H,6,FALSE)),"") ->  | O31: =IFERROR(VLOOKUP($M31,'Emission factors'!$C:$BQ,9,FALSE),"") ->  | P31: =IFERROR(VLOOKUP($M31,'Emission factors'!$C:$BQ,12,FALSE),"") ->  | Q31: =IFERROR(VLOOKUP($M31,'Emission factors'!$C:$BQ,15,FALSE),"") ->  | R31: =IFERROR(VLOOKUP($M31,'Emission factors'!$C:$BQ,65,FALSE),"") ->  | S31: =IFERROR(VLOOKUP($M31,'Emission factors'!$C:$BQ,67,FALSE),"") ->  | T31: ✓ | X31: ='[4]NONROAD Summary totals'!$I$69 -> 38269.305 | Z31: =IFERROR(IF(AND($M31="",$T31=""),"",IF($M31="",IF(U31=0,"-",U31),IF(O31=0,"0",$G31*IF($K31="",1,$K31)*O31))),"-") -> - | AA31: - | AB31: - | AC31: 38269.305 | AD31: -
B32: I.2.1 | C32: 1 | D32: Gas (natural gas) | E32: Wastewater treatment plant natural gas use | G32: =[5]Emissions!$B$20 -> 1177503.309 | H32: therms | I32: therms | J32: MMBtu | K32: 0.09997612449 | L32: CO2, CH4, N2O | M32: EF_natural gas_wastewater | N32: =IFERROR(CONCATENATE("tCO2e/",VLOOKUP($M32,'Emission factors'!$C:$H,6,FALSE)),"") -> tCO2e/MMBtu | O32: =IFERROR(VLOOKUP($M32,'Emission factors'!$C:$BQ,9,FALSE),"") -> 0.05302 | P32: =IFERROR(VLOOKUP($M32,'Emission factors'!$C:$BQ,12,FALSE),"") -> 2.1e-05 | Q32: =IFERROR(VLOOKUP($M32,'Emission factors'!$C:$BQ,15,FALSE),"") -> 3.1e-05 | R32: =IFERROR(VLOOKUP($M32,'Emission factors'!$C:$BQ,65,FALSE),"") ->  | S32: =IFERROR(VLOOKUP($M32,'Emission factors'!$C:$BQ,67,FALSE),"") ->  | Z32: =IFERROR(IF(AND($M32="",$T32=""),"",IF($M32="",IF(U32=0,"-",U32),IF(O32=0,"0",$G32*IF($K32="",1,$K32)*O32))),"-") -> 6241.631968 | AA32: 2.472166566 | AB32: 3.64938874 | AC32: =IFERROR(IF(AND($M32="",$T32=""),"",IF($M32="",IF(X32="",SUM(U32:W32),IF(X32=0,"0",X32)),IF($R32="",SUM($Z32:$AB32),IF($R32=0,"0",$G32*IF($K32="",1,$K32)*$R32)))),"-") -> 6247.753524 | AD32: -
B33: I.2.1 | C33: 1 | D33: Gas (natural gas) | E33: Water supply natural gas use | G33: ='[6]Summary - Energy Consumption'!$B$28 -> 15182363.92 | H33: therms | I33: therms | J33: 10 cubic feet | K33: 9.225485869e-05 | L33: CO2, CH4, N2O | M33: EF_natural gas water | N33: =IFERROR(CONCATENATE("tCO2e/",VLOOKUP($M33,'Emission factors'!$C:$H,6,FALSE)),"") -> tCO2e/10 cubic feet | O33: =IFERROR(VLOOKUP($M33,'Emission factors'!$C:$BQ,9,FALSE),"") -> 54.43108445 | P33: =IFERROR(VLOOKUP($M33,'Emission factors'!$C:$BQ,12,FALSE),"") -> 0.02190851149 | Q33: =IFERROR(VLOOKUP($M33,'Emission factors'!$C:$BQ,15,FALSE),"") -> 0.3093499966 | R33: =IFERROR(VLOOKUP($M33,'Emission factors'!$C:$BQ,65,FALSE),"") ->  | S33: =IFERROR(VLOOKUP($M33,'Emission factors'!$C:$BQ,67,FALSE),"") ->  | Z33: 76238.72633 | AA33: 30.68608735 | AB33: =IFERROR(IF(AND($M33="",$T33=""),"",IF($M33="",IF(W33=0,"-",W33),IF(Q33=0,"0",$G33*IF($K33="",1,$K33)*Q33))),"-") -> 433.2900946 | AC33: =IFERROR(IF(AND($M33="",$T33=""),"",IF($M33="",IF(X33="",SUM(U33:W33),IF(X33=0,"0",X33)),IF($R33="",SUM($Z33:$AB33),IF($R33=0,"0",$G33*IF($K33="",1,$K33)*$R33)))),"-") -> 76702.70251 | AD33: =IFERROR(IF(AND($M33="",$T33=""),"",IF($M33="",IF(Y33=0,"-",Y33),IF(S33=0,"0",$G33*IF($K33="",1,$K33)*S33))),"-") -> -
B34: I.2.1 | C34: 1 | D34: Diesel oil | E34: Water supply boilers | G34: ='[6]Summary - Energy Consumption'!$B$29 -> 24432.05288 | H34: gallons | I34: gallons | J34: 1000 gallons | K34: 0.001 | L34: CO2, CH4, N2O | M34: EF_fuel oil water boilers | N34: =IFERROR(CONCATENATE("tCO2e/",VLOOKUP($M34,'Emission factors'!$C:$H,6,FALSE)),"") -> tCO2e/1000 gallons | O34: =IFERROR(VLOOKUP($M34,'Emission factors'!$C:$BQ,9,FALSE),"") -> 10.11510986 | P34: =IFERROR(VLOOKUP($M34,'Emission factors'!$C:$BQ,12,FALSE),"") -> 0.0004953228685 | Q34: =IFERROR(VLOOKUP($M34,'Emission factors'!$C:$BQ,15,FALSE),"") -> 0.01546749983 | R34: =IFERROR(VLOOKUP($M34,'Emission factors'!$C:$BQ,65,FALSE),"") ->  | S34: =IFERROR(VLOOKUP($M34,'Emission factors'!$C:$BQ,67,FALSE),"") ->  | Z34: 247.1328989 | AA34: 0.01210175451 | AB34: =IFERROR(IF(AND($M34="",$T34=""),"",IF($M34="",IF(W34=0,"-",W34),IF(Q34=0,"0",$G34*IF($K34="",1,$K34)*Q34))),"-") -> 0.3779027737 | AC34: =IFERROR(IF(AND($M34="",$T34=""),"",IF($M34="",IF(X34="",SUM(U34:W34),IF(X34=0,"0",X34)),IF($R34="",SUM($Z34:$AB34),IF($R34=0,"0",$G34*IF($K34="",1,$K34)*$R34)))),"-") -> 247.5229035 | AD34: =IFERROR(IF(AND($M34="",$T34=""),"",IF($M34="",IF(Y34=0,"-",Y34),IF(S34=0,"0",$G34*IF($K34="",1,$K34)*S34))),"-") -> -
B35: I.2.1 | C35: 1 | D35: Diesel oil | E35: Water supply generators | G35: ='[6]Summary - Energy Consumption'!$B$30 -> 12693.36341 | H35: gallons | I35: gallons | J35: MMBtu | K35: 0.14 | L35: CO2 | M35: EF_fuel oil water generators | N35: =IFERROR(CONCATENATE("tCO2e/",VLOOKUP($M35,'Emission factors'!$C:$H,6,FALSE)),"") -> tCO2e/MMBtu | O35: =IFERROR(VLOOKUP($M35,'Emission factors'!$C:$BQ,9,FALSE),"") -> 0.07484274111 | P35: =IFERROR(VLOOKUP($M35,'Emission factors'!$C:$BQ,12,FALSE),"") -> 0 | Q35: =IFERROR(VLOOKUP($M35,'Emission factors'!$C:$BQ,15,FALSE),"") -> 0 | R35: =IFERROR(VLOOKUP($M35,'Emission factors'!$C:$BQ,65,FALSE),"") ->  | S35: =IFERROR(VLOOKUP($M35,'Emission factors'!$C:$BQ,67,FALSE),"") ->  | Z35: 133.0008556 | AA35: 0 | AB35: =IFERROR(IF(AND($M35="",$T35=""),"",IF($M35="",IF(W35=0,"-",W35),IF(Q35=0,"0",$G35*IF($K35="",1,$K35)*Q35))),"-") -> 0 | AC35: =IFERROR(IF(AND($M35="",$T35=""),"",IF($M35="",IF(X35="",SUM(U35:W35),IF(X35=0,"0",X35)),IF($R35="",SUM($Z35:$AB35),IF($R35=0,"0",$G35*IF($K35="",1,$K35)*$R35)))),"-") -> 133.0008556 | AD35: =IFERROR(IF(AND($M35="",$T35=""),"",IF($M35="",IF(Y35=0,"-",Y35),IF(S35=0,"0",$G35*IF($K35="",1,$K35)*S35))),"-") -> -
B36: I.2.1 | C36: 1 | N36: =IFERROR(CONCATENATE("tCO2e/",VLOOKUP($M36,'Emission factors'!$C:$H,6,FALSE)),"") ->  | O36: =IFERROR(VLOOKUP($M36,'Emission factors'!$C:$BQ,9,FALSE),"") ->  | P36: =IFERROR(VLOOKUP($M36,'Emission factors'!$C:$BQ,12,FALSE),"") ->  | Q36: =IFERROR(VLOOKUP($M36,'Emission factors'!$C:$BQ,15,FALSE),"") ->  | R36: =IFERROR(VLOOKUP($M36,'Emission factors'!$C:$BQ,65,FALSE),"") ->  | S36: =IFERROR(VLOOKUP($M36,'Emission factors'!$C:$BQ,67,FALSE),"") ->  | AB36: =IFERROR(IF(AND($M36="",$T36=""),"",IF($M36="",IF(W36=0,"-",W36),IF(Q36=0,"0",$G36*IF($K36="",1,$K36)*Q36))),"-") ->  | AC36: =IFERROR(IF(AND($M36="",$T36=""),"",IF($M36="",IF(X36="",SUM(U36:W36),IF(X36=0,"0",X36)),IF($R36="",SUM($Z36:$AB36),IF($R36=0,"0",$G36*IF($K36="",1,$K36)*$R36)))),"-") ->  | AD36: =IFERROR(IF(AND($M36="",$T36=""),"",IF($M36="",IF(Y36=0,"-",Y36),IF(S36=0,"0",$G36*IF($K36="",1,$K36)*S36))),"-") -> 
B37: I.2.2 | C37: 2 | D37: Emissions from grid-supplied energy consumed within the city boundary
B38: I.2.2 | C38: 2 | D38: Electricity | E38: Commercial and Industrial buildings | G38: =[2]SUMMARY!$B$16 -> 1.706636033e+10 | H38: kWh | I38: kWh | J38: MWh | K38: 0.001 | L38: CO2, CH4, N2O | M38: EF_electricity | N38: =IFERROR(CONCATENATE("tCO2e/",VLOOKUP($M38,'Emission factors'!$C:$H,6,FALSE)),"") -> tCO2e/MWh | O38: =IFERROR(VLOOKUP($M38,'Emission factors'!$C:$BQ,9,FALSE),"") -> 0.6133421697 | P38: =IFERROR(VLOOKUP($M38,'Emission factors'!$C:$BQ,12,FALSE),"") -> 0.0001996715575 | Q38: =IFERROR(VLOOKUP($M38,'Emission factors'!$C:$BQ,15,FALSE),"") -> 0.003154988988 | R38: =IFERROR(VLOOKUP($M38,'Emission factors'!$C:$BQ,65,FALSE),"") ->  | S38: =IFERROR(VLOOKUP($M38,'Emission factors'!$C:$BQ,67,FALSE),"") ->  | Z38: =IFERROR(IF(AND($M38="",$T38=""),"",IF($M38="",IF(U38=0,"-",U38),IF(O38=0,"0",$G38*IF($K38="",1,$K38)*O38))),"-") -> 10467518.47 | AA38: 3407.666748 | AB38: 53844.17891 | AC38: =IFERROR(IF(AND($M38="",$T38=""),"",IF($M38="",IF(X38="",SUM(U38:W38),IF(X38=0,"0",X38)),IF($R38="",SUM($Z38:$AB38),IF($R38=0,"0",$G38*IF($K38="",1,$K38)*$R38)))),"-") -> 10524770.32 | AD38: =IFERROR(IF(AND($M38="",$T38=""),"",IF($M38="",IF(Y38=0,"-",Y38),IF(S38=0,"0",$G38*IF($K38="",1,$K38)*S38))),"-") -> -
B39: I.2.2 | C39: 2 | D39: Electricity | E39: Wastewater treatment plant electricity use | G39: =[5]Emissions!$B$18 -> 266643119.1 | H39: kWh | I39: kWh | J39: MWh | K39: 0.001 | L39: CO2, CH4, N2O | M39: EF_electricity | N39: =IFERROR(CONCATENATE("tCO2e/",VLOOKUP($M39,'Emission factors'!$C:$H,6,FALSE)),"") -> tCO2e/MWh | O39: =IFERROR(VLOOKUP($M39,'Emission factors'!$C:$BQ,9,FALSE),"") -> 0.6133421697 | P39: =IFERROR(VLOOKUP($M39,'Emission factors'!$C:$BQ,12,FALSE),"") -> 0.0001996715575 | Q39: =IFERROR(VLOOKUP($M39,'Emission factors'!$C:$BQ,15,FALSE),"") -> 0.003154988988 | R39: =IFERROR(VLOOKUP($M39,'Emission factors'!$C:$BQ,65,FALSE),"") ->  | S39: =IFERROR(VLOOKUP($M39,'Emission factors'!$C:$BQ,67,FALSE),"") ->  | Z39: 163543.4692 | AA39: 53.24104689 | AB39: 841.2561046 | AC39: =IFERROR(IF(AND($M39="",$T39=""),"",IF($M39="",IF(X39="",SUM(U39:W39),IF(X39=0,"0",X39)),IF($R39="",SUM($Z39:$AB39),IF($R39=0,"0",$G39*IF($K39="",1,$K39)*$R39)))),"-") -> 164437.9664 | AD39: =IFERROR(IF(AND($M39="",$T39=""),"",IF($M39="",IF(Y39=0,"-",Y39),IF(S39=0,"0",$G39*IF($K39="",1,$K39)*S39))),"-") -> -
B40: I.2.2 | C40: 2 | D40: Electricity | E40: Water supply electricity use | G40: ='[6]Summary - Energy Consumption'!$B$27 -> 94314192.77 | H40: kWh | I40: kWh | J40: MWh | K40: 0.001 | L40: CO2, CH4, N2O | M40: EF_electricity | N40: =IFERROR(CONCATENATE("tCO2e/",VLOOKUP($M40,'Emission factors'!$C:$H,6,FALSE)),"") -> tCO2e/MWh | O40: =IFERROR(VLOOKUP($M40,'Emission factors'!$C:$BQ,9,FALSE),"") -> 0.6133421697 | P40: =IFERROR(VLOOKUP($M40,'Emission factors'!$C:$BQ,12,FALSE),"") -> 0.0001996715575 | Q40: =IFERROR(VLOOKUP($M40,'Emission factors'!$C:$BQ,15,FALSE),"") -> 0.003154988988 | R40: =IFERROR(VLOOKUP($M40,'Emission factors'!$C:$BQ,65,FALSE),"") ->  | S40: =IFERROR(VLOOKUP($M40,'Emission factors'!$C:$BQ,67,FALSE),"") ->  | Z40: =IFERROR(IF(AND($M40="",$T40=""),"",IF($M40="",IF(U40=0,"-",U40),IF(O40=0,"0",$G40*IF($K40="",1,$K40)*O40))),"-") -> 57846.87163 | AA40: =IFERROR(IF(AND($M40="",$T40=""),"",IF($M40="",IF(V40=0,"-",V40),IF(P40=0,"0",$G40*IF($K40="",1,$K40)*P40))),"-") -> 18.83186176 | AB40: =IFERROR(IF(AND($M40="",$T40=""),"",IF($M40="",IF(W40=0,"-",W40),IF(Q40=0,"0",$G40*IF($K40="",1,$K40)*Q40))),"-") -> 297.5602396 | AC40: =IFERROR(IF(AND($M40="",$T40=""),"",IF($M40="",IF(X40="",SUM(U40:W40),IF(X40=0,"0",X40)),IF($R40="",SUM($Z40:$AB40),IF($R40=0,"0",$G40*IF($K40="",1,$K40)*$R40)))),"-") -> 58163.26373 | AD40: =IFERROR(IF(AND($M40="",$T40=""),"",IF($M40="",IF(Y40=0,"-",Y40),IF(S40=0,"0",$G40*IF($K40="",1,$K40)*S40))),"-") -> -
B41: I.2.3 | C41: 3 | D41: Transmission and distribution losses from grid-supplied energy | F41: NE
B42: I.2.3 | C42: 3 | N42: =IFERROR(CONCATENATE("tCO2e/",VLOOKUP($M42,'Emission factors'!$C:$H,6,FALSE)),"") ->  | O42: =IFERROR(VLOOKUP($M42,'Emission factors'!$C:$BQ,9,FALSE),"") ->  | P42: =IFERROR(VLOOKUP($M42,'Emission factors'!$C:$BQ,12,FALSE),"") ->  | Q42: =IFERROR(VLOOKUP($M42,'Emission factors'!$C:$BQ,15,FALSE),"") ->  | R42: =IFERROR(VLOOKUP($M42,'Emission factors'!$C:$BQ,65,FALSE),"") ->  | S42: =IFERROR(VLOOKUP($M42,'Emission factors'!$C:$BQ,67,FALSE),"") ->  | Z42: =IFERROR(IF(AND($M42="",$T42=""),"",IF($M42="",IF(U42=0,"-",U42),IF(O42=0,"0",$G42*IF($K42="",1,$K42)*O42))),"-") ->  | AC42: =IFERROR(IF(AND($M42="",$T42=""),"",IF($M42="",IF(X42="",SUM(U42:W42),IF(X42=0,"0",X42)),IF($R42="",SUM($Z42:$AB42),IF($R42=0,"0",$G42*IF($K42="",1,$K42)*$R42)))),"-") ->  | AD42: =IFERROR(IF(AND($M42="",$T42=""),"",IF($M42="",IF(Y42=0,"-",Y42),IF(S42=0,"0",$G42*IF($K42="",1,$K42)*S42))),"-") -> 
B43: I.2.3 | C43: 3 | N43: =IFERROR(CONCATENATE("tCO2e/",VLOOKUP($M43,'Emission factors'!$C:$H,6,FALSE)),"") ->  | O43: =IFERROR(VLOOKUP($M43,'Emission factors'!$C:$BQ,9,FALSE),"") ->  | P43: =IFERROR(VLOOKUP($M43,'Emission factors'!$C:$BQ,12,FALSE),"") ->  | Q43: =IFERROR(VLOOKUP($M43,'Emission factors'!$C:$BQ,15,FALSE),"") ->  | R43: =IFERROR(VLOOKUP($M43,'Emission factors'!$C:$BQ,65,FALSE),"") ->  | S43: =IFERROR(VLOOKUP($M43,'Emission factors'!$C:$BQ,67,FALSE),"") ->  | AC43: =IFERROR(IF(AND($M43="",$T43=""),"",IF($M43="",IF(X43="",SUM(U43:W43),IF(X43=0,"0",X43)),IF($R43="",SUM($Z43:$AB43),IF($R43=0,"0",$G43*IF($K43="",1,$K43)*$R43)))),"-") ->  | AD43: =IFERROR(IF(AND($M43="",$T43=""),"",IF($M43="",IF(Y43=0,"-",Y43),IF(S43=0,"0",$G43*IF($K43="",1,$K43)*S43))),"-") -> 
B45: I.3 MANUFACTURING INDUSTRIES AND CONSTRUCTION
B47: GPC ref No. | C47: Scope | D47: GHG Emissions Source | F47: Notation keys | G47: Activity data | I47: Activity data multiplier | L47: Gas(es) | M47: Emission factor | N47: Emission factor | T47: Emissions data | U47: GHGs (metric tonnes CO2e) | Z47: GHGs (metric tonnes CO2e) | AE47: Data Quality | AG47: Description of method(s) used or explanation for using notation key(s) | AH47: Source | AI47: Data quality explanation (optional)
D48: Activity | E48: Description | G48: Amount | H48: Units | I48: From | J48: To | K48: Factor | N48: Units | O48: CO2 | P48: CH4 | Q48: N2O | R48: Total tCO2e | S48: CO2(b) | U48: CO2 | V48: CH4 | W48: N2O | X48: Total tCO2e | Y48: CO2(b) | Z48: CO2 | AA48: CH4 | AB48: N2O | AC48: Total tCO2e | AD48: CO2(b) | AE48: AD | AF48: EF
B49: I.3.1 | C49: 1 | D49: Emissions from fuel combustion within the city boundary
B50: I.3.1 | C50: 1 | D50: Gas (natural gas) | E50: Industrial | G50: =[2]SUMMARY!$B$46 -> 158170408.5 | L50: CO2, CH4, N2O | M50: EF_natural gas Peoples | N50: =IFERROR(CONCATENATE("tCO2e/",VLOOKUP($M50,'Emission factors'!$C:$H,6,FALSE)),"") -> tCO2e/therm | O50: =IFERROR(VLOOKUP($M50,'Emission factors'!$C:$BQ,9,FALSE),"") -> 0.005492033787 | P50: =IFERROR(VLOOKUP($M50,'Emission factors'!$C:$BQ,12,FALSE),"") -> 0.000197440103 | Q50: =IFERROR(VLOOKUP($M50,'Emission factors'!$C:$BQ,15,FALSE),"") -> 3.099259859e-06 | R50: =IFERROR(VLOOKUP($M50,'Emission factors'!$C:$BQ,65,FALSE),"") ->  | S50: =IFERROR(VLOOKUP($M50,'Emission factors'!$C:$BQ,67,FALSE),"") ->  | Z50: =IFERROR(IF(AND($M50="",$T50=""),"",IF($M50="",IF(U50=0,"-",U50),IF(O50=0,"0",$G50*IF($K50="",1,$K50)*O50))),"-") -> 868677.2276 | AA50: 31229.18174 | AB50: 490.211198 | AC50: =IFERROR(IF(AND($M50="",$T50=""),"",IF($M50="",IF(X50="",SUM(U50:W50),IF(X50=0,"0",X50)),IF($R50="",SUM($Z50:$AB50),IF($R50=0,"0",$G50*IF($K50="",1,$K50)*$R50)))),"-") -> 900396.6205 | AD50: =IFERROR(IF(AND($M50="",$T50=""),"",IF($M50="",IF(Y50=0,"-",Y50),IF(S50=0,"0",$G50*IF($K50="",1,$K50)*S50))),"-") -> -
B51: I.3.1 | C51: 1 | D51: Diesel oil | E51: Construction and mining equipment (offroad) | L51: CO2, CH4, N2O | N51: =IFERROR(CONCATENATE("tCO2e/",VLOOKUP($M51,'Emission factors'!$C:$H,6,FALSE)),"") ->  | O51: =IFERROR(VLOOKUP($M51,'Emission factors'!$C:$BQ,9,FALSE),"") ->  | P51: =IFERROR(VLOOKUP($M51,'Emission factors'!$C:$BQ,12,FALSE),"") ->  | Q51: =IFERROR(VLOOKUP($M51,'Emission factors'!$C:$BQ,15,FALSE),"") ->  | R51: =IFERROR(VLOOKUP($M51,'Emission factors'!$C:$BQ,65,FALSE),"") ->  | S51: =IFERROR(VLOOKUP($M51,'Emission factors'!$C:$BQ,67,FALSE),"") ->  | T51: ✓ | X51: ='[4]NONROAD Summary totals'!$I$29 -> 278258.0312 | Z51: - | AA51: - | AB51: - | AC51: =IFERROR(IF(AND($M51="",$T51=""),"",IF($M51="",IF(X51="",SUM(U51:W51),IF(X51=0,"0",X51)),IF($R51="",SUM($Z51:$AB51),IF($R51=0,"0",$G51*IF($K51="",1,$K51)*$R51)))),"-") -> 278258.0312 | AD51: =IFERROR(IF(AND($M51="",$T51=""),"",IF($M51="",IF(Y51=0,"-",Y51),IF(S51=0,"0",$G51*IF($K51="",1,$K51)*S51))),"-") -> -
B52: I.3.1 | C52: 1 | D52: Diesel oil | E52: Industrial equipment (offroad) | L52: CO2, CH4, N2O | N52: =IFERROR(CONCATENATE("tCO2e/",VLOOKUP($M52,'Emission factors'!$C:$H,6,FALSE)),"") ->  | O52: =IFERROR(VLOOKUP($M52,'Emission factors'!$C:$BQ,9,FALSE),"") ->  | P52: =IFERROR(VLOOKUP($M52,'Emission factors'!$C:$BQ,12,FALSE),"") ->  | Q52: =IFERROR(VLOOKUP($M52,'Emission factors'!$C:$BQ,15,FALSE),"") ->  | R52: =IFERROR(VLOOKUP($M52,'Emission factors'!$C:$BQ,65,FALSE),"") ->  | S52: =IFERROR(VLOOKUP($M52,'Emission factors'!$C:$BQ,67,FALSE),"") ->  | T52: ✓ | X52: ='[4]NONROAD Summary totals'!$I$61 -> 172285.918 | Z52: =IFERROR(IF(AND($M52="",$T52=""),"",IF($M52="",IF(U52=0,"-",U52),IF(O52=0,"0",$G52*IF($K52="",1,$K52)*O52))),"-") -> - | AA52: =IFERROR(IF(AND($M52="",$T52=""),"",IF($M52="",IF(V52=0,"-",V52),IF(P52=0,"0",$G52*IF($K52="",1,$K52)*P52))),"-") -> - | AB52: =IFERROR(IF(AND($M52="",$T52=""),"",IF($M52="",IF(W52=0,"-",W52),IF(Q52=0,"0",$G52*IF($K52="",1,$K52)*Q52))),"-") -> - | AC52: =IFERROR(IF(AND($M52="",$T52=""),"",IF($M52="",IF(X52="",SUM(U52:W52),IF(X52=0,"0",X52)),IF($R52="",SUM($Z52:$AB52),IF($R52=0,"0",$G52*IF($K52="",1,$K52)*$R52)))),"-") -> 172285.918 | AD52: =IFERROR(IF(AND($M52="",$T52=""),"",IF($M52="",IF(Y52=0,"-",Y52),IF(S52=0,"0",$G52*IF($K52="",1,$K52)*S52))),"-") -> -
B53: I.3.2 | C53: 2 | D53: Emissions from grid-supplied energy consumed within the city boundary | F53: IE | AG53: I.3.2 is included in I.2.2
B54: I.3.2 | C54: 2 | N54: =IFERROR(CONCATENATE("tCO2e/",VLOOKUP($M54,'Emission factors'!$C:$H,6,FALSE)),"") ->  | O54: =IFERROR(VLOOKUP($M54,'Emission factors'!$C:$BQ,9,FALSE),"") ->  | P54: =IFERROR(VLOOKUP($M54,'Emission factors'!$C:$BQ,12,FALSE),"") ->  | Q54: =IFERROR(VLOOKUP($M54,'Emission factors'!$C:$BQ,15,FALSE),"") ->  | R54: =IFERROR(VLOOKUP($M54,'Emission factors'!$C:$BQ,65,FALSE),"") ->  | S54: =IFERROR(VLOOKUP($M54,'Emission factors'!$C:$BQ,67,FALSE),"") ->  | Z54: =IFERROR(IF(AND($M54="",$T54=""),"",IF($M54="",IF(U54=0,"-",U54),IF(O54=0,"0",$G54*IF($K54="",1,$K54)*O54))),"-") ->  | AC54: =IFERROR(IF(AND($M54="",$T54=""),"",IF($M54="",IF(X54="",SUM(U54:W54),IF(X54=0,"0",X54)),IF($R54="",SUM($Z54:$AB54),IF($R54=0,"0",$G54*IF($K54="",1,$K54)*$R54)))),"-") ->  | AD54: =IFERROR(IF(AND($M54="",$T54=""),"",IF($M54="",IF(Y54=0,"-",Y54),IF(S54=0,"0",$G54*IF($K54="",1,$K54)*S54))),"-") -> 
B55: I.3.2 | C55: 2 | N55: =IFERROR(CONCATENATE("tCO2e/",VLOOKUP($M55,'Emission factors'!$C:$H,6,FALSE)),"") ->  | O55: =IFERROR(VLOOKUP($M55,'Emission factors'!$C:$BQ,9,FALSE),"") ->  | P55: =IFERROR(VLOOKUP($M55,'Emission factors'!$C:$BQ,12,FALSE),"") ->  | Q55: =IFERROR(VLOOKUP($M55,'Emission factors'!$C:$BQ,15,FALSE),"") ->  | R55: =IFERROR(VLOOKUP($M55,'Emission factors'!$C:$BQ,65,FALSE),"") ->  | S55: =IFERROR(VLOOKUP($M55,'Emission factors'!$C:$BQ,67,FALSE),"") ->  | AC55: =IFERROR(IF(AND($M55="",$T55=""),"",IF($M55="",IF(X55="",SUM(U55:W55),IF(X55=0,"0",X55)),IF($R55="",SUM($Z55:$AB55),IF($R55=0,"0",$G55*IF($K55="",1,$K55)*$R55)))),"-") ->  | AD55: =IFERROR(IF(AND($M55="",$T55=""),"",IF($M55="",IF(Y55=0,"-",Y55),IF(S55=0,"0",$G55*IF($K55="",1,$K55)*S55))),"-") -> 
B56: I.3.3 | C56: 3 | D56: Transmission and distribution losses from grid-supplied energy | F56: NE
B57: I.3.3 | C57: 3 | N57: =IFERROR(CONCATENATE("tCO2e/",VLOOKUP($M57,'Emission factors'!$C:$H,6,FALSE)),"") ->  | O57: =IFERROR(VLOOKUP($M57,'Emission factors'!$C:$BQ,9,FALSE),"") ->  | P57: =IFERROR(VLOOKUP($M57,'Emission factors'!$C:$BQ,12,FALSE),"") ->  | Q57: =IFERROR(VLOOKUP($M57,'Emission factors'!$C:$BQ,15,FALSE),"") ->  | R57: =IFERROR(VLOOKUP($M57,'Emission factors'!$C:$BQ,65,FALSE),"") ->  | S57: =IFERROR(VLOOKUP($M57,'Emission factors'!$C:$BQ,67,FALSE),"") ->  | Z57: =IFERROR(IF(AND($M57="",$T57=""),"",IF($M57="",IF(U57=0,"-",U57),IF(O57=0,"0",$G57*IF($K57="",1,$K57)*O57))),"-") ->  | AC57: =IFERROR(IF(AND($M57="",$T57=""),"",IF($M57="",IF(X57="",SUM(U57:W57),IF(X57=0,"0",X57)),IF($R57="",SUM($Z57:$AB57),IF($R57=0,"0",$G57*IF($K57="",1,$K57)*$R57)))),"-") ->  | AD57: =IFERROR(IF(AND($M57="",$T57=""),"",IF($M57="",IF(Y57=0,"-",Y57),IF(S57=0,"0",$G57*IF($K57="",1,$K57)*S57))),"-") -> 
B58: I.3.3 | C58: 3 | N58: =IFERROR(CONCATENATE("tCO2e/",VLOOKUP($M58,'Emission factors'!$C:$H,6,FALSE)),"") ->  | O58: =IFERROR(VLOOKUP($M58,'Emission factors'!$C:$BQ,9,FALSE),"") ->  | P58: =IFERROR(VLOOKUP($M58,'Emission factors'!$C:$BQ,12,FALSE),"") ->  | Q58: =IFERROR(VLOOKUP($M58,'Emission factors'!$C:$BQ,15,FALSE),"") ->  | R58: =IFERROR(VLOOKUP($M58,'Emission factors'!$C:$BQ,65,FALSE),"") ->  | S58: =IFERROR(VLOOKUP($M58,'Emission factors'!$C:$BQ,67,FALSE),"") ->  | AC58: =IFERROR(IF(AND($M58="",$T58=""),"",IF($M58="",IF(X58="",SUM(U58:W58),IF(X58=0,"0",X58)),IF($R58="",SUM($Z58:$AB58),IF($R58=0,"0",$G58*IF($K58="",1,$K58)*$R58)))),"-") ->  | AD58: =IFERROR(IF(AND($M58="",$T58=""),"",IF($M58="",IF(Y58=0,"-",Y58),IF(S58=0,"0",$G58*IF($K58="",1,$K58)*S58))),"-") -> 
B60: I.4 ENERGY INDUSTRIES
B62: GPC ref No. | C62: Scope | D62: GHG Emissions Source | F62: Notation keys | G62: Activity data | I62: Activity data multiplier | L62: Gas(es) | M62: Emission factor | N62: Emission factor | T62: Emissions data | U62: GHGs (metric tonnes CO2e) | Z62: GHGs (metric tonnes CO2e) | AE62: Data Quality | AG62: Description of method(s) used or explanation for using notation key(s) | AH62: Source | AI62: Data quality explanation (optional)
D63: Activity | E63: Description | G63: Amount | H63: Units | I63: From | J63: To | K63: Factor | N63: Units | O63: CO2 | P63: CH4 | Q63: N2O | R63: Total tCO2e | S63: CO2(b) | U63: CO2 | V63: CH4 | W63: N2O | X63: Total tCO2e | Y63: CO2(b) | Z63: CO2 | AA63: CH4 | AB63: N2O | AC63: Total tCO2e | AD63: CO2(b) | AE63: AD | AF63: EF
B64: I.4.1 | C64: 1 | D64: Emissions from energy used in power plant auxiliary operations within the city | F64: NO | AG64: I.4.1 does not occur
B65: I.4.1 | C65: 1 | N65: =IFERROR(CONCATENATE("tCO2e/",VLOOKUP($M65,'Emission factors'!$C:$H,6,FALSE)),"") ->  | O65: =IFERROR(VLOOKUP($M65,'Emission factors'!$C:$BQ,9,FALSE),"") ->  | P65: =IFERROR(VLOOKUP($M65,'Emission factors'!$C:$BQ,12,FALSE),"") ->  | Q65: =IFERROR(VLOOKUP($M65,'Emission factors'!$C:$BQ,15,FALSE),"") ->  | R65: =IFERROR(VLOOKUP($M65,'Emission factors'!$C:$BQ,65,FALSE),"") ->  | S65: =IFERROR(VLOOKUP($M65,'Emission factors'!$C:$BQ,67,FALSE),"") ->  | Z65: =IFERROR(IF(AND($M65="",$T65=""),"",IF($M65="",IF(U65=0,"-",U65),IF(O65=0,"0",$G65*IF($K65="",1,$K65)*O65))),"-") ->  | AC65: =IFERROR(IF(AND($M65="",$T65=""),"",IF($M65="",IF(X65="",SUM(U65:W65),IF(X65=0,"0",X65)),IF($R65="",SUM($Z65:$AB65),IF($R65=0,"0",$G65*IF($K65="",1,$K65)*$R65)))),"-") ->  | AD65: =IFERROR(IF(AND($M65="",$T65=""),"",IF($M65="",IF(Y65=0,"-",Y65),IF(S65=0,"0",$G65*IF($K65="",1,$K65)*S65))),"-") -> 
B66: I.4.1 | C66: 1 | N66: =IFERROR(CONCATENATE("tCO2e/",VLOOKUP($M66,'Emission factors'!$C:$H,6,FALSE)),"") ->  | O66: =IFERROR(VLOOKUP($M66,'Emission factors'!$C:$BQ,9,FALSE),"") ->  | P66: =IFERROR(VLOOKUP($M66,'Emission factors'!$C:$BQ,12,FALSE),"") ->  | Q66: =IFERROR(VLOOKUP($M66,'Emission factors'!$C:$BQ,15,FALSE),"") ->  | R66: =IFERROR(VLOOKUP($M66,'Emission factors'!$C:$BQ,65,FALSE),"") ->  | S66: =IFERROR(VLOOKUP($M66,'Emission factors'!$C:$BQ,67,FALSE),"") ->  | AC66: =IFERROR(IF(AND($M66="",$T66=""),"",IF($M66="",IF(X66="",SUM(U66:W66),IF(X66=0,"0",X66)),IF($R66="",SUM($Z66:$AB66),IF($R66=0,"0",$G66*IF($K66="",1,$K66)*$R66)))),"-") ->  | AD66: =IFERROR(IF(AND($M66="",$T66=""),"",IF($M66="",IF(Y66=0,"-",Y66),IF(S66=0,"0",$G66*IF($K66="",1,$K66)*S66))),"-") -> 
B67: I.4.2 | C67: 2 | D67: Emissions from grid-supplied energy consumed in power plant auxiliary operations within the city | F67: NO | AG67: I.4.2 does not occur
B68: I.4.2 | C68: 2 | N68: =IFERROR(CONCATENATE("tCO2e/",VLOOKUP($M68,'Emission factors'!$C:$H,6,FALSE)),"") ->  | O68: =IFERROR(VLOOKUP($M68,'Emission factors'!$C:$BQ,9,FALSE),"") ->  | P68: =IFERROR(VLOOKUP($M68,'Emission factors'!$C:$BQ,12,FALSE),"") ->  | Q68: =IFERROR(VLOOKUP($M68,'Emission factors'!$C:$BQ,15,FALSE),"") ->  | R68: =IFERROR(VLOOKUP($M68,'Emission factors'!$C:$BQ,65,FALSE),"") ->  | S68: =IFERROR(VLOOKUP($M68,'Emission factors'!$C:$BQ,67,FALSE),"") ->  | Z68: =IFERROR(IF(AND($M68="",$T68=""),"",IF($M68="",IF(U68=0,"-",U68),IF(O68=0,"0",$G68*IF($K68="",1,$K68)*O68))),"-") ->  | AC68: =IFERROR(IF(AND($M68="",$T68=""),"",IF($M68="",IF(X68="",SUM(U68:W68),IF(X68=0,"0",X68)),IF($R68="",SUM($Z68:$AB68),IF($R68=0,"0",$G68*IF($K68="",1,$K68)*$R68)))),"-") ->  | AD68: =IFERROR(IF(AND($M68="",$T68=""),"",IF($M68="",IF(Y68=0,"-",Y68),IF(S68=0,"0",$G68*IF($K68="",1,$K68)*S68))),"-") -> 
B69: I.4.2 | C69: 2 | N69: =IFERROR(CONCATENATE("tCO2e/",VLOOKUP($M69,'Emission factors'!$C:$H,6,FALSE)),"") ->  | O69: =IFERROR(VLOOKUP($M69,'Emission factors'!$C:$BQ,9,FALSE),"") ->  | P69: =IFERROR(VLOOKUP($M69,'Emission factors'!$C:$BQ,12,FALSE),"") ->  | Q69: =IFERROR(VLOOKUP($M69,'Emission factors'!$C:$BQ,15,FALSE),"") ->  | R69: =IFERROR(VLOOKUP($M69,'Emission factors'!$C:$BQ,65,FALSE),"") ->  | S69: =IFERROR(VLOOKUP($M69,'Emission factors'!$C:$BQ,67,FALSE),"") ->  | AC69: =IFERROR(IF(AND($M69="",$T69=""),"",IF($M69="",IF(X69="",SUM(U69:W69),IF(X69=0,"0",X69)),IF($R69="",SUM($Z69:$AB69),IF($R69=0,"0",$G69*IF($K69="",1,$K69)*$R69)))),"-") ->  | AD69: =IFERROR(IF(AND($M69="",$T69=""),"",IF($M69="",IF(Y69=0,"-",Y69),IF(S69=0,"0",$G69*IF($K69="",1,$K69)*S69))),"-") -> 
B70: I.4.3 | C70: 3 | D70: Emissions from transmission and distribution losses from grid-supplied energy used in power plant auxiliary operations | F70: NO | AG70: I.4.3 does not occur
B71: I.4.3 | C71: 3 | N71: =IFERROR(CONCATENATE("tCO2e/",VLOOKUP($M71,'Emission factors'!$C:$H,6,FALSE)),"") ->  | O71: =IFERROR(VLOOKUP($M71,'Emission factors'!$C:$BQ,9,FALSE),"") ->  | P71: =IFERROR(VLOOKUP($M71,'Emission factors'!$C:$BQ,12,FALSE),"") ->  | Q71: =IFERROR(VLOOKUP($M71,'Emission factors'!$C:$BQ,15,FALSE),"") ->  | R71: =IFERROR(VLOOKUP($M71,'Emission factors'!$C:$BQ,65,FALSE),"") ->  | S71: =IFERROR(VLOOKUP($M71,'Emission factors'!$C:$BQ,67,FALSE),"") ->  | Z71: =IFERROR(IF(AND($M71="",$T71=""),"",IF($M71="",IF(U71=0,"-",U71),IF(O71=0,"0",$G71*IF($K71="",1,$K71)*O71))),"-") ->  | AC71: =IFERROR(IF(AND($M71="",$T71=""),"",IF($M71="",IF(X71="",SUM(U71:W71),IF(X71=0,"0",X71)),IF($R71="",SUM($Z71:$AB71),IF($R71=0,"0",$G71*IF($K71="",1,$K71)*$R71)))),"-") ->  | AD71: =IFERROR(IF(AND($M71="",$T71=""),"",IF($M71="",IF(Y71=0,"-",Y71),IF(S71=0,"0",$G71*IF($K71="",1,$K71)*S71))),"-") -> 
B72: I.4.3 | C72: 3 | N72: =IFERROR(CONCATENATE("tCO2e/",VLOOKUP($M72,'Emission factors'!$C:$H,6,FALSE)),"") ->  | O72: =IFERROR(VLOOKUP($M72,'Emission factors'!$C:$BQ,9,FALSE),"") ->  | P72: =IFERROR(VLOOKUP($M72,'Emission factors'!$C:$BQ,12,FALSE),"") ->  | Q72: =IFERROR(VLOOKUP($M72,'Emission factors'!$C:$BQ,15,FALSE),"") ->  | R72: =IFERROR(VLOOKUP($M72,'Emission factors'!$C:$BQ,65,FALSE),"") ->  | S72: =IFERROR(VLOOKUP($M72,'Emission factors'!$C:$BQ,67,FALSE),"") ->  | AC72: =IFERROR(IF(AND($M72="",$T72=""),"",IF($M72="",IF(X72="",SUM(U72:W72),IF(X72=0,"0",X72)),IF($R72="",SUM($Z72:$AB72),IF($R72=0,"0",$G72*IF($K72="",1,$K72)*$R72)))),"-") ->  | AD72: =IFERROR(IF(AND($M72="",$T72=""),"",IF($M72="",IF(Y72=0,"-",Y72),IF(S72=0,"0",$G72*IF($K72="",1,$K72)*S72))),"-") -> 
B73: I.4.4 | C73: 1 | D73: Emissions from energy generation supplied to the grid | F73: NO | AG73: I.4.4 does not occur
B74: I.4.4 | C74: 1 | N74: =IFERROR(CONCATENATE("tCO2e/",VLOOKUP($M74,'Emission factors'!$C:$H,6,FALSE)),"") ->  | O74: =IFERROR(VLOOKUP($M74,'Emission factors'!$C:$BQ,9,FALSE),"") ->  | P74: =IFERROR(VLOOKUP($M74,'Emission factors'!$C:$BQ,12,FALSE),"") ->  | Q74: =IFERROR(VLOOKUP($M74,'Emission factors'!$C:$BQ,15,FALSE),"") ->  | R74: =IFERROR(VLOOKUP($M74,'Emission factors'!$C:$BQ,65,FALSE),"") ->  | S74: =IFERROR(VLOOKUP($M74,'Emission factors'!$C:$BQ,67,FALSE),"") ->  | Z74: =IFERROR(IF(AND($M74="",$T74=""),"",IF($M74="",IF(U74=0,"-",U74),IF(O74=0,"0",$G74*IF($K74="",1,$K74)*O74))),"-") ->  | AC74: =IFERROR(IF(AND($M74="",$T74=""),"",IF($M74="",IF(X74="",SUM(U74:W74),IF(X74=0,"0",X74)),IF($R74="",SUM($Z74:$AB74),IF($R74=0,"0",$G74*IF($K74="",1,$K74)*$R74)))),"-") ->  | AD74: =IFERROR(IF(AND($M74="",$T74=""),"",IF($M74="",IF(Y74=0,"-",Y74),IF(S74=0,"0",$G74*IF($K74="",1,$K74)*S74))),"-") -> 
B75: I.4.4 | C75: 1 | N75: =IFERROR(CONCATENATE("tCO2e/",VLOOKUP($M75,'Emission factors'!$C:$H,6,FALSE)),"") ->  | O75: =IFERROR(VLOOKUP($M75,'Emission factors'!$C:$BQ,9,FALSE),"") ->  | P75: =IFERROR(VLOOKUP($M75,'Emission factors'!$C:$BQ,12,FALSE),"") ->  | Q75: =IFERROR(VLOOKUP($M75,'Emission factors'!$C:$BQ,15,FALSE),"") ->  | R75: =IFERROR(VLOOKUP($M75,'Emission factors'!$C:$BQ,65,FALSE),"") ->  | S75: =IFERROR(VLOOKUP($M75,'Emission factors'!$C:$BQ,67,FALSE),"") ->  | AC75: =IFERROR(IF(AND($M75="",$T75=""),"",IF($M75="",IF(X75="",SUM(U75:W75),IF(X75=0,"0",X75)),IF($R75="",SUM($Z75:$AB75),IF($R75=0,"0",$G75*IF($K75="",1,$K75)*$R75)))),"-") ->  | AD75: =IFERROR(IF(AND($M75="",$T75=""),"",IF($M75="",IF(Y75=0,"-",Y75),IF(S75=0,"0",$G75*IF($K75="",1,$K75)*S75))),"-") -> 
B77: I.5 AGRICULTURE, FORESTRY AND FISHING ACTIVITIES
B79: GPC ref No. | C79: Scope | D79: GHG Emissions Source | F79: Notation keys | G79: Activity data | I79: Activity data multiplier | L79: Gas(es) | M79: Emission factor | N79: Emission factor | T79: Emissions data | U79: GHGs (metric tonnes CO2e) | Z79: GHGs (metric tonnes CO2e) | AE79: Data Quality | AG79: Description of method(s) used or explanation for using notation key(s) | AH79: Source | AI79: Data quality explanation (optional)
D80: Activity | E80: Description | G80: Amount | H80: Units | I80: From | J80: To | K80: Factor | N80: Units | O80: CO2 | P80: CH4 | Q80: N2O | R80: Total tCO2e | S80: CO2(b) | U80: CO2 | V80: CH4 | W80: N2O | X80: Total tCO2e | Y80: CO2(b) | Z80: CO2 | AA80: CH4 | AB80: N2O | AC80: Total tCO2e | AD80: CO2(b) | AE80: AD | AF80: EF
B81: I.5.1 | C81: 1 | D81: Emissions from fuel combustion within the city boundary | F81: NO | AG81: I.5.1 does not occur; no agricultural activities within the city boundary
B82: I.5.1 | C82: 1 | N82: =IFERROR(CONCATENATE("tCO2e/",VLOOKUP($M82,'Emission factors'!$C:$H,6,FALSE)),"") ->  | O82: =IFERROR(VLOOKUP($M82,'Emission factors'!$C:$BQ,9,FALSE),"") ->  | P82: =IFERROR(VLOOKUP($M82,'Emission factors'!$C:$BQ,12,FALSE),"") ->  | Q82: =IFERROR(VLOOKUP($M82,'Emission factors'!$C:$BQ,15,FALSE),"") ->  | R82: =IFERROR(VLOOKUP($M82,'Emission factors'!$C:$BQ,65,FALSE),"") ->  | S82: =IFERROR(VLOOKUP($M82,'Emission factors'!$C:$BQ,67,FALSE),"") ->  | Z82: =IFERROR(IF(AND($M82="",$T82=""),"",IF($M82="",IF(U82=0,"-",U82),IF(O82=0,"0",$G82*IF($K82="",1,$K82)*O82))),"-") ->  | AC82: =IFERROR(IF(AND($M82="",$T82=""),"",IF($M82="",IF(X82="",SUM(U82:W82),IF(X82=0,"0",X82)),IF($R82="",SUM($Z82:$AB82),IF($R82=0,"0",$G82*IF($K82="",1,$K82)*$R82)))),"-") ->  | AD82: =IFERROR(IF(AND($M82="",$T82=""),"",IF($M82="",IF(Y82=0,"-",Y82),IF(S82=0,"0",$G82*IF($K82="",1,$K82)*S82))),"-") -> 
B83: I.5.1 | C83: 1 | N83: =IFERROR(CONCATENATE("tCO2e/",VLOOKUP($M83,'Emission factors'!$C:$H,6,FALSE)),"") ->  | O83: =IFERROR(VLOOKUP($M83,'Emission factors'!$C:$BQ,9,FALSE),"") ->  | P83: =IFERROR(VLOOKUP($M83,'Emission factors'!$C:$BQ,12,FALSE),"") ->  | Q83: =IFERROR(VLOOKUP($M83,'Emission factors'!$C:$BQ,15,FALSE),"") ->  | R83: =IFERROR(VLOOKUP($M83,'Emission factors'!$C:$BQ,65,FALSE),"") ->  | S83: =IFERROR(VLOOKUP($M83,'Emission factors'!$C:$BQ,67,FALSE),"") ->  | AC83: =IFERROR(IF(AND($M83="",$T83=""),"",IF($M83="",IF(X83="",SUM(U83:W83),IF(X83=0,"0",X83)),IF($R83="",SUM($Z83:$AB83),IF($R83=0,"0",$G83*IF($K83="",1,$K83)*$R83)))),"-") ->  | AD83: =IFERROR(IF(AND($M83="",$T83=""),"",IF($M83="",IF(Y83=0,"-",Y83),IF(S83=0,"0",$G83*IF($K83="",1,$K83)*S83))),"-") -> 
B84: I.5.2 | C84: 2 | D84: Emissions from grid-supplied energy consumed within the city boundary | F84: NO | AG84: I.5.2 does not occur; no agricultural activities within the city boundary
B85: I.5.2 | C85: 2 | N85: =IFERROR(CONCATENATE("tCO2e/",VLOOKUP($M85,'Emission factors'!$C:$H,6,FALSE)),"") ->  | O85: =IFERROR(VLOOKUP($M85,'Emission factors'!$C:$BQ,9,FALSE),"") ->  | P85: =IFERROR(VLOOKUP($M85,'Emission factors'!$C:$BQ,12,FALSE),"") ->  | Q85: =IFERROR(VLOOKUP($M85,'Emission factors'!$C:$BQ,15,FALSE),"") ->  | R85: =IFERROR(VLOOKUP($M85,'Emission factors'!$C:$BQ,65,FALSE),"") ->  | S85: =IFERROR(VLOOKUP($M85,'Emission factors'!$C:$BQ,67,FALSE),"") ->  | Z85: =IFERROR(IF(AND($M85="",$T85=""),"",IF($M85="",IF(U85=0,"-",U85),IF(O85=0,"0",$G85*IF($K85="",1,$K85)*O85))),"-") ->  | AC85: =IFERROR(IF(AND($M85="",$T85=""),"",IF($M85="",IF(X85="",SUM(U85:W85),IF(X85=0,"0",X85)),IF($R85="",SUM($Z85:$AB85),IF($R85=0,"0",$G85*IF($K85="",1,$K85)*$R85)))),"-") ->  | AD85: =IFERROR(IF(AND($M85="",$T85=""),"",IF($M85="",IF(Y85=0,"-",Y85),IF(S85=0,"0",$G85*IF($K85="",1,$K85)*S85))),"-") -> 
B86: I.5.2 | C86: 2 | N86: =IFERROR(CONCATENATE("tCO2e/",VLOOKUP($M86,'Emission factors'!$C:$H,6,FALSE)),"") ->  | O86: =IFERROR(VLOOKUP($M86,'Emission factors'!$C:$BQ,9,FALSE),"") ->  | P86: =IFERROR(VLOOKUP($M86,'Emission factors'!$C:$BQ,12,FALSE),"") ->  | Q86: =IFERROR(VLOOKUP($M86,'Emission factors'!$C:$BQ,15,FALSE),"") ->  | R86: =IFERROR(VLOOKUP($M86,'Emission factors'!$C:$BQ,65,FALSE),"") ->  | S86: =IFERROR(VLOOKUP($M86,'Emission factors'!$C:$BQ,67,FALSE),"") ->  | AC86: =IFERROR(IF(AND($M86="",$T86=""),"",IF($M86="",IF(X86="",SUM(U86:W86),IF(X86=0,"0",X86)),IF($R86="",SUM($Z86:$AB86),IF($R86=0,"0",$G86*IF($K86="",1,$K86)*$R86)))),"-") ->  | AD86: =IFERROR(IF(AND($M86="",$T86=""),"",IF($M86="",IF(Y86=0,"-",Y86),IF(S86=0,"0",$G86*IF($K86="",1,$K86)*S86))),"-") -> 
B87: I.5.3 | C87: 3 | D87: Transmission and distribution losses from grid-supplied energy consumption | F87: NO | AG87: I.5.3 does not occur; no agricultural activities within the city boundary
B88: I.5.3 | C88: 3 | N88: =IFERROR(CONCATENATE("tCO2e/",VLOOKUP($M88,'Emission factors'!$C:$H,6,FALSE)),"") ->  | O88: =IFERROR(VLOOKUP($M88,'Emission factors'!$C:$BQ,9,FALSE),"") ->  | P88: =IFERROR(VLOOKUP($M88,'Emission factors'!$C:$BQ,12,FALSE),"") ->  | Q88: =IFERROR(VLOOKUP($M88,'Emission factors'!$C:$BQ,15,FALSE),"") ->  | R88: =IFERROR(VLOOKUP($M88,'Emission factors'!$C:$BQ,65,FALSE),"") ->  | S88: =IFERROR(VLOOKUP($M88,'Emission factors'!$C:$BQ,67,FALSE),"") ->  | Z88: =IFERROR(IF(AND($M88="",$T88=""),"",IF($M88="",IF(U88=0,"-",U88),IF(O88=0,"0",$G88*IF($K88="",1,$K88)*O88))),"-") ->  | AC88: =IFERROR(IF(AND($M88="",$T88=""),"",IF($M88="",IF(X88="",SUM(U88:W88),IF(X88=0,"0",X88)),IF($R88="",SUM($Z88:$AB88),IF($R88=0,"0",$G88*IF($K88="",1,$K88)*$R88)))),"-") ->  | AD88: =IFERROR(IF(AND($M88="",$T88=""),"",IF($M88="",IF(Y88=0,"-",Y88),IF(S88=0,"0",$G88*IF($K88="",1,$K88)*S88))),"-") -> 
B89: I.5.3 | C89: 3 | N89: =IFERROR(CONCATENATE("tCO2e/",VLOOKUP($M89,'Emission factors'!$C:$H,6,FALSE)),"") ->  | O89: =IFERROR(VLOOKUP($M89,'Emission factors'!$C:$BQ,9,FALSE),"") ->  | P89: =IFERROR(VLOOKUP($M89,'Emission factors'!$C:$BQ,12,FALSE),"") ->  | Q89: =IFERROR(VLOOKUP($M89,'Emission factors'!$C:$BQ,15,FALSE),"") ->  | R89: =IFERROR(VLOOKUP($M89,'Emission factors'!$C:$BQ,65,FALSE),"") ->  | S89: =IFERROR(VLOOKUP($M89,'Emission factors'!$C:$BQ,67,FALSE),"") ->  | AC89: =IFERROR(IF(AND($M89="",$T89=""),"",IF($M89="",IF(X89="",SUM(U89:W89),IF(X89=0,"0",X89)),IF($R89="",SUM($Z89:$AB89),IF($R89=0,"0",$G89*IF($K89="",1,$K89)*$R89)))),"-") ->  | AD89: =IFERROR(IF(AND($M89="",$T89=""),"",IF($M89="",IF(Y89=0,"-",Y89),IF(S89=0,"0",$G89*IF($K89="",1,$K89)*S89))),"-") -> 
B91: I.6 NON-SPECIFIED SOURCES
B93: GPC ref No. | C93: Scope | D93: GHG Emissions Source | F93: Notation keys | G93: Activity data | I93: Activity data multiplier | L93: Gas(es) | M93: Emission factor | N93: Emission factor | T93: Emissions data | U93: GHGs (metric tonnes CO2e) | Z93: GHGs (metric tonnes CO2e) | AE93: Data Quality | AG93: Description of method(s) used or explanation for using notation key(s) | AH93: Source | AI93: Data quality explanation (optional)
D94: Activity | E94: Description | G94: Amount | H94: Units | I94: From | J94: To | K94: Factor | N94: Units | O94: CO2 | P94: CH4 | Q94: N2O | R94: Total tCO2e | S94: CO2(b) | U94: CO2 | V94: CH4 | W94: N2O | X94: Total tCO2e | Y94: CO2(b) | Z94: CO2 | AA94: CH4 | AB94: N2O | AC94: Total tCO2e | AD94: CO2(b) | AE94: AD | AF94: EF
B95: I.6.1 | C95: 1 | D95: Emissions from fuel combustion within the city boundary | F95: NO | AG95: I.6.1 does not occur; no non-specified sources identified within the city boundary
B96: I.6.1 | C96: 1 | N96: =IFERROR(CONCATENATE("tCO2e/",VLOOKUP($M96,'Emission factors'!$C:$H,6,FALSE)),"") ->  | O96: =IFERROR(VLOOKUP($M96,'Emission factors'!$C:$BQ,9,FALSE),"") ->  | P96: =IFERROR(VLOOKUP($M96,'Emission factors'!$C:$BQ,12,FALSE),"") ->  | Q96: =IFERROR(VLOOKUP($M96,'Emission factors'!$C:$BQ,15,FALSE),"") ->  | R96: =IFERROR(VLOOKUP($M96,'Emission factors'!$C:$BQ,65,FALSE),"") ->  | S96: =IFERROR(VLOOKUP($M96,'Emission factors'!$C:$BQ,67,FALSE),"") ->  | Z96: =IFERROR(IF(AND($M96="",$T96=""),"",IF($M96="",IF(U96=0,"-",U96),IF(O96=0,"0",$G96*IF($K96="",1,$K96)*O96))),"-") ->  | AC96: =IFERROR(IF(AND($M96="",$T96=""),"",IF($M96="",IF(X96="",SUM(U96:W96),IF(X96=0,"0",X96)),IF($R96="",SUM($Z96:$AB96),IF($R96=0,"0",$G96*IF($K96="",1,$K96)*$R96)))),"-") ->  | AD96: =IFERROR(IF(AND($M96="",$T96=""),"",IF($M96="",IF(Y96=0,"-",Y96),IF(S96=0,"0",$G96*IF($K96="",1,$K96)*S96))),"-") -> 
B97: I.6.1 | C97: 1 | N97: =IFERROR(CONCATENATE("tCO2e/",VLOOKUP($M97,'Emission factors'!$C:$H,6,FALSE)),"") ->  | O97: =IFERROR(VLOOKUP($M97,'Emission factors'!$C:$BQ,9,FALSE),"") ->  | P97: =IFERROR(VLOOKUP($M97,'Emission factors'!$C:$BQ,12,FALSE),"") ->  | Q97: =IFERROR(VLOOKUP($M97,'Emission factors'!$C:$BQ,15,FALSE),"") ->  | R97: =IFERROR(VLOOKUP($M97,'Emission factors'!$C:$BQ,65,FALSE),"") ->  | S97: =IFERROR(VLOOKUP($M97,'Emission factors'!$C:$BQ,67,FALSE),"") ->  | AC97: =IFERROR(IF(AND($M97="",$T97=""),"",IF($M97="",IF(X97="",SUM(U97:W97),IF(X97=0,"0",X97)),IF($R97="",SUM($Z97:$AB97),IF($R97=0,"0",$G97*IF($K97="",1,$K97)*$R97)))),"-") ->  | AD97: =IFERROR(IF(AND($M97="",$T97=""),"",IF($M97="",IF(Y97=0,"-",Y97),IF(S97=0,"0",$G97*IF($K97="",1,$K97)*S97))),"-") -> 
B98: I.6.2 | C98: 2 | D98: Emissions from grid-supplied energy consumed within the city boundary | F98: NO | AG98: I.6.2 does not occur; no non-specified sources identified within the city boundary
B99: I.6.2 | C99: 2 | N99: =IFERROR(CONCATENATE("tCO2e/",VLOOKUP($M99,'Emission factors'!$C:$H,6,FALSE)),"") ->  | O99: =IFERROR(VLOOKUP($M99,'Emission factors'!$C:$BQ,9,FALSE),"") ->  | P99: =IFERROR(VLOOKUP($M99,'Emission factors'!$C:$BQ,12,FALSE),"") ->  | Q99: =IFERROR(VLOOKUP($M99,'Emission factors'!$C:$BQ,15,FALSE),"") ->  | R99: =IFERROR(VLOOKUP($M99,'Emission factors'!$C:$BQ,65,FALSE),"") ->  | S99: =IFERROR(VLOOKUP($M99,'Emission factors'!$C:$BQ,67,FALSE),"") ->  | Z99: =IFERROR(IF(AND($M99="",$T99=""),"",IF($M99="",IF(U99=0,"-",U99),IF(O99=0,"0",$G99*IF($K99="",1,$K99)*O99))),"-") ->  | AC99: =IFERROR(IF(AND($M99="",$T99=""),"",IF($M99="",IF(X99="",SUM(U99:W99),IF(X99=0,"0",X99)),IF($R99="",SUM($Z99:$AB99),IF($R99=0,"0",$G99*IF($K99="",1,$K99)*$R99)))),"-") ->  | AD99: =IFERROR(IF(AND($M99="",$T99=""),"",IF($M99="",IF(Y99=0,"-",Y99),IF(S99=0,"0",$G99*IF($K99="",1,$K99)*S99))),"-") -> 
B100: I.6.2 | C100: 2 | N100: =IFERROR(CONCATENATE("tCO2e/",VLOOKUP($M100,'Emission factors'!$C:$H,6,FALSE)),"") ->  | O100: =IFERROR(VLOOKUP($M100,'Emission factors'!$C:$BQ,9,FALSE),"") ->  | P100: =IFERROR(VLOOKUP($M100,'Emission factors'!$C:$BQ,12,FALSE),"") ->  | Q100: =IFERROR(VLOOKUP($M100,'Emission factors'!$C:$BQ,15,FALSE),"") ->  | R100: =IFERROR(VLOOKUP($M100,'Emission factors'!$C:$BQ,65,FALSE),"") ->  | S100: =IFERROR(VLOOKUP($M100,'Emission factors'!$C:$BQ,67,FALSE),"") ->  | AC100: =IFERROR(IF(AND($M100="",$T100=""),"",IF($M100="",IF(X100="",SUM(U100:W100),IF(X100=0,"0",X100)),IF($R100="",SUM($Z100:$AB100),IF($R100=0,"0",$G100*IF($K100="",1,$K100)*$R100)))),"-") ->  | AD100: =IFERROR(IF(AND($M100="",$T100=""),"",IF($M100="",IF(Y100=0,"-",Y100),IF(S100=0,"0",$G100*IF($K100="",1,$K100)*S100))),"-") -> 
B101: I.6.3 | C101: 3 | D101: Emissions from transmission and distribution losses from grid-supplied energy consumption | F101: NO | AG101: I.6.3 does not occur; no non-specified sources identified within the city boundary
B102: I.6.3 | C102: 3 | N102: =IFERROR(CONCATENATE("tCO2e/",VLOOKUP($M102,'Emission factors'!$C:$H,6,FALSE)),"") ->  | O102: =IFERROR(VLOOKUP($M102,'Emission factors'!$C:$BQ,9,FALSE),"") ->  | P102: =IFERROR(VLOOKUP($M102,'Emission factors'!$C:$BQ,12,FALSE),"") ->  | Q102: =IFERROR(VLOOKUP($M102,'Emission factors'!$C:$BQ,15,FALSE),"") ->  | R102: =IFERROR(VLOOKUP($M102,'Emission factors'!$C:$BQ,65,FALSE),"") ->  | S102: =IFERROR(VLOOKUP($M102,'Emission factors'!$C:$BQ,67,FALSE),"") ->  | Z102: =IFERROR(IF(AND($M102="",$T102=""),"",IF($M102="",IF(U102=0,"-",U102),IF(O102=0,"0",$G102*IF($K102="",1,$K102)*O102))),"-") ->  | AC102: =IFERROR(IF(AND($M102="",$T102=""),"",IF($M102="",IF(X102="",SUM(U102:W102),IF(X102=0,"0",X102)),IF($R102="",SUM($Z102:$AB102),IF($R102=0,"0",$G102*IF($K102="",1,$K102)*$R102)))),"-") ->  | AD102: =IFERROR(IF(AND($M102="",$T102=""),"",IF($M102="",IF(Y102=0,"-",Y102),IF(S102=0,"0",$G102*IF($K102="",1,$K102)*S102))),"-") -> 
B103: I.6.3 | C103: 3 | N103: =IFERROR(CONCATENATE("tCO2e/",VLOOKUP($M103,'Emission factors'!$C:$H,6,FALSE)),"") ->  | O103: =IFERROR(VLOOKUP($M103,'Emission factors'!$C:$BQ,9,FALSE),"") ->  | P103: =IFERROR(VLOOKUP($M103,'Emission factors'!$C:$BQ,12,FALSE),"") ->  | Q103: =IFERROR(VLOOKUP($M103,'Emission factors'!$C:$BQ,15,FALSE),"") ->  | R103: =IFERROR(VLOOKUP($M103,'Emission factors'!$C:$BQ,65,FALSE),"") ->  | S103: =IFERROR(VLOOKUP($M103,'Emission factors'!$C:$BQ,67,FALSE),"") ->  | AC103: =IFERROR(IF(AND($M103="",$T103=""),"",IF($M103="",IF(X103="",SUM(U103:W103),IF(X103=0,"0",X103)),IF($R103="",SUM($Z103:$AB103),IF($R103=0,"0",$G103*IF($K103="",1,$K103)*$R103)))),"-") ->  | AD103: =IFERROR(IF(AND($M103="",$T103=""),"",IF($M103="",IF(Y103=0,"-",Y103),IF(S103=0,"0",$G103*IF($K103="",1,$K103)*S103))),"-") -> 
B105: I.7 FUGITIVE EMISSIONS FROM MINING, PROCESSING, STORAGE AND TRANSPORTATION OF COAL
B107: GPC ref No. | C107: Scope | D107: GHG Emissions Source | F107: Notation keys | G107: Activity data | I107: Activity data multiplier | L107: Gas(es) | M107: Emission factor | N107: Emission factor | T107: Emissions data | U107: GHGs (metric tonnes CO2e) | Z107: GHGs (metric tonnes CO2e) | AE107: Data Quality | AG107: Description of method(s) used or explanation for using notation key(s) | AH107: Source | AI107: Data quality explanation (optional)
D108: Activity | E108: Description | G108: Amount | H108: Units | I108: From | J108: To | K108: Factor | N108: Units | O108: CO2 | P108: CH4 | Q108: N2O | R108: Total tCO2e | S108: CO2(b) | U108: CO2 | V108: CH4 | W108: N2O | X108: Total tCO2e | Y108: CO2(b) | Z108: CO2 | AA108: CH4 | AB108: N2O | AC108: Total tCO2e | AD108: CO2(b) | AE108: AD | AF108: EF
B109: I.7.1 | C109: 1 | D109: Emissions from fugitive emissions within the city boundary | F109: NO | AG109: I.7.1 does not occur; no coal-related activities within the city boundary
B110: I.7.1 | C110: 1 | N110: =IFERROR(CONCATENATE("tCO2e/",VLOOKUP($M110,'Emission factors'!$C:$H,6,FALSE)),"") ->  | O110: =IFERROR(VLOOKUP($M110,'Emission factors'!$C:$BQ,9,FALSE),"") ->  | P110: =IFERROR(VLOOKUP($M110,'Emission factors'!$C:$BQ,12,FALSE),"") ->  | Q110: =IFERROR(VLOOKUP($M110,'Emission factors'!$C:$BQ,15,FALSE),"") ->  | R110: =IFERROR(VLOOKUP($M110,'Emission factors'!$C:$BQ,65,FALSE),"") ->  | S110: =IFERROR(VLOOKUP($M110,'Emission factors'!$C:$BQ,67,FALSE),"") ->  | Z110: =IFERROR(IF(AND($M110="",$T110=""),"",IF($M110="",IF(U110=0,"-",U110),IF(O110=0,"0",$G110*IF($K110="",1,$K110)*O110))),"-") ->  | AC110: =IFERROR(IF(AND($M110="",$T110=""),"",IF($M110="",IF(X110="",SUM(U110:W110),IF(X110=0,"0",X110)),IF($R110="",SUM($Z110:$AB110),IF($R110=0,"0",$G110*IF($K110="",1,$K110)*$R110)))),"-") ->  | AD110: =IFERROR(IF(AND($M110="",$T110=""),"",IF($M110="",IF(Y110=0,"-",Y110),IF(S110=0,"0",$G110*IF($K110="",1,$K110)*S110))),"-") -> 
B111: I.7.1 | C111: 1 | N111: =IFERROR(CONCATENATE("tCO2e/",VLOOKUP($M111,'Emission factors'!$C:$H,6,FALSE)),"") ->  | O111: =IFERROR(VLOOKUP($M111,'Emission factors'!$C:$BQ,9,FALSE),"") ->  | P111: =IFERROR(VLOOKUP($M111,'Emission factors'!$C:$BQ,12,FALSE),"") ->  | Q111: =IFERROR(VLOOKUP($M111,'Emission factors'!$C:$BQ,15,FALSE),"") ->  | R111: =IFERROR(VLOOKUP($M111,'Emission factors'!$C:$BQ,65,FALSE),"") ->  | S111: =IFERROR(VLOOKUP($M111,'Emission factors'!$C:$BQ,67,FALSE),"") ->  | AC111: =IFERROR(IF(AND($M111="",$T111=""),"",IF($M111="",IF(X111="",SUM(U111:W111),IF(X111=0,"0",X111)),IF($R111="",SUM($Z111:$AB111),IF($R111=0,"0",$G111*IF($K111="",1,$K111)*$R111)))),"-") ->  | AD111: =IFERROR(IF(AND($M111="",$T111=""),"",IF($M111="",IF(Y111=0,"-",Y111),IF(S111=0,"0",$G111*IF($K111="",1,$K111)*S111))),"-") -> 
B113: I.8 FUGITIVE EMISSIONS FROM OIL AND NATURAL GAS SYSTEMS
B115: GPC ref No. | C115: Scope | D115: GHG Emissions Source | F115: Notation keys | G115: Activity data | I115: Activity data multiplier | L115: Gas(es) | M115: Emission factor | N115: Emission factor | T115: Emissions data | U115: GHGs (metric tonnes CO2e) | Z115: GHGs (metric tonnes CO2e) | AE115: Data Quality | AG115: Description of method(s) used or explanation for using notation key(s) | AH115: Source | AI115: Data quality explanation (optional)
D116: Activity | E116: Description | G116: Amount | H116: Units | I116: From | J116: To | K116: Factor | N116: Units | O116: CO2 | P116: CH4 | Q116: N2O | R116: Total tCO2e | S116: CO2(b) | U116: CO2 | V116: CH4 | W116: N2O | X116: Total tCO2e | Y116: CO2(b) | Z116: CO2 | AA116: CH4 | AB116: N2O | AC116: Total tCO2e | AD116: CO2(b) | AE116: AD | AF116: EF
B117: I.8.1 | C117: 1 | D117: Emissions from fugitive emissions within the city boundary | F117: NE | AG117: I.8.1 have not been estimated
B118: I.8.1 | C118: 1 | N118: =IFERROR(CONCATENATE("tCO2e/",VLOOKUP($M118,'Emission factors'!$C:$H,6,FALSE)),"") ->  | O118: =IFERROR(VLOOKUP($M118,'Emission factors'!$C:$BQ,9,FALSE),"") ->  | P118: =IFERROR(VLOOKUP($M118,'Emission factors'!$C:$BQ,12,FALSE),"") ->  | Q118: =IFERROR(VLOOKUP($M118,'Emission factors'!$C:$BQ,15,FALSE),"") ->  | R118: =IFERROR(VLOOKUP($M118,'Emission factors'!$C:$BQ,65,FALSE),"") ->  | S118: =IFERROR(VLOOKUP($M118,'Emission factors'!$C:$BQ,67,FALSE),"") ->  | Z118: =IFERROR(IF(AND($M118="",$T118=""),"",IF($M118="",IF(U118=0,"-",U118),IF(O118=0,"0",$G118*IF($K118="",1,$K118)*O118))),"-") ->  | AC118: =IFERROR(IF(AND($M118="",$T118=""),"",IF($M118="",IF(X118="",SUM(U118:W118),IF(X118=0,"0",X118)),IF($R118="",SUM($Z118:$AB118),IF($R118=0,"0",$G118*IF($K118="",1,$K118)*$R118)))),"-") ->  | AD118: =IFERROR(IF(AND($M118="",$T118=""),"",IF($M118="",IF(Y118=0,"-",Y118),IF(S118=0,"0",$G118*IF($K118="",1,$K118)*S118))),"-") -> 
B119: I.8.1 | C119: 1 | N119: =IFERROR(CONCATENATE("tCO2e/",VLOOKUP($M119,'Emission factors'!$C:$H,6,FALSE)),"") ->  | O119: =IFERROR(VLOOKUP($M119,'Emission factors'!$C:$BQ,9,FALSE),"") ->  | P119: =IFERROR(VLOOKUP($M119,'Emission factors'!$C:$BQ,12,FALSE),"") ->  | Q119: =IFERROR(VLOOKUP($M119,'Emission factors'!$C:$BQ,15,FALSE),"") ->  | R119: =IFERROR(VLOOKUP($M119,'Emission factors'!$C:$BQ,65,FALSE),"") ->  | S119: =IFERROR(VLOOKUP($M119,'Emission factors'!$C:$BQ,67,FALSE),"") ->  | AC119: =IFERROR(IF(AND($M119="",$T119=""),"",IF($M119="",IF(X119="",SUM(U119:W119),IF(X119=0,"0",X119)),IF($R119="",SUM($Z119:$AB119),IF($R119=0,"0",$G119*IF($K119="",1,$K119)*$R119)))),"-") ->  | AD119: =IFERROR(IF(AND($M119="",$T119=""),"",IF($M119="",IF(Y119=0,"-",Y119),IF(S119=0,"0",$G119*IF($K119="",1,$K119)*S119))),"-") -> 
B121: I. MACRO

Sheet II - Transport
B2: II TRANSPORTATION | H2:  | N2:  | U2:  | AI2: 
B4: Use this tab to record activity and emissions data for Transportation sources. Emission factors should be recorded in the 'Emission factors' tab. | H4: Convert activity data units | N4: View emission factor(s) | U4: Enter emissions data | AI4: Data quality explanation (optional)
B6: II.1 ON-ROAD TRANSPORTATION
B8: GPC ref No. | C8: Scope | D8: GHG Emissions Source | G8: Notation keys | H8: Activity data | J8: Activity data multiplier | M8: Gas(es) | N8: Emission factor | O8: Emission factor | U8: Emissions data | V8: GHGs (metric tonnes CO2e) | AA8: GHGs (metric tonnes CO2e) | AF8: Data Quality | AH8: Description of method(s) used or explanation for using notation key(s) | AI8: Source | AJ8: Data quality explanation (optional)
D9: Method | E9: Activity | F9: Description | H9: Amount | I9: Units | J9: From | K9: To | L9: Factor | O9: Units | P9: CO2 | Q9: CH4 | R9: N2O | S9: Total tCO2e | T9: CO2(b) | V9: CO2 | W9: CH4 | X9: N2O | Y9: Total tCO2e | Z9: CO2(b) | AA9: CO2 | AB9: CH4 | AC9: N2O | AD9: Total tCO2e | AE9: CO2(b) | AF9: AD | AG9: EF
B10: II.1.1 | C10: 1 | D10: Emissions from fuel combustion on-road transportation occurring in the city
B11: II.1.1 | C11: 1 | D11: Geographic / Territorial | E11: Motor gasoline (petrol) | F11: Motorcycle | H11: ='[3]VMT from Client'!$L4 -> 65309817.79 | I11: VMT | M11: CO2, CH4, N2O | N11: EF_motorcycle | O11: =IFERROR(CONCATENATE("tCO2e/",VLOOKUP($N11,'Emission factors'!$C:$I,6,FALSE)),"") -> tCO2e/mile | P11: =IFERROR(VLOOKUP($N11,'Emission factors'!$C:$BQ,9,FALSE),"") ->  | Q11: =IFERROR(VLOOKUP($N11,'Emission factors'!$C:$BQ,12,FALSE),"") ->  | R11: =IFERROR(VLOOKUP($N11,'Emission factors'!$C:$BQ,15,FALSE),"") ->  | S11: =IFERROR(VLOOKUP($N11,'Emission factors'!$C:$BQ,65,FALSE),"") -> 0.0003764698852 | T11: =IFERROR(VLOOKUP($N11,'Emission factors'!$C:$BQ,67,FALSE),"") ->  | AA11: =IFERROR(IF(AND($N11="",$U11=""),"",IF($N11="",IF(V11=0,"-",V11),IF(P11=0,"0",$H11*IF($L11="",1,$L11)*P11))),"-") -> - | AB11: - | AC11: - | AD11: =IFERROR(IF(AND($N11="",$U11=""),"",IF($N11="",IF(Y11="",SUM(AA11:AC11),IF(Y11=0,"0",Y11)),IF($S11="",SUM($AA11:$AC11),IF($S11=0,"0",$H11*IF($L11="",1,$L11)*$S11)))),"-") -> 24587.17961 | AE11: =IFERROR(IF(AND($N11="",$U11=""),"",IF($N11="",IF(Z11=0,"",Z11),IF(T11=0,"0",$H11*IF($L11="",1,$L11)*T11))),"-") -> -
B12: II.1.1 | C12: 1 | D12: Geographic / Territorial | E12: Motor gasoline (petrol) | F12: Passenger car | H12: ='[3]VMT from Client'!$L5 -> 4453333652 | I12: VMT | M12: CO2, CH4, N2O | N12: EF_passenger car - gasoline | O12: =IFERROR(CONCATENATE("tCO2e/",VLOOKUP($N12,'Emission factors'!$C:$I,6,FALSE)),"") -> tCO2e/mile | P12: =IFERROR(VLOOKUP($N12,'Emission factors'!$C:$BQ,9,FALSE),"") ->  | Q12: =IFERROR(VLOOKUP($N12,'Emission factors'!$C:$BQ,12,FALSE),"") ->  | R12: =IFERROR(VLOOKUP($N12,'Emission factors'!$C:$BQ,15,FALSE),"") ->  | S12: =IFERROR(VLOOKUP($N12,'Emission factors'!$C:$BQ,65,FALSE),"") -> 0.0003802668712 | T12: =IFERROR(VLOOKUP($N12,'Emission factors'!$C:$BQ,67,FALSE),"") ->  | AA12: =IFERROR(IF(AND($N12="",$U12=""),"",IF($N12="",IF(V12=0,"-",V12),IF(P12=0,"0",$H12*IF($L12="",1,$L12)*P12))),"-") -> - | AB12: =IFERROR(IF(AND($N12="",$U12=""),"",IF($N12="",IF(W12=0,"-",W12),IF(Q12=0,"0",$H12*IF($L12="",1,$L12)*Q12))),"-") -> - | AC12: =IFERROR(IF(AND($N12="",$U12=""),"",IF($N12="",IF(X12=0,"-",X12),IF(R12=0,"0",$H12*IF($L12="",1,$L12)*R12))),"-") -> - | AD12: =IFERROR(IF(AND($N12="",$U12=""),"",IF($N12="",IF(Y12="",SUM(AA12:AC12),IF(Y12=0,"0",Y12)),IF($S12="",SUM($AA12:$AC12),IF($S12=0,"0",$H12*IF($L12="",1,$L12)*$S12)))),"-") -> 1693455.255 | AE12: =IFERROR(IF(AND($N12="",$U12=""),"",IF($N12="",IF(Z12=0,"",Z12),IF(T12=0,"0",$H12*IF($L12="",1,$L12)*T12))),"-") -> -
B13: II.1.1 | C13: 1 | D13: Geographic / Territorial | E13: Motor gasoline (petrol) | F13: Passenger truck | H13: ='[3]VMT from Client'!$L6 -> 5154090966 | I13: VMT | M13: CO2, CH4, N2O | N13: EF_passenger truck - gasoline | O13: =IFERROR(CONCATENATE("tCO2e/",VLOOKUP($N13,'Emission factors'!$C:$I,6,FALSE)),"") -> tCO2e/mile | P13: =IFERROR(VLOOKUP($N13,'Emission factors'!$C:$BQ,9,FALSE),"") ->  | Q13: =IFERROR(VLOOKUP($N13,'Emission factors'!$C:$BQ,12,FALSE),"") ->  | R13: =IFERROR(VLOOKUP($N13,'Emission factors'!$C:$BQ,15,FALSE),"") ->  | S13: =IFERROR(VLOOKUP($N13,'Emission factors'!$C:$BQ,65,FALSE),"") -> 0.0005278450067 | T13: =IFERROR(VLOOKUP($N13,'Emission factors'!$C:$BQ,67,FALSE),"") ->  | AA13: - | AB13: - | AC13: - | AD13: 2720561.181 | AE13: -
B14: II.1.1 | C14: 1 | D14: Geographic / Territorial | E14: Motor gasoline (petrol) | F14: Light commercial truck | H14: ='[3]VMT from Client'!$L7 -> 1483891722 | I14: VMT | M14: CO2, CH4, N2O | N14: EF_light commercial truck - gasoline | O14: =IFERROR(CONCATENATE("tCO2e/",VLOOKUP($N14,'Emission factors'!$C:$I,6,FALSE)),"") -> tCO2e/mile | P14: =IFERROR(VLOOKUP($N14,'Emission factors'!$C:$BQ,9,FALSE),"") ->  | Q14: =IFERROR(VLOOKUP($N14,'Emission factors'!$C:$BQ,12,FALSE),"") ->  | R14: =IFERROR(VLOOKUP($N14,'Emission factors'!$C:$BQ,15,FALSE),"") ->  | S14: =IFERROR(VLOOKUP($N14,'Emission factors'!$C:$BQ,65,FALSE),"") -> 0.0005210180499 | T14: =IFERROR(VLOOKUP($N14,'Emission factors'!$C:$BQ,67,FALSE),"") ->  | AA14: - | AB14: - | AC14: - | AD14: 773134.3713 | AE14: -
B15: II.1.1 | C15: 1 | D15: Geographic / Territorial | E15: Motor gasoline (petrol) | F15: School bus | H15: ='[3]VMT from Client'!$L$10 -> 1042257.511 | I15: VMT | M15: CO2, CH4, N2O | N15: EF_school bus - gasoline | O15: =IFERROR(CONCATENATE("tCO2e/",VLOOKUP($N15,'Emission factors'!$C:$I,6,FALSE)),"") -> tCO2e/mile | P15: =IFERROR(VLOOKUP($N15,'Emission factors'!$C:$BQ,9,FALSE),"") ->  | Q15: =IFERROR(VLOOKUP($N15,'Emission factors'!$C:$BQ,12,FALSE),"") ->  | R15: =IFERROR(VLOOKUP($N15,'Emission factors'!$C:$BQ,15,FALSE),"") ->  | S15: =IFERROR(VLOOKUP($N15,'Emission factors'!$C:$BQ,65,FALSE),"") -> 0.0008819313713 | T15: =IFERROR(VLOOKUP($N15,'Emission factors'!$C:$BQ,67,FALSE),"") ->  | AA15: - | AB15: - | AC15: - | AD15: 919.1995963 | AE15: -
B16: II.1.1 | C16: 1 | D16: Geographic / Territorial | E16: Motor gasoline (petrol) | F16: Single unit short-haul truck | H16: ='[3]VMT from Client'!$L12 -> 18051498.17 | I16: VMT | M16: CO2, CH4, N2O | N16: EF_single unit short haul truck - gasoline | O16: =IFERROR(CONCATENATE("tCO2e/",VLOOKUP($N16,'Emission factors'!$C:$I,6,FALSE)),"") -> tCO2e/mile | P16: =IFERROR(VLOOKUP($N16,'Emission factors'!$C:$BQ,9,FALSE),"") ->  | Q16: =IFERROR(VLOOKUP($N16,'Emission factors'!$C:$BQ,12,FALSE),"") ->  | R16: =IFERROR(VLOOKUP($N16,'Emission factors'!$C:$BQ,15,FALSE),"") ->  | S16: =IFERROR(VLOOKUP($N16,'Emission factors'!$C:$BQ,65,FALSE),"") -> 0.001051824005 | T16: =IFERROR(VLOOKUP($N16,'Emission factors'!$C:$BQ,67,FALSE),"") ->  | AA16: =IFERROR(IF(AND($N16="",$U16=""),"",IF($N16="",IF(V16=0,"-",V16),IF(P16=0,"0",$H16*IF($L16="",1,$L16)*P16))),"-") -> - | AB16: =IFERROR(IF(AND($N16="",$U16=""),"",IF($N16="",IF(W16=0,"-",W16),IF(Q16=0,"0",$H16*IF($L16="",1,$L16)*Q16))),"-") -> - | AC16: =IFERROR(IF(AND($N16="",$U16=""),"",IF($N16="",IF(X16=0,"-",X16),IF(R16=0,"0",$H16*IF($L16="",1,$L16)*R16))),"-") -> - | AD16: 18986.99909 | AE16: -
B17: II.1.1 | C17: 1 | D17: Geographic / Territorial | E17: Motor gasoline (petrol) | F17: Single unit long-haul truck | H17: ='[3]VMT from Client'!$L13 -> 788142.5643 | I17: VMT | M17: CO2, CH4, N2O | N17: EF_single unit long-haul truck - gasoline | O17: =IFERROR(CONCATENATE("tCO2e/",VLOOKUP($N17,'Emission factors'!$C:$I,6,FALSE)),"") -> tCO2e/mile | P17: =IFERROR(VLOOKUP($N17,'Emission factors'!$C:$BQ,9,FALSE),"") ->  | Q17: =IFERROR(VLOOKUP($N17,'Emission factors'!$C:$BQ,12,FALSE),"") ->  | R17: =IFERROR(VLOOKUP($N17,'Emission factors'!$C:$BQ,15,FALSE),"") ->  | S17: =IFERROR(VLOOKUP($N17,'Emission factors'!$C:$BQ,65,FALSE),"") -> 0.0009890030567 | T17: =IFERROR(VLOOKUP($N17,'Emission factors'!$C:$BQ,67,FALSE),"") ->  | AA17: =IFERROR(IF(AND($N17="",$U17=""),"",IF($N17="",IF(V17=0,"-",V17),IF(P17=0,"0",$H17*IF($L17="",1,$L17)*P17))),"-") -> - | AB17: =IFERROR(IF(AND($N17="",$U17=""),"",IF($N17="",IF(W17=0,"-",W17),IF(Q17=0,"0",$H17*IF($L17="",1,$L17)*Q17))),"-") -> - | AC17: =IFERROR(IF(AND($N17="",$U17=""),"",IF($N17="",IF(X17=0,"-",X17),IF(R17=0,"0",$H17*IF($L17="",1,$L17)*R17))),"-") -> - | AD17: 779.4754052 | AE17: -
B18: II.1.1 | C18: 1 | D18: Geographic / Territorial | E18: Motor gasoline (petrol) | F18: Motor home | H18: ='[3]VMT from Client'!$L14 -> 5992980.69 | I18: VMT | M18: CO2, CH4, N2O | N18: EF_motor home - gasoline | O18: =IFERROR(CONCATENATE("tCO2e/",VLOOKUP($N18,'Emission factors'!$C:$I,6,FALSE)),"") -> tCO2e/mile | P18: =IFERROR(VLOOKUP($N18,'Emission factors'!$C:$BQ,9,FALSE),"") ->  | Q18: =IFERROR(VLOOKUP($N18,'Emission factors'!$C:$BQ,12,FALSE),"") ->  | R18: =IFERROR(VLOOKUP($N18,'Emission factors'!$C:$BQ,15,FALSE),"") ->  | S18: =IFERROR(VLOOKUP($N18,'Emission factors'!$C:$BQ,65,FALSE),"") -> 0.001055736147 | T18: =IFERROR(VLOOKUP($N18,'Emission factors'!$C:$BQ,67,FALSE),"") ->  | AA18: =IFERROR(IF(AND($N18="",$U18=""),"",IF($N18="",IF(V18=0,"-",V18),IF(P18=0,"0",$H18*IF($L18="",1,$L18)*P18))),"-") -> - | AB18: =IFERROR(IF(AND($N18="",$U18=""),"",IF($N18="",IF(W18=0,"-",W18),IF(Q18=0,"0",$H18*IF($L18="",1,$L18)*Q18))),"-") -> - | AC18: =IFERROR(IF(AND($N18="",$U18=""),"",IF($N18="",IF(X18=0,"-",X18),IF(R18=0,"0",$H18*IF($L18="",1,$L18)*R18))),"-") -> - | AD18: 6327.006344 | AE18: -
B19: II.1.1 | C19: 1 | D19: Geographic / Territorial | E19: Motor gasoline (petrol) | F19: Combination short-haul truck | H19: ='[3]VMT from Client'!$L15 -> 262176.7355 | I19: VMT | M19: CO2, CH4, N2O | N19: EF_combination short-haul truck - gasoline | O19: =IFERROR(CONCATENATE("tCO2e/",VLOOKUP($N19,'Emission factors'!$C:$I,6,FALSE)),"") -> tCO2e/mile | P19: =IFERROR(VLOOKUP($N19,'Emission factors'!$C:$BQ,9,FALSE),"") ->  | Q19: =IFERROR(VLOOKUP($N19,'Emission factors'!$C:$BQ,12,FALSE),"") ->  | R19: =IFERROR(VLOOKUP($N19,'Emission factors'!$C:$BQ,15,FALSE),"") ->  | S19: =IFERROR(VLOOKUP($N19,'Emission factors'!$C:$BQ,65,FALSE),"") -> 0.002063499723 | T19: =IFERROR(VLOOKUP($N19,'Emission factors'!$C:$BQ,67,FALSE),"") ->  | AA19: =IFERROR(IF(AND($N19="",$U19=""),"",IF($N19="",IF(V19=0,"-",V19),IF(P19=0,"0",$H19*IF($L19="",1,$L19)*P19))),"-") -> - | AB19: =IFERROR(IF(AND($N19="",$U19=""),"",IF($N19="",IF(W19=0,"-",W19),IF(Q19=0,"0",$H19*IF($L19="",1,$L19)*Q19))),"-") -> - | AC19: =IFERROR(IF(AND($N19="",$U19=""),"",IF($N19="",IF(X19=0,"-",X19),IF(R19=0,"0",$H19*IF($L19="",1,$L19)*R19))),"-") -> - | AD19: 541.0016211 | AE19: -
B20: II.1.1 | C20: 1 | D20: Geographic / Territorial | E20: Diesel oil | F20: Passenger car | H20: ='[3]VMT from Client'!$V5 -> 4013430.257 | I20: VMT | M20: CO2, CH4, N2O | N20: EF_passenger car - diesel | O20: =IFERROR(CONCATENATE("tCO2e/",VLOOKUP($N20,'Emission factors'!$C:$I,6,FALSE)),"") -> tCO2e/mile | P20: =IFERROR(VLOOKUP($N20,'Emission factors'!$C:$BQ,9,FALSE),"") ->  | Q20: =IFERROR(VLOOKUP($N20,'Emission factors'!$C:$BQ,12,FALSE),"") ->  | R20: =IFERROR(VLOOKUP($N20,'Emission factors'!$C:$BQ,15,FALSE),"") ->  | S20: =IFERROR(VLOOKUP($N20,'Emission factors'!$C:$BQ,65,FALSE),"") -> 0.0004229212679 | T20: =IFERROR(VLOOKUP($N20,'Emission factors'!$C:$BQ,67,FALSE),"") ->  | AA20: =IFERROR(IF(AND($N20="",$U20=""),"",IF($N20="",IF(V20=0,"-",V20),IF(P20=0,"0",$H20*IF($L20="",1,$L20)*P20))),"-") -> - | AB20: =IFERROR(IF(AND($N20="",$U20=""),"",IF($N20="",IF(W20=0,"-",W20),IF(Q20=0,"0",$H20*IF($L20="",1,$L20)*Q20))),"-") -> - | AC20: =IFERROR(IF(AND($N20="",$U20=""),"",IF($N20="",IF(X20=0,"-",X20),IF(R20=0,"0",$H20*IF($L20="",1,$L20)*R20))),"-") -> - | AD20: 1697.365013 | AE20: -
B21: II.1.1 | C21: 1 | D21: Geographic / Territorial | E21: Diesel oil | F21: Passenger truck | H21: ='[3]VMT from Client'!$V6 -> 27532976.75 | I21: VMT | M21: CO2, CH4, N2O | N21: EF_passenger truck - diesel | O21: =IFERROR(CONCATENATE("tCO2e/",VLOOKUP($N21,'Emission factors'!$C:$I,6,FALSE)),"") -> tCO2e/mile | P21: =IFERROR(VLOOKUP($N21,'Emission factors'!$C:$BQ,9,FALSE),"") ->  | Q21: =IFERROR(VLOOKUP($N21,'Emission factors'!$C:$BQ,12,FALSE),"") ->  | R21: =IFERROR(VLOOKUP($N21,'Emission factors'!$C:$BQ,15,FALSE),"") ->  | S21: =IFERROR(VLOOKUP($N21,'Emission factors'!$C:$BQ,65,FALSE),"") -> 0.000721987186 | T21: =IFERROR(VLOOKUP($N21,'Emission factors'!$C:$BQ,67,FALSE),"") ->  | AA21: =IFERROR(IF(AND($N21="",$U21=""),"",IF($N21="",IF(V21=0,"-",V21),IF(P21=0,"0",$H21*IF($L21="",1,$L21)*P21))),"-") -> - | AB21: =IFERROR(IF(AND($N21="",$U21=""),"",IF($N21="",IF(W21=0,"-",W21),IF(Q21=0,"0",$H21*IF($L21="",1,$L21)*Q21))),"-") -> - | AC21: =IFERROR(IF(AND($N21="",$U21=""),"",IF($N21="",IF(X21=0,"-",X21),IF(R21=0,"0",$H21*IF($L21="",1,$L21)*R21))),"-") -> - | AD21: 19878.45641 | AE21: -
B22: II.1.1 | C22: 1 | D22: Geographic / Territorial | E22: Diesel oil | F22: Light commercial truck | H22: ='[3]VMT from Client'!$V7 -> 48424249.96 | I22: VMT | M22: CO2, CH4, N2O | N22: EF_light commercial truck - diesel | O22: =IFERROR(CONCATENATE("tCO2e/",VLOOKUP($N22,'Emission factors'!$C:$I,6,FALSE)),"") -> tCO2e/mile | P22: =IFERROR(VLOOKUP($N22,'Emission factors'!$C:$BQ,9,FALSE),"") ->  | Q22: =IFERROR(VLOOKUP($N22,'Emission factors'!$C:$BQ,12,FALSE),"") ->  | R22: =IFERROR(VLOOKUP($N22,'Emission factors'!$C:$BQ,15,FALSE),"") ->  | S22: =IFERROR(VLOOKUP($N22,'Emission factors'!$C:$BQ,65,FALSE),"") -> 0.0007153652812 | T22: =IFERROR(VLOOKUP($N22,'Emission factors'!$C:$BQ,67,FALSE),"") ->  | AA22: =IFERROR(IF(AND($N22="",$U22=""),"",IF($N22="",IF(V22=0,"-",V22),IF(P22=0,"0",$H22*IF($L22="",1,$L22)*P22))),"-") -> - | AB22: =IFERROR(IF(AND($N22="",$U22=""),"",IF($N22="",IF(W22=0,"-",W22),IF(Q22=0,"0",$H22*IF($L22="",1,$L22)*Q22))),"-") -> - | AC22: =IFERROR(IF(AND($N22="",$U22=""),"",IF($N22="",IF(X22=0,"-",X22),IF(R22=0,"0",$H22*IF($L22="",1,$L22)*R22))),"-") -> - | AD22: 34641.02719 | AE22: -
B23: II.1.1 | C23: 1 | D23: Geographic / Territorial | E23: Diesel oil | F23: Intercity bus | H23: ='[3]VMT from Client'!$V8 -> 13714188.1 | I23: VMT | M23: CO2, CH4, N2O | N23: EF_intercity bus - diesel | O23: =IFERROR(CONCATENATE("tCO2e/",VLOOKUP($N23,'Emission factors'!$C:$I,6,FALSE)),"") -> tCO2e/mile | P23: =IFERROR(VLOOKUP($N23,'Emission factors'!$C:$BQ,9,FALSE),"") ->  | Q23: =IFERROR(VLOOKUP($N23,'Emission factors'!$C:$BQ,12,FALSE),"") ->  | R23: =IFERROR(VLOOKUP($N23,'Emission factors'!$C:$BQ,15,FALSE),"") ->  | S23: =IFERROR(VLOOKUP($N23,'Emission factors'!$C:$BQ,65,FALSE),"") -> 0.001897555092 | T23: =IFERROR(VLOOKUP($N23,'Emission factors'!$C:$BQ,67,FALSE),"") ->  | AA23: =IFERROR(IF(AND($N23="",$U23=""),"",IF($N23="",IF(V23=0,"-",V23),IF(P23=0,"0",$H23*IF($L23="",1,$L23)*P23))),"-") -> - | AB23: =IFERROR(IF(AND($N23="",$U23=""),"",IF($N23="",IF(W23=0,"-",W23),IF(Q23=0,"0",$H23*IF($L23="",1,$L23)*Q23))),"-") -> - | AC23: =IFERROR(IF(AND($N23="",$U23=""),"",IF($N23="",IF(X23=0,"-",X23),IF(R23=0,"0",$H23*IF($L23="",1,$L23)*R23))),"-") -> - | AD23: 26023.42746 | AE23: -
B24: II.1.1 | C24: 1 | D24: Geographic / Territorial | E24: Diesel oil | F24: Transit bus | H24: ='[3]VMT from Client'!$V9 -> 41142564.3 | I24: VMT | M24: CO2, CH4, N2O | N24: EF_transit bus - diesel | O24: =IFERROR(CONCATENATE("tCO2e/",VLOOKUP($N24,'Emission factors'!$C:$I,6,FALSE)),"") -> tCO2e/mile | P24: =IFERROR(VLOOKUP($N24,'Emission factors'!$C:$BQ,9,FALSE),"") ->  | Q24: =IFERROR(VLOOKUP($N24,'Emission factors'!$C:$BQ,12,FALSE),"") ->  | R24: =IFERROR(VLOOKUP($N24,'Emission factors'!$C:$BQ,15,FALSE),"") ->  | S24: =IFERROR(VLOOKUP($N24,'Emission factors'!$C:$BQ,65,FALSE),"") -> 0.001266250434 | T24: =IFERROR(VLOOKUP($N24,'Emission factors'!$C:$BQ,67,FALSE),"") ->  | AA24: =IFERROR(IF(AND($N24="",$U24=""),"",IF($N24="",IF(V24=0,"-",V24),IF(P24=0,"0",$H24*IF($L24="",1,$L24)*P24))),"-") -> - | AB24: =IFERROR(IF(AND($N24="",$U24=""),"",IF($N24="",IF(W24=0,"-",W24),IF(Q24=0,"0",$H24*IF($L24="",1,$L24)*Q24))),"-") -> - | AC24: =IFERROR(IF(AND($N24="",$U24=""),"",IF($N24="",IF(X24=0,"-",X24),IF(R24=0,"0",$H24*IF($L24="",1,$L24)*R24))),"-") -> - | AD24: 52096.78991 | AE24: -
B25: II.1.1 | C25: 1 | D25: Geographic / Territorial | E25: Diesel oil | F25: School bus | H25: ='[3]VMT from Client'!$V10 -> 12125048.47 | I25: VMT | M25: CO2, CH4, N2O | N25: EF_school bus - diesel | O25: =IFERROR(CONCATENATE("tCO2e/",VLOOKUP($N25,'Emission factors'!$C:$I,6,FALSE)),"") -> tCO2e/mile | P25: =IFERROR(VLOOKUP($N25,'Emission factors'!$C:$BQ,9,FALSE),"") ->  | Q25: =IFERROR(VLOOKUP($N25,'Emission factors'!$C:$BQ,12,FALSE),"") ->  | R25: =IFERROR(VLOOKUP($N25,'Emission factors'!$C:$BQ,15,FALSE),"") ->  | S25: =IFERROR(VLOOKUP($N25,'Emission factors'!$C:$BQ,65,FALSE),"") -> 0.000938321901 | T25: =IFERROR(VLOOKUP($N25,'Emission factors'!$C:$BQ,67,FALSE),"") ->  | AA25: =IFERROR(IF(AND($N25="",$U25=""),"",IF($N25="",IF(V25=0,"-",V25),IF(P25=0,"0",$H25*IF($L25="",1,$L25)*P25))),"-") -> - | AB25: =IFERROR(IF(AND($N25="",$U25=""),"",IF($N25="",IF(W25=0,"-",W25),IF(Q25=0,"0",$H25*IF($L25="",1,$L25)*Q25))),"-") -> - | AC25: =IFERROR(IF(AND($N25="",$U25=""),"",IF($N25="",IF(X25=0,"-",X25),IF(R25=0,"0",$H25*IF($L25="",1,$L25)*R25))),"-") -> - | AD25: 11377.19853 | AE25: -
B26: II.1.1 | C26: 1 | D26: Geographic / Territorial | E26: Diesel oil | F26: Refuse truck | H26: ='[3]VMT from Client'!$V11 -> 14883714.95 | I26: VMT | M26: CO2, CH4, N2O | N26: EF_refuse truck - diesel | O26: =IFERROR(CONCATENATE("tCO2e/",VLOOKUP($N26,'Emission factors'!$C:$I,6,FALSE)),"") -> tCO2e/mile | P26: =IFERROR(VLOOKUP($N26,'Emission factors'!$C:$BQ,9,FALSE),"") ->  | Q26: =IFERROR(VLOOKUP($N26,'Emission factors'!$C:$BQ,12,FALSE),"") ->  | R26: =IFERROR(VLOOKUP($N26,'Emission factors'!$C:$BQ,15,FALSE),"") ->  | S26: =IFERROR(VLOOKUP($N26,'Emission factors'!$C:$BQ,65,FALSE),"") -> 0.00177689889 | T26: =IFERROR(VLOOKUP($N26,'Emission factors'!$C:$BQ,67,FALSE),"") ->  | AA26: =IFERROR(IF(AND($N26="",$U26=""),"",IF($N26="",IF(V26=0,"-",V26),IF(P26=0,"0",$H26*IF($L26="",1,$L26)*P26))),"-") -> - | AB26: =IFERROR(IF(AND($N26="",$U26=""),"",IF($N26="",IF(W26=0,"-",W26),IF(Q26=0,"0",$H26*IF($L26="",1,$L26)*Q26))),"-") -> - | AC26: =IFERROR(IF(AND($N26="",$U26=""),"",IF($N26="",IF(X26=0,"-",X26),IF(R26=0,"0",$H26*IF($L26="",1,$L26)*R26))),"-") -> - | AD26: 26446.85657 | AE26: -
B27: II.1.1 | C27: 1 | D27: Geographic / Territorial | E27: Diesel oil | F27: Single unit short-haul truck | H27: ='[3]VMT from Client'!$V12 -> 281672563.3 | I27: VMT | M27: CO2, CH4, N2O | N27: EF_single unit short haul truck - diesel | O27: =IFERROR(CONCATENATE("tCO2e/",VLOOKUP($N27,'Emission factors'!$C:$I,6,FALSE)),"") -> tCO2e/mile | P27: =IFERROR(VLOOKUP($N27,'Emission factors'!$C:$BQ,9,FALSE),"") ->  | Q27: =IFERROR(VLOOKUP($N27,'Emission factors'!$C:$BQ,12,FALSE),"") ->  | R27: =IFERROR(VLOOKUP($N27,'Emission factors'!$C:$BQ,15,FALSE),"") ->  | S27: =IFERROR(VLOOKUP($N27,'Emission factors'!$C:$BQ,65,FALSE),"") -> 0.001122879894 | T27: =IFERROR(VLOOKUP($N27,'Emission factors'!$C:$BQ,67,FALSE),"") ->  | AA27: =IFERROR(IF(AND($N27="",$U27=""),"",IF($N27="",IF(V27=0,"-",V27),IF(P27=0,"0",$H27*IF($L27="",1,$L27)*P27))),"-") -> - | AB27: =IFERROR(IF(AND($N27="",$U27=""),"",IF($N27="",IF(W27=0,"-",W27),IF(Q27=0,"0",$H27*IF($L27="",1,$L27)*Q27))),"-") -> - | AC27: =IFERROR(IF(AND($N27="",$U27=""),"",IF($N27="",IF(X27=0,"-",X27),IF(R27=0,"0",$H27*IF($L27="",1,$L27)*R27))),"-") -> - | AD27: 316284.4579 | AE27: -
B28: II.1.1 | C28: 1 | D28: Geographic / Territorial | E28: Diesel oil | F28: Single unit long-haul truck | H28: ='[3]VMT from Client'!$V13 -> 20007999.07 | I28: VMT | M28: CO2, CH4, N2O | N28: EF_single unit long-haul truck - diesel | O28: =IFERROR(CONCATENATE("tCO2e/",VLOOKUP($N28,'Emission factors'!$C:$I,6,FALSE)),"") -> tCO2e/mile | P28: =IFERROR(VLOOKUP($N28,'Emission factors'!$C:$BQ,9,FALSE),"") ->  | Q28: =IFERROR(VLOOKUP($N28,'Emission factors'!$C:$BQ,12,FALSE),"") ->  | R28: =IFERROR(VLOOKUP($N28,'Emission factors'!$C:$BQ,15,FALSE),"") ->  | S28: =IFERROR(VLOOKUP($N28,'Emission factors'!$C:$BQ,65,FALSE),"") -> 0.001067783586 | T28: =IFERROR(VLOOKUP($N28,'Emission factors'!$C:$BQ,67,FALSE),"") ->  | AA28: =IFERROR(IF(AND($N28="",$U28=""),"",IF($N28="",IF(V28=0,"-",V28),IF(P28=0,"0",$H28*IF($L28="",1,$L28)*P28))),"-") -> - | AB28: =IFERROR(IF(AND($N28="",$U28=""),"",IF($N28="",IF(W28=0,"-",W28),IF(Q28=0,"0",$H28*IF($L28="",1,$L28)*Q28))),"-") -> - | AC28: =IFERROR(IF(AND($N28="",$U28=""),"",IF($N28="",IF(X28=0,"-",X28),IF(R28=0,"0",$H28*IF($L28="",1,$L28)*R28))),"-") -> - | AD28: 21364.213 | AE28: -
B29: II.1.1 | C29: 1 | D29: Geographic / Territorial | E29: Diesel oil | F29: Motor home | H29: ='[3]VMT from Client'!$V14 -> 7173997.781 | I29: VMT | M29: CO2, CH4, N2O | N29: EF_motor home - diesel | O29: =IFERROR(CONCATENATE("tCO2e/",VLOOKUP($N29,'Emission factors'!$C:$I,6,FALSE)),"") -> tCO2e/mile | P29: =IFERROR(VLOOKUP($N29,'Emission factors'!$C:$BQ,9,FALSE),"") ->  | Q29: =IFERROR(VLOOKUP($N29,'Emission factors'!$C:$BQ,12,FALSE),"") ->  | R29: =IFERROR(VLOOKUP($N29,'Emission factors'!$C:$BQ,15,FALSE),"") ->  | S29: =IFERROR(VLOOKUP($N29,'Emission factors'!$C:$BQ,65,FALSE),"") -> 0.001142542458 | T29: =IFERROR(VLOOKUP($N29,'Emission factors'!$C:$BQ,67,FALSE),"") ->  | AA29: =IFERROR(IF(AND($N29="",$U29=""),"",IF($N29="",IF(V29=0,"-",V29),IF(P29=0,"0",$H29*IF($L29="",1,$L29)*P29))),"-") -> - | AB29: =IFERROR(IF(AND($N29="",$U29=""),"",IF($N29="",IF(W29=0,"-",W29),IF(Q29=0,"0",$H29*IF($L29="",1,$L29)*Q29))),"-") -> - | AC29: =IFERROR(IF(AND($N29="",$U29=""),"",IF($N29="",IF(X29=0,"-",X29),IF(R29=0,"0",$H29*IF($L29="",1,$L29)*R29))),"-") -> - | AD29: 8196.597058 | AE29: -
B30: II.1.1 | C30: 1 | D30: Geographic / Territorial | E30: Diesel oil | F30: Combination short-haul truck | H30: ='[3]VMT from Client'!$V15 -> 253803442.2 | I30: VMT | M30: CO2, CH4, N2O | N30: EF_combination short-haul truck - diesel | O30: =IFERROR(CONCATENATE("tCO2e/",VLOOKUP($N30,'Emission factors'!$C:$I,6,FALSE)),"") -> tCO2e/mile | P30: =IFERROR(VLOOKUP($N30,'Emission factors'!$C:$BQ,9,FALSE),"") ->  | Q30: =IFERROR(VLOOKUP($N30,'Emission factors'!$C:$BQ,12,FALSE),"") ->  | R30: =IFERROR(VLOOKUP($N30,'Emission factors'!$C:$BQ,15,FALSE),"") ->  | S30: =IFERROR(VLOOKUP($N30,'Emission factors'!$C:$BQ,65,FALSE),"") -> 0.002143702058 | T30: =IFERROR(VLOOKUP($N30,'Emission factors'!$C:$BQ,67,FALSE),"") ->  | AA30: =IFERROR(IF(AND($N30="",$U30=""),"",IF($N30="",IF(V30=0,"-",V30),IF(P30=0,"0",$H30*IF($L30="",1,$L30)*P30))),"-") -> - | AB30: =IFERROR(IF(AND($N30="",$U30=""),"",IF($N30="",IF(W30=0,"-",W30),IF(Q30=0,"0",$H30*IF($L30="",1,$L30)*Q30))),"-") -> - | AC30: =IFERROR(IF(AND($N30="",$U30=""),"",IF($N30="",IF(X30=0,"-",X30),IF(R30=0,"0",$H30*IF($L30="",1,$L30)*R30))),"-") -> - | AD30: 544078.9614 | AE30: -
B31: II.1.1 | C31: 1 | D31: Geographic / Territorial | E31: Diesel oil | F31: Combination long-haul truck | H31: ='[3]VMT from Client'!$V16 -> 217886871.3 | I31: VMT | M31: CO2, CH4, N2O | N31: EF_combination long-haul truck - diesel | O31: =IFERROR(CONCATENATE("tCO2e/",VLOOKUP($N31,'Emission factors'!$C:$I,6,FALSE)),"") -> tCO2e/mile | P31: =IFERROR(VLOOKUP($N31,'Emission factors'!$C:$BQ,9,FALSE),"") ->  | Q31: =IFERROR(VLOOKUP($N31,'Emission factors'!$C:$BQ,12,FALSE),"") ->  | R31: =IFERROR(VLOOKUP($N31,'Emission factors'!$C:$BQ,15,FALSE),"") ->  | S31: =IFERROR(VLOOKUP($N31,'Emission factors'!$C:$BQ,65,FALSE),"") -> 0.002231268609 | T31: =IFERROR(VLOOKUP($N31,'Emission factors'!$C:$BQ,67,FALSE),"") ->  | AA31: =IFERROR(IF(AND($N31="",$U31=""),"",IF($N31="",IF(V31=0,"-",V31),IF(P31=0,"0",$H31*IF($L31="",1,$L31)*P31))),"-") -> - | AB31: =IFERROR(IF(AND($N31="",$U31=""),"",IF($N31="",IF(W31=0,"-",W31),IF(Q31=0,"0",$H31*IF($L31="",1,$L31)*Q31))),"-") -> - | AC31: =IFERROR(IF(AND($N31="",$U31=""),"",IF($N31="",IF(X31=0,"-",X31),IF(R31=0,"0",$H31*IF($L31="",1,$L31)*R31))),"-") -> - | AD31: =IFERROR(IF(AND($N31="",$U31=""),"",IF($N31="",IF(Y31="",SUM(AA31:AC31),IF(Y31=0,"0",Y31)),IF($S31="",SUM($AA31:$AC31),IF($S31=0,"0",$H31*IF($L31="",1,$L31)*$S31)))),"-") -> 486164.1363 | AE31: =IFERROR(IF(AND($N31="",$U31=""),"",IF($N31="",IF(Z31=0,"",Z31),IF(T31=0,"0",$H31*IF($L31="",1,$L31)*T31))),"-") -> -
B32: II.1.1 | C32: 1 | D32: Geographic / Territorial | E32: Other (please specify) | F32: Reduction for alternative fuels - local | O32: =IFERROR(CONCATENATE("tCO2e/",VLOOKUP($N32,'Emission factors'!$C:$I,6,FALSE)),"") ->  | P32: =IFERROR(VLOOKUP($N32,'Emission factors'!$C:$BQ,9,FALSE),"") ->  | Q32: =IFERROR(VLOOKUP($N32,'Emission factors'!$C:$BQ,12,FALSE),"") ->  | R32: =IFERROR(VLOOKUP($N32,'Emission factors'!$C:$BQ,15,FALSE),"") ->  | S32: =IFERROR(VLOOKUP($N32,'Emission factors'!$C:$BQ,65,FALSE),"") ->  | T32: =IFERROR(VLOOKUP($N32,'Emission factors'!$C:$BQ,67,FALSE),"") ->  | U32: ✓ | Y32: ='[3]Alt fuel calculations'!$L$146 -> -4084.261425 | AA32: =IFERROR(IF(AND($N32="",$U32=""),"",IF($N32="",IF(V32=0,"-",V32),IF(P32=0,"0",$H32*IF($L32="",1,$L32)*P32))),"-") -> - | AB32: =IFERROR(IF(AND($N32="",$U32=""),"",IF($N32="",IF(W32=0,"-",W32),IF(Q32=0,"0",$H32*IF($L32="",1,$L32)*Q32))),"-") -> - | AC32: =IFERROR(IF(AND($N32="",$U32=""),"",IF($N32="",IF(X32=0,"-",X32),IF(R32=0,"0",$H32*IF($L32="",1,$L32)*R32))),"-") -> - | AD32: =IFERROR(IF(AND($N32="",$U32=""),"",IF($N32="",IF(Y32="",SUM(AA32:AC32),IF(Y32=0,"0",Y32)),IF($S32="",SUM($AA32:$AC32),IF($S32=0,"0",$H32*IF($L32="",1,$L32)*$S32)))),"-") -> -4084.261425 | AE32: =IFERROR(IF(AND($N32="",$U32=""),"",IF($N32="",IF(Z32=0,"",Z32),IF(T32=0,"0",$H32*IF($L32="",1,$L32)*T32))),"-") -> 
B33: II.1.1 | C33: 1 | D33: Geographic / Territorial | E33: Other (please specify) | F33: Reduction for alternative fuels - pass through | O33: =IFERROR(CONCATENATE("tCO2e/",VLOOKUP($N33,'Emission factors'!$C:$I,6,FALSE)),"") ->  | P33: =IFERROR(VLOOKUP($N33,'Emission factors'!$C:$BQ,9,FALSE),"") ->  | Q33: =IFERROR(VLOOKUP($N33,'Emission factors'!$C:$BQ,12,FALSE),"") ->  | R33: =IFERROR(VLOOKUP($N33,'Emission factors'!$C:$BQ,15,FALSE),"") ->  | S33: =IFERROR(VLOOKUP($N33,'Emission factors'!$C:$BQ,65,FALSE),"") ->  | T33: =IFERROR(VLOOKUP($N33,'Emission factors'!$C:$BQ,67,FALSE),"") ->  | U33: ✓ | Y33: ='[3]Alt fuel calculations'!$L$130 -> -425.6811842 | AA33: =IFERROR(IF(AND($N33="",$U33=""),"",IF($N33="",IF(V33=0,"-",V33),IF(P33=0,"0",$H33*IF($L33="",1,$L33)*P33))),"-") -> - | AB33: =IFERROR(IF(AND($N33="",$U33=""),"",IF($N33="",IF(W33=0,"-",W33),IF(Q33=0,"0",$H33*IF($L33="",1,$L33)*Q33))),"-") -> - | AC33: =IFERROR(IF(AND($N33="",$U33=""),"",IF($N33="",IF(X33=0,"-",X33),IF(R33=0,"0",$H33*IF($L33="",1,$L33)*R33))),"-") -> - | AD33: =IFERROR(IF(AND($N33="",$U33=""),"",IF($N33="",IF(Y33="",SUM(AA33:AC33),IF(Y33=0,"0",Y33)),IF($S33="",SUM($AA33:$AC33),IF($S33=0,"0",$H33*IF($L33="",1,$L33)*$S33)))),"-") -> -425.6811842 | AE33: =IFERROR(IF(AND($N33="",$U33=""),"",IF($N33="",IF(Z33=0,"",Z33),IF(T33=0,"0",$H33*IF($L33="",1,$L33)*T33))),"-") -> 
B34: II.1.2 | C34: 2 | D34: Emissions from grid-supplied energy consumed in the city for on-road transportation | G34: IE | AH34: II.1.2 in included in stationary energy electricity use
B35: II.1.2 | C35: 2 | O35: =IFERROR(CONCATENATE("tCO2e/",VLOOKUP($N35,'Emission factors'!$C:$I,6,FALSE)),"") ->  | P35: =IFERROR(VLOOKUP($N35,'Emission factors'!$C:$BQ,9,FALSE),"") ->  | Q35: =IFERROR(VLOOKUP($N35,'Emission factors'!$C:$BQ,12,FALSE),"") ->  | R35: =IFERROR(VLOOKUP($N35,'Emission factors'!$C:$BQ,15,FALSE),"") ->  | S35: =IFERROR(VLOOKUP($N35,'Emission factors'!$C:$BQ,65,FALSE),"") ->  | T35: =IFERROR(VLOOKUP($N35,'Emission factors'!$C:$BQ,67,FALSE),"") ->  | AA35: =IFERROR(IF(AND($N35="",$U35=""),"",IF($N35="",IF(V35=0,"-",V35),IF(P35=0,"0",$H35*IF($L35="",1,$L35)*P35))),"-") ->  | AD35: =IFERROR(IF(AND($N35="",$U35=""),"",IF($N35="",IF(Y35="",SUM(AA35:AC35),IF(Y35=0,"0",Y35)),IF($S35="",SUM($AA35:$AC35),IF($S35=0,"0",$H35*IF($L35="",1,$L35)*$S35)))),"-") ->  | AE35: =IFERROR(IF(AND($N35="",$U35=""),"",IF($N35="",IF(Z35=0,"",Z35),IF(T35=0,"0",$H35*IF($L35="",1,$L35)*T35))),"-") -> 
B36: II.1.2 | C36: 2 | O36: =IFERROR(CONCATENATE("tCO2e/",VLOOKUP($N36,'Emission factors'!$C:$I,6,FALSE)),"") ->  | P36: =IFERROR(VLOOKUP($N36,'Emission factors'!$C:$BQ,9,FALSE),"") ->  | Q36: =IFERROR(VLOOKUP($N36,'Emission factors'!$C:$BQ,12,FALSE),"") ->  | R36: =IFERROR(VLOOKUP($N36,'Emission factors'!$C:$BQ,15,FALSE),"") ->  | S36: =IFERROR(VLOOKUP($N36,'Emission factors'!$C:$BQ,65,FALSE),"") ->  | T36: =IFERROR(VLOOKUP($N36,'Emission factors'!$C:$BQ,67,FALSE),"") ->  | AD36: =IFERROR(IF(AND($N36="",$U36=""),"",IF($N36="",IF(Y36="",SUM(AA36:AC36),IF(Y36=0,"0",Y36)),IF($S36="",SUM($AA36:$AC36),IF($S36=0,"0",$H36*IF($L36="",1,$L36)*$S36)))),"-") ->  | AE36: =IFERROR(IF(AND($N36="",$U36=""),"",IF($N36="",IF(Z36=0,"",Z36),IF(T36=0,"0",$H36*IF($L36="",1,$L36)*T36))),"-") -> 
B37: II.1.3 | C37: 3 | D37: Emissions from transboundary journeys occurring outside the city, and T&D losses from grid-supplied energy consumption | G37: NE | AH37: II.1.3 has not been estimated - optional under GPC BASIC
B38: II.1.3 | C38: 3 | O38: =IFERROR(CONCATENATE("tCO2e/",VLOOKUP($N38,'Emission factors'!$C:$I,6,FALSE)),"") ->  | P38: =IFERROR(VLOOKUP($N38,'Emission factors'!$C:$BQ,9,FALSE),"") ->  | Q38: =IFERROR(VLOOKUP($N38,'Emission factors'!$C:$BQ,12,FALSE),"") ->  | R38: =IFERROR(VLOOKUP($N38,'Emission factors'!$C:$BQ,15,FALSE),"") ->  | S38: =IFERROR(VLOOKUP($N38,'Emission factors'!$C:$BQ,65,FALSE),"") ->  | T38: =IFERROR(VLOOKUP($N38,'Emission factors'!$C:$BQ,67,FALSE),"") ->  | AA38: =IFERROR(IF(AND($N38="",$U38=""),"",IF($N38="",IF(V38=0,"-",V38),IF(P38=0,"0",$H38*IF($L38="",1,$L38)*P38))),"-") ->  | AD38: =IFERROR(IF(AND($N38="",$U38=""),"",IF($N38="",IF(Y38="",SUM(AA38:AC38),IF(Y38=0,"0",Y38)),IF($S38="",SUM($AA38:$AC38),IF($S38=0,"0",$H38*IF($L38="",1,$L38)*$S38)))),"-") ->  | AE38: =IFERROR(IF(AND($N38="",$U38=""),"",IF($N38="",IF(Z38=0,"",Z38),IF(T38=0,"0",$H38*IF($L38="",1,$L38)*T38))),"-") -> 
B39: II.1.3 | C39: 3 | O39: =IFERROR(CONCATENATE("tCO2e/",VLOOKUP($N39,'Emission factors'!$C:$I,6,FALSE)),"") ->  | P39: =IFERROR(VLOOKUP($N39,'Emission factors'!$C:$BQ,9,FALSE),"") ->  | Q39: =IFERROR(VLOOKUP($N39,'Emission factors'!$C:$BQ,12,FALSE),"") ->  | R39: =IFERROR(VLOOKUP($N39,'Emission factors'!$C:$BQ,15,FALSE),"") ->  | S39: =IFERROR(VLOOKUP($N39,'Emission factors'!$C:$BQ,65,FALSE),"") ->  | T39: =IFERROR(VLOOKUP($N39,'Emission factors'!$C:$BQ,67,FALSE),"") ->  | AD39: =IFERROR(IF(AND($N39="",$U39=""),"",IF($N39="",IF(Y39="",SUM(AA39:AC39),IF(Y39=0,"0",Y39)),IF($S39="",SUM($AA39:$AC39),IF($S39=0,"0",$H39*IF($L39="",1,$L39)*$S39)))),"-") ->  | AE39: =IFERROR(IF(AND($N39="",$U39=""),"",IF($N39="",IF(Z39=0,"",Z39),IF(T39=0,"0",$H39*IF($L39="",1,$L39)*T39))),"-") -> 
B41: II.2 RAILWAYS
B43: GPC ref No. | C43: Scope | D43: GHG Emissions Source | G43: Notation keys | H43: Activity data | J43: Activity data multiplier | M43: Gas(es) | N43: Emission factor | O43: Emission factor | U43: Emissions data | V43: GHGs (metric tonnes CO2e) | AA43: GHGs (metric tonnes CO2e) | AF43: Data Quality | AH43: Description of method(s) used or explanation for using notation key(s) | AI43: Source | AJ43: Data quality explanation (optional)
D44: Method | E44: Activity | F44: Description | H44: Amount | I44: Units | J44: From | K44: To | L44: Factor | O44: Units | P44: CO2 | Q44: CH4 | R44: N2O | S44: Total tCO2e | T44: CO2(b) | V44: CO2 | W44: CH4 | X44: N2O | Y44: Total tCO2e | Z44: CO2(b) | AA44: CO2 | AB44: CH4 | AC44: N2O | AD44: Total tCO2e | AE44: CO2(b) | AF44: AD | AG44: EF
B45: II.2.1 | C45: 1 | D45: Emissions from fuel combustion for railway transportation occuring in the city
B46: II.2.1 | C46: 1 | D46: Geographic / Territorial | E46: Diesel oil | F46: Metra rail | M46: CO2, CH4, N2O | O46: =IFERROR(CONCATENATE("tCO2e/",VLOOKUP($N46,'Emission factors'!$C:$I,6,FALSE)),"") ->  | P46: =IFERROR(VLOOKUP($N46,'Emission factors'!$C:$BQ,9,FALSE),"") ->  | Q46: =IFERROR(VLOOKUP($N46,'Emission factors'!$C:$BQ,12,FALSE),"") ->  | R46: =IFERROR(VLOOKUP($N46,'Emission factors'!$C:$BQ,15,FALSE),"") ->  | S46: =IFERROR(VLOOKUP($N46,'Emission factors'!$C:$BQ,65,FALSE),"") ->  | T46: =IFERROR(VLOOKUP($N46,'Emission factors'!$C:$BQ,67,FALSE),"") ->  | U46: ✓ | Y46: ='[4]Transit emissions -v4 - 2 Nov'!$F$8 -> 62587.2 | AA46: =IFERROR(IF(AND($N46="",$U46=""),"",IF($N46="",IF(V46=0,"-",V46),IF(P46=0,"0",$H46*IF($L46="",1,$L46)*P46))),"-") -> - | AB46: - | AC46: - | AD46: =IFERROR(IF(AND($N46="",$U46=""),"",IF($N46="",IF(Y46="",SUM(AA46:AC46),IF(Y46=0,"0",Y46)),IF($S46="",SUM($AA46:$AC46),IF($S46=0,"0",$H46*IF($L46="",1,$L46)*$S46)))),"-") -> 62587.2 | AE46: =IFERROR(IF(AND($N46="",$U46=""),"",IF($N46="",IF(Z46=0,"",Z46),IF(T46=0,"0",$H46*IF($L46="",1,$L46)*T46))),"-") -> 
B47: II.2.1 | C47: 1 | O47: =IFERROR(CONCATENATE("tCO2e/",VLOOKUP($N47,'Emission factors'!$C:$I,6,FALSE)),"") ->  | P47: =IFERROR(VLOOKUP($N47,'Emission factors'!$C:$BQ,9,FALSE),"") ->  | Q47: =IFERROR(VLOOKUP($N47,'Emission factors'!$C:$BQ,12,FALSE),"") ->  | R47: =IFERROR(VLOOKUP($N47,'Emission factors'!$C:$BQ,15,FALSE),"") ->  | S47: =IFERROR(VLOOKUP($N47,'Emission factors'!$C:$BQ,65,FALSE),"") ->  | T47: =IFERROR(VLOOKUP($N47,'Emission factors'!$C:$BQ,67,FALSE),"") ->  | AD47: =IFERROR(IF(AND($N47="",$U47=""),"",IF($N47="",IF(Y47="",SUM(AA47:AC47),IF(Y47=0,"0",Y47)),IF($S47="",SUM($AA47:$AC47),IF($S47=0,"0",$H47*IF($L47="",1,$L47)*$S47)))),"-") ->  | AE47: =IFERROR(IF(AND($N47="",$U47=""),"",IF($N47="",IF(Z47=0,"",Z47),IF(T47=0,"0",$H47*IF($L47="",1,$L47)*T47))),"-") -> 
B48: II.2.2 | C48: 2 | D48: Emissions from grid-supplied energy consumed in the city for railways
B49: II.2.2 | C49: 2 | D49: Geographic / Territorial | E49: Electricity | F49: Chicago Transit Authority | H49: ='[4]Transit emissions-v5-03-01-12'!$F$9 -> 407908038 | I49: kWh | J49: kWh | K49: MWh | L49: 0.001 | M49: CO2, CH4, N2O | N49: EF_electricity - transit | O49: =IFERROR(CONCATENATE("tCO2e/",VLOOKUP($N49,'Emission factors'!$C:$I,6,FALSE)),"") -> tCO2e/MWH | P49: =IFERROR(VLOOKUP($N49,'Emission factors'!$C:$BQ,9,FALSE),"") ->  | Q49: =IFERROR(VLOOKUP($N49,'Emission factors'!$C:$BQ,12,FALSE),"") ->  | R49: =IFERROR(VLOOKUP($N49,'Emission factors'!$C:$BQ,15,FALSE),"") ->  | S49: =IFERROR(VLOOKUP($N49,'Emission factors'!$C:$BQ,65,FALSE),"") -> 0.6166968302 | T49: =IFERROR(VLOOKUP($N49,'Emission factors'!$C:$BQ,67,FALSE),"") ->  | AA49: =IFERROR(IF(AND($N49="",$U49=""),"",IF($N49="",IF(V49=0,"-",V49),IF(P49=0,"0",$H49*IF($L49="",1,$L49)*P49))),"-") -> - | AB49: - | AC49: - | AD49: =IFERROR(IF(AND($N49="",$U49=""),"",IF($N49="",IF(Y49="",SUM(AA49:AC49),IF(Y49=0,"0",Y49)),IF($S49="",SUM($AA49:$AC49),IF($S49=0,"0",$H49*IF($L49="",1,$L49)*$S49)))),"-") -> 251555.5941 | AE49: =IFERROR(IF(AND($N49="",$U49=""),"",IF($N49="",IF(Z49=0,"",Z49),IF(T49=0,"0",$H49*IF($L49="",1,$L49)*T49))),"-") -> -
B50: II.2.2 | C50: 2 | O50: =IFERROR(CONCATENATE("tCO2e/",VLOOKUP($N50,'Emission factors'!$C:$I,6,FALSE)),"") ->  | P50: =IFERROR(VLOOKUP($N50,'Emission factors'!$C:$BQ,9,FALSE),"") ->  | Q50: =IFERROR(VLOOKUP($N50,'Emission factors'!$C:$BQ,12,FALSE),"") ->  | R50: =IFERROR(VLOOKUP($N50,'Emission factors'!$C:$BQ,15,FALSE),"") ->  | S50: =IFERROR(VLOOKUP($N50,'Emission factors'!$C:$BQ,65,FALSE),"") ->  | T50: =IFERROR(VLOOKUP($N50,'Emission factors'!$C:$BQ,67,FALSE),"") ->  | AD50: =IFERROR(IF(AND($N50="",$U50=""),"",IF($N50="",IF(Y50="",SUM(AA50:AC50),IF(Y50=0,"0",Y50)),IF($S50="",SUM($AA50:$AC50),IF($S50=0,"0",$H50*IF($L50="",1,$L50)*$S50)))),"-") ->  | AE50: =IFERROR(IF(AND($N50="",$U50=""),"",IF($N50="",IF(Z50=0,"",Z50),IF(T50=0,"0",$H50*IF($L50="",1,$L50)*T50))),"-") -> 
B51: II.2.3 | C51: 3 | D51: Emissions from transboundary journeys occurring outside the city, and T&D losses from grid-supplied energy consumption | G51: NE | AH51: II.2.3 has not been estimated - optional under GPC BASIC
B52: II.2.3 | C52: 3 | O52: =IFERROR(CONCATENATE("tCO2e/",VLOOKUP($N52,'Emission factors'!$C:$I,6,FALSE)),"") ->  | P52: =IFERROR(VLOOKUP($N52,'Emission factors'!$C:$BQ,9,FALSE),"") ->  | Q52: =IFERROR(VLOOKUP($N52,'Emission factors'!$C:$BQ,12,FALSE),"") ->  | R52: =IFERROR(VLOOKUP($N52,'Emission factors'!$C:$BQ,15,FALSE),"") ->  | S52: =IFERROR(VLOOKUP($N52,'Emission factors'!$C:$BQ,65,FALSE),"") ->  | T52: =IFERROR(VLOOKUP($N52,'Emission factors'!$C:$BQ,67,FALSE),"") ->  | AA52: =IFERROR(IF(AND($N52="",$U52=""),"",IF($N52="",IF(V52=0,"-",V52),IF(P52=0,"0",$H52*IF($L52="",1,$L52)*P52))),"-") ->  | AD52: =IFERROR(IF(AND($N52="",$U52=""),"",IF($N52="",IF(Y52="",SUM(AA52:AC52),IF(Y52=0,"0",Y52)),IF($S52="",SUM($AA52:$AC52),IF($S52=0,"0",$H52*IF($L52="",1,$L52)*$S52)))),"-") ->  | AE52: =IFERROR(IF(AND($N52="",$U52=""),"",IF($N52="",IF(Z52=0,"",Z52),IF(T52=0,"0",$H52*IF($L52="",1,$L52)*T52))),"-") -> 
B53: II.2.3 | C53: 3 | O53: =IFERROR(CONCATENATE("tCO2e/",VLOOKUP($N53,'Emission factors'!$C:$I,6,FALSE)),"") ->  | P53: =IFERROR(VLOOKUP($N53,'Emission factors'!$C:$BQ,9,FALSE),"") ->  | Q53: =IFERROR(VLOOKUP($N53,'Emission factors'!$C:$BQ,12,FALSE),"") ->  | R53: =IFERROR(VLOOKUP($N53,'Emission factors'!$C:$BQ,15,FALSE),"") ->  | S53: =IFERROR(VLOOKUP($N53,'Emission factors'!$C:$BQ,65,FALSE),"") ->  | T53: =IFERROR(VLOOKUP($N53,'Emission factors'!$C:$BQ,67,FALSE),"") ->  | AD53: =IFERROR(IF(AND($N53="",$U53=""),"",IF($N53="",IF(Y53="",SUM(AA53:AC53),IF(Y53=0,"0",Y53)),IF($S53="",SUM($AA53:$AC53),IF($S53=0,"0",$H53*IF($L53="",1,$L53)*$S53)))),"-") ->  | AE53: =IFERROR(IF(AND($N53="",$U53=""),"",IF($N53="",IF(Z53=0,"",Z53),IF(T53=0,"0",$H53*IF($L53="",1,$L53)*T53))),"-") -> 
B55: II.3 WATERBORNE NAVIGATION
B57: GPC ref No. | C57: Scope | D57: GHG Emissions Source | G57: Notation keys | H57: Activity data | J57: Activity data multiplier | M57: Gas(es) | N57: Emission factor | O57: Emission factor | U57: Emissions data | V57: GHGs (metric tonnes CO2e) | AA57: GHGs (metric tonnes CO2e) | AF57: Data Quality | AH57: Description of method(s) used or explanation for using notation key(s) | AI57: Source | AJ57: Data quality explanation (optional)
D58: Method | E58: Activity | F58: Description | H58: Amount | I58: Units | J58: From | K58: To | L58: Factor | O58: Units | P58: CO2 | Q58: CH4 | R58: N2O | S58: Total tCO2e | T58: CO2(b) | V58: CO2 | W58: CH4 | X58: N2O | Y58: Total tCO2e | Z58: CO2(b) | AA58: CO2 | AB58: CH4 | AC58: N2O | AD58: Total tCO2e | AE58: CO2(b) | AF58: AD | AG58: EF
B59: II.3.1 | C59: 1 | D59: Emissions from fuel combustion for waterborne navigation occurring in the city
B60: II.3.1 | C60: 1 | D60: Geographic / Territorial | E60: Diesel oil | F60: Recreational marine vehicles (offroad) | M60: CO2, CH4, N2O | O60: =IFERROR(CONCATENATE("tCO2e/",VLOOKUP($N60,'Emission factors'!$C:$I,6,FALSE)),"") ->  | P60: =IFERROR(VLOOKUP($N60,'Emission factors'!$C:$BQ,9,FALSE),"") ->  | Q60: =IFERROR(VLOOKUP($N60,'Emission factors'!$C:$BQ,12,FALSE),"") ->  | R60: =IFERROR(VLOOKUP($N60,'Emission factors'!$C:$BQ,15,FALSE),"") ->  | S60: =IFERROR(VLOOKUP($N60,'Emission factors'!$C:$BQ,65,FALSE),"") ->  | T60: =IFERROR(VLOOKUP($N60,'Emission factors'!$C:$BQ,67,FALSE),"") ->  | U60: ✓ | Y60: ='[4]NONROAD Summary totals'!$I$45 -> 246.864418 | AA60: =IFERROR(IF(AND($N60="",$U60=""),"",IF($N60="",IF(V60=0,"-",V60),IF(P60=0,"0",$H60*IF($L60="",1,$L60)*P60))),"-") -> - | AB60: - | AC60: - | AD60: =IFERROR(IF(AND($N60="",$U60=""),"",IF($N60="",IF(Y60="",SUM(AA60:AC60),IF(Y60=0,"0",Y60)),IF($S60="",SUM($AA60:$AC60),IF($S60=0,"0",$H60*IF($L60="",1,$L60)*$S60)))),"-") -> 246.864418 | AE60: =IFERROR(IF(AND($N60="",$U60=""),"",IF($N60="",IF(Z60=0,"",Z60),IF(T60=0,"0",$H60*IF($L60="",1,$L60)*T60))),"-") -> 
B61: II.3.1 | C61: 1 | O61: =IFERROR(CONCATENATE("tCO2e/",VLOOKUP($N61,'Emission factors'!$C:$I,6,FALSE)),"") ->  | P61: =IFERROR(VLOOKUP($N61,'Emission factors'!$C:$BQ,9,FALSE),"") ->  | Q61: =IFERROR(VLOOKUP($N61,'Emission factors'!$C:$BQ,12,FALSE),"") ->  | R61: =IFERROR(VLOOKUP($N61,'Emission factors'!$C:$BQ,15,FALSE),"") ->  | S61: =IFERROR(VLOOKUP($N61,'Emission factors'!$C:$BQ,65,FALSE),"") ->  | T61: =IFERROR(VLOOKUP($N61,'Emission factors'!$C:$BQ,67,FALSE),"") ->  | AD61: =IFERROR(IF(AND($N61="",$U61=""),"",IF($N61="",IF(Y61="",SUM(AA61:AC61),IF(Y61=0,"0",Y61)),IF($S61="",SUM($AA61:$AC61),IF($S61=0,"0",$H61*IF($L61="",1,$L61)*$S61)))),"-") ->  | AE61: =IFERROR(IF(AND($N61="",$U61=""),"",IF($N61="",IF(Z61=0,"",Z61),IF(T61=0,"0",$H61*IF($L61="",1,$L61)*T61))),"-") -> 
B62: II.3.2 | C62: 2 | D62: Emissions from grid-supplied energy consumed in the city for waterborne navigation | G62: NO
B63: II.3.2 | C63: 2 | O63: =IFERROR(CONCATENATE("tCO2e/",VLOOKUP($N63,'Emission factors'!$C:$I,6,FALSE)),"") ->  | P63: =IFERROR(VLOOKUP($N63,'Emission factors'!$C:$BQ,9,FALSE),"") ->  | Q63: =IFERROR(VLOOKUP($N63,'Emission factors'!$C:$BQ,12,FALSE),"") ->  | R63: =IFERROR(VLOOKUP($N63,'Emission factors'!$C:$BQ,15,FALSE),"") ->  | S63: =IFERROR(VLOOKUP($N63,'Emission factors'!$C:$BQ,65,FALSE),"") ->  | T63: =IFERROR(VLOOKUP($N63,'Emission factors'!$C:$BQ,67,FALSE),"") ->  | AA63: =IFERROR(IF(AND($N63="",$U63=""),"",IF($N63="",IF(V63=0,"-",V63),IF(P63=0,"0",$H63*IF($L63="",1,$L63)*P63))),"-") ->  | AD63: =IFERROR(IF(AND($N63="",$U63=""),"",IF($N63="",IF(Y63="",SUM(AA63:AC63),IF(Y63=0,"0",Y63)),IF($S63="",SUM($AA63:$AC63),IF($S63=0,"0",$H63*IF($L63="",1,$L63)*$S63)))),"-") ->  | AE63: =IFERROR(IF(AND($N63="",$U63=""),"",IF($N63="",IF(Z63=0,"",Z63),IF(T63=0,"0",$H63*IF($L63="",1,$L63)*T63))),"-") -> 
B64: II.3.2 | C64: 2 | O64: =IFERROR(CONCATENATE("tCO2e/",VLOOKUP($N64,'Emission factors'!$C:$I,6,FALSE)),"") ->  | P64: =IFERROR(VLOOKUP($N64,'Emission factors'!$C:$BQ,9,FALSE),"") ->  | Q64: =IFERROR(VLOOKUP($N64,'Emission factors'!$C:$BQ,12,FALSE),"") ->  | R64: =IFERROR(VLOOKUP($N64,'Emission factors'!$C:$BQ,15,FALSE),"") ->  | S64: =IFERROR(VLOOKUP($N64,'Emission factors'!$C:$BQ,65,FALSE),"") ->  | T64: =IFERROR(VLOOKUP($N64,'Emission factors'!$C:$BQ,67,FALSE),"") ->  | AD64: =IFERROR(IF(AND($N64="",$U64=""),"",IF($N64="",IF(Y64="",SUM(AA64:AC64),IF(Y64=0,"0",Y64)),IF($S64="",SUM($AA64:$AC64),IF($S64=0,"0",$H64*IF($L64="",1,$L64)*$S64)))),"-") ->  | AE64: =IFERROR(IF(AND($N64="",$U64=""),"",IF($N64="",IF(Z64=0,"",Z64),IF(T64=0,"0",$H64*IF($L64="",1,$L64)*T64))),"-") -> 
B65: II.3.3 | C65: 3 | D65: Emissions from transboundary journeys occurring outside the city, and T&D losses from grid-supplied energy consumption | G65: NO
B66: II.3.3 | C66: 3 | O66: =IFERROR(CONCATENATE("tCO2e/",VLOOKUP($N66,'Emission factors'!$C:$I,6,FALSE)),"") ->  | P66: =IFERROR(VLOOKUP($N66,'Emission factors'!$C:$BQ,9,FALSE),"") ->  | Q66: =IFERROR(VLOOKUP($N66,'Emission factors'!$C:$BQ,12,FALSE),"") ->  | R66: =IFERROR(VLOOKUP($N66,'Emission factors'!$C:$BQ,15,FALSE),"") ->  | S66: =IFERROR(VLOOKUP($N66,'Emission factors'!$C:$BQ,65,FALSE),"") ->  | T66: =IFERROR(VLOOKUP($N66,'Emission factors'!$C:$BQ,67,FALSE),"") ->  | AA66: =IFERROR(IF(AND($N66="",$U66=""),"",IF($N66="",IF(V66=0,"-",V66),IF(P66=0,"0",$H66*IF($L66="",1,$L66)*P66))),"-") ->  | AD66: =IFERROR(IF(AND($N66="",$U66=""),"",IF($N66="",IF(Y66="",SUM(AA66:AC66),IF(Y66=0,"0",Y66)),IF($S66="",SUM($AA66:$AC66),IF($S66=0,"0",$H66*IF($L66="",1,$L66)*$S66)))),"-") ->  | AE66: =IFERROR(IF(AND($N66="",$U66=""),"",IF($N66="",IF(Z66=0,"",Z66),IF(T66=0,"0",$H66*IF($L66="",1,$L66)*T66))),"-") -> 
B67: II.3.3 | C67: 3 | O67: =IFERROR(CONCATENATE("tCO2e/",VLOOKUP($N67,'Emission factors'!$C:$I,6,FALSE)),"") ->  | P67: =IFERROR(VLOOKUP($N67,'Emission factors'!$C:$BQ,9,FALSE),"") ->  | Q67: =IFERROR(VLOOKUP($N67,'Emission factors'!$C:$BQ,12,FALSE),"") ->  | R67: =IFERROR(VLOOKUP($N67,'Emission factors'!$C:$BQ,15,FALSE),"") ->  | S67: =IFERROR(VLOOKUP($N67,'Emission factors'!$C:$BQ,65,FALSE),"") ->  | T67: =IFERROR(VLOOKUP($N67,'Emission factors'!$C:$BQ,67,FALSE),"") ->  | AD67: =IFERROR(IF(AND($N67="",$U67=""),"",IF($N67="",IF(Y67="",SUM(AA67:AC67),IF(Y67=0,"0",Y67)),IF($S67="",SUM($AA67:$AC67),IF($S67=0,"0",$H67*IF($L67="",1,$L67)*$S67)))),"-") ->  | AE67: =IFERROR(IF(AND($N67="",$U67=""),"",IF($N67="",IF(Z67=0,"",Z67),IF(T67=0,"0",$H67*IF($L67="",1,$L67)*T67))),"-") -> 
B69: II.4 AVIATION
B71: GPC ref No. | C71: Scope | D71: GHG Emissions Source | G71: Notation keys | H71: Activity data | J71: Activity data multiplier | M71: Gas(es) | N71: Emission factor | O71: Emission factor | U71: Emissions data | V71: GHGs (metric tonnes CO2e) | AA71: GHGs (metric tonnes CO2e) | AF71: Data Quality | AH71: Description of method(s) used or explanation for using notation key(s) | AI71: Source | AJ71: Data quality explanation (optional)
D72: Method | E72: Activity | F72: Description | H72: Amount | I72: Units | J72: From | K72: To | L72: Factor | O72: Units | P72: CO2 | Q72: CH4 | R72: N2O | S72: Total tCO2e | T72: CO2(b) | V72: CO2 | W72: CH4 | X72: N2O | Y72: Total tCO2e | Z72: CO2(b) | AA72: CO2 | AB72: CH4 | AC72: N2O | AD72: Total tCO2e | AE72: CO2(b) | AF72: AD | AG72: EF
B73: II.4.1 | C73: 1 | D73: Emissions from fuel combustion for aviation occurring in the city | G73: NO
B74: II.4.1 | C74: 1 | O74: =IFERROR(CONCATENATE("tCO2e/",VLOOKUP($N74,'Emission factors'!$C:$I,6,FALSE)),"") ->  | P74: =IFERROR(VLOOKUP($N74,'Emission factors'!$C:$BQ,9,FALSE),"") ->  | Q74: =IFERROR(VLOOKUP($N74,'Emission factors'!$C:$BQ,12,FALSE),"") ->  | R74: =IFERROR(VLOOKUP($N74,'Emission factors'!$C:$BQ,15,FALSE),"") ->  | S74: =IFERROR(VLOOKUP($N74,'Emission factors'!$C:$BQ,65,FALSE),"") ->  | T74: =IFERROR(VLOOKUP($N74,'Emission factors'!$C:$BQ,67,FALSE),"") ->  | AA74: =IFERROR(IF(AND($N74="",$U74=""),"",IF($N74="",IF(V74=0,"-",V74),IF(P74=0,"0",$H74*IF($L74="",1,$L74)*P74))),"-") ->  | AD74: =IFERROR(IF(AND($N74="",$U74=""),"",IF($N74="",IF(Y74="",SUM(AA74:AC74),IF(Y74=0,"0",Y74)),IF($S74="",SUM($AA74:$AC74),IF($S74=0,"0",$H74*IF($L74="",1,$L74)*$S74)))),"-") ->  | AE74: =IFERROR(IF(AND($N74="",$U74=""),"",IF($N74="",IF(Z74=0,"",Z74),IF(T74=0,"0",$H74*IF($L74="",1,$L74)*T74))),"-") -> 
B75: II.4.1 | C75: 1 | O75: =IFERROR(CONCATENATE("tCO2e/",VLOOKUP($N75,'Emission factors'!$C:$I,6,FALSE)),"") ->  | P75: =IFERROR(VLOOKUP($N75,'Emission factors'!$C:$BQ,9,FALSE),"") ->  | Q75: =IFERROR(VLOOKUP($N75,'Emission factors'!$C:$BQ,12,FALSE),"") ->  | R75: =IFERROR(VLOOKUP($N75,'Emission factors'!$C:$BQ,15,FALSE),"") ->  | S75: =IFERROR(VLOOKUP($N75,'Emission factors'!$C:$BQ,65,FALSE),"") ->  | T75: =IFERROR(VLOOKUP($N75,'Emission factors'!$C:$BQ,67,FALSE),"") ->  | AD75: =IFERROR(IF(AND($N75="",$U75=""),"",IF($N75="",IF(Y75="",SUM(AA75:AC75),IF(Y75=0,"0",Y75)),IF($S75="",SUM($AA75:$AC75),IF($S75=0,"0",$H75*IF($L75="",1,$L75)*$S75)))),"-") ->  | AE75: =IFERROR(IF(AND($N75="",$U75=""),"",IF($N75="",IF(Z75=0,"",Z75),IF(T75=0,"0",$H75*IF($L75="",1,$L75)*T75))),"-") -> 
B76: II.4.2 | C76: 2 | D76: Emissions from grid-supplied energy consumed in the city for aviation | G76: NO | AH76: II.4.2 does not occur
B77: II.4.2 | C77: 2 | O77: =IFERROR(CONCATENATE("tCO2e/",VLOOKUP($N77,'Emission factors'!$C:$I,6,FALSE)),"") ->  | P77: =IFERROR(VLOOKUP($N77,'Emission factors'!$C:$BQ,9,FALSE),"") ->  | Q77: =IFERROR(VLOOKUP($N77,'Emission factors'!$C:$BQ,12,FALSE),"") ->  | R77: =IFERROR(VLOOKUP($N77,'Emission factors'!$C:$BQ,15,FALSE),"") ->  | S77: =IFERROR(VLOOKUP($N77,'Emission factors'!$C:$BQ,65,FALSE),"") ->  | T77: =IFERROR(VLOOKUP($N77,'Emission factors'!$C:$BQ,67,FALSE),"") ->  | AA77: =IFERROR(IF(AND($N77="",$U77=""),"",IF($N77="",IF(V77=0,"-",V77),IF(P77=0,"0",$H77*IF($L77="",1,$L77)*P77))),"-") ->  | AD77: =IFERROR(IF(AND($N77="",$U77=""),"",IF($N77="",IF(Y77="",SUM(AA77:AC77),IF(Y77=0,"0",Y77)),IF($S77="",SUM($AA77:$AC77),IF($S77=0,"0",$H77*IF($L77="",1,$L77)*$S77)))),"-") ->  | AE77: =IFERROR(IF(AND($N77="",$U77=""),"",IF($N77="",IF(Z77=0,"",Z77),IF(T77=0,"0",$H77*IF($L77="",1,$L77)*T77))),"-") -> 
B78: II.4.2 | C78: 2 | O78: =IFERROR(CONCATENATE("tCO2e/",VLOOKUP($N78,'Emission factors'!$C:$I,6,FALSE)),"") ->  | P78: =IFERROR(VLOOKUP($N78,'Emission factors'!$C:$BQ,9,FALSE),"") ->  | Q78: =IFERROR(VLOOKUP($N78,'Emission factors'!$C:$BQ,12,FALSE),"") ->  | R78: =IFERROR(VLOOKUP($N78,'Emission factors'!$C:$BQ,15,FALSE),"") ->  | S78: =IFERROR(VLOOKUP($N78,'Emission factors'!$C:$BQ,65,FALSE),"") ->  | T78: =IFERROR(VLOOKUP($N78,'Emission factors'!$C:$BQ,67,FALSE),"") ->  | AD78: =IFERROR(IF(AND($N78="",$U78=""),"",IF($N78="",IF(Y78="",SUM(AA78:AC78),IF(Y78=0,"0",Y78)),IF($S78="",SUM($AA78:$AC78),IF($S78=0,"0",$H78*IF($L78="",1,$L78)*$S78)))),"-") ->  | AE78: =IFERROR(IF(AND($N78="",$U78=""),"",IF($N78="",IF(Z78=0,"",Z78),IF(T78=0,"0",$H78*IF($L78="",1,$L78)*T78))),"-") -> 
B79: II.4.3 | C79: 3 | D79: Emissions from transboundary journeys occurring outside the city, and T&D losses from grid-supplied energy consumption | G79: NO
B80: II.4.3 | C80: 3 | O80: =IFERROR(CONCATENATE("tCO2e/",VLOOKUP($N80,'Emission factors'!$C:$I,6,FALSE)),"") ->  | P80: =IFERROR(VLOOKUP($N80,'Emission factors'!$C:$BQ,9,FALSE),"") ->  | Q80: =IFERROR(VLOOKUP($N80,'Emission factors'!$C:$BQ,12,FALSE),"") ->  | R80: =IFERROR(VLOOKUP($N80,'Emission factors'!$C:$BQ,15,FALSE),"") ->  | S80: =IFERROR(VLOOKUP($N80,'Emission factors'!$C:$BQ,65,FALSE),"") ->  | T80: =IFERROR(VLOOKUP($N80,'Emission factors'!$C:$BQ,67,FALSE),"") ->  | AA80: =IFERROR(IF(AND($N80="",$U80=""),"",IF($N80="",IF(V80=0,"-",V80),IF(P80=0,"0",$H80*IF($L80="",1,$L80)*P80))),"-") ->  | AD80: =IFERROR(IF(AND($N80="",$U80=""),"",IF($N80="",IF(Y80="",SUM(AA80:AC80),IF(Y80=0,"0",Y80)),IF($S80="",SUM($AA80:$AC80),IF($S80=0,"0",$H80*IF($L80="",1,$L80)*$S80)))),"-") ->  | AE80: =IFERROR(IF(AND($N80="",$U80=""),"",IF($N80="",IF(Z80=0,"",Z80),IF(T80=0,"0",$H80*IF($L80="",1,$L80)*T80))),"-") -> 
B81: II.4.3 | C81: 3 | O81: =IFERROR(CONCATENATE("tCO2e/",VLOOKUP($N81,'Emission factors'!$C:$I,6,FALSE)),"") ->  | P81: =IFERROR(VLOOKUP($N81,'Emission factors'!$C:$BQ,9,FALSE),"") ->  | Q81: =IFERROR(VLOOKUP($N81,'Emission factors'!$C:$BQ,12,FALSE),"") ->  | R81: =IFERROR(VLOOKUP($N81,'Emission factors'!$C:$BQ,15,FALSE),"") ->  | S81: =IFERROR(VLOOKUP($N81,'Emission factors'!$C:$BQ,65,FALSE),"") ->  | T81: =IFERROR(VLOOKUP($N81,'Emission factors'!$C:$BQ,67,FALSE),"") ->  | AD81: =IFERROR(IF(AND($N81="",$U81=""),"",IF($N81="",IF(Y81="",SUM(AA81:AC81),IF(Y81=0,"0",Y81)),IF($S81="",SUM($AA81:$AC81),IF($S81=0,"0",$H81*IF($L81="",1,$L81)*$S81)))),"-") ->  | AE81: =IFERROR(IF(AND($N81="",$U81=""),"",IF($N81="",IF(Z81=0,"",Z81),IF(T81=0,"0",$H81*IF($L81="",1,$L81)*T81))),"-") -> 
B83: II.5 OFF-ROAD TRANSPORTATION
B85: GPC ref No. | C85: Scope | D85: GHG Emissions Source | G85: Notation keys | H85: Activity data | J85: Activity data multiplier | M85: Gas(es) | N85: Emission factor | O85: Emission factor | U85: Emissions data | V85: GHGs (metric tonnes CO2e) | AA85: GHGs (metric tonnes CO2e) | AF85: Data Quality | AH85: Description of method(s) used or explanation for using notation key(s) | AI85: Source | AJ85: Data quality explanation (optional)
D86: Method | E86: Activity | F86: Description | H86: Amount | I86: Units | J86: From | K86: To | L86: Factor | O86: Units | P86: CO2 | Q86: CH4 | R86: N2O | S86: Total tCO2e | T86: CO2(b) | V86: CO2 | W86: CH4 | X86: N2O | Y86: Total tCO2e | Z86: CO2(b) | AA86: CO2 | AB86: CH4 | AC86: N2O | AD86: Total tCO2e | AE86: CO2(b) | AF86: AD | AG86: EF
B87: II.5.1 | C87: 1 | D87: Emissions from fuel combustion for off-road transportation occurring in the city
B88: II.5.1 | C88: 1 | D88: Geographic / Territorial | E88: Diesel oil | F88: Railway maintenance vehicles | M88: CO2, CH4, N2O | O88: =IFERROR(CONCATENATE("tCO2e/",VLOOKUP($N88,'Emission factors'!$C:$I,6,FALSE)),"") ->  | P88: =IFERROR(VLOOKUP($N88,'Emission factors'!$C:$BQ,9,FALSE),"") ->  | Q88: =IFERROR(VLOOKUP($N88,'Emission factors'!$C:$BQ,12,FALSE),"") ->  | R88: =IFERROR(VLOOKUP($N88,'Emission factors'!$C:$BQ,15,FALSE),"") ->  | S88: =IFERROR(VLOOKUP($N88,'Emission factors'!$C:$BQ,65,FALSE),"") ->  | T88: =IFERROR(VLOOKUP($N88,'Emission factors'!$C:$BQ,67,FALSE),"") ->  | U88: ✓ | Y88: ='[4]NONROAD Summary totals'!$I$37 -> 1011.67266 | AA88: =IFERROR(IF(AND($N88="",$U88=""),"",IF($N88="",IF(V88=0,"-",V88),IF(P88=0,"0",$H88*IF($L88="",1,$L88)*P88))),"-") -> - | AB88: - | AC88: - | AD88: =IFERROR(IF(AND($N88="",$U88=""),"",IF($N88="",IF(Y88="",SUM(AA88:AC88),IF(Y88=0,"0",Y88)),IF($S88="",SUM($AA88:$AC88),IF($S88=0,"0",$H88*IF($L88="",1,$L88)*$S88)))),"-") -> 1011.67266 | AE88: =IFERROR(IF(AND($N88="",$U88=""),"",IF($N88="",IF(Z88=0,"",Z88),IF(T88=0,"0",$H88*IF($L88="",1,$L88)*T88))),"-") -> 
B89: II.5.1 | C89: 1 | O89: =IFERROR(CONCATENATE("tCO2e/",VLOOKUP($N89,'Emission factors'!$C:$I,6,FALSE)),"") ->  | P89: =IFERROR(VLOOKUP($N89,'Emission factors'!$C:$BQ,9,FALSE),"") ->  | Q89: =IFERROR(VLOOKUP($N89,'Emission factors'!$C:$BQ,12,FALSE),"") ->  | R89: =IFERROR(VLOOKUP($N89,'Emission factors'!$C:$BQ,15,FALSE),"") ->  | S89: =IFERROR(VLOOKUP($N89,'Emission factors'!$C:$BQ,65,FALSE),"") ->  | T89: =IFERROR(VLOOKUP($N89,'Emission factors'!$C:$BQ,67,FALSE),"") ->  | AD89: =IFERROR(IF(AND($N89="",$U89=""),"",IF($N89="",IF(Y89="",SUM(AA89:AC89),IF(Y89=0,"0",Y89)),IF($S89="",SUM($AA89:$AC89),IF($S89=0,"0",$H89*IF($L89="",1,$L89)*$S89)))),"-") ->  | AE89: =IFERROR(IF(AND($N89="",$U89=""),"",IF($N89="",IF(Z89=0,"",Z89),IF(T89=0,"0",$H89*IF($L89="",1,$L89)*T89))),"-") -> 
B90: II.5.2 | C90: 2 | D90: Emissions from grid-supplied energy consumed in the city for off-road transportation | G90: NO
B91: II.5.2 | C91: 2 | O91: =IFERROR(CONCATENATE("tCO2e/",VLOOKUP($N91,'Emission factors'!$C:$I,6,FALSE)),"") ->  | P91: =IFERROR(VLOOKUP($N91,'Emission factors'!$C:$BQ,9,FALSE),"") ->  | Q91: =IFERROR(VLOOKUP($N91,'Emission factors'!$C:$BQ,12,FALSE),"") ->  | R91: =IFERROR(VLOOKUP($N91,'Emission factors'!$C:$BQ,15,FALSE),"") ->  | S91: =IFERROR(VLOOKUP($N91,'Emission factors'!$C:$BQ,65,FALSE),"") ->  | T91: =IFERROR(VLOOKUP($N91,'Emission factors'!$C:$BQ,67,FALSE),"") ->  | AA91: =IFERROR(IF(AND($N91="",$U91=""),"",IF($N91="",IF(V91=0,"-",V91),IF(P91=0,"0",$H91*IF($L91="",1,$L91)*P91))),"-") ->  | AD91: =IFERROR(IF(AND($N91="",$U91=""),"",IF($N91="",IF(Y91="",SUM(AA91:AC91),IF(Y91=0,"0",Y91)),IF($S91="",SUM($AA91:$AC91),IF($S91=0,"0",$H91*IF($L91="",1,$L91)*$S91)))),"-") ->  | AE91: =IFERROR(IF(AND($N91="",$U91=""),"",IF($N91="",IF(Z91=0,"",Z91),IF(T91=0,"0",$H91*IF($L91="",1,$L91)*T91))),"-") -> 
B92: II.5.2 | C92: 2 | O92: =IFERROR(CONCATENATE("tCO2e/",VLOOKUP($N92,'Emission factors'!$C:$I,6,FALSE)),"") ->  | P92: =IFERROR(VLOOKUP($N92,'Emission factors'!$C:$BQ,9,FALSE),"") ->  | Q92: =IFERROR(VLOOKUP($N92,'Emission factors'!$C:$BQ,12,FALSE),"") ->  | R92: =IFERROR(VLOOKUP($N92,'Emission factors'!$C:$BQ,15,FALSE),"") ->  | S92: =IFERROR(VLOOKUP($N92,'Emission factors'!$C:$BQ,65,FALSE),"") ->  | T92: =IFERROR(VLOOKUP($N92,'Emission factors'!$C:$BQ,67,FALSE),"") ->  | AD92: =IFERROR(IF(AND($N92="",$U92=""),"",IF($N92="",IF(Y92="",SUM(AA92:AC92),IF(Y92=0,"0",Y92)),IF($S92="",SUM($AA92:$AC92),IF($S92=0,"0",$H92*IF($L92="",1,$L92)*$S92)))),"-") ->  | AE92: =IFERROR(IF(AND($N92="",$U92=""),"",IF($N92="",IF(Z92=0,"",Z92),IF(T92=0,"0",$H92*IF($L92="",1,$L92)*T92))),"-") -> 
B93: II.5.3 | C93: 3 | D93: Emissions from transboundary journeys occurring outside the city, and T&D losses from grid-supplied energy consumption | G93: NO | AH93: II.5.3 does not occur
B94: II.5.3 | C94: 3 | O94: =IFERROR(CONCATENATE("tCO2e/",VLOOKUP($N94,'Emission factors'!$C:$I,6,FALSE)),"") ->  | P94: =IFERROR(VLOOKUP($N94,'Emission factors'!$C:$BQ,9,FALSE),"") ->  | Q94: =IFERROR(VLOOKUP($N94,'Emission factors'!$C:$BQ,12,FALSE),"") ->  | R94: =IFERROR(VLOOKUP($N94,'Emission factors'!$C:$BQ,15,FALSE),"") ->  | S94: =IFERROR(VLOOKUP($N94,'Emission factors'!$C:$BQ,65,FALSE),"") ->  | T94: =IFERROR(VLOOKUP($N94,'Emission factors'!$C:$BQ,67,FALSE),"") ->  | AA94: =IFERROR(IF(AND($N94="",$U94=""),"",IF($N94="",IF(V94=0,"-",V94),IF(P94=0,"0",$H94*IF($L94="",1,$L94)*P94))),"-") ->  | AD94: =IFERROR(IF(AND($N94="",$U94=""),"",IF($N94="",IF(Y94="",SUM(AA94:AC94),IF(Y94=0,"0",Y94)),IF($S94="",SUM($AA94:$AC94),IF($S94=0,"0",$H94*IF($L94="",1,$L94)*$S94)))),"-") ->  | AE94: =IFERROR(IF(AND($N94="",$U94=""),"",IF($N94="",IF(Z94=0,"",Z94),IF(T94=0,"0",$H94*IF($L94="",1,$L94)*T94))),"-") -> 
B95: II.5.3 | C95: 3 | O95: =IFERROR(CONCATENATE("tCO2e/",VLOOKUP($N95,'Emission factors'!$C:$I,6,FALSE)),"") ->  | P95: =IFERROR(VLOOKUP($N95,'Emission factors'!$C:$BQ,9,FALSE),"") ->  | Q95: =IFERROR(VLOOKUP($N95,'Emission factors'!$C:$BQ,12,FALSE),"") ->  | R95: =IFERROR(VLOOKUP($N95,'Emission factors'!$C:$BQ,15,FALSE),"") ->  | S95: =IFERROR(VLOOKUP($N95,'Emission factors'!$C:$BQ,65,FALSE),"") ->  | T95: =IFERROR(VLOOKUP($N95,'Emission factors'!$C:$BQ,67,FALSE),"") ->  | AD95: =IFERROR(IF(AND($N95="",$U95=""),"",IF($N95="",IF(Y95="",SUM(AA95:AC95),IF(Y95=0,"0",Y95)),IF($S95="",SUM($AA95:$AC95),IF($S95=0,"0",$H95*IF($L95="",1,$L95)*$S95)))),"-") ->  | AE95: =IFERROR(IF(AND($N95="",$U95=""),"",IF($N95="",IF(Z95=0,"",Z95),IF(T95=0,"0",$H95*IF($L95="",1,$L95)*T95))),"-") -> 
B97: II. MACRO

Sheet III - Waste
B2: III WASTE | H2:  | N2:  | U2:  | AI2: 
B4: Use this tab to record activity and emissions data for Waste sources. Emission factors should be recorded in the 'Emission factors' tab. | H4: Convert activity data units | N4: View emission factor(s) | U4: Enter emissions data | AI4: Data quality explanation (optional)
B6: III.1 SOLID WASTE DISPOSAL
B8: GPC ref No. | C8: Scope | D8: GHG Emissions Source | G8: Notation keys | H8: Activity data | J8: Activity data multiplier | M8: Gas(es) | N8: Emission factor | O8: Emission factor | U8: Emissions data | V8: GHGs (metric tonnes CO2e) | AA8: GHGs (metric tonnes CO2e) | AF8: Data Quality | AH8: Description of method(s) used or explanation for using notation key(s) | AI8: Source | AJ8: Data quality explanation (optional)
D9: Activity | E9: Waste type | F9: Description | H9: Amount | I9: Units | J9: From | K9: To | L9: Factor | O9: Units | P9: CO2 | Q9: CH4 | R9: N2O | S9: Total tCO2e | T9: CO2(b) | V9: CO2 | W9: CH4 | X9: N2O | Y9: Total tCO2e | Z9: CO2(b) | AA9: CO2 | AB9: CH4 | AC9: N2O | AD9: Total tCO2e | AE9: CO2(b) | AF9: AD | AG9: EF
B10: III.1.1 | C10: 1 | D10: Emissions from solid waste generated in the city and disposed in landfills or open dumps within the city
B11: III.1.1 | C11: 1 | D11: Landfill sites - First order decay | E11: Municipal solid waste | O11: =IFERROR(CONCATENATE("tCO2e/",VLOOKUP($N11,'Emission factors'!$C:$I,6,FALSE)),"") ->  | P11: =IFERROR(VLOOKUP($N11,'Emission factors'!$C:$BQ,9,FALSE),"") ->  | Q11: =IFERROR(VLOOKUP($N11,'Emission factors'!$C:$BQ,12,FALSE),"") ->  | R11: =IFERROR(VLOOKUP($N11,'Emission factors'!$C:$BQ,15,FALSE),"") ->  | S11: =IFERROR(VLOOKUP($N11,'Emission factors'!$C:$BQ,65,FALSE),"") ->  | T11: =IFERROR(VLOOKUP($N11,'Emission factors'!$C:$BQ,67,FALSE),"") ->  | U11: ✓ | W11: =[7]Summary!$B$21 -> 1291449.038 | AA11: =IFERROR(IF(AND($N11="",$U11=""),"",IF($N11="",IF(V11=0,"-",V11),IF(P11=0,"0",$H11*IF($L11="",1,$L11)*P11))),"-") -> - | AB11: 1291449.038 | AC11: - | AD11: =IFERROR(IF(AND($N11="",$U11=""),"",IF($N11="",IF(Y11="",SUM(AA11:AC11),IF(Y11=0,"0",Y11)),IF($S11="",SUM($AA11:$AC11),IF($S11=0,"0",$H11*IF($L11="",1,$L11)*$S11)))),"-") -> 1291449.038 | AE11: =IFERROR(IF(AND($N11="",$U11=""),"",IF($N11="",IF(Z11=0,"-",Z11),IF(T11=0,"0",$H11*IF($L11="",1,$L11)*T11))),"-") -> -
B12: III.1.1 | C12: 1 | O12: =IFERROR(CONCATENATE("tCO2e/",VLOOKUP($N12,'Emission factors'!$C:$I,6,FALSE)),"") ->  | P12: =IFERROR(VLOOKUP($N12,'Emission factors'!$C:$BQ,9,FALSE),"") ->  | Q12: =IFERROR(VLOOKUP($N12,'Emission factors'!$C:$BQ,12,FALSE),"") ->  | R12: =IFERROR(VLOOKUP($N12,'Emission factors'!$C:$BQ,15,FALSE),"") ->  | S12: =IFERROR(VLOOKUP($N12,'Emission factors'!$C:$BQ,65,FALSE),"") ->  | T12: =IFERROR(VLOOKUP($N12,'Emission factors'!$C:$BQ,67,FALSE),"") ->  | AD12: =IFERROR(IF(AND($N12="",$U12=""),"",IF($N12="",IF(Y12="",SUM(AA12:AC12),IF(Y12=0,"0",Y12)),IF($S12="",SUM($AA12:$AC12),IF($S12=0,"0",$H12*IF($L12="",1,$L12)*$S12)))),"-") ->  | AE12: =IFERROR(IF(AND($N12="",$U12=""),"",IF($N12="",IF(Z12=0,"-",Z12),IF(T12=0,"0",$H12*IF($L12="",1,$L12)*T12))),"-") -> 
B13: III.1.2 | C13: 3 | D13: Emissions from solid waste generated in the city but disposed in landfills or open dumps outside the city | G13: NO
B14: III.1.2 | C14: 3 | O14: =IFERROR(CONCATENATE("tCO2e/",VLOOKUP($N14,'Emission factors'!$C:$I,6,FALSE)),"") ->  | P14: =IFERROR(VLOOKUP($N14,'Emission factors'!$C:$BQ,9,FALSE),"") ->  | Q14: =IFERROR(VLOOKUP($N14,'Emission factors'!$C:$BQ,12,FALSE),"") ->  | R14: =IFERROR(VLOOKUP($N14,'Emission factors'!$C:$BQ,15,FALSE),"") ->  | S14: =IFERROR(VLOOKUP($N14,'Emission factors'!$C:$BQ,65,FALSE),"") ->  | T14: =IFERROR(VLOOKUP($N14,'Emission factors'!$C:$BQ,67,FALSE),"") ->  | AA14: =IFERROR(IF(AND($N14="",$U14=""),"",IF($N14="",IF(V14=0,"-",V14),IF(P14=0,"0",$H14*IF($L14="",1,$L14)*P14))),"-") ->  | AD14: =IFERROR(IF(AND($N14="",$U14=""),"",IF($N14="",IF(Y14="",SUM(AA14:AC14),IF(Y14=0,"0",Y14)),IF($S14="",SUM($AA14:$AC14),IF($S14=0,"0",$H14*IF($L14="",1,$L14)*$S14)))),"-") ->  | AE14: =IFERROR(IF(AND($N14="",$U14=""),"",IF($N14="",IF(Z14=0,"-",Z14),IF(T14=0,"0",$H14*IF($L14="",1,$L14)*T14))),"-") -> 
B15: III.1.2 | C15: 3 | O15: =IFERROR(CONCATENATE("tCO2e/",VLOOKUP($N15,'Emission factors'!$C:$I,6,FALSE)),"") ->  | P15: =IFERROR(VLOOKUP($N15,'Emission factors'!$C:$BQ,9,FALSE),"") ->  | Q15: =IFERROR(VLOOKUP($N15,'Emission factors'!$C:$BQ,12,FALSE),"") ->  | R15: =IFERROR(VLOOKUP($N15,'Emission factors'!$C:$BQ,15,FALSE),"") ->  | S15: =IFERROR(VLOOKUP($N15,'Emission factors'!$C:$BQ,65,FALSE),"") ->  | T15: =IFERROR(VLOOKUP($N15,'Emission factors'!$C:$BQ,67,FALSE),"") ->  | AD15: =IFERROR(IF(AND($N15="",$U15=""),"",IF($N15="",IF(Y15="",SUM(AA15:AC15),IF(Y15=0,"0",Y15)),IF($S15="",SUM($AA15:$AC15),IF($S15=0,"0",$H15*IF($L15="",1,$L15)*$S15)))),"-") ->  | AE15: =IFERROR(IF(AND($N15="",$U15=""),"",IF($N15="",IF(Z15=0,"-",Z15),IF(T15=0,"0",$H15*IF($L15="",1,$L15)*T15))),"-") -> 
B16: III.1.3 | C16: 1 | D16: Emissions from waste generated outside the city and disposed in landfills or open dumps within the city | G16: NO
B17: III.1.3 | C17: 1 | O17: =IFERROR(CONCATENATE("tCO2e/",VLOOKUP($N17,'Emission factors'!$C:$I,6,FALSE)),"") ->  | P17: =IFERROR(VLOOKUP($N17,'Emission factors'!$C:$BQ,9,FALSE),"") ->  | Q17: =IFERROR(VLOOKUP($N17,'Emission factors'!$C:$BQ,12,FALSE),"") ->  | R17: =IFERROR(VLOOKUP($N17,'Emission factors'!$C:$BQ,15,FALSE),"") ->  | S17: =IFERROR(VLOOKUP($N17,'Emission factors'!$C:$BQ,65,FALSE),"") ->  | T17: =IFERROR(VLOOKUP($N17,'Emission factors'!$C:$BQ,67,FALSE),"") ->  | AA17: =IFERROR(IF(AND($N17="",$U17=""),"",IF($N17="",IF(V17=0,"-",V17),IF(P17=0,"0",$H17*IF($L17="",1,$L17)*P17))),"-") ->  | AD17: =IFERROR(IF(AND($N17="",$U17=""),"",IF($N17="",IF(Y17="",SUM(AA17:AC17),IF(Y17=0,"0",Y17)),IF($S17="",SUM($AA17:$AC17),IF($S17=0,"0",$H17*IF($L17="",1,$L17)*$S17)))),"-") ->  | AE17: =IFERROR(IF(AND($N17="",$U17=""),"",IF($N17="",IF(Z17=0,"-",Z17),IF(T17=0,"0",$H17*IF($L17="",1,$L17)*T17))),"-") -> 
B18: III.1.3 | C18: 1 | O18: =IFERROR(CONCATENATE("tCO2e/",VLOOKUP($N18,'Emission factors'!$C:$I,6,FALSE)),"") ->  | P18: =IFERROR(VLOOKUP($N18,'Emission factors'!$C:$BQ,9,FALSE),"") ->  | Q18: =IFERROR(VLOOKUP($N18,'Emission factors'!$C:$BQ,12,FALSE),"") ->  | R18: =IFERROR(VLOOKUP($N18,'Emission factors'!$C:$BQ,15,FALSE),"") ->  | S18: =IFERROR(VLOOKUP($N18,'Emission factors'!$C:$BQ,65,FALSE),"") ->  | T18: =IFERROR(VLOOKUP($N18,'Emission factors'!$C:$BQ,67,FALSE),"") ->  | AD18: =IFERROR(IF(AND($N18="",$U18=""),"",IF($N18="",IF(Y18="",SUM(AA18:AC18),IF(Y18=0,"0",Y18)),IF($S18="",SUM($AA18:$AC18),IF($S18=0,"0",$H18*IF($L18="",1,$L18)*$S18)))),"-") ->  | AE18: =IFERROR(IF(AND($N18="",$U18=""),"",IF($N18="",IF(Z18=0,"-",Z18),IF(T18=0,"0",$H18*IF($L18="",1,$L18)*T18))),"-") -> 
B20: III.2 BIOLOGICAL TREATMENT OF WASTE
B22: GPC ref No. | C22: Scope | D22: GHG Emissions Source | G22: Notation keys | H22: Activity data | J22: Activity data multiplier | M22: Gas(es) | N22: Emission factor | O22: Emission factor | U22: Emissions data | V22: GHGs (metric tonnes CO2e) | AA22: GHGs (metric tonnes CO2e) | AF22: Data Quality | AH22: Description of method(s) used or explanation for using notation key(s) | AI22: Source | AJ22: Data quality explanation (optional)
D23: Activity | E23: Waste type | F23: Description | H23: Amount | I23: Units | J23: From | K23: To | L23: Factor | O23: Units | P23: CO2 | Q23: CH4 | R23: N2O | S23: Total tCO2e | T23: CO2(b) | V23: CO2 | W23: CH4 | X23: N2O | Y23: Total tCO2e | Z23: CO2(b) | AA23: CO2 | AB23: CH4 | AC23: N2O | AD23: Total tCO2e | AE23: CO2(b) | AF23: AD | AG23: EF
B24: III.2.1 | C24: 1 | D24: Emissions from solid waste generated in the city that is treated biologically in the city | G24: NO
B25: III.2.1 | C25: 1 | O25: =IFERROR(CONCATENATE("tCO2e/",VLOOKUP($N25,'Emission factors'!$C:$I,6,FALSE)),"") ->  | P25: =IFERROR(VLOOKUP($N25,'Emission factors'!$C:$BQ,9,FALSE),"") ->  | Q25: =IFERROR(VLOOKUP($N25,'Emission factors'!$C:$BQ,12,FALSE),"") ->  | R25: =IFERROR(VLOOKUP($N25,'Emission factors'!$C:$BQ,15,FALSE),"") ->  | S25: =IFERROR(VLOOKUP($N25,'Emission factors'!$C:$BQ,65,FALSE),"") ->  | T25: =IFERROR(VLOOKUP($N25,'Emission factors'!$C:$BQ,67,FALSE),"") ->  | AA25: =IFERROR(IF(AND($N25="",$U25=""),"",IF($N25="",IF(V25=0,"-",V25),IF(P25=0,"0",$H25*IF($L25="",1,$L25)*P25))),"-") ->  | AD25: =IFERROR(IF(AND($N25="",$U25=""),"",IF($N25="",IF(Y25="",SUM(AA25:AC25),IF(Y25=0,"0",Y25)),IF($S25="",SUM($AA25:$AC25),IF($S25=0,"0",$H25*IF($L25="",1,$L25)*$S25)))),"-") ->  | AE25: =IFERROR(IF(AND($N25="",$U25=""),"",IF($N25="",IF(Z25=0,"-",Z25),IF(T25=0,"0",$H25*IF($L25="",1,$L25)*T25))),"-") -> 
B26: III.2.1 | C26: 1 | O26: =IFERROR(CONCATENATE("tCO2e/",VLOOKUP($N26,'Emission factors'!$C:$I,6,FALSE)),"") ->  | P26: =IFERROR(VLOOKUP($N26,'Emission factors'!$C:$BQ,9,FALSE),"") ->  | Q26: =IFERROR(VLOOKUP($N26,'Emission factors'!$C:$BQ,12,FALSE),"") ->  | R26: =IFERROR(VLOOKUP($N26,'Emission factors'!$C:$BQ,15,FALSE),"") ->  | S26: =IFERROR(VLOOKUP($N26,'Emission factors'!$C:$BQ,65,FALSE),"") ->  | T26: =IFERROR(VLOOKUP($N26,'Emission factors'!$C:$BQ,67,FALSE),"") ->  | AD26: =IFERROR(IF(AND($N26="",$U26=""),"",IF($N26="",IF(Y26="",SUM(AA26:AC26),IF(Y26=0,"0",Y26)),IF($S26="",SUM($AA26:$AC26),IF($S26=0,"0",$H26*IF($L26="",1,$L26)*$S26)))),"-") ->  | AE26: =IFERROR(IF(AND($N26="",$U26=""),"",IF($N26="",IF(Z26=0,"-",Z26),IF(T26=0,"0",$H26*IF($L26="",1,$L26)*T26))),"-") -> 
B27: III.2.2 | C27: 3 | D27: Emissions from solid waste generated in the city but treated biologically outside of the city | G27: NO
B28: III.2.2 | C28: 3 | O28: =IFERROR(CONCATENATE("tCO2e/",VLOOKUP($N28,'Emission factors'!$C:$I,6,FALSE)),"") ->  | P28: =IFERROR(VLOOKUP($N28,'Emission factors'!$C:$BQ,9,FALSE),"") ->  | Q28: =IFERROR(VLOOKUP($N28,'Emission factors'!$C:$BQ,12,FALSE),"") ->  | R28: =IFERROR(VLOOKUP($N28,'Emission factors'!$C:$BQ,15,FALSE),"") ->  | S28: =IFERROR(VLOOKUP($N28,'Emission factors'!$C:$BQ,65,FALSE),"") ->  | T28: =IFERROR(VLOOKUP($N28,'Emission factors'!$C:$BQ,67,FALSE),"") ->  | AA28: =IFERROR(IF(AND($N28="",$U28=""),"",IF($N28="",IF(V28=0,"-",V28),IF(P28=0,"0",$H28*IF($L28="",1,$L28)*P28))),"-") ->  | AD28: =IFERROR(IF(AND($N28="",$U28=""),"",IF($N28="",IF(Y28="",SUM(AA28:AC28),IF(Y28=0,"0",Y28)),IF($S28="",SUM($AA28:$AC28),IF($S28=0,"0",$H28*IF($L28="",1,$L28)*$S28)))),"-") ->  | AE28: =IFERROR(IF(AND($N28="",$U28=""),"",IF($N28="",IF(Z28=0,"-",Z28),IF(T28=0,"0",$H28*IF($L28="",1,$L28)*T28))),"-") -> 
B29: III.2.2 | C29: 3 | O29: =IFERROR(CONCATENATE("tCO2e/",VLOOKUP($N29,'Emission factors'!$C:$I,6,FALSE)),"") ->  | P29: =IFERROR(VLOOKUP($N29,'Emission factors'!$C:$BQ,9,FALSE),"") ->  | Q29: =IFERROR(VLOOKUP($N29,'Emission factors'!$C:$BQ,12,FALSE),"") ->  | R29: =IFERROR(VLOOKUP($N29,'Emission factors'!$C:$BQ,15,FALSE),"") ->  | S29: =IFERROR(VLOOKUP($N29,'Emission factors'!$C:$BQ,65,FALSE),"") ->  | T29: =IFERROR(VLOOKUP($N29,'Emission factors'!$C:$BQ,67,FALSE),"") ->  | AD29: =IFERROR(IF(AND($N29="",$U29=""),"",IF($N29="",IF(Y29="",SUM(AA29:AC29),IF(Y29=0,"0",Y29)),IF($S29="",SUM($AA29:$AC29),IF($S29=0,"0",$H29*IF($L29="",1,$L29)*$S29)))),"-") ->  | AE29: =IFERROR(IF(AND($N29="",$U29=""),"",IF($N29="",IF(Z29=0,"-",Z29),IF(T29=0,"0",$H29*IF($L29="",1,$L29)*T29))),"-") -> 
B30: III.2.3 | C30: 1 | D30: Emissions from waste generated outside the city boundary but treated in the city | G30: NO
B31: III.2.3 | C31: 1 | O31: =IFERROR(CONCATENATE("tCO2e/",VLOOKUP($N31,'Emission factors'!$C:$I,6,FALSE)),"") ->  | P31: =IFERROR(VLOOKUP($N31,'Emission factors'!$C:$BQ,9,FALSE),"") ->  | Q31: =IFERROR(VLOOKUP($N31,'Emission factors'!$C:$BQ,12,FALSE),"") ->  | R31: =IFERROR(VLOOKUP($N31,'Emission factors'!$C:$BQ,15,FALSE),"") ->  | S31: =IFERROR(VLOOKUP($N31,'Emission factors'!$C:$BQ,65,FALSE),"") ->  | T31: =IFERROR(VLOOKUP($N31,'Emission factors'!$C:$BQ,67,FALSE),"") ->  | AA31: =IFERROR(IF(AND($N31="",$U31=""),"",IF($N31="",IF(V31=0,"-",V31),IF(P31=0,"0",$H31*IF($L31="",1,$L31)*P31))),"-") ->  | AD31: =IFERROR(IF(AND($N31="",$U31=""),"",IF($N31="",IF(Y31="",SUM(AA31:AC31),IF(Y31=0,"0",Y31)),IF($S31="",SUM($AA31:$AC31),IF($S31=0,"0",$H31*IF($L31="",1,$L31)*$S31)))),"-") ->  | AE31: =IFERROR(IF(AND($N31="",$U31=""),"",IF($N31="",IF(Z31=0,"-",Z31),IF(T31=0,"0",$H31*IF($L31="",1,$L31)*T31))),"-") -> 
B32: III.2.3 | C32: 1 | O32: =IFERROR(CONCATENATE("tCO2e/",VLOOKUP($N32,'Emission factors'!$C:$I,6,FALSE)),"") ->  | P32: =IFERROR(VLOOKUP($N32,'Emission factors'!$C:$BQ,9,FALSE),"") ->  | Q32: =IFERROR(VLOOKUP($N32,'Emission factors'!$C:$BQ,12,FALSE),"") ->  | R32: =IFERROR(VLOOKUP($N32,'Emission factors'!$C:$BQ,15,FALSE),"") ->  | S32: =IFERROR(VLOOKUP($N32,'Emission factors'!$C:$BQ,65,FALSE),"") ->  | T32: =IFERROR(VLOOKUP($N32,'Emission factors'!$C:$BQ,67,FALSE),"") ->  | AD32: =IFERROR(IF(AND($N32="",$U32=""),"",IF($N32="",IF(Y32="",SUM(AA32:AC32),IF(Y32=0,"0",Y32)),IF($S32="",SUM($AA32:$AC32),IF($S32=0,"0",$H32*IF($L32="",1,$L32)*$S32)))),"-") ->  | AE32: =IFERROR(IF(AND($N32="",$U32=""),"",IF($N32="",IF(Z32=0,"-",Z32),IF(T32=0,"0",$H32*IF($L32="",1,$L32)*T32))),"-") -> 
B34: III.3 INCINERATION AND OPEN BURNING
B36: GPC ref No. | C36: Scope | D36: GHG Emissions Source | G36: Notation keys | H36: Activity data | J36: Activity data multiplier | M36: Gas(es) | N36: Emission factor | O36: Emission factor | U36: Emissions data | V36: GHGs (metric tonnes CO2e) | AA36: GHGs (metric tonnes CO2e) | AF36: Data Quality | AH36: Description of method(s) used or explanation for using notation key(s) | AI36: Source | AJ36: Data quality explanation (optional)
D37: Activity | E37: Waste type | F37: Description | H37: Amount | I37: Units | J37: From | K37: To | L37: Factor | O37: Units | P37: CO2 | Q37: CH4 | R37: N2O | S37: Total tCO2e | T37: CO2(b) | V37: CO2 | W37: CH4 | X37: N2O | Y37: Total tCO2e | Z37: CO2(b) | AA37: CO2 | AB37: CH4 | AC37: N2O | AD37: Total tCO2e | AE37: CO2(b) | AF37: AD | AG37: EF
B38: III.3.1 | C38: 1 | D38: Emissions from waste generated and treated within the city | G38: NO
B39: III.3.1 | C39: 1 | O39: =IFERROR(CONCATENATE("tCO2e/",VLOOKUP($N39,'Emission factors'!$C:$I,6,FALSE)),"") ->  | P39: =IFERROR(VLOOKUP($N39,'Emission factors'!$C:$BQ,9,FALSE),"") ->  | Q39: =IFERROR(VLOOKUP($N39,'Emission factors'!$C:$BQ,12,FALSE),"") ->  | R39: =IFERROR(VLOOKUP($N39,'Emission factors'!$C:$BQ,15,FALSE),"") ->  | S39: =IFERROR(VLOOKUP($N39,'Emission factors'!$C:$BQ,65,FALSE),"") ->  | T39: =IFERROR(VLOOKUP($N39,'Emission factors'!$C:$BQ,67,FALSE),"") ->  | AA39: =IFERROR(IF(AND($N39="",$U39=""),"",IF($N39="",IF(V39=0,"-",V39),IF(P39=0,"0",$H39*IF($L39="",1,$L39)*P39))),"-") ->  | AD39: =IFERROR(IF(AND($N39="",$U39=""),"",IF($N39="",IF(Y39="",SUM(AA39:AC39),IF(Y39=0,"0",Y39)),IF($S39="",SUM($AA39:$AC39),IF($S39=0,"0",$H39*IF($L39="",1,$L39)*$S39)))),"-") ->  | AE39: =IFERROR(IF(AND($N39="",$U39=""),"",IF($N39="",IF(Z39=0,"-",Z39),IF(T39=0,"0",$H39*IF($L39="",1,$L39)*T39))),"-") -> 
B40: III.3.1 | C40: 1 | O40: =IFERROR(CONCATENATE("tCO2e/",VLOOKUP($N40,'Emission factors'!$C:$I,6,FALSE)),"") ->  | P40: =IFERROR(VLOOKUP($N40,'Emission factors'!$C:$BQ,9,FALSE),"") ->  | Q40: =IFERROR(VLOOKUP($N40,'Emission factors'!$C:$BQ,12,FALSE),"") ->  | R40: =IFERROR(VLOOKUP($N40,'Emission factors'!$C:$BQ,15,FALSE),"") ->  | S40: =IFERROR(VLOOKUP($N40,'Emission factors'!$C:$BQ,65,FALSE),"") ->  | T40: =IFERROR(VLOOKUP($N40,'Emission factors'!$C:$BQ,67,FALSE),"") ->  | AD40: =IFERROR(IF(AND($N40="",$U40=""),"",IF($N40="",IF(Y40="",SUM(AA40:AC40),IF(Y40=0,"0",Y40)),IF($S40="",SUM($AA40:$AC40),IF($S40=0,"0",$H40*IF($L40="",1,$L40)*$S40)))),"-") ->  | AE40: =IFERROR(IF(AND($N40="",$U40=""),"",IF($N40="",IF(Z40=0,"-",Z40),IF(T40=0,"0",$H40*IF($L40="",1,$L40)*T40))),"-") -> 
B41: III.3.2 | C41: 3 | D41: Emissions from waste generated within but treated outside of the city | G41: NO
B42: III.3.2 | C42: 3 | O42: =IFERROR(CONCATENATE("tCO2e/",VLOOKUP($N42,'Emission factors'!$C:$I,6,FALSE)),"") ->  | P42: =IFERROR(VLOOKUP($N42,'Emission factors'!$C:$BQ,9,FALSE),"") ->  | Q42: =IFERROR(VLOOKUP($N42,'Emission factors'!$C:$BQ,12,FALSE),"") ->  | R42: =IFERROR(VLOOKUP($N42,'Emission factors'!$C:$BQ,15,FALSE),"") ->  | S42: =IFERROR(VLOOKUP($N42,'Emission factors'!$C:$BQ,65,FALSE),"") ->  | T42: =IFERROR(VLOOKUP($N42,'Emission factors'!$C:$BQ,67,FALSE),"") ->  | AA42: =IFERROR(IF(AND($N42="",$U42=""),"",IF($N42="",IF(V42=0,"-",V42),IF(P42=0,"0",$H42*IF($L42="",1,$L42)*P42))),"-") ->  | AD42: =IFERROR(IF(AND($N42="",$U42=""),"",IF($N42="",IF(Y42="",SUM(AA42:AC42),IF(Y42=0,"0",Y42)),IF($S42="",SUM($AA42:$AC42),IF($S42=0,"0",$H42*IF($L42="",1,$L42)*$S42)))),"-") ->  | AE42: =IFERROR(IF(AND($N42="",$U42=""),"",IF($N42="",IF(Z42=0,"-",Z42),IF(T42=0,"0",$H42*IF($L42="",1,$L42)*T42))),"-") -> 
B43: III.3.2 | C43: 3 | O43: =IFERROR(CONCATENATE("tCO2e/",VLOOKUP($N43,'Emission factors'!$C:$I,6,FALSE)),"") ->  | P43: =IFERROR(VLOOKUP($N43,'Emission factors'!$C:$BQ,9,FALSE),"") ->  | Q43: =IFERROR(VLOOKUP($N43,'Emission factors'!$C:$BQ,12,FALSE),"") ->  | R43: =IFERROR(VLOOKUP($N43,'Emission factors'!$C:$BQ,15,FALSE),"") ->  | S43: =IFERROR(VLOOKUP($N43,'Emission factors'!$C:$BQ,65,FALSE),"") ->  | T43: =IFERROR(VLOOKUP($N43,'Emission factors'!$C:$BQ,67,FALSE),"") ->  | AD43: =IFERROR(IF(AND($N43="",$U43=""),"",IF($N43="",IF(Y43="",SUM(AA43:AC43),IF(Y43=0,"0",Y43)),IF($S43="",SUM($AA43:$AC43),IF($S43=0,"0",$H43*IF($L43="",1,$L43)*$S43)))),"-") ->  | AE43: =IFERROR(IF(AND($N43="",$U43=""),"",IF($N43="",IF(Z43=0,"-",Z43),IF(T43=0,"0",$H43*IF($L43="",1,$L43)*T43))),"-") -> 
B44: III.3.3 | C44: 1 | D44: Emissions from waste generated outside the city boundary but treated within the city | G44: NO
B45: III.3.3 | C45: 1 | O45: =IFERROR(CONCATENATE("tCO2e/",VLOOKUP($N45,'Emission factors'!$C:$I,6,FALSE)),"") ->  | P45: =IFERROR(VLOOKUP($N45,'Emission factors'!$C:$BQ,9,FALSE),"") ->  | Q45: =IFERROR(VLOOKUP($N45,'Emission factors'!$C:$BQ,12,FALSE),"") ->  | R45: =IFERROR(VLOOKUP($N45,'Emission factors'!$C:$BQ,15,FALSE),"") ->  | S45: =IFERROR(VLOOKUP($N45,'Emission factors'!$C:$BQ,65,FALSE),"") ->  | T45: =IFERROR(VLOOKUP($N45,'Emission factors'!$C:$BQ,67,FALSE),"") ->  | AA45: =IFERROR(IF(AND($N45="",$U45=""),"",IF($N45="",IF(V45=0,"-",V45),IF(P45=0,"0",$H45*IF($L45="",1,$L45)*P45))),"-") ->  | AD45: =IFERROR(IF(AND($N45="",$U45=""),"",IF($N45="",IF(Y45="",SUM(AA45:AC45),IF(Y45=0,"0",Y45)),IF($S45="",SUM($AA45:$AC45),IF($S45=0,"0",$H45*IF($L45="",1,$L45)*$S45)))),"-") ->  | AE45: =IFERROR(IF(AND($N45="",$U45=""),"",IF($N45="",IF(Z45=0,"-",Z45),IF(T45=0,"0",$H45*IF($L45="",1,$L45)*T45))),"-") -> 
B46: III.3.3 | C46: 1 | O46: =IFERROR(CONCATENATE("tCO2e/",VLOOKUP($N46,'Emission factors'!$C:$I,6,FALSE)),"") ->  | P46: =IFERROR(VLOOKUP($N46,'Emission factors'!$C:$BQ,9,FALSE),"") ->  | Q46: =IFERROR(VLOOKUP($N46,'Emission factors'!$C:$BQ,12,FALSE),"") ->  | R46: =IFERROR(VLOOKUP($N46,'Emission factors'!$C:$BQ,15,FALSE),"") ->  | S46: =IFERROR(VLOOKUP($N46,'Emission factors'!$C:$BQ,65,FALSE),"") ->  | T46: =IFERROR(VLOOKUP($N46,'Emission factors'!$C:$BQ,67,FALSE),"") ->  | AD46: =IFERROR(IF(AND($N46="",$U46=""),"",IF($N46="",IF(Y46="",SUM(AA46:AC46),IF(Y46=0,"0",Y46)),IF($S46="",SUM($AA46:$AC46),IF($S46=0,"0",$H46*IF($L46="",1,$L46)*$S46)))),"-") ->  | AE46: =IFERROR(IF(AND($N46="",$U46=""),"",IF($N46="",IF(Z46=0,"-",Z46),IF(T46=0,"0",$H46*IF($L46="",1,$L46)*T46))),"-") -> 
B48: III.4 WASTEWATER TREATMENT AND DISCHARGE
B50: GPC ref No. | C50: Scope | D50: GHG Emissions Source | G50: Notation keys | H50: Activity data | J50: Activity data multiplier | M50: Gas(es) | N50: Emission factor | O50: Emission factor | U50: Emissions data | V50: GHGs (metric tonnes CO2e) | AA50: GHGs (metric tonnes CO2e) | AF50: Data Quality | AH50: Description of method(s) used or explanation for using notation key(s) | AI50: Source | AJ50: Data quality explanation (optional)
D51: Activity | F51: Description | H51: Amount | I51: Units | J51: From | K51: To | L51: Factor | O51: Units | P51: CO2 | Q51: CH4 | R51: N2O | S51: Total tCO2e | T51: CO2(b) | V51: CO2 | W51: CH4 | X51: N2O | Y51: Total tCO2e | Z51: CO2(b) | AA51: CO2 | AB51: CH4 | AC51: N2O | AD51: Total tCO2e | AE51: CO2(b) | AF51: AD | AG51: EF
B52: III.4.1 | C52: 1 | D52: Emissions from wastewater generated and treated within the city
B53: III.4.1 | C53: 1 | D53: All wastewater | F53: Methane from incomplete combustion of anaerobic digester gas | M53: CH4 | O53: =IFERROR(CONCATENATE("tCO2e/",VLOOKUP($N53,'Emission factors'!$C:$I,6,FALSE)),"") ->  | P53: =IFERROR(VLOOKUP($N53,'Emission factors'!$C:$BQ,9,FALSE),"") ->  | Q53: =IFERROR(VLOOKUP($N53,'Emission factors'!$C:$BQ,12,FALSE),"") ->  | R53: =IFERROR(VLOOKUP($N53,'Emission factors'!$C:$BQ,15,FALSE),"") ->  | S53: =IFERROR(VLOOKUP($N53,'Emission factors'!$C:$BQ,65,FALSE),"") ->  | T53: =IFERROR(VLOOKUP($N53,'Emission factors'!$C:$BQ,67,FALSE),"") ->  | U53: ✓ | W53: =[5]Emissions!$B$24*21/1000 -> 2341.50101 | AA53: =IFERROR(IF(AND($N53="",$U53=""),"",IF($N53="",IF(V53=0,"-",V53),IF(P53=0,"0",$H53*IF($L53="",1,$L53)*P53))),"-") -> - | AB53: 2341.50101 | AC53: - | AD53: =IFERROR(IF(AND($N53="",$U53=""),"",IF($N53="",IF(Y53="",SUM(AA53:AC53),IF(Y53=0,"0",Y53)),IF($S53="",SUM($AA53:$AC53),IF($S53=0,"0",$H53*IF($L53="",1,$L53)*$S53)))),"-") -> 2341.50101 | AE53: =IFERROR(IF(AND($N53="",$U53=""),"",IF($N53="",IF(Z53=0,"-",Z53),IF(T53=0,"0",$H53*IF($L53="",1,$L53)*T53))),"-") -> -
B54: III.4.1 | C54: 1 | D54: All wastewater | F54: N2O from treatment | M54: N2O | O54: =IFERROR(CONCATENATE("tCO2e/",VLOOKUP($N54,'Emission factors'!$C:$I,6,FALSE)),"") ->  | P54: =IFERROR(VLOOKUP($N54,'Emission factors'!$C:$BQ,9,FALSE),"") ->  | Q54: =IFERROR(VLOOKUP($N54,'Emission factors'!$C:$BQ,12,FALSE),"") ->  | R54: =IFERROR(VLOOKUP($N54,'Emission factors'!$C:$BQ,15,FALSE),"") ->  | S54: =IFERROR(VLOOKUP($N54,'Emission factors'!$C:$BQ,65,FALSE),"") ->  | T54: =IFERROR(VLOOKUP($N54,'Emission factors'!$C:$BQ,67,FALSE),"") ->  | U54: ✓ | X54: =[5]Emissions!$B$22*310/1000 -> 3480.006633 | AA54: - | AB54: - | AC54: 3480.006633 | AD54: =IFERROR(IF(AND($N54="",$U54=""),"",IF($N54="",IF(Y54="",SUM(AA54:AC54),IF(Y54=0,"0",Y54)),IF($S54="",SUM($AA54:$AC54),IF($S54=0,"0",$H54*IF($L54="",1,$L54)*$S54)))),"-") -> 3480.006633 | AE54: =IFERROR(IF(AND($N54="",$U54=""),"",IF($N54="",IF(Z54=0,"-",Z54),IF(T54=0,"0",$H54*IF($L54="",1,$L54)*T54))),"-") -> -
B55: III.4.1 | C55: 1 | D55: All wastewater | F55: N2O from discharge | M55: N2O | P55: =IFERROR(VLOOKUP($N55,'Emission factors'!$C:$BQ,9,FALSE),"") ->  | Q55: =IFERROR(VLOOKUP($N55,'Emission factors'!$C:$BQ,12,FALSE),"") ->  | R55: =IFERROR(VLOOKUP($N55,'Emission factors'!$C:$BQ,15,FALSE),"") ->  | S55: =IFERROR(VLOOKUP($N55,'Emission factors'!$C:$BQ,65,FALSE),"") ->  | T55: =IFERROR(VLOOKUP($N55,'Emission factors'!$C:$BQ,67,FALSE),"") ->  | U55: ✓ | X55: =[5]Emissions!$B$23*310/1000 -> 29392.18492 | AB55: =IFERROR(IF(AND($N55="",$U55=""),"",IF($N55="",IF(W55=0,"-",W55),IF(Q55=0,"0",$H55*IF($L55="",1,$L55)*Q55))),"-") -> - | AC55: =IFERROR(IF(AND($N55="",$U55=""),"",IF($N55="",IF(X55=0,"-",X55),IF(R55=0,"0",$H55*IF($L55="",1,$L55)*R55))),"-") -> 29392.18492 | AD55: =IFERROR(IF(AND($N55="",$U55=""),"",IF($N55="",IF(Y55="",SUM(AA55:AC55),IF(Y55=0,"0",Y55)),IF($S55="",SUM($AA55:$AC55),IF($S55=0,"0",$H55*IF($L55="",1,$L55)*$S55)))),"-") -> 29392.18492 | AE55: =IFERROR(IF(AND($N55="",$U55=""),"",IF($N55="",IF(Z55=0,"-",Z55),IF(T55=0,"0",$H55*IF($L55="",1,$L55)*T55))),"-") -> -
B56: III.4.2 | C56: 3 | D56: Emissions from wastewater generated within but treated outside of the city | G56: NO
B57: III.4.2 | C57: 3 | O57: =IFERROR(CONCATENATE("tCO2e/",VLOOKUP($N57,'Emission factors'!$C:$I,6,FALSE)),"") ->  | P57: =IFERROR(VLOOKUP($N57,'Emission factors'!$C:$BQ,9,FALSE),"") ->  | Q57: =IFERROR(VLOOKUP($N57,'Emission factors'!$C:$BQ,12,FALSE),"") ->  | R57: =IFERROR(VLOOKUP($N57,'Emission factors'!$C:$BQ,15,FALSE),"") ->  | S57: =IFERROR(VLOOKUP($N57,'Emission factors'!$C:$BQ,65,FALSE),"") ->  | T57: =IFERROR(VLOOKUP($N57,'Emission factors'!$C:$BQ,67,FALSE),"") ->  | AA57: =IFERROR(IF(AND($N57="",$U57=""),"",IF($N57="",IF(V57=0,"-",V57),IF(P57=0,"0",$H57*IF($L57="",1,$L57)*P57))),"-") ->  | AD57: =IFERROR(IF(AND($N57="",$U57=""),"",IF($N57="",IF(Y57="",SUM(AA57:AC57),IF(Y57=0,"0",Y57)),IF($S57="",SUM($AA57:$AC57),IF($S57=0,"0",$H57*IF($L57="",1,$L57)*$S57)))),"-") ->  | AE57: =IFERROR(IF(AND($N57="",$U57=""),"",IF($N57="",IF(Z57=0,"-",Z57),IF(T57=0,"0",$H57*IF($L57="",1,$L57)*T57))),"-") -> 
B58: III.4.2 | C58: 3 | O58: =IFERROR(CONCATENATE("tCO2e/",VLOOKUP($N58,'Emission factors'!$C:$I,6,FALSE)),"") ->  | P58: =IFERROR(VLOOKUP($N58,'Emission factors'!$C:$BQ,9,FALSE),"") ->  | Q58: =IFERROR(VLOOKUP($N58,'Emission factors'!$C:$BQ,12,FALSE),"") ->  | R58: =IFERROR(VLOOKUP($N58,'Emission factors'!$C:$BQ,15,FALSE),"") ->  | S58: =IFERROR(VLOOKUP($N58,'Emission factors'!$C:$BQ,65,FALSE),"") ->  | T58: =IFERROR(VLOOKUP($N58,'Emission factors'!$C:$BQ,67,FALSE),"") ->  | AD58: =IFERROR(IF(AND($N58="",$U58=""),"",IF($N58="",IF(Y58="",SUM(AA58:AC58),IF(Y58=0,"0",Y58)),IF($S58="",SUM($AA58:$AC58),IF($S58=0,"0",$H58*IF($L58="",1,$L58)*$S58)))),"-") ->  | AE58: =IFERROR(IF(AND($N58="",$U58=""),"",IF($N58="",IF(Z58=0,"-",Z58),IF(T58=0,"0",$H58*IF($L58="",1,$L58)*T58))),"-") -> 
B59: III.4.3 | C59: 1 | D59: Emissions from wastewater generated outside the city boundary but treated within the city | G59: NO
B60: III.4.3 | C60: 1 | O60: =IFERROR(CONCATENATE("tCO2e/",VLOOKUP($N60,'Emission factors'!$C:$I,6,FALSE)),"") ->  | P60: =IFERROR(VLOOKUP($N60,'Emission factors'!$C:$BQ,9,FALSE),"") ->  | Q60: =IFERROR(VLOOKUP($N60,'Emission factors'!$C:$BQ,12,FALSE),"") ->  | R60: =IFERROR(VLOOKUP($N60,'Emission factors'!$C:$BQ,15,FALSE),"") ->  | S60: =IFERROR(VLOOKUP($N60,'Emission factors'!$C:$BQ,65,FALSE),"") ->  | T60: =IFERROR(VLOOKUP($N60,'Emission factors'!$C:$BQ,67,FALSE),"") ->  | AA60: =IFERROR(IF(AND($N60="",$U60=""),"",IF($N60="",IF(V60=0,"-",V60),IF(P60=0,"0",$H60*IF($L60="",1,$L60)*P60))),"-") ->  | AD60: =IFERROR(IF(AND($N60="",$U60=""),"",IF($N60="",IF(Y60="",SUM(AA60:AC60),IF(Y60=0,"0",Y60)),IF($S60="",SUM($AA60:$AC60),IF($S60=0,"0",$H60*IF($L60="",1,$L60)*$S60)))),"-") ->  | AE60: =IFERROR(IF(AND($N60="",$U60=""),"",IF($N60="",IF(Z60=0,"-",Z60),IF(T60=0,"0",$H60*IF($L60="",1,$L60)*T60))),"-") -> 
B61: III.4.3 | C61: 1 | O61: =IFERROR(CONCATENATE("tCO2e/",VLOOKUP($N61,'Emission factors'!$C:$I,6,FALSE)),"") ->  | P61: =IFERROR(VLOOKUP($N61,'Emission factors'!$C:$BQ,9,FALSE),"") ->  | Q61: =IFERROR(VLOOKUP($N61,'Emission factors'!$C:$BQ,12,FALSE),"") ->  | R61: =IFERROR(VLOOKUP($N61,'Emission factors'!$C:$BQ,15,FALSE),"") ->  | S61: =IFERROR(VLOOKUP($N61,'Emission factors'!$C:$BQ,65,FALSE),"") ->  | T61: =IFERROR(VLOOKUP($N61,'Emission factors'!$C:$BQ,67,FALSE),"") ->  | AD61: =IFERROR(IF(AND($N61="",$U61=""),"",IF($N61="",IF(Y61="",SUM(AA61:AC61),IF(Y61=0,"0",Y61)),IF($S61="",SUM($AA61:$AC61),IF($S61=0,"0",$H61*IF($L61="",1,$L61)*$S61)))),"-") ->  | AE61: =IFERROR(IF(AND($N61="",$U61=""),"",IF($N61="",IF(Z61=0,"-",Z61),IF(T61=0,"0",$H61*IF($L61="",1,$L61)*T61))),"-") -> 
B63: III. MACRO

Sheet IV - IPPU
B2: IV INDUSTRIAL PROCESSES AND PRODUCT USE (IPPU) | G2:  | M2:  | AJ2:  | BF2: 
B4: Use this tab to record activity and emissions data for IPPU sources. This is required for BASIC+ only. Emission factors should be recorded in the 'Emission factors' tab. | G4: Convert activity data units | M4: View emission factor(s) | AJ4: Enter emissions data | BF4: Data quality explanation (optional)
B6: IV.1 INDUSTRIAL PROCESSES
B8: GPC ref No. | C8: Scope | D8: GHG Emissions Source | F8: Notation keys | G8: Activity data | I8: Activity data multiplier | L8: Gas(es) | M8: Emission factor | N8: Emission factor | AJ8: Emissions data | AK8: GHGs (metric tonnes CO2e) | AT8: GHGs (metric tonnes CO2e) | BC8: Data Quality | BE8: Description of method(s) used or explanation for using notation key(s) | BF8: Source | BG8: Data quality explanation (optional)
D9: Activity | E9: Description | G9: Amount | H9: Units | I9: From | J9: To | K9: Factor | N9: Units | O9: CO2 | P9: CH4 | Q9: N2O | R9: CF4 | S9: C2F6 | T9: HFC-23 | U9: HFC-32 | V9: HFC-41 | W9: HFC-125 | X9: HFC-134 | Y9: HFC-134a | Z9: HFC-143 | AA9: HFC-143a | AB9: HFC-152a | AC9: HFC-227ea | AD9: HFC-236fa | AE9: HFC-245ca | AF9: SF6 | AG9: NF3 | AH9: Total tCO2e | AI9: CO2(b) | AK9: CO2 | AL9: CH4 | AM9: N2O | AN9: PFC | AO9: HFC | AP9: SF6 | AQ9: NF3 | AR9: Total tCO2e | AS9: CO2(b) | AT9: CO2 | AU9: CH4 | AV9: N2O | AW9: PFC | AX9: HFC | AY9: SF6 | AZ9: NF3 | BA9: Total tCO2e | BB9: CO2(b) | BC9: AD | BD9: EF
B10: IV.1 | C10: 1 | D10: Emissions from industrial processes occurring in the city boundary | BE10: IV.1 has not been estimated; activity not required for BASIC
B11: IV.1 | C11: 1 | D11: All industrial processes | L11: CO2, CH4, N2O | N11: =IFERROR(CONCATENATE("tCO2e/",VLOOKUP($M11,'Emission factors'!$C:$H,6,FALSE)),"") ->  | O11: =IFERROR(VLOOKUP($M11,'Emission factors'!$C:$BQ,9,FALSE),"") ->  | P11: =IFERROR(VLOOKUP($M11,'Emission factors'!$C:$BQ,12,FALSE),"") ->  | Q11: =IFERROR(VLOOKUP($M11,'Emission factors'!$C:$BQ,15,FALSE),"") ->  | R11: =IFERROR(VLOOKUP($M11,'Emission factors'!$C:$BQ,18,FALSE),"") ->  | S11: =IFERROR(VLOOKUP($M11,'Emission factors'!$C:$BQ,21,FALSE),"") ->  | T11: =IFERROR(VLOOKUP($M11,'Emission factors'!$C:$BQ,24,FALSE),"") ->  | U11: =IFERROR(VLOOKUP($M11,'Emission factors'!$C:$BQ,27,FALSE),"") ->  | V11: =IFERROR(VLOOKUP($M11,'Emission factors'!$C:$BQ,30,FALSE),"") ->  | W11: =IFERROR(VLOOKUP($M11,'Emission factors'!$C:$BQ,33,FALSE),"") ->  | X11: =IFERROR(VLOOKUP($M11,'Emission factors'!$C:$BQ,36,FALSE),"") ->  | Y11: =IFERROR(VLOOKUP($M11,'Emission factors'!$C:$BQ,39,FALSE),"") ->  | Z11: =IFERROR(VLOOKUP($M11,'Emission factors'!$C:$BQ,42,FALSE),"") ->  | AA11: =IFERROR(VLOOKUP($M11,'Emission factors'!$C:$BQ,45,FALSE),"") ->  | AB11: =IFERROR(VLOOKUP($M11,'Emission factors'!$C:$BQ,48,FALSE),"") ->  | AC11: =IFERROR(VLOOKUP($M11,'Emission factors'!$C:$BQ,51,FALSE),"") ->  | AD11: =IFERROR(VLOOKUP($M11,'Emission factors'!$C:$BQ,54,FALSE),"") ->  | AE11: =IFERROR(VLOOKUP($M11,'Emission factors'!$C:$BQ,57,FALSE),"") ->  | AF11: =IFERROR(VLOOKUP($M11,'Emission factors'!$C:$BQ,60,FALSE),"") ->  | AG11: =IFERROR(VLOOKUP($M11,'Emission factors'!$C:$BQ,63,FALSE),"") ->  | AH11: =IFERROR(VLOOKUP($M11,'Emission factors'!$C:$BQ,65,FALSE),"") ->  | AI11: =IFERROR(VLOOKUP($M11,'Emission factors'!$C:$BQ,67,FALSE),"") ->  | AJ11: ✓ | AR11: ='[8]Background Calcs - Stationary'!$B$10 -> 53738 | AT11: =IFERROR(IF(AND($M11="",$AJ11=""),"",IF($M11="",IF(AK11=0,"-",AK11),IF(O11=0,"0",$G11*IF($K11="",1,$K11)*O11))),"-") -> - | AU11: - | AV11: - | AW11: =IFERROR(IF(AND($M11="",$AJ11=""),"",IF($M11="",IF(AN11=0,"-",AN11),IF(AND(R11=0,S11=0),"0",$G11*IF($K11="",1,$K11)*(R11+S11)))),"-") -> - | AX11: =IFERROR(IF(AND($M11="",$AJ11=""),"",IF($M11="",IF(AO11=0,"-",AO11),IF(AND(T11=0,U11=0,V11=0,W11=0,X11=0,Y11=0,Z11=0,AA11=0,AB11=0,AC11=0,AD11=0,AE11=0),"0",$G11*IF($K11="",1,$K11)*(T11+U11+V11+W11+X11+Y11+Z11+AA11+AB11+AC11+AD11+AE11)))),"-") -> - | AY11: =IFERROR(IF(AND($M11="",$AJ11=""),"",IF($M11="",IF(AP11=0,"-",AP11),IF(AF11=0,"0",$G11*IF($K11="",1,$K11)*AF11))),"-") -> - | AZ11: =IFERROR(IF(AND($M11="",$AJ11=""),"",IF($M11="",IF(AQ11=0,"-",AQ11),IF(AG11=0,"0",$G11*IF($K11="",1,$K11)*AG11))),"-") -> - | BA11: =IFERROR(IF(AND($M11="",$AJ11=""),"",IF($M11="",IF(AR11="",SUM(AT11:AZ11),IF(AR11=0,"0",AR11)),IF($AH11="",SUM($AT11:$AZ11),IF($AH11=0,"0",$G11*IF($K11="",1,$K11)*$AH11)))),"-") -> 53738 | BB11: =IFERROR(IF(AND($M11="",$AJ11=""),"",IF($M11="",IF(AS11=0,"-",AS11),IF(AI11=0,"0",$G11*IF($K11="",1,$K11)*AI11))),"-") -> -
B12: IV.1 | C12: 1 | N12: =IFERROR(CONCATENATE("tCO2e/",VLOOKUP($M12,'Emission factors'!$C:$H,6,FALSE)),"") ->  | O12: =IFERROR(VLOOKUP($M12,'Emission factors'!$C:$BQ,9,FALSE),"") ->  | P12: =IFERROR(VLOOKUP($M12,'Emission factors'!$C:$BQ,12,FALSE),"") ->  | Q12: =IFERROR(VLOOKUP($M12,'Emission factors'!$C:$BQ,15,FALSE),"") ->  | R12: =IFERROR(VLOOKUP($M12,'Emission factors'!$C:$BQ,18,FALSE),"") ->  | S12: =IFERROR(VLOOKUP($M12,'Emission factors'!$C:$BQ,21,FALSE),"") ->  | T12: =IFERROR(VLOOKUP($M12,'Emission factors'!$C:$BQ,24,FALSE),"") ->  | U12: =IFERROR(VLOOKUP($M12,'Emission factors'!$C:$BQ,27,FALSE),"") ->  | V12: =IFERROR(VLOOKUP($M12,'Emission factors'!$C:$BQ,30,FALSE),"") ->  | W12: =IFERROR(VLOOKUP($M12,'Emission factors'!$C:$BQ,33,FALSE),"") ->  | X12: =IFERROR(VLOOKUP($M12,'Emission factors'!$C:$BQ,36,FALSE),"") ->  | Y12: =IFERROR(VLOOKUP($M12,'Emission factors'!$C:$BQ,39,FALSE),"") ->  | Z12: =IFERROR(VLOOKUP($M12,'Emission factors'!$C:$BQ,42,FALSE),"") ->  | AA12: =IFERROR(VLOOKUP($M12,'Emission factors'!$C:$BQ,45,FALSE),"") ->  | AB12: =IFERROR(VLOOKUP($M12,'Emission factors'!$C:$BQ,48,FALSE),"") ->  | AC12: =IFERROR(VLOOKUP($M12,'Emission factors'!$C:$BQ,51,FALSE),"") ->  | AD12: =IFERROR(VLOOKUP($M12,'Emission factors'!$C:$BQ,54,FALSE),"") ->  | AE12: =IFERROR(VLOOKUP($M12,'Emission factors'!$C:$BQ,57,FALSE),"") ->  | AF12: =IFERROR(VLOOKUP($M12,'Emission factors'!$C:$BQ,60,FALSE),"") ->  | AG12: =IFERROR(VLOOKUP($M12,'Emission factors'!$C:$BQ,63,FALSE),"") ->  | AH12: =IFERROR(VLOOKUP($M12,'Emission factors'!$C:$BQ,65,FALSE),"") ->  | AI12: =IFERROR(VLOOKUP($M12,'Emission factors'!$C:$BQ,67,FALSE),"") ->  | AW12: =IFERROR(IF(AND($M12="",$AJ12=""),"",IF($M12="",IF(AN12=0,"-",AN12),IF(AND(R12=0,S12=0),"0",$G12*IF($K12="",1,$K12)*(R12+S12)))),"-") ->  | AX12: =IFERROR(IF(AND($M12="",$AJ12=""),"",IF($M12="",IF(AO12=0,"-",AO12),IF(AND(T12=0,U12=0,V12=0,W12=0,X12=0,Y12=0,Z12=0,AA12=0,AB12=0,AC12=0,AD12=0,AE12=0),"0",$G12*IF($K12="",1,$K12)*(T12+U12+V12+W12+X12+Y12+Z12+AA12+AB12+AC12+AD12+AE12)))),"-") ->  | AY12: =IFERROR(IF(AND($M12="",$AJ12=""),"",IF($M12="",IF(AP12=0,"-",AP12),IF(AF12=0,"0",$G12*IF($K12="",1,$K12)*AF12))),"-") ->  | AZ12: =IFERROR(IF(AND($M12="",$AJ12=""),"",IF($M12="",IF(AQ12=0,"-",AQ12),IF(AG12=0,"0",$G12*IF($K12="",1,$K12)*AG12))),"-") ->  | BA12: =IFERROR(IF(AND($M12="",$AJ12=""),"",IF($M12="",IF(AR12="",SUM(AT12:AZ12),IF(AR12=0,"0",AR12)),IF($AH12="",SUM($AT12:$AZ12),IF($AH12=0,"0",$G12*IF($K12="",1,$K12)*$AH12)))),"-") ->  | BB12: =IFERROR(IF(AND($M12="",$AJ12=""),"",IF($M12="",IF(AS12=0,"-",AS12),IF(AI12=0,"0",$G12*IF($K12="",1,$K12)*AI12))),"-") -> 
B14: IV.2 PRODUCT USE
B16: GPC ref No. | C16: Scope | D16: GHG Emissions Source | F16: Notation keys | G16: Activity data | I16: Activity data multiplier | L16: Gas(es) | M16: Emission factor | N16: Emission factor | AJ16: Emissions data | AK16: GHGs (metric tonnes CO2e) | AT16: GHGs (metric tonnes CO2e) | BC16: Data Quality | BE16: Description of method(s) used or explanation for using notation key(s) | BF16: Source | BG16: Data quality explanation (optional)
D17: Activity | E17: Description | G17: Amount | H17: Units | I17: From | J17: To | K17: Factor | N17: Units | O17: CO2 | P17: CH4 | Q17: N2O | R17: CF4 | S17: C2F6 | T17: HFC-23 | U17: HFC-32 | V17: HFC-41 | W17: HFC-125 | X17: HFC-134 | Y17: HFC-134a | Z17: HFC-143 | AA17: HFC-143a | AB17: HFC-152a | AC17: HFC-227ea | AD17: HFC-236fa | AE17: HFC-245ca | AF17: SF6 | AG17: NF3 | AH17: Total tCO2e | AI17: CO2(b) | AK17: CO2 | AL17: CH4 | AM17: N2O | AN17: PFC | AO17: HFC | AP17: SF6 | AQ17: NF3 | AR17: Total tCO2e | AS17: CO2(b) | AT17: CO2 | AU17: CH4 | AV17: N2O | AW17: PFC | AX17: HFC | AY17: SF6 | AZ17: NF3 | BA17: Total tCO2e | BB17: CO2(b) | BC17: AD | BD17: EF
B18: IV.2 | C18: 1 | D18: Emissions from product use occurring within the city boundary | BE18: IV.2 has not been estimated; activity not required for BASIC
B19: IV.2 | C19: 1 | D19: SF6 and PFCs from other product uses | E19: SF6 from electricity distribution | N19: =IFERROR(CONCATENATE("tCO2e/",VLOOKUP($M19,'Emission factors'!$C:$H,6,FALSE)),"") ->  | O19: =IFERROR(VLOOKUP($M19,'Emission factors'!$C:$BQ,9,FALSE),"") ->  | P19: =IFERROR(VLOOKUP($M19,'Emission factors'!$C:$BQ,12,FALSE),"") ->  | Q19: =IFERROR(VLOOKUP($M19,'Emission factors'!$C:$BQ,15,FALSE),"") ->  | R19: =IFERROR(VLOOKUP($M19,'Emission factors'!$C:$BQ,18,FALSE),"") ->  | S19: =IFERROR(VLOOKUP($M19,'Emission factors'!$C:$BQ,21,FALSE),"") ->  | T19: =IFERROR(VLOOKUP($M19,'Emission factors'!$C:$BQ,24,FALSE),"") ->  | U19: =IFERROR(VLOOKUP($M19,'Emission factors'!$C:$BQ,27,FALSE),"") ->  | V19: =IFERROR(VLOOKUP($M19,'Emission factors'!$C:$BQ,30,FALSE),"") ->  | W19: =IFERROR(VLOOKUP($M19,'Emission factors'!$C:$BQ,33,FALSE),"") ->  | X19: =IFERROR(VLOOKUP($M19,'Emission factors'!$C:$BQ,36,FALSE),"") ->  | Y19: =IFERROR(VLOOKUP($M19,'Emission factors'!$C:$BQ,39,FALSE),"") ->  | Z19: =IFERROR(VLOOKUP($M19,'Emission factors'!$C:$BQ,42,FALSE),"") ->  | AA19: =IFERROR(VLOOKUP($M19,'Emission factors'!$C:$BQ,45,FALSE),"") ->  | AB19: =IFERROR(VLOOKUP($M19,'Emission factors'!$C:$BQ,48,FALSE),"") ->  | AC19: =IFERROR(VLOOKUP($M19,'Emission factors'!$C:$BQ,51,FALSE),"") ->  | AD19: =IFERROR(VLOOKUP($M19,'Emission factors'!$C:$BQ,54,FALSE),"") ->  | AE19: =IFERROR(VLOOKUP($M19,'Emission factors'!$C:$BQ,57,FALSE),"") ->  | AF19: =IFERROR(VLOOKUP($M19,'Emission factors'!$C:$BQ,60,FALSE),"") ->  | AG19: =IFERROR(VLOOKUP($M19,'Emission factors'!$C:$BQ,63,FALSE),"") ->  | AH19: =IFERROR(VLOOKUP($M19,'Emission factors'!$C:$BQ,65,FALSE),"") ->  | AI19: =IFERROR(VLOOKUP($M19,'Emission factors'!$C:$BQ,67,FALSE),"") ->  | AJ19: ✓ | AR19: 2365.251619 | AT19: =IFERROR(IF(AND($M19="",$AJ19=""),"",IF($M19="",IF(AK19=0,"-",AK19),IF(O19=0,"0",$G19*IF($K19="",1,$K19)*O19))),"-") -> - | AU19: - | AV19: - | AW19: =IFERROR(IF(AND($M19="",$AJ19=""),"",IF($M19="",IF(AN19=0,"-",AN19),IF(AND(R19=0,S19=0),"0",$G19*IF($K19="",1,$K19)*(R19+S19)))),"-") -> - | AX19: =IFERROR(IF(AND($M19="",$AJ19=""),"",IF($M19="",IF(AO19=0,"-",AO19),IF(AND(T19=0,U19=0,V19=0,W19=0,X19=0,Y19=0,Z19=0,AA19=0,AB19=0,AC19=0,AD19=0,AE19=0),"0",$G19*IF($K19="",1,$K19)*(T19+U19+V19+W19+X19+Y19+Z19+AA19+AB19+AC19+AD19+AE19)))),"-") -> - | AY19: =IFERROR(IF(AND($M19="",$AJ19=""),"",IF($M19="",IF(AP19=0,"-",AP19),IF(AF19=0,"0",$G19*IF($K19="",1,$K19)*AF19))),"-") -> - | AZ19: - | BA19: =IFERROR(IF(AND($M19="",$AJ19=""),"",IF($M19="",IF(AR19="",SUM(AT19:AZ19),IF(AR19=0,"0",AR19)),IF($AH19="",SUM($AT19:$AZ19),IF($AH19=0,"0",$G19*IF($K19="",1,$K19)*$AH19)))),"-") -> 2365.251619 | BB19: =IFERROR(IF(AND($M19="",$AJ19=""),"",IF($M19="",IF(AS19=0,"-",AS19),IF(AI19=0,"0",$G19*IF($K19="",1,$K19)*AI19))),"-") -> - | BH19: what is source of SF6 calculation?
B20: IV.2 | C20: 1 | D20: Refrigeration and stationary air conditioning | E20: Refrigerants | N20: =IFERROR(CONCATENATE("tCO2e/",VLOOKUP($M20,'Emission factors'!$C:$H,6,FALSE)),"") ->  | O20: =IFERROR(VLOOKUP($M20,'Emission factors'!$C:$BQ,9,FALSE),"") ->  | P20: =IFERROR(VLOOKUP($M20,'Emission factors'!$C:$BQ,12,FALSE),"") ->  | Q20: =IFERROR(VLOOKUP($M20,'Emission factors'!$C:$BQ,15,FALSE),"") ->  | R20: =IFERROR(VLOOKUP($M20,'Emission factors'!$C:$BQ,18,FALSE),"") ->  | S20: =IFERROR(VLOOKUP($M20,'Emission factors'!$C:$BQ,21,FALSE),"") ->  | T20: =IFERROR(VLOOKUP($M20,'Emission factors'!$C:$BQ,24,FALSE),"") ->  | U20: =IFERROR(VLOOKUP($M20,'Emission factors'!$C:$BQ,27,FALSE),"") ->  | V20: =IFERROR(VLOOKUP($M20,'Emission factors'!$C:$BQ,30,FALSE),"") ->  | W20: =IFERROR(VLOOKUP($M20,'Emission factors'!$C:$BQ,33,FALSE),"") ->  | X20: =IFERROR(VLOOKUP($M20,'Emission factors'!$C:$BQ,36,FALSE),"") ->  | Y20: =IFERROR(VLOOKUP($M20,'Emission factors'!$C:$BQ,39,FALSE),"") ->  | Z20: =IFERROR(VLOOKUP($M20,'Emission factors'!$C:$BQ,42,FALSE),"") ->  | AA20: =IFERROR(VLOOKUP($M20,'Emission factors'!$C:$BQ,45,FALSE),"") ->  | AB20: =IFERROR(VLOOKUP($M20,'Emission factors'!$C:$BQ,48,FALSE),"") ->  | AC20: =IFERROR(VLOOKUP($M20,'Emission factors'!$C:$BQ,51,FALSE),"") ->  | AD20: =IFERROR(VLOOKUP($M20,'Emission factors'!$C:$BQ,54,FALSE),"") ->  | AE20: =IFERROR(VLOOKUP($M20,'Emission factors'!$C:$BQ,57,FALSE),"") ->  | AF20: =IFERROR(VLOOKUP($M20,'Emission factors'!$C:$BQ,60,FALSE),"") ->  | AG20: =IFERROR(VLOOKUP($M20,'Emission factors'!$C:$BQ,63,FALSE),"") ->  | AH20: =IFERROR(VLOOKUP($M20,'Emission factors'!$C:$BQ,65,FALSE),"") ->  | AI20: =IFERROR(VLOOKUP($M20,'Emission factors'!$C:$BQ,67,FALSE),"") ->  | AJ20: ✓ | AR20: ='[8]Internal ICF Summary'!$C$4 -> 150797.4532 | AT20: =IFERROR(IF(AND($M20="",$AJ20=""),"",IF($M20="",IF(AK20=0,"-",AK20),IF(O20=0,"0",$G20*IF($K20="",1,$K20)*O20))),"-") -> - | AU20: =IFERROR(IF(AND($M20="",$AJ20=""),"",IF($M20="",IF(AL20=0,"-",AL20),IF(P20=0,"0",$G20*IF($K20="",1,$K20)*P20))),"-") -> - | AV20: =IFERROR(IF(AND($M20="",$AJ20=""),"",IF($M20="",IF(AM20=0,"-",AM20),IF(Q20=0,"0",$G20*IF($K20="",1,$K20)*Q20))),"-") -> - | AW20: =IFERROR(IF(AND($M20="",$AJ20=""),"",IF($M20="",IF(AN20=0,"-",AN20),IF(AND(R20=0,S20=0),"0",$G20*IF($K20="",1,$K20)*(R20+S20)))),"-") -> - | AX20: =IFERROR(IF(AND($M20="",$AJ20=""),"",IF($M20="",IF(AO20=0,"-",AO20),IF(AND(T20=0,U20=0,V20=0,W20=0,X20=0,Y20=0,Z20=0,AA20=0,AB20=0,AC20=0,AD20=0,AE20=0),"0",$G20*IF($K20="",1,$K20)*(T20+U20+V20+W20+X20+Y20+Z20+AA20+AB20+AC20+AD20+AE20)))),"-") -> - | AY20: - | AZ20: - | BA20: =IFERROR(IF(AND($M20="",$AJ20=""),"",IF($M20="",IF(AR20="",SUM(AT20:AZ20),IF(AR20=0,"0",AR20)),IF($AH20="",SUM($AT20:$AZ20),IF($AH20=0,"0",$G20*IF($K20="",1,$K20)*$AH20)))),"-") -> 150797.4532 | BB20: =IFERROR(IF(AND($M20="",$AJ20=""),"",IF($M20="",IF(AS20=0,"-",AS20),IF(AI20=0,"0",$G20*IF($K20="",1,$K20)*AI20))),"-") -> -
B21: IV.2 | C21: 1 | D21: N2O from product uses | E21: N2O | N21: =IFERROR(CONCATENATE("tCO2e/",VLOOKUP($M21,'Emission factors'!$C:$H,6,FALSE)),"") ->  | O21: =IFERROR(VLOOKUP($M21,'Emission factors'!$C:$BQ,9,FALSE),"") ->  | P21: =IFERROR(VLOOKUP($M21,'Emission factors'!$C:$BQ,12,FALSE),"") ->  | Q21: =IFERROR(VLOOKUP($M21,'Emission factors'!$C:$BQ,15,FALSE),"") ->  | R21: =IFERROR(VLOOKUP($M21,'Emission factors'!$C:$BQ,18,FALSE),"") ->  | S21: =IFERROR(VLOOKUP($M21,'Emission factors'!$C:$BQ,21,FALSE),"") ->  | T21: =IFERROR(VLOOKUP($M21,'Emission factors'!$C:$BQ,24,FALSE),"") ->  | U21: =IFERROR(VLOOKUP($M21,'Emission factors'!$C:$BQ,27,FALSE),"") ->  | V21: =IFERROR(VLOOKUP($M21,'Emission factors'!$C:$BQ,30,FALSE),"") ->  | W21: =IFERROR(VLOOKUP($M21,'Emission factors'!$C:$BQ,33,FALSE),"") ->  | X21: =IFERROR(VLOOKUP($M21,'Emission factors'!$C:$BQ,36,FALSE),"") ->  | Y21: =IFERROR(VLOOKUP($M21,'Emission factors'!$C:$BQ,39,FALSE),"") ->  | Z21: =IFERROR(VLOOKUP($M21,'Emission factors'!$C:$BQ,42,FALSE),"") ->  | AA21: =IFERROR(VLOOKUP($M21,'Emission factors'!$C:$BQ,45,FALSE),"") ->  | AB21: =IFERROR(VLOOKUP($M21,'Emission factors'!$C:$BQ,48,FALSE),"") ->  | AC21: =IFERROR(VLOOKUP($M21,'Emission factors'!$C:$BQ,51,FALSE),"") ->  | AD21: =IFERROR(VLOOKUP($M21,'Emission factors'!$C:$BQ,54,FALSE),"") ->  | AE21: =IFERROR(VLOOKUP($M21,'Emission factors'!$C:$BQ,57,FALSE),"") ->  | AF21: =IFERROR(VLOOKUP($M21,'Emission factors'!$C:$BQ,60,FALSE),"") ->  | AG21: =IFERROR(VLOOKUP($M21,'Emission factors'!$C:$BQ,63,FALSE),"") ->  | AH21: =IFERROR(VLOOKUP($M21,'Emission factors'!$C:$BQ,65,FALSE),"") ->  | AI21: =IFERROR(VLOOKUP($M21,'Emission factors'!$C:$BQ,67,FALSE),"") ->  | AJ21: ✓ | AR21: ='[8]Internal ICF Summary'!$D$4 -> 40378.27552 | AT21: - | AU21: - | AV21: - | AW21: =IFERROR(IF(AND($M21="",$AJ21=""),"",IF($M21="",IF(AN21=0,"-",AN21),IF(AND(R21=0,S21=0),"0",$G21*IF($K21="",1,$K21)*(R21+S21)))),"-") -> - | AX21: =IFERROR(IF(AND($M21="",$AJ21=""),"",IF($M21="",IF(AO21=0,"-",AO21),IF(AND(T21=0,U21=0,V21=0,W21=0,X21=0,Y21=0,Z21=0,AA21=0,AB21=0,AC21=0,AD21=0,AE21=0),"0",$G21*IF($K21="",1,$K21)*(T21+U21+V21+W21+X21+Y21+Z21+AA21+AB21+AC21+AD21+AE21)))),"-") -> - | AY21: - | AZ21: - | BA21: =IFERROR(IF(AND($M21="",$AJ21=""),"",IF($M21="",IF(AR21="",SUM(AT21:AZ21),IF(AR21=0,"0",AR21)),IF($AH21="",SUM($AT21:$AZ21),IF($AH21=0,"0",$G21*IF($K21="",1,$K21)*$AH21)))),"-") -> 40378.27552 | BB21: =IFERROR(IF(AND($M21="",$AJ21=""),"",IF($M21="",IF(AS21=0,"-",AS21),IF(AI21=0,"0",$G21*IF($K21="",1,$K21)*AI21))),"-") -> -
B23: IV. MACRO

Sheet V - AFOLU
B2: V. AFOLU | G2:  | M2:  | T2:  | AH2: 
B4: Use this tab to record activity and emissions data for AFOLU sources. This is required for BASIC+ only. Emission factors should be recorded in the 'Emission factors' tab. | G4: Convert activity data units | M4: View emission factor(s) | T4: Enter emissions data | AH4: Data quality explanation (optional)
B6: V.1 LIVESTOCK
B8: GPC ref No. | C8: Scope | D8: GHG Emissions Source | F8: Notation keys | G8: Activity data | I8: Activity data multiplier | L8: Gas(es) | M8: Emission factor | N8: Emission factor | T8: Emissions data | U8: GHGs (metric tonnes CO2e) | Z8: GHGs (metric tonnes CO2e) | AE8: Data Quality | AG8: Description of method(s) used or explanation for using notation key(s) | AH8: Source | AI8: Data quality explanation (optional)
D9: Activity | E9: Description | G9: Amount | H9: Units | I9: From | J9: To | K9: Factor | N9: Units | O9: CO2 | P9: CH4 | Q9: N2O | R9: Total tCO2e | S9: CO2(b) | U9: CO2 | V9: CH4 | W9: N2O | X9: Total tCO2e | Y9: CO2(b) | Z9: CO2 | AA9: CH4 | AB9: N2O | AC9: Total tCO2e | AD9: CO2(b) | AE9: AD | AF9: EF
B10: V.1 | C10: 1 | D10: Emissions from livestock | F10: NE | AG10: V.1 has not been estimated; activity not required for BASIC
B11: V.1 | C11: 1 | N11: =IFERROR(CONCATENATE("tCO2e/",VLOOKUP($M11,'Emission factors'!$C:$H,6,FALSE)),"") ->  | O11: =IFERROR(VLOOKUP($M11,'Emission factors'!$C:$BQ,9,FALSE),"") ->  | P11: =IFERROR(VLOOKUP($M11,'Emission factors'!$C:$BQ,12,FALSE),"") ->  | Q11: =IFERROR(VLOOKUP($M11,'Emission factors'!$C:$BQ,15,FALSE),"") ->  | R11: =IFERROR(VLOOKUP($M11,'Emission factors'!$C:$BQ,65,FALSE),"") ->  | S11: =IFERROR(VLOOKUP($M11,'Emission factors'!$C:$BQ,67,FALSE),"") ->  | Z11: =IFERROR(IF(AND($M11="",$T11=""),"",IF($M11="",IF(U11=0,"-",U11),IF(O11=0,"0",$G11*IF($K11="",1,$K11)*O11))),"-") ->  | AC11: =IFERROR(IF(AND($M11="",$T11=""),"",IF($M11="",IF(X11="",SUM(U11:W11),IF(X11=0,"0",X11)),IF($R11="",SUM($Z11:$AB11),IF($R11=0,"0",$G11*IF($K11="",1,$K11)*$R11)))),"-") ->  | AD11: =IFERROR(IF(AND($M11="",$T11=""),"",IF($M11="",IF(Y11=0,"-",Y11),IF(S11=0,"0",$G11*IF($K11="",1,$K11)*S11))),"-") -> 
B12: V.1 | C12: 1 | N12: =IFERROR(CONCATENATE("tCO2e/",VLOOKUP(M12,'Emission factors'!C:H,6,FALSE)),"") ->  | O12: =IFERROR(VLOOKUP($M12,'Emission factors'!$C:$BQ,9,FALSE),"") ->  | P12: =IFERROR(VLOOKUP($M12,'Emission factors'!$C:$BQ,12,FALSE),"") ->  | Q12: =IFERROR(VLOOKUP($M12,'Emission factors'!$C:$BQ,15,FALSE),"") ->  | R12: =IFERROR(VLOOKUP($M12,'Emission factors'!$C:$BQ,65,FALSE),"") ->  | S12: =IFERROR(VLOOKUP($M12,'Emission factors'!$C:$BQ,67,FALSE),"") ->  | AC12: =IFERROR(IF(AND($M12="",$T12=""),"",IF($M12="",IF(X12="",SUM(U12:W12),IF(X12=0,"0",X12)),IF($R12="",SUM($Z12:$AB12),IF($R12=0,"0",$G12*IF($K12="",1,$K12)*$R12)))),"-") ->  | AD12: =IFERROR(IF(AND($M12="",$T12=""),"",IF($M12="",IF(Y12=0,"-",Y12),IF(S12=0,"0",$G12*IF($K12="",1,$K12)*S12))),"-") -> 
B14: V.2 LAND
B16: GPC ref No. | C16: Scope | D16: GHG Emissions Source | F16: Notation keys | G16: Activity data | I16: Activity data multiplier | L16: Gas(es) | M16: Emission factor | N16: Emission factor | T16: Emissions data | U16: GHGs (metric tonnes CO2e) | Z16: GHGs (metric tonnes CO2e) | AE16: Data Quality | AG16: Description of method(s) used or explanation for using notation key(s) | AH16: Source | AI16: Data quality explanation (optional)
D17: Activity | E17: Description | G17: Amount | H17: Units | I17: From | J17: To | K17: Factor | N17: Units | O17: CO2 | P17: CH4 | Q17: N2O | R17: Total tCO2e | S17: CO2(b) | U17: CO2 | V17: CH4 | W17: N2O | X17: Total tCO2e | Y17: CO2(b) | Z17: CO2 | AA17: CH4 | AB17: N2O | AC17: Total tCO2e | AD17: CO2(b) | AE17: AD | AF17: EF
B18: V.2 | C18: 1 | D18: Emissions from land | F18: NE | AG18: V.2 has not been estimated; activity not required for BASIC
B19: V.2 | C19: 1 | N19: =IFERROR(CONCATENATE("tCO2e/",VLOOKUP($M19,'Emission factors'!$C:$H,6,FALSE)),"") ->  | O19: =IFERROR(VLOOKUP($M19,'Emission factors'!$C:$BQ,9,FALSE),"") ->  | P19: =IFERROR(VLOOKUP($M19,'Emission factors'!$C:$BQ,12,FALSE),"") ->  | Q19: =IFERROR(VLOOKUP($M19,'Emission factors'!$C:$BQ,15,FALSE),"") ->  | R19: =IFERROR(VLOOKUP($M19,'Emission factors'!$C:$BQ,65,FALSE),"") ->  | S19: =IFERROR(VLOOKUP($M19,'Emission factors'!$C:$BQ,67,FALSE),"") ->  | Z19: =IFERROR(IF(AND($M19="",$T19=""),"",IF($M19="",IF(U19=0,"-",U19),IF(O19=0,"0",$G19*IF($K19="",1,$K19)*O19))),"-") ->  | AC19: =IFERROR(IF(AND($M19="",$T19=""),"",IF($M19="",IF(X19="",SUM(U19:W19),IF(X19=0,"0",X19)),IF($R19="",SUM($Z19:$AB19),IF($R19=0,"0",$G19*IF($K19="",1,$K19)*$R19)))),"-") ->  | AD19: =IFERROR(IF(AND($M19="",$T19=""),"",IF($M19="",IF(Y19=0,"-",Y19),IF(S19=0,"0",$G19*IF($K19="",1,$K19)*S19))),"-") -> 
B20: V.2 | C20: 1 | N20: =IFERROR(CONCATENATE("tCO2e/",VLOOKUP(M20,'Emission factors'!C:H,6,FALSE)),"") ->  | O20: =IFERROR(VLOOKUP($M20,'Emission factors'!$C:$BQ,9,FALSE),"") ->  | P20: =IFERROR(VLOOKUP($M20,'Emission factors'!$C:$BQ,12,FALSE),"") ->  | Q20: =IFERROR(VLOOKUP($M20,'Emission factors'!$C:$BQ,15,FALSE),"") ->  | R20: =IFERROR(VLOOKUP($M20,'Emission factors'!$C:$BQ,65,FALSE),"") ->  | S20: =IFERROR(VLOOKUP($M20,'Emission factors'!$C:$BQ,67,FALSE),"") ->  | AC20: =IFERROR(IF(AND($M20="",$T20=""),"",IF($M20="",IF(X20="",SUM(U20:W20),IF(X20=0,"0",X20)),IF($R20="",SUM($Z20:$AB20),IF($R20=0,"0",$G20*IF($K20="",1,$K20)*$R20)))),"-") ->  | AD20: =IFERROR(IF(AND($M20="",$T20=""),"",IF($M20="",IF(Y20=0,"-",Y20),IF(S20=0,"0",$G20*IF($K20="",1,$K20)*S20))),"-") -> 
B22: V.3 AGGREGATE SOURCES
B24: GPC ref No. | C24: Scope | D24: GHG Emissions Source | F24: Notation keys | G24: Activity data | I24: Activity data multiplier | L24: Gas(es) | M24: Emission factor | N24: Emission factor | T24: Emissions data | U24: GHGs (metric tonnes CO2e) | Z24: GHGs (metric tonnes CO2e) | AE24: Data Quality | AG24: Description of method(s) used or explanation for using notation key(s) | AH24: Source | AI24: Data quality explanation (optional)
D25: Activity | E25: Description | G25: Amount | H25: Units | I25: From | J25: To | K25: Factor | N25: Units | O25: CO2 | P25: CH4 | Q25: N2O | R25: Total tCO2e | S25: CO2(b) | U25: CO2 | V25: CH4 | W25: N2O | X25: Total tCO2e | Y25: CO2(b) | Z25: CO2 | AA25: CH4 | AB25: N2O | AC25: Total tCO2e | AD25: CO2(b) | AE25: AD | AF25: EF
B26: V.3 | C26: 1 | D26: Emissions from aggregate sources and non-CO2 emission sources on land | F26: NE | AG26: V.3 has not been estimated; activity not required for BASIC
B27: V.3 | C27: 1 | N27: =IFERROR(CONCATENATE("tCO2e/",VLOOKUP($M27,'Emission factors'!$C:$H,6,FALSE)),"") ->  | O27: =IFERROR(VLOOKUP($M27,'Emission factors'!$C:$BQ,9,FALSE),"") ->  | P27: =IFERROR(VLOOKUP($M27,'Emission factors'!$C:$BQ,12,FALSE),"") ->  | Q27: =IFERROR(VLOOKUP($M27,'Emission factors'!$C:$BQ,15,FALSE),"") ->  | R27: =IFERROR(VLOOKUP($M27,'Emission factors'!$C:$BQ,65,FALSE),"") ->  | S27: =IFERROR(VLOOKUP($M27,'Emission factors'!$C:$BQ,67,FALSE),"") ->  | Z27: =IFERROR(IF(AND($M27="",$T27=""),"",IF($M27="",IF(U27=0,"-",U27),IF(O27=0,"0",$G27*IF($K27="",1,$K27)*O27))),"-") ->  | AC27: =IFERROR(IF(AND($M27="",$T27=""),"",IF($M27="",IF(X27="",SUM(U27:W27),IF(X27=0,"0",X27)),IF($R27="",SUM($Z27:$AB27),IF($R27=0,"0",$G27*IF($K27="",1,$K27)*$R27)))),"-") ->  | AD27: =IFERROR(IF(AND($M27="",$T27=""),"",IF($M27="",IF(Y27=0,"-",Y27),IF(S27=0,"0",$G27*IF($K27="",1,$K27)*S27))),"-") -> 
B28: V.3 | C28: 1 | N28: =IFERROR(CONCATENATE("tCO2e/",VLOOKUP(M28,'Emission factors'!C:H,6,FALSE)),"") ->  | O28: =IFERROR(VLOOKUP($M28,'Emission factors'!$C:$BQ,9,FALSE),"") ->  | P28: =IFERROR(VLOOKUP($M28,'Emission factors'!$C:$BQ,12,FALSE),"") ->  | Q28: =IFERROR(VLOOKUP($M28,'Emission factors'!$C:$BQ,15,FALSE),"") ->  | R28: =IFERROR(VLOOKUP($M28,'Emission factors'!$C:$BQ,65,FALSE),"") ->  | S28: =IFERROR(VLOOKUP($M28,'Emission factors'!$C:$BQ,67,FALSE),"") ->  | AC28: =IFERROR(IF(AND($M28="",$T28=""),"",IF($M28="",IF(X28="",SUM(U28:W28),IF(X28=0,"0",X28)),IF($R28="",SUM($Z28:$AB28),IF($R28=0,"0",$G28*IF($K28="",1,$K28)*$R28)))),"-") ->  | AD28: =IFERROR(IF(AND($M28="",$T28=""),"",IF($M28="",IF(Y28=0,"-",Y28),IF(S28=0,"0",$G28*IF($K28="",1,$K28)*S28))),"-") -> 
B30: V. MACRO

Sheet VI - Other scope 3
B2: VI. OTHER SCOPE 3 | G2:  | M2:  | Q2:  | AJ2:  | BF2: 
B4: Use this tab to record activity and emissions data for Other scope 3 sources. This sector is optional. Emission factors should be recorded in the 'Emission factors' tab. | G4: Convert activity data units | M4: View emission factor(s) | Q4: F-gases | AJ4: Enter emissions data | BF4: Data quality explanation (optional)
B6: VI.1 OTHER SCOPE 3
B8: GPC ref No. | C8: Scope | D8: GHG Emissions Source | F8: Notation keys | G8: Activity data | I8: Activity data multiplier | L8: Gas(es) | M8: Emission factor | N8: Emission factor | AJ8: Emissions data | AK8: GHGs (metric tonnes CO2e) | AT8: GHGs (metric tonnes CO2e) | BC8: Data Quality | BE8: Description of method(s) used or explanation for using notation key(s) | BF8: Source | BG8: Data quality explanation (optional)
D9: Activity | E9: Description | G9: Amount | H9: Units | I9: From | J9: To | K9: Factor | N9: Units | O9: CO2 | P9: CH4 | Q9: N2O | R9: CF4 | S9: C2F6 | T9: HFC-23 | U9: HFC-32 | V9: HFC-41 | W9: HFC-125 | X9: HFC-134 | Y9: HFC-134a | Z9: HFC-143 | AA9: HFC-143a | AB9: HFC-152a | AC9: HFC-227ea | AD9: HFC-236fa | AE9: HFC-245ca | AF9: SF6 | AG9: NF3 | AH9: Total tCO2e | AI9: CO2(b) | AK9: CO2 | AL9: CH4 | AM9: N2O | AN9: PFC | AO9: HFC | AP9: SF6 | AQ9: NF3 | AR9: Total tCO2e | AS9: CO2(b) | AT9: CO2 | AU9: CH4 | AV9: N2O | AW9: PFC | AX9: HFC | AY9: SF6 | AZ9: NF3 | BA9: Total tCO2e | BB9: CO2(b) | BC9: AD | BD9: EF
B10: VI.1 | C10: 3 | D10: Other Scope 3 | F10: NE | BE10: VI.1 has not been estimated; activity not required for BASIC
B11: VI.1 | C11: 3 | N11: =IFERROR(CONCATENATE("tCO2e/",VLOOKUP($M11,'Emission factors'!$C:$H,6,FALSE)),"") ->  | O11: =IFERROR(VLOOKUP($M11,'Emission factors'!$C:$BQ,9,FALSE),"") ->  | P11: =IFERROR(VLOOKUP($M11,'Emission factors'!$C:$BQ,12,FALSE),"") ->  | Q11: =IFERROR(VLOOKUP($M11,'Emission factors'!$C:$BQ,15,FALSE),"") ->  | R11: =IFERROR(VLOOKUP($M11,'Emission factors'!$C:$BQ,18,FALSE),"") ->  | S11: =IFERROR(VLOOKUP($M11,'Emission factors'!$C:$BQ,21,FALSE),"") ->  | T11: =IFERROR(VLOOKUP($M11,'Emission factors'!$C:$BQ,24,FALSE),"") ->  | U11: =IFERROR(VLOOKUP($M11,'Emission factors'!$C:$BQ,27,FALSE),"") ->  | V11: =IFERROR(VLOOKUP($M11,'Emission factors'!$C:$BQ,30,FALSE),"") ->  | W11: =IFERROR(VLOOKUP($M11,'Emission factors'!$C:$BQ,33,FALSE),"") ->  | X11: =IFERROR(VLOOKUP($M11,'Emission factors'!$C:$BQ,36,FALSE),"") ->  | Y11: =IFERROR(VLOOKUP($M11,'Emission factors'!$C:$BQ,39,FALSE),"") ->  | Z11: =IFERROR(VLOOKUP($M11,'Emission factors'!$C:$BQ,42,FALSE),"") ->  | AA11: =IFERROR(VLOOKUP($M11,'Emission factors'!$C:$BQ,45,FALSE),"") ->  | AB11: =IFERROR(VLOOKUP($M11,'Emission factors'!$C:$BQ,48,FALSE),"") ->  | AC11: =IFERROR(VLOOKUP($M11,'Emission factors'!$C:$BQ,51,FALSE),"") ->  | AD11: =IFERROR(VLOOKUP($M11,'Emission factors'!$C:$BQ,54,FALSE),"") ->  | AE11: =IFERROR(VLOOKUP($M11,'Emission factors'!$C:$BQ,57,FALSE),"") ->  | AF11: =IFERROR(VLOOKUP($M11,'Emission factors'!$C:$BQ,60,FALSE),"") ->  | AG11: =IFERROR(VLOOKUP($M11,'Emission factors'!$C:$BQ,63,FALSE),"") ->  | AH11: =IFERROR(VLOOKUP($M11,'Emission factors'!$C:$BQ,65,FALSE),"") ->  | AI11: =IFERROR(VLOOKUP($M11,'Emission factors'!$C:$BQ,67,FALSE),"") ->  | AT11: =IFERROR(IF(AND($M11="",$AJ11=""),"",IF($M11="",IF(AK11=0,"-",AK11),IF(O11=0,"0",$G11*IF($K11="",1,$K11)*O11))),"-") ->  | AW11: =IFERROR(IF(AND($M11="",$AJ11=""),"",IF($M11="",IF(AN11=0,"-",AN11),IF(AND(R11=0,S11=0),"0",$G11*IF($K11="",1,$K11)*(R11+S11)))),"-") ->  | AX11: =IFERROR(IF(AND($M11="",$AJ11=""),"",IF($M11="",IF(AO11=0,"-",AO11),IF(AND(T11=0,U11=0,V11=0,W11=0,X11=0,Y11=0,Z11=0,AA11=0,AB11=0,AC11=0,AD11=0,AE11=0),"0",$G11*IF($K11="",1,$K11)*(T11+U11+V11+W11+X11+Y11+Z11+AA11+AB11+AC11+AD11+AE11)))),"-") ->  | AY11: =IFERROR(IF(AND($M11="",$AJ11=""),"",IF($M11="",IF(AP11=0,"-",AP11),IF(AF11=0,"0",$G11*IF($K11="",1,$K11)*AF11))),"-") ->  | AZ11: =IFERROR(IF(AND($M11="",$AJ11=""),"",IF($M11="",IF(AQ11=0,"-",AQ11),IF(AG11=0,"0",$G11*IF($K11="",1,$K11)*AG11))),"-") ->  | BA11: =IFERROR(IF(AND($M11="",$AJ11=""),"",IF($M11="",IF(AR11="",SUM(AT11:AZ11),IF(AR11=0,"0",AR11)),IF($AH11="",SUM($AT11:$AZ11),IF($AH11=0,"0",$G11*IF($K11="",1,$K11)*$AH11)))),"-") ->  | BB11: =IFERROR(IF(AND($M11="",$AJ11=""),"",IF($M11="",IF(AS11=0,"-",AS11),IF(AI11=0,"0",$G11*IF($K11="",1,$K11)*AI11))),"-") -> 
B12: VI.1 | C12: 3 | N12: =IFERROR(CONCATENATE("tCO2e/",VLOOKUP($M12,'Emission factors'!$C:$H,6,FALSE)),"") ->  | O12: =IFERROR(VLOOKUP($M12,'Emission factors'!$C:$BQ,9,FALSE),"") ->  | P12: =IFERROR(VLOOKUP($M12,'Emission factors'!$C:$BQ,12,FALSE),"") ->  | Q12: =IFERROR(VLOOKUP($M12,'Emission factors'!$C:$BQ,15,FALSE),"") ->  | R12: =IFERROR(VLOOKUP($M12,'Emission factors'!$C:$BQ,18,FALSE),"") ->  | S12: =IFERROR(VLOOKUP($M12,'Emission factors'!$C:$BQ,21,FALSE),"") ->  | T12: =IFERROR(VLOOKUP($M12,'Emission factors'!$C:$BQ,24,FALSE),"") ->  | U12: =IFERROR(VLOOKUP($M12,'Emission factors'!$C:$BQ,27,FALSE),"") ->  | V12: =IFERROR(VLOOKUP($M12,'Emission factors'!$C:$BQ,30,FALSE),"") ->  | W12: =IFERROR(VLOOKUP($M12,'Emission factors'!$C:$BQ,33,FALSE),"") ->  | X12: =IFERROR(VLOOKUP($M12,'Emission factors'!$C:$BQ,36,FALSE),"") ->  | Y12: =IFERROR(VLOOKUP($M12,'Emission factors'!$C:$BQ,39,FALSE),"") ->  | Z12: =IFERROR(VLOOKUP($M12,'Emission factors'!$C:$BQ,42,FALSE),"") ->  | AA12: =IFERROR(VLOOKUP($M12,'Emission factors'!$C:$BQ,45,FALSE),"") ->  | AB12: =IFERROR(VLOOKUP($M12,'Emission factors'!$C:$BQ,48,FALSE),"") ->  | AC12: =IFERROR(VLOOKUP($M12,'Emission factors'!$C:$BQ,51,FALSE),"") ->  | AD12: =IFERROR(VLOOKUP($M12,'Emission factors'!$C:$BQ,54,FALSE),"") ->  | AE12: =IFERROR(VLOOKUP($M12,'Emission factors'!$C:$BQ,57,FALSE),"") ->  | AF12: =IFERROR(VLOOKUP($M12,'Emission factors'!$C:$BQ,60,FALSE),"") ->  | AG12: =IFERROR(VLOOKUP($M12,'Emission factors'!$C:$BQ,63,FALSE),"") ->  | AH12: =IFERROR(VLOOKUP($M12,'Emission factors'!$C:$BQ,65,FALSE),"") ->  | AI12: =IFERROR(VLOOKUP($M12,'Emission factors'!$C:$BQ,67,FALSE),"") ->  | AW12: =IFERROR(IF(AND($M12="",$AJ12=""),"",IF($M12="",IF(AN12=0,"-",AN12),IF(AND(R12=0,S12=0),"0",$G12*IF($K12="",1,$K12)*(R12+S12)))),"-") ->  | AX12: =IFERROR(IF(AND($M12="",$AJ12=""),"",IF($M12="",IF(AO12=0,"-",AO12),IF(AND(T12=0,U12=0,V12=0,W12=0,X12=0,Y12=0,Z12=0,AA12=0,AB12=0,AC12=0,AD12=0,AE12=0),"0",$G12*IF($K12="",1,$K12)*(T12+U12+V12+W12+X12+Y12+Z12+AA12+AB12+AC12+AD12+AE12)))),"-") ->  | AY12: =IFERROR(IF(AND($M12="",$AJ12=""),"",IF($M12="",IF(AP12=0,"-",AP12),IF(AF12=0,"0",$G12*IF($K12="",1,$K12)*AF12))),"-") ->  | AZ12: =IFERROR(IF(AND($M12="",$AJ12=""),"",IF($M12="",IF(AQ12=0,"-",AQ12),IF(AG12=0,"0",$G12*IF($K12="",1,$K12)*AG12))),"-") ->  | BA12: =IFERROR(IF(AND($M12="",$AJ12=""),"",IF($M12="",IF(AR12="",SUM(AT12:AZ12),IF(AR12=0,"0",AR12)),IF($AH12="",SUM($AT12:$AZ12),IF($AH12=0,"0",$G12*IF($K12="",1,$K12)*$AH12)))),"-") ->  | BB12: =IFERROR(IF(AND($M12="",$AJ12=""),"",IF($M12="",IF(AS12=0,"-",AS12),IF(AI12=0,"0",$G12*IF($K12="",1,$K12)*AI12))),"-") -> 
B14: VI. MACRO

Sheet Table A. Overview
B2: GPC GHG Overview
B4: NAME OF CITY: | D4: =IF('City information'!C10="",'City information'!C9,CONCATENATE('City information'!C9,", ",'City information'!C10)) -> Chicago, USA
B5: BOUNDARY: | D5: ='City information'!C12 -> Administrative boundary of a local government
B6: INVENTORY YEAR: | D6: ='City information'!C11 -> 2010
B8: GPC ref No. | C8: Scope | D8: GHG Emissions Source (By Sector and Sub-sector) | E8: Notation keys | F8: GHGs (metric tonnes CO2e) | O8: Description of method(s) used or explanation for using notation key(s)
F9: CO2 | G9: CH4 | H9: N2O | I9: PFC | J9: HFC | K9: SF6 | L9: NF3 | M9: Total tCO2e | N9: CO2(b)
B11: I | D11: STATIONARY ENERGY
B12: I.1 | D12: Residential buildings
B13: I.1.1 | C13: 1 | D13: Emissions from fuel combustion within the city boundary | E13: =IF(VLOOKUP($B13,'I - Stationary'!$B:$F,5,FALSE)="","",VLOOKUP($B13,'I - Stationary'!$B:$F,5,FALSE)) ->  | F13: =SUMIF('I - Stationary'!$B:$B,$B13,'I - Stationary'!Z:Z) -> 5481388.1 | G13: =SUMIF('I - Stationary'!$B:$B,$B13,'I - Stationary'!AA:AA) -> 197057.3876 | H13: =SUMIF('I - Stationary'!$B:$B,$B13,'I - Stationary'!AB:AB) -> 3093.252294 | M13: =SUMIF('I - Stationary'!$B:$B,$B13,'I - Stationary'!AC:AC) -> 5715207.909 | N13: =SUMIF('I - Stationary'!$B:$B,$B13,'I - Stationary'!AD:AD) -> 0 | O13: =IF(VLOOKUP($B13,'I - Stationary'!$B:$AG,32,FALSE)="","",VLOOKUP($B13,'I - Stationary'!$B:$AG,32,FALSE)) -> 
B14: I.1.2 | C14: 2 | D14: Emissions from grid-supplied energy consumed within the city boundary | E14: =IF(VLOOKUP(B14,'I - Stationary'!$B:$F,5,FALSE)="","",VLOOKUP(B14,'I - Stationary'!$B:$F,5,FALSE)) ->  | F14: =SUMIF('I - Stationary'!$B:$B,$B14,'I - Stationary'!Z:Z) -> 4040633.554 | G14: =SUMIF('I - Stationary'!$B:$B,$B14,'I - Stationary'!AA:AA) -> 1315.415171 | H14: =SUMIF('I - Stationary'!$B:$B,$B14,'I - Stationary'!AB:AB) -> 20784.73485 | M14: =SUMIF('I - Stationary'!$B:$B,$B14,'I - Stationary'!AC:AC) -> 4062733.704 | N14: =SUMIF('I - Stationary'!$B:$B,$B14,'I - Stationary'!AD:AD) -> 0 | O14: =IF(VLOOKUP($B14,'I - Stationary'!$B:$AG,32,FALSE)="","",VLOOKUP($B14,'I - Stationary'!$B:$AG,32,FALSE)) -> 
B15: I.1.3 | C15: 3 | D15: Transmission and distribution losses from grid-supplied energy | E15: =IF(VLOOKUP(B15,'I - Stationary'!$B:$F,5,FALSE)="","",VLOOKUP(B15,'I - Stationary'!$B:$F,5,FALSE)) -> NE | F15: =SUMIF('I - Stationary'!$B:$B,$B15,'I - Stationary'!Z:Z) -> 0 | G15: =SUMIF('I - Stationary'!$B:$B,$B15,'I - Stationary'!AA:AA) -> 0 | H15: =SUMIF('I - Stationary'!$B:$B,$B15,'I - Stationary'!AB:AB) -> 0 | M15: =SUMIF('I - Stationary'!$B:$B,$B15,'I - Stationary'!AC:AC) -> 0 | N15: =SUMIF('I - Stationary'!$B:$B,$B15,'I - Stationary'!AD:AD) -> 0 | O15: =IF(VLOOKUP($B15,'I - Stationary'!$B:$AG,32,FALSE)="","",VLOOKUP($B15,'I - Stationary'!$B:$AG,32,FALSE)) -> 
B16: I.2 | D16: Commercial and institutional buildings and facilities
B17: I.2.1 | C17: 1 | D17: Emissions from fuel combustion within the city boundary | E17: =IF(VLOOKUP(B17,'I - Stationary'!$B:$F,5,FALSE)="","",VLOOKUP(B17,'I - Stationary'!$B:$F,5,FALSE)) ->  | F17: =SUMIF('I - Stationary'!$B:$B,$B17,'I - Stationary'!Z:Z) -> 2745758.762 | G17: =SUMIF('I - Stationary'!$B:$B,$B17,'I - Stationary'!AA:AA) -> 95765.08479 | H17: =SUMIF('I - Stationary'!$B:$B,$B17,'I - Stationary'!AB:AB) -> 1940.041884 | M17: =SUMIF('I - Stationary'!$B:$B,$B17,'I - Stationary'!AC:AC) -> 2996949.131 | N17: =SUMIF('I - Stationary'!$B:$B,$B17,'I - Stationary'!AD:AD) -> 0 | O17: =IF(VLOOKUP($B17,'I - Stationary'!$B:$AG,32,FALSE)="","",VLOOKUP($B17,'I - Stationary'!$B:$AG,32,FALSE)) -> 
B18: I.2.2 | C18: 2 | D18: Emissions from grid-supplied energy consumed within the city boundary | E18: =IF(VLOOKUP(B18,'I - Stationary'!$B:$F,5,FALSE)="","",VLOOKUP(B18,'I - Stationary'!$B:$F,5,FALSE)) ->  | F18: =SUMIF('I - Stationary'!$B:$B,$B18,'I - Stationary'!Z:Z) -> 10688908.82 | G18: =SUMIF('I - Stationary'!$B:$B,$B18,'I - Stationary'!AA:AA) -> 3479.739657 | H18: =SUMIF('I - Stationary'!$B:$B,$B18,'I - Stationary'!AB:AB) -> 54982.99526 | M18: =SUMIF('I - Stationary'!$B:$B,$B18,'I - Stationary'!AC:AC) -> 10747371.55 | N18: =SUMIF('I - Stationary'!$B:$B,$B18,'I - Stationary'!AD:AD) -> 0 | O18: =IF(VLOOKUP($B18,'I - Stationary'!$B:$AG,32,FALSE)="","",VLOOKUP($B18,'I - Stationary'!$B:$AG,32,FALSE)) -> 
B19: I.2.3 | C19: 3 | D19: Transmission and distribution losses from grid-supplied energy | E19: =IF(VLOOKUP(B19,'I - Stationary'!$B:$F,5,FALSE)="","",VLOOKUP(B19,'I - Stationary'!$B:$F,5,FALSE)) -> NE | F19: =SUMIF('I - Stationary'!$B:$B,$B19,'I - Stationary'!Z:Z) -> 0 | G19: =SUMIF('I - Stationary'!$B:$B,$B19,'I - Stationary'!AA:AA) -> 0 | H19: =SUMIF('I - Stationary'!$B:$B,$B19,'I - Stationary'!AB:AB) -> 0 | M19: =SUMIF('I - Stationary'!$B:$B,$B19,'I - Stationary'!AC:AC) -> 0 | N19: =SUMIF('I - Stationary'!$B:$B,$B19,'I - Stationary'!AD:AD) -> 0 | O19: =IF(VLOOKUP($B19,'I - Stationary'!$B:$AG,32,FALSE)="","",VLOOKUP($B19,'I - Stationary'!$B:$AG,32,FALSE)) -> 
B20: I.3 | D20: Manufacturing industries and construction
B21: I.3.1 | C21: 1 | D21: Emissions from fuel combustion within the city boundary | E21: =IF(VLOOKUP(B21,'I - Stationary'!$B:$F,5,FALSE)="","",VLOOKUP(B21,'I - Stationary'!$B:$F,5,FALSE)) ->  | F21: =SUMIF('I - Stationary'!$B:$B,$B21,'I - Stationary'!Z:Z) -> 868677.2276 | G21: =SUMIF('I - Stationary'!$B:$B,$B21,'I - Stationary'!AA:AA) -> 31229.18174 | H21: =SUMIF('I - Stationary'!$B:$B,$B21,'I - Stationary'!AB:AB) -> 490.211198 | M21: =SUMIF('I - Stationary'!$B:$B,$B21,'I - Stationary'!AC:AC) -> 1350940.57 | N21: =SUMIF('I - Stationary'!$B:$B,$B21,'I - Stationary'!AD:AD) -> 0 | O21: =IF(VLOOKUP($B21,'I - Stationary'!$B:$AG,32,FALSE)="","",VLOOKUP($B21,'I - Stationary'!$B:$AG,32,FALSE)) -> 
B22: I.3.2 | C22: 2 | D22: Emissions from grid-supplied energy consumed within the city boundary | E22: =IF(VLOOKUP(B22,'I - Stationary'!$B:$F,5,FALSE)="","",VLOOKUP(B22,'I - Stationary'!$B:$F,5,FALSE)) -> IE | F22: =SUMIF('I - Stationary'!$B:$B,$B22,'I - Stationary'!Z:Z) -> 0 | G22: =SUMIF('I - Stationary'!$B:$B,$B22,'I - Stationary'!AA:AA) -> 0 | H22: =SUMIF('I - Stationary'!$B:$B,$B22,'I - Stationary'!AB:AB) -> 0 | M22: =SUMIF('I - Stationary'!$B:$B,$B22,'I - Stationary'!AC:AC) -> 0 | N22: =SUMIF('I - Stationary'!$B:$B,$B22,'I - Stationary'!AD:AD) -> 0 | O22: =IF(VLOOKUP($B22,'I - Stationary'!$B:$AG,32,FALSE)="","",VLOOKUP($B22,'I - Stationary'!$B:$AG,32,FALSE)) -> I.3.2 is included in I.2.2
B23: I.3.3 | C23: 3 | D23: Transmission and distribution losses from grid-supplied energy | E23: =IF(VLOOKUP(B23,'I - Stationary'!$B:$F,5,FALSE)="","",VLOOKUP(B23,'I - Stationary'!$B:$F,5,FALSE)) -> NE | F23: =SUMIF('I - Stationary'!$B:$B,$B23,'I - Stationary'!Z:Z) -> 0 | G23: =SUMIF('I - Stationary'!$B:$B,$B23,'I - Stationary'!AA:AA) -> 0 | H23: =SUMIF('I - Stationary'!$B:$B,$B23,'I - Stationary'!AB:AB) -> 0 | M23: =SUMIF('I - Stationary'!$B:$B,$B23,'I - Stationary'!AC:AC) -> 0 | N23: =SUMIF('I - Stationary'!$B:$B,$B23,'I - Stationary'!AD:AD) -> 0 | O23: =IF(VLOOKUP($B23,'I - Stationary'!$B:$AG,32,FALSE)="","",VLOOKUP($B23,'I - Stationary'!$B:$AG,32,FALSE)) -> 
B24: I.4 | D24: Energy industries
B25: I.4.1 | C25: 1 | D25: Emissions from energy production used in power plant auxiliary operations within the city | E25: =IF(VLOOKUP(B25,'I - Stationary'!$B:$F,5,FALSE)="","",VLOOKUP(B25,'I - Stationary'!$B:$F,5,FALSE)) -> NO | F25: =SUMIF('I - Stationary'!$B:$B,$B25,'I - Stationary'!Z:Z) -> 0 | G25: =SUMIF('I - Stationary'!$B:$B,$B25,'I - Stationary'!AA:AA) -> 0 | H25: =SUMIF('I - Stationary'!$B:$B,$B25,'I - Stationary'!AB:AB) -> 0 | M25: =SUMIF('I - Stationary'!$B:$B,$B25,'I - Stationary'!AC:AC) -> 0 | N25: =SUMIF('I - Stationary'!$B:$B,$B25,'I - Stationary'!AD:AD) -> 0 | O25: =IF(VLOOKUP($B25,'I - Stationary'!$B:$AG,32,FALSE)="","",VLOOKUP($B25,'I - Stationary'!$B:$AG,32,FALSE)) -> I.4.1 does not occur
B26: I.4.2 | C26: 2 | D26: Emissions from grid-supplied energy consumed by energy industries | E26: =IF(VLOOKUP(B26,'I - Stationary'!$B:$F,5,FALSE)="","",VLOOKUP(B26,'I - Stationary'!$B:$F,5,FALSE)) -> NO | F26: =SUMIF('I - Stationary'!$B:$B,$B26,'I - Stationary'!Z:Z) -> 0 | G26: =SUMIF('I - Stationary'!$B:$B,$B26,'I - Stationary'!AA:AA) -> 0 | H26: =SUMIF('I - Stationary'!$B:$B,$B26,'I - Stationary'!AB:AB) -> 0 | M26: =SUMIF('I - Stationary'!$B:$B,$B26,'I - Stationary'!AC:AC) -> 0 | N26: =SUMIF('I - Stationary'!$B:$B,$B26,'I - Stationary'!AD:AD) -> 0 | O26: =IF(VLOOKUP($B26,'I - Stationary'!$B:$AG,32,FALSE)="","",VLOOKUP($B26,'I - Stationary'!$B:$AG,32,FALSE)) -> I.4.2 does not occur
B27: I.4.3 | C27: 3 | D27: Emissions from transmission and distribution losses from grid-supplied energy used in power plant auxiliary operations | E27: =IF(VLOOKUP(B27,'I - Stationary'!$B:$F,5,FALSE)="","",VLOOKUP(B27,'I - Stationary'!$B:$F,5,FALSE)) -> NO | F27: =SUMIF('I - Stationary'!$B:$B,$B27,'I - Stationary'!Z:Z) -> 0 | G27: =SUMIF('I - Stationary'!$B:$B,$B27,'I - Stationary'!AA:AA) -> 0 | H27: =SUMIF('I - Stationary'!$B:$B,$B27,'I - Stationary'!AB:AB) -> 0 | M27: =SUMIF('I - Stationary'!$B:$B,$B27,'I - Stationary'!AC:AC) -> 0 | N27: =SUMIF('I - Stationary'!$B:$B,$B27,'I - Stationary'!AD:AD) -> 0 | O27: =IF(VLOOKUP($B27,'I - Stationary'!$B:$AG,32,FALSE)="","",VLOOKUP($B27,'I - Stationary'!$B:$AG,32,FALSE)) -> I.4.3 does not occur
B28: I.4.4 | C28: 1 | D28: Emissions from energy generation supplied to the grid | E28: =IF(VLOOKUP(B28,'I - Stationary'!$B:$F,5,FALSE)="","",VLOOKUP(B28,'I - Stationary'!$B:$F,5,FALSE)) -> NO | F28: =SUMIF('I - Stationary'!$B:$B,$B28,'I - Stationary'!Z:Z) -> 0 | G28: =SUMIF('I - Stationary'!$B:$B,$B28,'I - Stationary'!AA:AA) -> 0 | H28: =SUMIF('I - Stationary'!$B:$B,$B28,'I - Stationary'!AB:AB) -> 0 | M28: =SUMIF('I - Stationary'!$B:$B,$B28,'I - Stationary'!AC:AC) -> 0 | N28: =SUMIF('I - Stationary'!$B:$B,$B28,'I - Stationary'!AD:AD) -> 0 | O28: =IF(VLOOKUP($B28,'I - Stationary'!$B:$AG,32,FALSE)="","",VLOOKUP($B28,'I - Stationary'!$B:$AG,32,FALSE)) -> I.4.4 does not occur
B29: I.5 | D29: Agriculture, forestry and fishing activities
B30: I.5.1 | C30: 1 | D30: Emissions from fuel combustion within the city boundary | E30: =IF(VLOOKUP(B30,'I - Stationary'!$B:$F,5,FALSE)="","",VLOOKUP(B30,'I - Stationary'!$B:$F,5,FALSE)) -> NO | F30: =SUMIF('I - Stationary'!$B:$B,$B30,'I - Stationary'!Z:Z) -> 0 | G30: =SUMIF('I - Stationary'!$B:$B,$B30,'I - Stationary'!AA:AA) -> 0 | H30: =SUMIF('I - Stationary'!$B:$B,$B30,'I - Stationary'!AB:AB) -> 0 | M30: =SUMIF('I - Stationary'!$B:$B,$B30,'I - Stationary'!AC:AC) -> 0 | N30: =SUMIF('I - Stationary'!$B:$B,$B30,'I - Stationary'!AD:AD) -> 0 | O30: =IF(VLOOKUP($B30,'I - Stationary'!$B:$AG,32,FALSE)="","",VLOOKUP($B30,'I - Stationary'!$B:$AG,32,FALSE)) -> I.5.1 does not occur; no agricultural activities within the city boundary
B31: I.5.2 | C31: 2 | D31: Emissions from grid-supplied energy consumed within the city boundary | E31: =IF(VLOOKUP(B31,'I - Stationary'!$B:$F,5,FALSE)="","",VLOOKUP(B31,'I - Stationary'!$B:$F,5,FALSE)) -> NO | F31: =SUMIF('I - Stationary'!$B:$B,$B31,'I - Stationary'!Z:Z) -> 0 | G31: =SUMIF('I - Stationary'!$B:$B,$B31,'I - Stationary'!AA:AA) -> 0 | H31: =SUMIF('I - Stationary'!$B:$B,$B31,'I - Stationary'!AB:AB) -> 0 | M31: =SUMIF('I - Stationary'!$B:$B,$B31,'I - Stationary'!AC:AC) -> 0 | N31: =SUMIF('I - Stationary'!$B:$B,$B31,'I - Stationary'!AD:AD) -> 0 | O31: =IF(VLOOKUP($B31,'I - Stationary'!$B:$AG,32,FALSE)="","",VLOOKUP($B31,'I - Stationary'!$B:$AG,32,FALSE)) -> I.5.2 does not occur; no agricultural activities within the city boundary
B32: I.5.3 | C32: 3 | D32: Transmission and distribution losses from grid-supplied energy consumption | E32: =IF(VLOOKUP(B32,'I - Stationary'!$B:$F,5,FALSE)="","",VLOOKUP(B32,'I - Stationary'!$B:$F,5,FALSE)) -> NO | F32: =SUMIF('I - Stationary'!$B:$B,$B32,'I - Stationary'!Z:Z) -> 0 | G32: =SUMIF('I - Stationary'!$B:$B,$B32,'I - Stationary'!AA:AA) -> 0 | H32: =SUMIF('I - Stationary'!$B:$B,$B32,'I - Stationary'!AB:AB) -> 0 | M32: =SUMIF('I - Stationary'!$B:$B,$B32,'I - Stationary'!AC:AC) -> 0 | N32: =SUMIF('I - Stationary'!$B:$B,$B32,'I - Stationary'!AD:AD) -> 0 | O32: =IF(VLOOKUP($B32,'I - Stationary'!$B:$AG,32,FALSE)="","",VLOOKUP($B32,'I - Stationary'!$B:$AG,32,FALSE)) -> I.5.3 does not occur; no agricultural activities within the city boundary
B33: I.6 | D33: Non-specified sources
B34: I.6.1 | C34: 1 | D34: Emissions from fuel combustion within the city boundary | E34: =IF(VLOOKUP(B34,'I - Stationary'!$B:$F,5,FALSE)="","",VLOOKUP(B34,'I - Stationary'!$B:$F,5,FALSE)) -> NO | F34: =SUMIF('I - Stationary'!$B:$B,$B34,'I - Stationary'!Z:Z) -> 0 | G34: =SUMIF('I - Stationary'!$B:$B,$B34,'I - Stationary'!AA:AA) -> 0 | H34: =SUMIF('I - Stationary'!$B:$B,$B34,'I - Stationary'!AB:AB) -> 0 | M34: =SUMIF('I - Stationary'!$B:$B,$B34,'I - Stationary'!AC:AC) -> 0 | N34: =SUMIF('I - Stationary'!$B:$B,$B34,'I - Stationary'!AD:AD) -> 0 | O34: =IF(VLOOKUP($B34,'I - Stationary'!$B:$AG,32,FALSE)="","",VLOOKUP($B34,'I - Stationary'!$B:$AG,32,FALSE)) -> I.6.1 does not occur; no non-specified sources identified within the city boundary
B35: I.6.2 | C35: 2 | D35: Emissions from grid-supplied energy consumed within the city boundary | E35: =IF(VLOOKUP(B35,'I - Stationary'!$B:$F,5,FALSE)="","",VLOOKUP(B35,'I - Stationary'!$B:$F,5,FALSE)) -> NO | F35: =SUMIF('I - Stationary'!$B:$B,$B35,'I - Stationary'!Z:Z) -> 0 | G35: =SUMIF('I - Stationary'!$B:$B,$B35,'I - Stationary'!AA:AA) -> 0 | H35: =SUMIF('I - Stationary'!$B:$B,$B35,'I - Stationary'!AB:AB) -> 0 | M35: =SUMIF('I - Stationary'!$B:$B,$B35,'I - Stationary'!AC:AC) -> 0 | N35: =SUMIF('I - Stationary'!$B:$B,$B35,'I - Stationary'!AD:AD) -> 0 | O35: =IF(VLOOKUP($B35,'I - Stationary'!$B:$AG,32,FALSE)="","",VLOOKUP($B35,'I - Stationary'!$B:$AG,32,FALSE)) -> I.6.2 does not occur; no non-specified sources identified within the city boundary
B36: I.6.3 | C36: 3 | D36: Emissions from transmission and distribution losses from grid-supplied energy consumption | E36: =IF(VLOOKUP(B36,'I - Stationary'!$B:$F,5,FALSE)="","",VLOOKUP(B36,'I - Stationary'!$B:$F,5,FALSE)) -> NO | F36: =SUMIF('I - Stationary'!$B:$B,$B36,'I - Stationary'!Z:Z) -> 0 | G36: =SUMIF('I - Stationary'!$B:$B,$B36,'I - Stationary'!AA:AA) -> 0 | H36: =SUMIF('I - Stationary'!$B:$B,$B36,'I - Stationary'!AB:AB) -> 0 | M36: =SUMIF('I - Stationary'!$B:$B,$B36,'I - Stationary'!AC:AC) -> 0 | N36: =SUMIF('I - Stationary'!$B:$B,$B36,'I - Stationary'!AD:AD) -> 0 | O36: =IF(VLOOKUP($B36,'I - Stationary'!$B:$AG,32,FALSE)="","",VLOOKUP($B36,'I - Stationary'!$B:$AG,32,FALSE)) -> I.6.3 does not occur; no non-specified sources identified within the city boundary
B37: I.7 | C37: 1 | D37: Fugitive emissions from mining, processing, storage, and transportation of coal
B38: I.7.1 | C38: 1 | D38: Fugitive emissions from mining, processing, storage, and transportation of coal within the city boundary | E38: =IF(VLOOKUP(B38,'I - Stationary'!$B:$F,5,FALSE)="","",VLOOKUP(B38,'I - Stationary'!$B:$F,5,FALSE)) -> NO | F38: =SUMIF('I - Stationary'!$B:$B,$B38,'I - Stationary'!Z:Z) -> 0 | G38: =SUMIF('I - Stationary'!$B:$B,$B38,'I - Stationary'!AA:AA) -> 0 | H38: =SUMIF('I - Stationary'!$B:$B,$B38,'I - Stationary'!AB:AB) -> 0 | M38: =SUMIF('I - Stationary'!$B:$B,$B38,'I - Stationary'!AC:AC) -> 0 | N38: =SUMIF('I - Stationary'!$B:$B,$B38,'I - Stationary'!AD:AD) -> 0 | O38: =IF(VLOOKUP($B38,'I - Stationary'!$B:$AG,32,FALSE)="","",VLOOKUP($B38,'I - Stationary'!$B:$AG,32,FALSE)) -> I.7.1 does not occur; no coal-related activities within the city boundary
B39: I.8 | C39: 1 | D39: Fugitive emissions from oil and natural gas systems
B40: I.8.1 | C40: 1 | D40: Fugitive emissions from oil and natural gas systems within the city boundary | E40: =IF(VLOOKUP(B40,'I - Stationary'!$B:$F,5,FALSE)="","",VLOOKUP(B40,'I - Stationary'!$B:$F,5,FALSE)) -> NE | F40: =SUMIF('I - Stationary'!$B:$B,$B40,'I - Stationary'!Z:Z) -> 0 | G40: =SUMIF('I - Stationary'!$B:$B,$B40,'I - Stationary'!AA:AA) -> 0 | H40: =SUMIF('I - Stationary'!$B:$B,$B40,'I - Stationary'!AB:AB) -> 0 | M40: =SUMIF('I - Stationary'!$B:$B,$B40,'I - Stationary'!AC:AC) -> 0 | N40: =SUMIF('I - Stationary'!$B:$B,$B40,'I - Stationary'!AD:AD) -> 0 | O40: =IF(VLOOKUP($B40,'I - Stationary'!$B:$AG,32,FALSE)="","",VLOOKUP($B40,'I - Stationary'!$B:$AG,32,FALSE)) -> I.8.1 have not been estimated
B41: II | D41: TRANSPORTATION
B42: II.1 | D42: On-road transportation
B43: II.1.1 | C43: 1 | D43: Emissions from fuel combustion on-road transportation occurring in the city | E43: =IF(VLOOKUP(B43,'II - Transport'!$B:$G,6,FALSE)="","",VLOOKUP(B43,'II - Transport'!$B:$G,6,FALSE)) ->  | F43: =SUMIF('II - Transport'!$B:$B,$B43,'II - Transport'!AA:AA) -> 0 | G43: =SUMIF('II - Transport'!$B:$B,$B43,'II - Transport'!AB:AB) -> 0 | H43: =SUMIF('II - Transport'!$B:$B,$B43,'II - Transport'!AC:AC) -> 0 | M43: =SUMIF('II - Transport'!$B:$B,$B43,'II - Transport'!AD:AD) -> 6783031.212 | N43: =SUMIF('II - Transport'!$B:$B,$B43,'II - Transport'!AE:AE) -> 0 | O43: =IF(VLOOKUP($B43,'II - Transport'!$B:$AH,33,FALSE)="","",VLOOKUP($B43,'II - Transport'!$B:$AH,33,FALSE)) -> 
B44: II.1.2 | C44: 2 | D44: Emissions from grid-supplied energy consumed in the city for on-road transportation | E44: =IF(VLOOKUP(B44,'II - Transport'!$B:$G,6,FALSE)="","",VLOOKUP(B44,'II - Transport'!$B:$G,6,FALSE)) -> IE | F44: =SUMIF('II - Transport'!$B:$B,$B44,'II - Transport'!AA:AA) -> 0 | G44: =SUMIF('II - Transport'!$B:$B,$B44,'II - Transport'!AB:AB) -> 0 | H44: =SUMIF('II - Transport'!$B:$B,$B44,'II - Transport'!AC:AC) -> 0 | M44: =SUMIF('II - Transport'!$B:$B,$B44,'II - Transport'!AD:AD) -> 0 | N44: =SUMIF('II - Transport'!$B:$B,$B44,'II - Transport'!AE:AE) -> 0 | O44: =IF(VLOOKUP($B44,'II - Transport'!$B:$AH,33,FALSE)="","",VLOOKUP($B44,'II - Transport'!$B:$AH,33,FALSE)) -> II.1.2 in included in stationary energy electricity use
B45: II.1.3 | C45: 3 | D45: Emissions from transboundary journeys occurring outside the city, and T and D losses from grid-supplied energy use | E45: =IF(VLOOKUP(B45,'II - Transport'!$B:$G,6,FALSE)="","",VLOOKUP(B45,'II - Transport'!$B:$G,6,FALSE)) -> NE | F45: =SUMIF('II - Transport'!$B:$B,$B45,'II - Transport'!AA:AA) -> 0 | G45: =SUMIF('II - Transport'!$B:$B,$B45,'II - Transport'!AB:AB) -> 0 | H45: =SUMIF('II - Transport'!$B:$B,$B45,'II - Transport'!AC:AC) -> 0 | M45: =SUMIF('II - Transport'!$B:$B,$B45,'II - Transport'!AD:AD) -> 0 | N45: =SUMIF('II - Transport'!$B:$B,$B45,'II - Transport'!AE:AE) -> 0 | O45: =IF(VLOOKUP($B45,'II - Transport'!$B:$AH,33,FALSE)="","",VLOOKUP($B45,'II - Transport'!$B:$AH,33,FALSE)) -> II.1.3 has not been estimated - optional under GPC BASIC
B46: II.2 | D46: Railways
B47: II.2.1 | C47: 1 | D47: Emissions from fuel combustion for railway transportation occurring in the city | E47: =IF(VLOOKUP(B47,'II - Transport'!$B:$G,6,FALSE)="","",VLOOKUP(B47,'II - Transport'!$B:$G,6,FALSE)) ->  | F47: =SUMIF('II - Transport'!$B:$B,$B47,'II - Transport'!AA:AA) -> 0 | G47: =SUMIF('II - Transport'!$B:$B,$B47,'II - Transport'!AB:AB) -> 0 | H47: =SUMIF('II - Transport'!$B:$B,$B47,'II - Transport'!AC:AC) -> 0 | M47: =SUMIF('II - Transport'!$B:$B,$B47,'II - Transport'!AD:AD) -> 62587.2 | N47: =SUMIF('II - Transport'!$B:$B,$B47,'II - Transport'!AE:AE) -> 0 | O47: =IF(VLOOKUP($B47,'II - Transport'!$B:$AH,33,FALSE)="","",VLOOKUP($B47,'II - Transport'!$B:$AH,33,FALSE)) -> 
B48: II.2.2 | C48: 2 | D48: Emissions from grid-supplied energy consumed in the city for railways | E48: =IF(VLOOKUP(B48,'II - Transport'!$B:$G,6,FALSE)="","",VLOOKUP(B48,'II - Transport'!$B:$G,6,FALSE)) ->  | F48: =SUMIF('II - Transport'!$B:$B,$B48,'II - Transport'!AA:AA) -> 0 | G48: =SUMIF('II - Transport'!$B:$B,$B48,'II - Transport'!AB:AB) -> 0 | H48: =SUMIF('II - Transport'!$B:$B,$B48,'II - Transport'!AC:AC) -> 0 | M48: =SUMIF('II - Transport'!$B:$B,$B48,'II - Transport'!AD:AD) -> 251555.5941 | N48: =SUMIF('II - Transport'!$B:$B,$B48,'II - Transport'!AE:AE) -> 0 | O48: =IF(VLOOKUP($B48,'II - Transport'!$B:$AH,33,FALSE)="","",VLOOKUP($B48,'II - Transport'!$B:$AH,33,FALSE)) -> 
B49: II.2.3 | C49: 3 | D49: Emissions from transboundary journeys occurring outside the city, and T and D losses from grid-supplied energy use | E49: =IF(VLOOKUP(B49,'II - Transport'!$B:$G,6,FALSE)="","",VLOOKUP(B49,'II - Transport'!$B:$G,6,FALSE)) -> NE | F49: =SUMIF('II - Transport'!$B:$B,$B49,'II - Transport'!AA:AA) -> 0 | G49: =SUMIF('II - Transport'!$B:$B,$B49,'II - Transport'!AB:AB) -> 0 | H49: =SUMIF('II - Transport'!$B:$B,$B49,'II - Transport'!AC:AC) -> 0 | M49: =SUMIF('II - Transport'!$B:$B,$B49,'II - Transport'!AD:AD) -> 0 | N49: =SUMIF('II - Transport'!$B:$B,$B49,'II - Transport'!AE:AE) -> 0 | O49: =IF(VLOOKUP($B49,'II - Transport'!$B:$AH,33,FALSE)="","",VLOOKUP($B49,'II - Transport'!$B:$AH,33,FALSE)) -> II.2.3 has not been estimated - optional under GPC BASIC
B50: II.3 | D50: Waterborne navigation
B51: II.3.1 | C51: 1 | D51: Emissions from fuel combustion for waterborne navigation occurring in the city | E51: =IF(VLOOKUP(B51,'II - Transport'!$B:$G,6,FALSE)="","",VLOOKUP(B51,'II - Transport'!$B:$G,6,FALSE)) ->  | F51: =SUMIF('II - Transport'!$B:$B,$B51,'II - Transport'!AA:AA) -> 0 | G51: =SUMIF('II - Transport'!$B:$B,$B51,'II - Transport'!AB:AB) -> 0 | H51: =SUMIF('II - Transport'!$B:$B,$B51,'II - Transport'!AC:AC) -> 0 | M51: =SUMIF('II - Transport'!$B:$B,$B51,'II - Transport'!AD:AD) -> 246.864418 | N51: =SUMIF('II - Transport'!$B:$B,$B51,'II - Transport'!AE:AE) -> 0 | O51: =IF(VLOOKUP($B51,'II - Transport'!$B:$AH,33,FALSE)="","",VLOOKUP($B51,'II - Transport'!$B:$AH,33,FALSE)) -> 
B52: II.3.2 | C52: 2 | D52: Emissions from grid-supplied energy consumed in the city for waterborne navigation | E52: =IF(VLOOKUP(B52,'II - Transport'!$B:$G,6,FALSE)="","",VLOOKUP(B52,'II - Transport'!$B:$G,6,FALSE)) -> NO | F52: =SUMIF('II - Transport'!$B:$B,$B52,'II - Transport'!AA:AA) -> 0 | G52: =SUMIF('II - Transport'!$B:$B,$B52,'II - Transport'!AB:AB) -> 0 | H52: =SUMIF('II - Transport'!$B:$B,$B52,'II - Transport'!AC:AC) -> 0 | M52: =SUMIF('II - Transport'!$B:$B,$B52,'II - Transport'!AD:AD) -> 0 | N52: =SUMIF('II - Transport'!$B:$B,$B52,'II - Transport'!AE:AE) -> 0 | O52: =IF(VLOOKUP($B52,'II - Transport'!$B:$AH,33,FALSE)="","",VLOOKUP($B52,'II - Transport'!$B:$AH,33,FALSE)) -> 
B53: II.3.3 | C53: 3 | D53: Emissions from transboundary journeys occurring outside the city, and T and D losses from grid-supplied energy use | E53: =IF(VLOOKUP(B53,'II - Transport'!$B:$G,6,FALSE)="","",VLOOKUP(B53,'II - Transport'!$B:$G,6,FALSE)) -> NO | F53: =SUMIF('II - Transport'!$B:$B,$B53,'II - Transport'!AA:AA) -> 0 | G53: =SUMIF('II - Transport'!$B:$B,$B53,'II - Transport'!AB:AB) -> 0 | H53: =SUMIF('II - Transport'!$B:$B,$B53,'II - Transport'!AC:AC) -> 0 | M53: =SUMIF('II - Transport'!$B:$B,$B53,'II - Transport'!AD:AD) -> 0 | N53: =SUMIF('II - Transport'!$B:$B,$B53,'II - Transport'!AE:AE) -> 0 | O53: =IF(VLOOKUP($B53,'II - Transport'!$B:$AH,33,FALSE)="","",VLOOKUP($B53,'II - Transport'!$B:$AH,33,FALSE)) -> 
B54: II.4 | D54: Aviation
B55: II.4.1 | C55: 1 | D55: Emissions from fuel combustion for aviation occurring in the city | E55: =IF(VLOOKUP(B55,'II - Transport'!$B:$G,6,FALSE)="","",VLOOKUP(B55,'II - Transport'!$B:$G,6,FALSE)) -> NO | F55: =SUMIF('II - Transport'!$B:$B,$B55,'II - Transport'!AA:AA) -> 0 | G55: =SUMIF('II - Transport'!$B:$B,$B55,'II - Transport'!AB:AB) -> 0 | H55: =SUMIF('II - Transport'!$B:$B,$B55,'II - Transport'!AC:AC) -> 0 | M55: =SUMIF('II - Transport'!$B:$B,$B55,'II - Transport'!AD:AD) -> 0 | N55: =SUMIF('II - Transport'!$B:$B,$B55,'II - Transport'!AE:AE) -> 0 | O55: =IF(VLOOKUP($B55,'II - Transport'!$B:$AH,33,FALSE)="","",VLOOKUP($B55,'II - Transport'!$B:$AH,33,FALSE)) -> 
B56: II.4.2 | C56: 2 | D56: Emissions from grid-supplied energy consumed in the city for aviation | E56: =IF(VLOOKUP(B56,'II - Transport'!$B:$G,6,FALSE)="","",VLOOKUP(B56,'II - Transport'!$B:$G,6,FALSE)) -> NO | F56: =SUMIF('II - Transport'!$B:$B,$B56,'II - Transport'!AA:AA) -> 0 | G56: =SUMIF('II - Transport'!$B:$B,$B56,'II - Transport'!AB:AB) -> 0 | H56: =SUMIF('II - Transport'!$B:$B,$B56,'II - Transport'!AC:AC) -> 0 | M56: =SUMIF('II - Transport'!$B:$B,$B56,'II - Transport'!AD:AD) -> 0 | N56: =SUMIF('II - Transport'!$B:$B,$B56,'II - Transport'!AE:AE) -> 0 | O56: =IF(VLOOKUP($B56,'II - Transport'!$B:$AH,33,FALSE)="","",VLOOKUP($B56,'II - Transport'!$B:$AH,33,FALSE)) -> II.4.2 does not occur
B57: II.4.3 | C57: 3 | D57: Emissions from transboundary journeys occurring outside the city, and T and D losses from grid-supplied energy use | E57: =IF(VLOOKUP(B57,'II - Transport'!$B:$G,6,FALSE)="","",VLOOKUP(B57,'II - Transport'!$B:$G,6,FALSE)) -> NO | F57: =SUMIF('II - Transport'!$B:$B,$B57,'II - Transport'!AA:AA) -> 0 | G57: =SUMIF('II - Transport'!$B:$B,$B57,'II - Transport'!AB:AB) -> 0 | H57: =SUMIF('II - Transport'!$B:$B,$B57,'II - Transport'!AC:AC) -> 0 | M57: =SUMIF('II - Transport'!$B:$B,$B57,'II - Transport'!AD:AD) -> 0 | N57: =SUMIF('II - Transport'!$B:$B,$B57,'II - Transport'!AE:AE) -> 0 | O57: =IF(VLOOKUP($B57,'II - Transport'!$B:$AH,33,FALSE)="","",VLOOKUP($B57,'II - Transport'!$B:$AH,33,FALSE)) -> 
B58: II.5 | D58: Off-road transportation
B59: II.5.1 | C59: 1 | D59: Emissions from fuel combustion for off-road transportation occurring in the city | E59: =IF(VLOOKUP(B59,'II - Transport'!$B:$G,6,FALSE)="","",VLOOKUP(B59,'II - Transport'!$B:$G,6,FALSE)) ->  | F59: =SUMIF('II - Transport'!$B:$B,$B59,'II - Transport'!AA:AA) -> 0 | G59: =SUMIF('II - Transport'!$B:$B,$B59,'II - Transport'!AB:AB) -> 0 | H59: =SUMIF('II - Transport'!$B:$B,$B59,'II - Transport'!AC:AC) -> 0 | M59: =SUMIF('II - Transport'!$B:$B,$B59,'II - Transport'!AD:AD) -> 1011.67266 | N59: =SUMIF('II - Transport'!$B:$B,$B59,'II - Transport'!AE:AE) -> 0 | O59: =IF(VLOOKUP($B59,'II - Transport'!$B:$AH,33,FALSE)="","",VLOOKUP($B59,'II - Transport'!$B:$AH,33,FALSE)) -> 
B60: II.5.2 | C60: 2 | D60: Emissions from grid-supplied energy consumed in the city for off-road transportation | E60: =IF(VLOOKUP(B60,'II - Transport'!$B:$G,6,FALSE)="","",VLOOKUP(B60,'II - Transport'!$B:$G,6,FALSE)) -> NO | F60: =SUMIF('II - Transport'!$B:$B,$B60,'II - Transport'!AA:AA) -> 0 | G60: =SUMIF('II - Transport'!$B:$B,$B60,'II - Transport'!AB:AB) -> 0 | H60: =SUMIF('II - Transport'!$B:$B,$B60,'II - Transport'!AC:AC) -> 0 | M60: =SUMIF('II - Transport'!$B:$B,$B60,'II - Transport'!AD:AD) -> 0 | N60: =SUMIF('II - Transport'!$B:$B,$B60,'II - Transport'!AE:AE) -> 0 | O60: =IF(VLOOKUP($B60,'II - Transport'!$B:$AH,33,FALSE)="","",VLOOKUP($B60,'II - Transport'!$B:$AH,33,FALSE)) -> 
B61: II.5.3 | C61: 3 | D61: Emissions from transboundary journeys occurring outside the city, and T and D losses from grid-supplied energy use | E61: =IF(VLOOKUP(B61,'II - Transport'!$B:$G,6,FALSE)="","",VLOOKUP(B61,'II - Transport'!$B:$G,6,FALSE)) -> NO | F61: =SUMIF('II - Transport'!$B:$B,$B61,'II - Transport'!AA:AA) -> 0 | G61: =SUMIF('II - Transport'!$B:$B,$B61,'II - Transport'!AB:AB) -> 0 | H61: =SUMIF('II - Transport'!$B:$B,$B61,'II - Transport'!AC:AC) -> 0 | M61: =SUMIF('II - Transport'!$B:$B,$B61,'II - Transport'!AD:AD) -> 0 | N61: =SUMIF('II - Transport'!$B:$B,$B61,'II - Transport'!AE:AE) -> 0 | O61: =IF(VLOOKUP($B61,'II - Transport'!$B:$AH,33,FALSE)="","",VLOOKUP($B61,'II - Transport'!$B:$AH,33,FALSE)) -> II.5.3 does not occur
B62: III | D62: WASTE
B63: III.1 | D63: Solid waste disposal
B64: III.1.1 | C64: 1 | D64: Emissions from solid waste generated in the city and disposed in landfills or open dumps within the city | E64: =IF(VLOOKUP(B64,'III - Waste'!$B:$G,6,FALSE)="","",VLOOKUP(B64,'III - Waste'!$B:$G,6,FALSE)) ->  | F64: =SUMIF('III - Waste'!$B:$B,$B64,'III - Waste'!AA:AA) -> 0 | G64: =SUMIF('III - Waste'!$B:$B,$B64,'III - Waste'!AB:AB) -> 1291449.038 | H64: =SUMIF('III - Waste'!$B:$B,$B64,'III - Waste'!AC:AC) -> 0 | M64: =SUMIF('III - Waste'!$B:$B,$B64,'III - Waste'!AD:AD) -> 1291449.038 | N64: =SUMIF('III - Waste'!$B:$B,$B64,'III - Waste'!AE:AE) -> 0 | O64: =IF(VLOOKUP($B64,'III - Waste'!$B:$AH,33,FALSE)="","",VLOOKUP($B64,'III - Waste'!$B:$AH,33,FALSE)) -> 
B65: III.1.2 | C65: 3 | D65: Emissions from solid waste generated in the city but disposed in landfills or open dumps outside the city | E65: =IF(VLOOKUP(B65,'III - Waste'!$B:$G,6,FALSE)="","",VLOOKUP(B65,'III - Waste'!$B:$G,6,FALSE)) -> NO | F65: =SUMIF('III - Waste'!$B:$B,$B65,'III - Waste'!AA:AA) -> 0 | G65: =SUMIF('III - Waste'!$B:$B,$B65,'III - Waste'!AB:AB) -> 0 | H65: =SUMIF('III - Waste'!$B:$B,$B65,'III - Waste'!AC:AC) -> 0 | M65: =SUMIF('III - Waste'!$B:$B,$B65,'III - Waste'!AD:AD) -> 0 | N65: =SUMIF('III - Waste'!$B:$B,$B65,'III - Waste'!AE:AE) -> 0 | O65: =IF(VLOOKUP($B65,'III - Waste'!$B:$AH,33,FALSE)="","",VLOOKUP($B65,'III - Waste'!$B:$AH,33,FALSE)) -> 
B66: III.1.3 | C66: 1 | D66: Emissions from waste generated outside the city and disposed in landfills or open dumps within the city | E66: =IF(VLOOKUP(B66,'III - Waste'!$B:$G,6,FALSE)="","",VLOOKUP(B66,'III - Waste'!$B:$G,6,FALSE)) -> NO | F66: =SUMIF('III - Waste'!$B:$B,$B66,'III - Waste'!AA:AA) -> 0 | G66: =SUMIF('III - Waste'!$B:$B,$B66,'III - Waste'!AB:AB) -> 0 | H66: =SUMIF('III - Waste'!$B:$B,$B66,'III - Waste'!AC:AC) -> 0 | M66: =SUMIF('III - Waste'!$B:$B,$B66,'III - Waste'!AD:AD) -> 0 | N66: =SUMIF('III - Waste'!$B:$B,$B66,'III - Waste'!AE:AE) -> 0 | O66: =IF(VLOOKUP($B66,'III - Waste'!$B:$AH,33,FALSE)="","",VLOOKUP($B66,'III - Waste'!$B:$AH,33,FALSE)) -> 
B67: III.2 | D67: Biological treatment of waste
B68: III.2.1 | C68: 1 | D68: Emissions from solid waste generated in the city that is treated biologically in the city | E68: =IF(VLOOKUP(B68,'III - Waste'!$B:$G,6,FALSE)="","",VLOOKUP(B68,'III - Waste'!$B:$G,6,FALSE)) -> NO | F68: =SUMIF('III - Waste'!$B:$B,$B68,'III - Waste'!AA:AA) -> 0 | G68: =SUMIF('III - Waste'!$B:$B,$B68,'III - Waste'!AB:AB) -> 0 | H68: =SUMIF('III - Waste'!$B:$B,$B68,'III - Waste'!AC:AC) -> 0 | M68: =SUMIF('III - Waste'!$B:$B,$B68,'III - Waste'!AD:AD) -> 0 | N68: =SUMIF('III - Waste'!$B:$B,$B68,'III - Waste'!AE:AE) -> 0 | O68: =IF(VLOOKUP($B68,'III - Waste'!$B:$AH,33,FALSE)="","",VLOOKUP($B68,'III - Waste'!$B:$AH,33,FALSE)) -> 
B69: III.2.2 | C69: 3 | D69: Emissions from solid waste generated in the city but treated biologically outside of the city | E69: =IF(VLOOKUP(B69,'III - Waste'!$B:$G,6,FALSE)="","",VLOOKUP(B69,'III - Waste'!$B:$G,6,FALSE)) -> NO | F69: =SUMIF('III - Waste'!$B:$B,$B69,'III - Waste'!AA:AA) -> 0 | G69: =SUMIF('III - Waste'!$B:$B,$B69,'III - Waste'!AB:AB) -> 0 | H69: =SUMIF('III - Waste'!$B:$B,$B69,'III - Waste'!AC:AC) -> 0 | M69: =SUMIF('III - Waste'!$B:$B,$B69,'III - Waste'!AD:AD) -> 0 | N69: =SUMIF('III - Waste'!$B:$B,$B69,'III - Waste'!AE:AE) -> 0 | O69: =IF(VLOOKUP($B69,'III - Waste'!$B:$AH,33,FALSE)="","",VLOOKUP($B69,'III - Waste'!$B:$AH,33,FALSE)) -> 
B70: III.2.3 | C70: 1 | D70: Emissions from waste generated outside the city boundary but treated in the city | E70: =IF(VLOOKUP(B70,'III - Waste'!$B:$G,6,FALSE)="","",VLOOKUP(B70,'III - Waste'!$B:$G,6,FALSE)) -> NO | F70: =SUMIF('III - Waste'!$B:$B,$B70,'III - Waste'!AA:AA) -> 0 | G70: =SUMIF('III - Waste'!$B:$B,$B70,'III - Waste'!AB:AB) -> 0 | H70: =SUMIF('III - Waste'!$B:$B,$B70,'III - Waste'!AC:AC) -> 0 | M70: =SUMIF('III - Waste'!$B:$B,$B70,'III - Waste'!AD:AD) -> 0 | N70: =SUMIF('III - Waste'!$B:$B,$B70,'III - Waste'!AE:AE) -> 0 | O70: =IF(VLOOKUP($B70,'III - Waste'!$B:$AH,33,FALSE)="","",VLOOKUP($B70,'III - Waste'!$B:$AH,33,FALSE)) -> 
B71: III.3 | D71: Incineration and open burning
B72: III.3.1 | C72: 1 | D72: Emissions from waste generated and treated within the city | E72: =IF(VLOOKUP(B72,'III - Waste'!$B:$G,6,FALSE)="","",VLOOKUP(B72,'III - Waste'!$B:$G,6,FALSE)) -> NO | F72: =SUMIF('III - Waste'!$B:$B,$B72,'III - Waste'!AA:AA) -> 0 | G72: =SUMIF('III - Waste'!$B:$B,$B72,'III - Waste'!AB:AB) -> 0 | H72: =SUMIF('III - Waste'!$B:$B,$B72,'III - Waste'!AC:AC) -> 0 | M72: =SUMIF('III - Waste'!$B:$B,$B72,'III - Waste'!AD:AD) -> 0 | N72: =SUMIF('III - Waste'!$B:$B,$B72,'III - Waste'!AE:AE) -> 0 | O72: =IF(VLOOKUP($B72,'III - Waste'!$B:$AH,33,FALSE)="","",VLOOKUP($B72,'III - Waste'!$B:$AH,33,FALSE)) -> 
B73: III.3.2 | C73: 3 | D73: Emissions from waste generated within but treated outside of the city | E73: =IF(VLOOKUP(B73,'III - Waste'!$B:$G,6,FALSE)="","",VLOOKUP(B73,'III - Waste'!$B:$G,6,FALSE)) -> NO | F73: =SUMIF('III - Waste'!$B:$B,$B73,'III - Waste'!AA:AA) -> 0 | G73: =SUMIF('III - Waste'!$B:$B,$B73,'III - Waste'!AB:AB) -> 0 | H73: =SUMIF('III - Waste'!$B:$B,$B73,'III - Waste'!AC:AC) -> 0 | M73: =SUMIF('III - Waste'!$B:$B,$B73,'III - Waste'!AD:AD) -> 0 | N73: =SUMIF('III - Waste'!$B:$B,$B73,'III - Waste'!AE:AE) -> 0 | O73: =IF(VLOOKUP($B73,'III - Waste'!$B:$AH,33,FALSE)="","",VLOOKUP($B73,'III - Waste'!$B:$AH,33,FALSE)) -> 
B74: III.3.3 | C74: 1 | D74: Emissions from waste generated outside the city boundary but treated within the city | E74: =IF(VLOOKUP(B74,'III - Waste'!$B:$G,6,FALSE)="","",VLOOKUP(B74,'III - Waste'!$B:$G,6,FALSE)) -> NO | F74: =SUMIF('III - Waste'!$B:$B,$B74,'III - Waste'!AA:AA) -> 0 | G74: =SUMIF('III - Waste'!$B:$B,$B74,'III - Waste'!AB:AB) -> 0 | H74: =SUMIF('III - Waste'!$B:$B,$B74,'III - Waste'!AC:AC) -> 0 | M74: =SUMIF('III - Waste'!$B:$B,$B74,'III - Waste'!AD:AD) -> 0 | N74: =SUMIF('III - Waste'!$B:$B,$B74,'III - Waste'!AE:AE) -> 0 | O74: =IF(VLOOKUP($B74,'III - Waste'!$B:$AH,33,FALSE)="","",VLOOKUP($B74,'III - Waste'!$B:$AH,33,FALSE)) -> 
B75: III.4 | D75: Wastewater treatment and discharge
B76: III.4.1 | C76: 1 | D76: Emissions from wastewater generated and treated within the city | E76: =IF(VLOOKUP(B76,'III - Waste'!$B:$G,6,FALSE)="","",VLOOKUP(B76,'III - Waste'!$B:$G,6,FALSE)) ->  | F76: =SUMIF('III - Waste'!$B:$B,$B76,'III - Waste'!AA:AA) -> 0 | G76: =SUMIF('III - Waste'!$B:$B,$B76,'III - Waste'!AB:AB) -> 2341.50101 | H76: =SUMIF('III - Waste'!$B:$B,$B76,'III - Waste'!AC:AC) -> 32872.19156 | M76: =SUMIF('III - Waste'!$B:$B,$B76,'III - Waste'!AD:AD) -> 35213.69257 | N76: =SUMIF('III - Waste'!$B:$B,$B76,'III - Waste'!AE:AE) -> 0 | O76: =IF(VLOOKUP($B76,'III - Waste'!$B:$AH,33,FALSE)="","",VLOOKUP($B76,'III - Waste'!$B:$AH,33,FALSE)) -> 
B77: III.4.2 | C77: 3 | D77: Emissions from wastewater generated within but treated outside of the city | E77: =IF(VLOOKUP(B77,'III - Waste'!$B:$G,6,FALSE)="","",VLOOKUP(B77,'III - Waste'!$B:$G,6,FALSE)) -> NO | F77: =SUMIF('III - Waste'!$B:$B,$B77,'III - Waste'!AA:AA) -> 0 | G77: =SUMIF('III - Waste'!$B:$B,$B77,'III - Waste'!AB:AB) -> 0 | H77: =SUMIF('III - Waste'!$B:$B,$B77,'III - Waste'!AC:AC) -> 0 | M77: =SUMIF('III - Waste'!$B:$B,$B77,'III - Waste'!AD:AD) -> 0 | N77: =SUMIF('III - Waste'!$B:$B,$B77,'III - Waste'!AE:AE) -> 0 | O77: =IF(VLOOKUP($B77,'III - Waste'!$B:$AH,33,FALSE)="","",VLOOKUP($B77,'III - Waste'!$B:$AH,33,FALSE)) -> 
B78: III.4.3 | C78: 1 | D78: Emissions from wastewater generated outside the city boundary but treated within the city | E78: =IF(VLOOKUP(B78,'III - Waste'!$B:$G,6,FALSE)="","",VLOOKUP(B78,'III - Waste'!$B:$G,6,FALSE)) -> NO | F78: =SUMIF('III - Waste'!$B:$B,$B78,'III - Waste'!AA:AA) -> 0 | G78: =SUMIF('III - Waste'!$B:$B,$B78,'III - Waste'!AB:AB) -> 0 | H78: =SUMIF('III - Waste'!$B:$B,$B78,'III - Waste'!AC:AC) -> 0 | M78: =SUMIF('III - Waste'!$B:$B,$B78,'III - Waste'!AD:AD) -> 0 | N78: =SUMIF('III - Waste'!$B:$B,$B78,'III - Waste'!AE:AE) -> 0 | O78: =IF(VLOOKUP($B78,'III - Waste'!$B:$AH,33,FALSE)="","",VLOOKUP($B78,'III - Waste'!$B:$AH,33,FALSE)) -> 
B79: IV | C79: 1 | D79: INDUSTRIAL PROCESSES and PRODUCT USES (IPPU)
B80: IV.1 | C80: 1 | D80: Emissions from industrial processes occurring in the city boundary | E80: =IF(VLOOKUP(B80,'IV - IPPU'!$B:$F,5,FALSE)="","",VLOOKUP(B80,'IV - IPPU'!$B:$F,5,FALSE)) ->  | F80: =SUMIF('IV - IPPU'!$B:$B,$B80,'IV - IPPU'!AT:AT) -> 0 | G80: =SUMIF('IV - IPPU'!$B:$B,$B80,'IV - IPPU'!AU:AU) -> 0 | H80: =SUMIF('IV - IPPU'!$B:$B,$B80,'IV - IPPU'!AV:AV) -> 0 | I80: =SUMIF('IV - IPPU'!$B:$B,$B80,'IV - IPPU'!AW:AW) -> 0 | J80: =SUMIF('IV - IPPU'!$B:$B,$B80,'IV - IPPU'!AX:AX) -> 0 | K80: =SUMIF('IV - IPPU'!$B:$B,$B80,'IV - IPPU'!AY:AY) -> 0 | L80: =SUMIF('IV - IPPU'!$B:$B,$B80,'IV - IPPU'!AZ:AZ) -> 0 | M80: =SUMIF('IV - IPPU'!$B:$B,$B80,'IV - IPPU'!BA:BA) -> 53738 | N80: =SUMIF('IV - IPPU'!$B:$B,$B80,'IV - IPPU'!BB:BB) -> 0 | O80: =IF(VLOOKUP($B80,'IV - IPPU'!$B:$BE,56,FALSE)="","",VLOOKUP($B80,'IV - IPPU'!$B:$BE,56,FALSE)) -> IV.1 has not been estimated; activity not required for BASIC
B81: IV.2 | C81: 1 | D81: Emissions from product use occurring within the city boundary | E81: =IF(VLOOKUP(B81,'IV - IPPU'!$B:$F,5,FALSE)="","",VLOOKUP(B81,'IV - IPPU'!$B:$F,5,FALSE)) ->  | F81: =SUMIF('IV - IPPU'!$B:$B,$B81,'IV - IPPU'!AT:AT) -> 0 | G81: =SUMIF('IV - IPPU'!$B:$B,$B81,'IV - IPPU'!AU:AU) -> 0 | H81: =SUMIF('IV - IPPU'!$B:$B,$B81,'IV - IPPU'!AV:AV) -> 0 | I81: =SUMIF('IV - IPPU'!$B:$B,$B81,'IV - IPPU'!AW:AW) -> 0 | J81: =SUMIF('IV - IPPU'!$B:$B,$B81,'IV - IPPU'!AX:AX) -> 0 | K81: =SUMIF('IV - IPPU'!$B:$B,$B81,'IV - IPPU'!AY:AY) -> 0 | L81: =SUMIF('IV - IPPU'!$B:$B,$B81,'IV - IPPU'!AZ:AZ) -> 0 | M81: =SUMIF('IV - IPPU'!$B:$B,$B81,'IV - IPPU'!BA:BA) -> 193540.9803 | N81: =SUMIF('IV - IPPU'!$B:$B,$B81,'IV - IPPU'!BB:BB) -> 0 | O81: =IF(VLOOKUP($B81,'IV - IPPU'!$B:$BE,56,FALSE)="","",VLOOKUP($B81,'IV - IPPU'!$B:$BE,56,FALSE)) -> IV.2 has not been estimated; activity not required for BASIC
B82: V | C82: 1 | D82: AGRICULTURE, FORESTRY and OTHER LAND USE (AFOLU)
B83: V.1 | C83: 1 | D83: Emissions from livestock | E83: =IF(VLOOKUP(B83,'V - AFOLU'!$B:$F,5,FALSE)="","",VLOOKUP(B83,'V - AFOLU'!$B:$F,5,FALSE)) -> NE | F83: =SUMIF('V - AFOLU'!$B:$B,$B83,'V - AFOLU'!Z:Z) -> 0 | G83: =SUMIF('V - AFOLU'!$B:$B,$B83,'V - AFOLU'!AA:AA) -> 0 | H83: =SUMIF('V - AFOLU'!$B:$B,$B83,'V - AFOLU'!AB:AB) -> 0 | M83: =SUMIF('V - AFOLU'!$B:$B,$B83,'V - AFOLU'!AC:AC) -> 0 | N83: =SUMIF('V - AFOLU'!$B:$B,$B83,'V - AFOLU'!AD:AD) -> 0 | O83: =IF(VLOOKUP($B83,'V - AFOLU'!$B:$AG,32,FALSE)="","",VLOOKUP($B83,'V - AFOLU'!$B:$AG,32,FALSE)) -> V.1 has not been estimated; activity not required for BASIC
B84: V.2 | C84: 1 | D84: Emissions from land | E84: =IF(VLOOKUP(B84,'V - AFOLU'!$B:$F,5,FALSE)="","",VLOOKUP(B84,'V - AFOLU'!$B:$F,5,FALSE)) -> NE | F84: =SUMIF('V - AFOLU'!$B:$B,$B84,'V - AFOLU'!Z:Z) -> 0 | G84: =SUMIF('V - AFOLU'!$B:$B,$B84,'V - AFOLU'!AA:AA) -> 0 | H84: =SUMIF('V - AFOLU'!$B:$B,$B84,'V - AFOLU'!AB:AB) -> 0 | M84: =SUMIF('V - AFOLU'!$B:$B,$B84,'V - AFOLU'!AC:AC) -> 0 | N84: =SUMIF('V - AFOLU'!$B:$B,$B84,'V - AFOLU'!AD:AD) -> 0 | O84: =IF(VLOOKUP($B84,'V - AFOLU'!$B:$AG,32,FALSE)="","",VLOOKUP($B84,'V - AFOLU'!$B:$AG,32,FALSE)) -> V.2 has not been estimated; activity not required for BASIC
B85: V.3 | C85: 1 | D85: Emissions from aggregate sources and non-CO2 emission sources on land | E85: =IF(VLOOKUP(B85,'V - AFOLU'!$B:$F,5,FALSE)="","",VLOOKUP(B85,'V - AFOLU'!$B:$F,5,FALSE)) -> NE | F85: =SUMIF('V - AFOLU'!$B:$B,$B85,'V - AFOLU'!Z:Z) -> 0 | G85: =SUMIF('V - AFOLU'!$B:$B,$B85,'V - AFOLU'!AA:AA) -> 0 | H85: =SUMIF('V - AFOLU'!$B:$B,$B85,'V - AFOLU'!AB:AB) -> 0 | M85: =SUMIF('V - AFOLU'!$B:$B,$B85,'V - AFOLU'!AC:AC) -> 0 | N85: =SUMIF('V - AFOLU'!$B:$B,$B85,'V - AFOLU'!AD:AD) -> 0 | O85: =IF(VLOOKUP($B85,'V - AFOLU'!$B:$AG,32,FALSE)="","",VLOOKUP($B85,'V - AFOLU'!$B:$AG,32,FALSE)) -> V.3 has not been estimated; activity not required for BASIC
B86: VI | C86: 3 | D86: OTHER SCOPE 3
B87: VI.1 | C87: 3 | D87: Other Scope 3 | E87: =IF(VLOOKUP(B87,'VI - Other scope 3'!$B:$F,5,FALSE)="","",VLOOKUP(B87,'VI - Other scope 3'!$B:$F,5,FALSE)) -> NE | F87: =SUMIF('VI - Other scope 3'!$B:$B,$B87,'VI - Other scope 3'!AT:AT) -> 0 | G87: =SUMIF('VI - Other scope 3'!$B:$B,$B87,'VI - Other scope 3'!AU:AU) -> 0 | H87: =SUMIF('VI - Other scope 3'!$B:$B,$B87,'VI - Other scope 3'!AV:AV) -> 0 | I87: =SUMIF('VI - Other scope 3'!$B:$B,$B87,'VI - Other scope 3'!AW:AW) -> 0 | J87: =SUMIF('VI - Other scope 3'!$B:$B,$B87,'VI - Other scope 3'!AX:AX) -> 0 | K87: =SUMIF('VI - Other scope 3'!$B:$B,$B87,'VI - Other scope 3'!AY:AY) -> 0 | L87: =SUMIF('VI - Other scope 3'!$B:$B,$B87,'VI - Other scope 3'!AZ:AZ) -> 0 | M87: =SUMIF('VI - Other scope 3'!$B:$B,$B87,'VI - Other scope 3'!BA:BA) -> 0 | N87: =SUMIF('VI - Other scope 3'!$B:$B,$B87,'VI - Other scope 3'!BB:BB) -> 0 | O87: =IF(VLOOKUP($B87,'VI - Other scope 3'!$B:$BE,56,FALSE)="","",VLOOKUP($B87,'VI - Other scope 3'!$B:$BE,56,FALSE)) -> VI.1 has not been estimated; activity not required for BASIC

Sheet Graphs (hidden)

Sheet Table B. Summary
B2: GPC GHG Summary Tables | J2: =(IFERROR(IF('City information'!C25="BASIC","BASIC ",IF('City information'!C25="BASIC+","BASIC+ ","")),"")) -> BASIC | N2: 
B4: NAME OF CITY: | D4: =IF('City information'!C10="",'City information'!C9,CONCATENATE('City information'!C9,", ",'City information'!C10)) -> Chicago, USA | H4: POPULATION: | J4: ='City information'!C14 -> 2695598 | N4: Net emissions
B5: BOUNDARY: | D5: ='City information'!C12 -> Administrative boundary of a local government | H5: LAND AREA (km2): | J5: ='City information'!C13 -> 0
B6: INVENTORY YEAR: | D6: ='City information'!C11 -> 2010 | H6: GDP (US$ bn): | J6: ='City information'!C15/1000000000 -> 0
B8: GHG Emissions Source (By Sector) | E8: Total GHGs (metric tonnes CO2e) | K8: Net GHGs (mtCO2e)
E9: Scope 1 | F9: Scope 2 | G9: Scope 3 | H9: BASIC | I9: BASIC+ | J9: BASIC+ S3 | K9: BASIC | L9: BASIC+ | M9: BASIC+ S3
B10: STATIONARY ENERGY | D10: Energy use (all emissions except I.4.4) | E10: =G32 -> 10063097.61 | F10: =H32 -> 14810105.25 | G10: =I32 -> 0 | H10: =E10+F10 -> 24873202.86 | I10: =SUM(E10:G10) -> 24873202.86 | J10: =SUM(E10:G10) -> 24873202.86 | K10: =H10-'City information'!G59+'City information'!C70-'City information'!C79-'City information'!K90 -> 24873202.86 | L10: =I10-'City information'!G59+'City information'!C70-'City information'!C79-'City information'!K90 -> 24873202.86 | M10: =J10-'City information'!G59+'City information'!C70-'City information'!C79-'City information'!K90 -> 24873202.86
D11: Energy generation supplied to the grid (I.4.4) | E11: =IF('Table A. Overview'!E28="",'Table A. Overview'!M28,"") -> 
B12: TRANSPORTATION | D12: (all II emissions) | E12: =G39 -> 6846876.949 | F12: =H39 -> 251555.5941 | G12: =I39 -> 0 | H12: =E12+F12 -> 7098432.543 | I12: =SUM(E12:G12) -> 7098432.543 | J12: =SUM(E12:G12) -> 7098432.543 | K12: =H12 -> 7098432.543 | L12: 7098432.543 | M12: 7098432.543
B13: WASTE | D13: Waste generated in the city (III.X.1 and III.X.2) | E13: =G49 -> 1326662.73 | G13: =I49 -> 0 | H13: =E13+G13 -> 1326662.73 | I13: =E13+G13 -> 1326662.73 | J13: =E13+G13 -> 1326662.73 | K13: 1326662.73 | L13: 1326662.73 | M13: 1326662.73
D14: Waste generated outside city (III.X.3) | E14: =SUM(G45:G48) -> 0
B15: IPPU | D15: (all IV emissions) | E15: =G53 -> 247278.9803 | I15: =E15 -> 247278.9803 | J15: =E15 -> 247278.9803 | L15: =I15 -> 247278.9803 | M15: =J15 -> 247278.9803
B16: AFOLU | D16: (all V emissions) | E16: =G58 -> 0 | I16: =E16 -> 0 | J16: =E16 -> 0 | L16: =I16 -> 0 | M16: =J16 -> 0
B17: OTHER SCOPE 3 | D17: (all VI emissions) | G17: =IF(ISNUMBER(I60),I60,"") ->  | J17: =SUM(G17) -> 0 | M17: =J17 -> 0
B18: TOTAL | E18: =IF(SUM(E10:E16)=0,"All territorial emissions",SUM(E10:E16)) -> 18483916.27 | F18: =IF((F10+F12)=0,"",F10+F12) -> 15061660.85 | G18: =IF((G10+G12+G13)=0,"",(G10+G12+G13)) ->  | H18: =IF((H10+H12+H13)=0,"All BASIC emissions",(H10+H12+H13)) -> 33298298.14 | I18: =IF((I10+I12+I13+I15+I16)=0,"All BASIC+ emissions",(I10+I12+I13+I15+I16)) -> 33545577.12 | J18: =IF((J10+J12+J13+J15+J16+J17)=0,"All BASIC+ S3 emissions",(J10+J12+J13+J15+J16+J17)) -> 33545577.12 | K18: =IF((K10+K12+K13+K11)=0,"NET BASIC emissions",(K10+K12+K13+K11)) -> 33298298.14 | L18: =IF((L10+L12+L13+L15+L16+L11)=0,"NET BASIC+ emissions",(L10+L12+L13+L15+L16+L11)) -> 33545577.12 | M18: =IF((M10+M12+M13+M15+M16+M17)=0,"Net BASIC+ S3 emissions",(M10+M12+M13+M15+M16+M17)) -> 33545577.12
B20: GPC ref No. | C20: GHG Emissions Source (By Sector and Sub-sector) | G20: Total GHGs (metric tonnes CO2e)
G21: Scope 1 | H21: Scope 2 | I21: Scope 3 | J21: Total
B22: I | C22: STATIONARY ENERGY
B23: I.1 | C23: Residential buildings | G23: =IF('Table A. Overview'!E13="",'Table A. Overview'!M13,'Table A. Overview'!E13) -> 5715207.909 | H23: =IF('Table A. Overview'!E14="",'Table A. Overview'!M14,'Table A. Overview'!E14) -> 4062733.704 | I23: =IF('Table A. Overview'!E15="",'Table A. Overview'!M15,'Table A. Overview'!E15) -> NE | J23: =SUM(G23:I23) -> 9777941.613
B24: I.2 | C24: Commercial and institutional buildings and facilities | G24: =IF('Table A. Overview'!E17="",'Table A. Overview'!M17,'Table A. Overview'!E17) -> 2996949.131 | H24: =IF('Table A. Overview'!E18="",'Table A. Overview'!M18,'Table A. Overview'!E18) -> 10747371.55 | I24: =IF('Table A. Overview'!E19="",'Table A. Overview'!M19,'Table A. Overview'!E19) -> NE | J24: 13744320.68
B25: I.3 | C25: Manufacturing industries and construction | G25: =IF('Table A. Overview'!E21="",'Table A. Overview'!M21,'Table A. Overview'!E21) -> 1350940.57 | H25: =IF('Table A. Overview'!E22="",'Table A. Overview'!M22,'Table A. Overview'!E22) -> IE | I25: =IF('Table A. Overview'!E23="",'Table A. Overview'!M23,'Table A. Overview'!E23) -> NE | J25: 1350940.57
B26: I.4.1/2/3 | C26: Energy industries | G26: =IF('Table A. Overview'!E25="",'Table A. Overview'!M25,'Table A. Overview'!E25) -> NO | H26: =IF('Table A. Overview'!E26="",'Table A. Overview'!M26,'Table A. Overview'!E26) -> NO | I26: =IF('Table A. Overview'!E27="",'Table A. Overview'!M27,'Table A. Overview'!E27) -> NO | J26: 0
B27: I.4.4 | C27: Energy generation supplied to the grid | G27: =IF('Table A. Overview'!E28="",'Table A. Overview'!M28,'Table A. Overview'!E28) -> NO
B28: I.5 | C28: Agriculture, forestry and fishing activities | G28: =IF('Table A. Overview'!E30="",'Table A. Overview'!M30,'Table A. Overview'!E30) -> NO | H28: =IF('Table A. Overview'!E31="",'Table A. Overview'!M31,'Table A. Overview'!E31) -> NO | I28: =IF('Table A. Overview'!E32="",'Table A. Overview'!M32,'Table A. Overview'!E32) -> NO | J28: 0
B29: I.6 | C29: Non-specified sources | G29: =IF('Table A. Overview'!E34="",'Table A. Overview'!M34,'Table A. Overview'!E34) -> NO | H29: =IF('Table A. Overview'!E35="",'Table A. Overview'!M35,'Table A. Overview'!E35) -> NO | I29: =IF('Table A. Overview'!E36="",'Table A. Overview'!M36,'Table A. Overview'!E36) -> NO | J29: 0
B30: I.7 | C30: Fugitive emissions from mining, processing, storage, and transportation of coal | G30: =IF('Table A. Overview'!E38="",'Table A. Overview'!M38,'Table A. Overview'!E38) -> NO | J30: =SUM(G30:I30) -> 0
B31: I.8 | C31: Fugitive emissions from oil and natural gas systems | G31: =IF('Table A. Overview'!E40="",'Table A. Overview'!M40,'Table A. Overview'!E40) -> NE | J31: =SUM(G31:I31) -> 0
B32: SUB-TOTAL | C32: (city induced framework only) | G32: =SUM(G23:G26)+SUM(G28:G31) -> 10063097.61 | H32: =SUM(H23:H31) -> 14810105.25 | I32: =SUM(I23:I31) -> 0 | J32: =SUM(J23:J26)+SUM(J28:J31) -> 24873202.86
B33: II | C33: TRANSPORTATION
B34: II.1 | C34: On-road transportation | G34: =IF('Table A. Overview'!E43="",'Table A. Overview'!M43,'Table A. Overview'!E43) -> 6783031.212 | H34: =IF('Table A. Overview'!E44="",'Table A. Overview'!M44,'Table A. Overview'!E44) -> IE | I34: =IF('Table A. Overview'!E45="",'Table A. Overview'!M45,'Table A. Overview'!E45) -> NE | J34: =SUM(G34:I34) -> 6783031.212
B35: II.2 | C35: Railways | G35: =IF('Table A. Overview'!E47="",'Table A. Overview'!M47,'Table A. Overview'!E47) -> 62587.2 | H35: =IF('Table A. Overview'!E48="",'Table A. Overview'!M48,'Table A. Overview'!E48) -> 251555.5941 | I35: =IF('Table A. Overview'!E49="",'Table A. Overview'!M49,'Table A. Overview'!E49) -> NE | J35: =SUM(G35:I35) -> 314142.7941
B36: II.3 | C36: Waterborne navigation | G36: =IF('Table A. Overview'!E51="",'Table A. Overview'!M51,'Table A. Overview'!E51) -> 246.864418 | H36: =IF('Table A. Overview'!E52="",'Table A. Overview'!M52,'Table A. Overview'!E52) -> NO | I36: =IF('Table A. Overview'!E53="",'Table A. Overview'!M53,'Table A. Overview'!E53) -> NO | J36: =SUM(G36:I36) -> 246.864418
B37: II.4 | C37: Aviation | G37: =IF('Table A. Overview'!E55="",'Table A. Overview'!M55,'Table A. Overview'!E55) -> NO | H37: =IF('Table A. Overview'!E56="",'Table A. Overview'!M56,'Table A. Overview'!E56) -> NO | I37: =IF('Table A. Overview'!E57="",'Table A. Overview'!M57,'Table A. Overview'!E57) -> NO | J37: =SUM(G37:I37) -> 0
B38: II.5 | C38: Off-road transportation | G38: =IF('Table A. Overview'!E59="",'Table A. Overview'!M59,'Table A. Overview'!E59) -> 1011.67266 | H38: =IF('Table A. Overview'!E60="",'Table A. Overview'!M60,'Table A. Overview'!E60) -> NO | I38: =IF('Table A. Overview'!E61="",'Table A. Overview'!M61,'Table A. Overview'!E61) -> NO | J38: =SUM(G38:I38) -> 1011.67266
B39: SUB-TOTAL | C39: (city induced framework only) | G39: =SUM(G34:G38) -> 6846876.949 | H39: =SUM(H34:H38) -> 251555.5941 | I39: =SUM(I34:I38) -> 0 | J39: =SUM(J34:J38) -> 7098432.543
B40: III | C40: WASTE
B41: III.1.1/2 | C41: Solid waste generated in the city | G41: =IF('Table A. Overview'!E64="",'Table A. Overview'!M64,'Table A. Overview'!E64) -> 1291449.038 | I41: =IF('Table A. Overview'!E65="",'Table A. Overview'!M65,'Table A. Overview'!E65) -> NO | J41: =SUM(G41:I41) -> 1291449.038
B42: III.2.1/2 | C42: Biological waste generated in the city | G42: =IF('Table A. Overview'!E68="",'Table A. Overview'!M68,'Table A. Overview'!E68) -> NO | I42: =IF('Table A. Overview'!E69="",'Table A. Overview'!M69,'Table A. Overview'!E69) -> NO | J42: =SUM(G42:I42) -> 0
B43: III.3.1/2 | C43: Incinerated and burned waste generated in the city | G43: =IF('Table A. Overview'!E72="",'Table A. Overview'!M72,'Table A. Overview'!E72) -> NO | I43: =IF('Table A. Overview'!E73="",'Table A. Overview'!M73,'Table A. Overview'!E73) -> NO | J43: =SUM(G43:I43) -> 0
B44: III.4.1/2 | C44: Wastewater generated in the city | G44: =IF('Table A. Overview'!E76="",'Table A. Overview'!M76,'Table A. Overview'!E76) -> 35213.69257 | I44: =IF('Table A. Overview'!E77="",'Table A. Overview'!M77,'Table A. Overview'!E77) -> NO | J44: =SUM(G44:I44) -> 35213.69257
B45: III.1.3 | C45: Solid waste generated outside the city | G45: =IF('Table A. Overview'!E66="",'Table A. Overview'!M66,'Table A. Overview'!E66) -> NO
B46: III.2.3 | C46: Biological waste generated outside the city | G46: =IF('Table A. Overview'!E70="",'Table A. Overview'!M70,'Table A. Overview'!E70) -> NO
B47: III.3.3 | C47: Incinerated and burned waste generated outside city | G47: =IF('Table A. Overview'!E74="",'Table A. Overview'!M74,'Table A. Overview'!E74) -> NO
B48: III.4.3 | C48: Wastewater generated outside the city | G48: =IF('Table A. Overview'!E78="",'Table A. Overview'!M78,'Table A. Overview'!E78) -> NO
